Workbook

Sheet Introduction
C4: Joint Monitoring Programme for Water Supply, Sanitation and Hygiene
C6: Estimates on household water, sanitation and hygiene by wealth quintile and sub-national region in
C7: =+Water!B5 -> Chad
C9: Updated May 2021
C11: Follow the links below to find the following information:
C13: JMP Estimates
C14: WASH status and trends by wealth quintile (customized quintiles made without water and sanitation assets)
C15: Water
C16: Sanitation
C17: Hygiene
C19: Data inputs
C20: customized wealth quintiles and subnational data:
C21: =IF(INDIRECT(CONCATENATE("Water","!B105"))=0,"",INDIRECT(CONCATENATE("Water","!B105"))) -> WHS03
C22: =IF(INDIRECT(CONCATENATE("Water","!B106"))=0,"",INDIRECT(CONCATENATE("Water","!B106"))) -> DHS04
C23: =IF(INDIRECT(CONCATENATE("Water","!B107"))=0,"",INDIRECT(CONCATENATE("Water","!B107"))) -> MICS10
C24: =IF(INDIRECT(CONCATENATE("Water","!B108"))=0,"",INDIRECT(CONCATENATE("Water","!B108"))) -> DHS15
C25: =IF(INDIRECT(CONCATENATE("Water","!B109"))=0,"",INDIRECT(CONCATENATE("Water","!B109"))) -> MICS19
C26: =IF(INDIRECT(CONCATENATE("Water","!B110"))=0,"",INDIRECT(CONCATENATE("Water","!B110"))) -> 
C27: =IF(INDIRECT(CONCATENATE("Water","!B111"))=0,"",INDIRECT(CONCATENATE("Water","!B111"))) -> 
C28: =IF(INDIRECT(CONCATENATE("Water","!B112"))=0,"",INDIRECT(CONCATENATE("Water","!B112"))) -> 
C29: =IF(INDIRECT(CONCATENATE("Water","!B113"))=0,"",INDIRECT(CONCATENATE("Water","!B113"))) -> 
C30: =IF(INDIRECT(CONCATENATE("Water","!B114"))=0,"",INDIRECT(CONCATENATE("Water","!B114"))) -> 
C31: =IF(INDIRECT(CONCATENATE("Water","!B115"))=0,"",INDIRECT(CONCATENATE("Water","!B115"))) -> 
C32: =IF(INDIRECT(CONCATENATE("Water","!B116"))=0,"",INDIRECT(CONCATENATE("Water","!B116"))) -> 
L55: =+IF(ISNUMBER(M48), "", "Insufficient data to estimate safely managed sanitation services at national level") -> Insufficient data to estimate safely managed sanitation services at national level

Sheet Water
A1: BGD
B4: Summary of trends in use of drinking water by wealth quintile (%)
B5: =IF(ISERROR(INDIRECT(CONCATENATE($B105,"!A2"))),"",INDIRECT(CONCATENATE($B105,"!A2"))) -> Chad
B7: =B118 -> National use of drinking water sources, 2000–2020 | J7: =B218 -> Urban use of drinking water sources, 2000–2020 | R7: =B318 -> Rural use of drinking water sources, 2000–2020
B31: =IF(ISERROR(INDIRECT(CONCATENATE($B105,"!A2"))),"",INDIRECT(CONCATENATE($B105,"!A2"))) -> Chad | F31: Poorest | J31: Poor | N31: Middle | R31: Rich | V31: Richest
F32: Basic | G32: Limited | H32: Unimproved | I32: Surface water | J32: Basic | K32: Limited | L32: Unimproved | M32: Surface water | N32: Basic | O32: Limited | P32: Unimproved | Q32: Surface water | R32: Basic | S32: Limited | T32: Unimproved | U32: Surface water | V32: Basic | W32: Limited | X32: Unimproved | Y32: Surface water
B33: NATIONAL | D33: Estimate | E33: =C99 -> 2000 | F33: =E99 -> 22.24167632 | G33: =F99 -> 8.897141701 | H33: 68.86118198 | I33: 0 | J33: =J99 -> 33.2693549 | K33: =K99 -> 11.79954914 | L33: 54.93109597 | M33: 0 | N33: =O99 -> 33.77993648 | O33: =P99 -> 10.33335568 | P33: 55.88670784 | Q33: 0 | R33: =T99 -> 39.91721417 | S33: =U99 -> 10.48439089 | T33: 48.54663895 | U33: 1.051755994 | V33: =Y99 -> 65.32528369 | W33: =Z99 -> 6.772610328 | X33: 24.27544158 | Y33: 3.6266644
E34: =C100 -> 2020 | F34: =E100 -> 34.34607302 | G34: 13.7391568 | H34: 32.14525153 | I34: 19.76951864 | J34: =J100 -> 35.91670727 | K34: 12.73847821 | L34: 34.94491945 | M34: 16.39989507 | N34: =O100 -> 42.49577225 | O34: 12.99954871 | P34: 33.74878755 | Q34: 10.75589149 | R34: =T100 -> 50.29338847 | S34: 13.20972805 | T34: 31.15177966 | U34: 5.345103813 | V34: =Y100 -> 80.17576722 | W34: 8.312236831 | X34: 11.15490073 | Y34: 0.3570952219
B36: URBAN | D36: Estimate | E36: =C199 -> 2000 | F36: =E199 -> 54.37846144 | G36: =F199 -> 11.0940455 | H36: 29.95283844 | I36: 4.574654614 | J36: =J199 -> 69.11437272 | K36: =K199 -> 8.148953107 | L36: 17.46547416 | M36: 5.271200012 | N36: =O199 -> 66.88032147 | O36: =P199 -> 6.334061179 | P36: 22.14083628 | Q36: 4.644781069 | R36: =T199 -> 69.10211119 | S36: =U199 -> 4.712839703 | T36: 18.42350369 | U36: 7.761545424 | V36: =Y199 -> 85.02710036 | W36: =Z199 -> 1.968167048 | X36: 8.688056137 | Y36: 4.316676452
E37: =C200 -> 2020 | F37: =E200 -> 62.57107802 | G37: 12.76546574 | H37: 21.64730025 | I37: 3.016155989 | J37: =J200 -> 77.84262497 | K37: 9.178060592 | L37: 12.97931444 | M37: 0 | N37: =O200 -> 87.48744886 | O37: 8.285708581 | P37: 4.226842563 | Q37: 0 | R37: =T200 -> 93.61533179 | S37: 6.38466821 | T37: 0 | U37: 0 | V37: =Y200 -> 97.73761596 | W37: 2.262384043 | X37: 0 | Y37: 0
B39: RURAL | D39: Estimate | E39: =C299 -> 2000 | F39: =E299 -> 21.73719882 | G39: =F299 -> 8.844770025 | H39: 69.41803115 | I39: 0 | J39: =J299 -> 29.84232565 | K39: =K299 -> 11.3152169 | L39: 58.84245744 | M39: 0 | N39: =O299 -> 33.18929909 | O39: =P299 -> 10.36983739 | P39: 56.44086352 | Q39: 0 | R39: =T299 -> 30.0876507 | S39: =U299 -> 10.46078861 | T39: 59.4515607 | U39: 0 | V39: =Y299 -> 38.51043067 | W39: =Z299 -> 11.49130296 | X39: 49.34013027 | Y39: 0.6581361002
E40: =C300 -> 2020 | F40: =E300 -> 32.71995309 | G40: 13.31360415 | H40: 32.57644904 | I40: 21.38999372 | J40: =J300 -> 33.82164194 | K40: 12.82404123 | L40: 36.21117399 | M40: 17.14314283 | N40: =O300 -> 38.63389244 | O40: 12.07097448 | P40: 35.2097802 | Q40: 14.08535288 | R40: =T300 -> 42.63078229 | S40: 14.82174883 | T40: 33.6863357 | U40: 8.861133173 | V40: =Y300 -> 47.09229617 | W40: 14.05208493 | X40: 34.08018476 | Y40: 4.775434141
A97: NATIONAL | D97: Poorest | I97: Poor | N97: Middle | S97: Rich | X97: Richest
D98: Improved | E98: Basic | F98: Limited | G98: Unimproved | H98: Surface water | I98: Improved | J98: Basic | K98: Limited | L98: Unimproved | M98: Surface water | N98: Improved | O98: Basic | P98: Limited | Q98: Unimproved | R98: Surface water | S98: Improved | T98: Basic | U98: Limited | V98: Unimproved | W98: Surface water | X98: Improved | Y98: Basic | Z98: Limited | AA98: Unimproved | AB98: Surface water
A99: Forecast period: | C99: 2000 | D99: =IF((D101+H101)>100,D101*100/(D101+H101),D101) -> 31.13881802 | E99: =D99*AVERAGEIF(E105:E116,">0")/100 -> 22.24167632 | F99: =D99*(100-AVERAGEIF(E105:E116,">0"))/100 -> 8.897141701 | G99: =100-(E99+F99+H99) -> 68.86118198 | H99: =IF((D101+H101)>100,H101*100/(D101+H101),H101) -> 0 | I99: =IF((I101+M101)>100,I101*100/(I101+M101),I101) -> 45.06890403 | J99: =I99*AVERAGEIF(J105:J116,">0")/100 -> 33.2693549 | K99: =I99*(100-AVERAGEIF(J105:J116,">0"))/100 -> 11.79954914 | L99: =100-(J99+K99+M99) -> 54.93109597 | M99: =IF((I101+M101)>100,M101*100/(I101+M101),M101) -> 0 | N99: =IF((N101+R101)>100,N101*100/(N101+R101),N101) -> 44.11329216 | O99: =N99*AVERAGEIF(O105:O116,">0")/100 -> 33.77993648 | P99: =N99*(100-AVERAGEIF(O105:O116,">0"))/100 -> 10.33335568 | Q99: =100-(O99+P99+R99) -> 55.88670784 | R99: =IF((N101+R101)>100,R101*100/(N101+R101),R101) -> 0 | S99: =IF((S101+W101)>100,S101*100/(S101+W101),S101) -> 50.40160505 | T99: =S99*AVERAGEIF(T105:T116,">0")/100 -> 39.91721417 | U99: =S99*(100-AVERAGEIF(T105:T116,">0"))/100 -> 10.48439089 | V99: =100-(T99+U99+W99) -> 48.54663895 | W99: =IF((S101+W101)>100,W101*100/(S101+W101),W101) -> 1.051755994 | X99: =IF((X101+AB101)>100,X101*100/(X101+AB101),X101) -> 72.09789402 | Y99: =X99*AVERAGEIF(Y105:Y116,">0")/100 -> 65.32528369 | Z99: =X99*(100-AVERAGEIF(Y105:Y116,">0"))/100 -> 6.772610328 | AA99: =100-(Y99+Z99+AB99) -> 24.27544158 | AB99: =IF((X101+AB101)>100,AB101*100/(X101+AB101),AB101) -> 3.6266644
C100: 2020 | D100: =IF((D102+H102)>100,D102*100/(D102+H102),D102) -> 48.08522983 | E100: =D100*AVERAGEIF(E105:E116,">0")/100 -> 34.34607302 | F100: =D100*(100-AVERAGEIF(E105:E116,">0"))/100 -> 13.7391568 | G100: =100-(E100+F100+H100) -> 32.14525153 | H100: =IF((D102+H102)>100,H102*100/(D102+H102),H102) -> 19.76951864 | I100: =IF((I102+M102)>100,I102*100/(I102+M102),I102) -> 48.65518548 | J100: =I100*AVERAGEIF(J105:J116,">0")/100 -> 35.91670727 | K100: =I100*(100-AVERAGEIF(J105:J116,">0"))/100 -> 12.73847821 | L100: =100-(J100+K100+M100) -> 34.94491945 | M100: =IF((I102+M102)>100,M102*100/(I102+M102),M102) -> 16.39989507 | N100: =IF((N102+R102)>100,N102*100/(N102+R102),N102) -> 55.49532096 | O100: =N100*AVERAGEIF(O105:O116,">0")/100 -> 42.49577225 | P100: =N100*(100-AVERAGEIF(O105:O116,">0"))/100 -> 12.99954871 | Q100: =100-(O100+P100+R100) -> 33.74878755 | R100: =IF((N102+R102)>100,R102*100/(N102+R102),R102) -> 10.75589149 | S100: =IF((S102+W102)>100,S102*100/(S102+W102),S102) -> 63.50311653 | T100: =S100*AVERAGEIF(T105:T116,">0")/100 -> 50.29338847 | U100: =S100*(100-AVERAGEIF(T105:T116,">0"))/100 -> 13.20972805 | V100: =100-(T100+U100+W100) -> 31.15177966 | W100: =IF((S102+W102)>100,W102*100/(S102+W102),W102) -> 5.345103813 | X100: =IF((X102+AB102)>100,X102*100/(X102+AB102),X102) -> 88.48800405 | Y100: =X100*AVERAGEIF(Y105:Y116,">0")/100 -> 80.17576722 | Z100: =X100*(100-AVERAGEIF(Y105:Y116,">0"))/100 -> 8.312236831 | AA100: =100-(Y100+Z100+AB100) -> 11.15490073 | AB100: =IF((X102+AB102)>100,AB102*100/(X102+AB102),AB102) -> 0.3570952219
A101: Regression period: | C101: =MinRegYear(C99,C105:C116) -> 2001 | D101: =IF(MAX(C105:C116)-MIN(C105:C116)<5,AVERAGEIF(C105:C116,">0",D105:D116), IF(FORECAST($C101,D$105:D$116,$C$105:$C$116)<0,0, IF(FORECAST($C101,D$105:D$116,$C$105:$C$116)>100,100, FORECAST($C101,D$105:D$116,$C$105:$C$116)))) -> 31.13881802 | H101: =IF(MAX(C105:C116)-MIN(C105:C116)<5,AVERAGEIF(C105:C116,">0",H105:H116), IF(FORECAST($C101,H$105:H$116,$C$105:$C$116)<0,0, IF(FORECAST($C101,H$105:H$116,$C$105:$C$116)>100,100, FORECAST($C101,H$105:H$116,$C$105:$C$116)))) -> 0 | I101: =IF(MAX(C105:C116)-MIN(C105:C116)<5,AVERAGEIF(C105:C116,">0",I105:I116), IF(FORECAST($C101,I$105:I$116,$C$105:$C$116)<0,0, IF(FORECAST($C101,I$105:I$116,$C$105:$C$116)>100,100, FORECAST($C101,I$105:I$116,$C$105:$C$116)))) -> 45.06890403 | M101: =IF(MAX(C105:C116)-MIN(C105:C116)<5,AVERAGEIF(C105:C116,">0",M105:M116), IF(FORECAST($C101,M$105:M$116,$C$105:$C$116)<0,0, IF(FORECAST($C101,M$105:M$116,$C$105:$C$116)>100,100, FORECAST($C101,M$105:M$116,$C$105:$C$116)))) -> 0 | N101: =IF(MAX(C105:C116)-MIN(C105:C116)<5,AVERAGEIF(C105:C116,">0",N105:N116), IF(FORECAST($C101,N$105:N$116,$C$105:$C$116)<0,0, IF(FORECAST($C101,N$105:N$116,$C$105:$C$116)>100,100, FORECAST($C101,N$105:N$116,$C$105:$C$116)))) -> 44.11329216 | R101: =IF(MAX(C105:C116)-MIN(C105:C116)<5,AVERAGEIF(C105:C116,">0",R105:R116), IF(FORECAST($C101,R$105:R$116,$C$105:$C$116)<0,0, IF(FORECAST($C101,R$105:R$116,$C$105:$C$116)>100,100, FORECAST($C101,R$105:R$116,$C$105:$C$116)))) -> 0 | S101: =IF(MAX(C105:C116)-MIN(C105:C116)<5,AVERAGEIF(C105:C116,">0",S105:S116), IF(FORECAST($C101,S$105:S$116,$C$105:$C$116)<0,0, IF(FORECAST($C101,S$105:S$116,$C$105:$C$116)>100,100, FORECAST($C101,S$105:S$116,$C$105:$C$116)))) -> 50.40160505 | W101: =IF(MAX(C105:C116)-MIN(C105:C116)<5,AVERAGEIF(C105:C116,">0",W105:W116), IF(FORECAST($C101,W$105:W$116,$C$105:$C$116)<0,0, IF(FORECAST($C101,W$105:W$116,$C$105:$C$116)>100,100, FORECAST($C101,W$105:W$116,$C$105:$C$116)))) -> 1.051755994 | X101: =IF(MAX(C105:C116)-MIN(C105:C116)<5,AVERAGEIF(C105:C116,">0",X105:X116), IF(FORECAST($C101,X$105:X$116,$C$105:$C$116)<0,0, IF(FORECAST($C101,X$105:X$116,$C$105:$C$116)>100,100, FORECAST($C101,X$105:X$116,$C$105:$C$116)))) -> 72.09789402 | AB101: =IF(MAX(C105:C116)-MIN(C105:C116)<5,AVERAGEIF(C105:C116,">0",AB105:AB116), IF(FORECAST($C101,AB$105:AB$116,$C$105:$C$116)<0,0, IF(FORECAST($C101,AB$105:AB$116,$C$105:$C$116)>100,100, FORECAST($C101,AB$105:AB$116,$C$105:$C$116)))) -> 3.6266644
C102: =MaxRegYear(C100,C105:C116) -> 2020 | D102: =IF(MAX(C105:C116)-MIN(C105:C116)<5,AVERAGEIF(C105:C116,">0",D105:D116), IF(FORECAST($C102,D$105:D$116,$C$105:$C$116)<0,0, IF(FORECAST($C102,D$105:D$116,$C$105:$C$116)>100,100, FORECAST($C102,D$105:D$116,$C$105:$C$116)))) -> 48.08522983 | H102: =IF(MAX(C105:C116)-MIN(C105:C116)<5,AVERAGEIF(C105:C116,">0",H105:H116), IF(FORECAST($C102,H$105:H$116,$C$105:$C$116)<0,0, IF(FORECAST($C102,H$105:H$116,$C$105:$C$116)>100,100, FORECAST($C102,H$105:H$116,$C$105:$C$116)))) -> 19.76951864 | I102: =IF(MAX(C105:C116)-MIN(C105:C116)<5,AVERAGEIF(C105:C116,">0",I105:I116), IF(FORECAST($C102,I$105:I$116,$C$105:$C$116)<0,0, IF(FORECAST($C102,I$105:I$116,$C$105:$C$116)>100,100, FORECAST($C102,I$105:I$116,$C$105:$C$116)))) -> 48.65518548 | M102: =IF(MAX(C105:C116)-MIN(C105:C116)<5,AVERAGEIF(C105:C116,">0",M105:M116), IF(FORECAST($C102,M$105:M$116,$C$105:$C$116)<0,0, IF(FORECAST($C102,M$105:M$116,$C$105:$C$116)>100,100, FORECAST($C102,M$105:M$116,$C$105:$C$116)))) -> 16.39989507 | N102: =IF(MAX(C105:C116)-MIN(C105:C116)<5,AVERAGEIF(C105:C116,">0",N105:N116), IF(FORECAST($C102,N$105:N$116,$C$105:$C$116)<0,0, IF(FORECAST($C102,N$105:N$116,$C$105:$C$116)>100,100, FORECAST($C102,N$105:N$116,$C$105:$C$116)))) -> 55.49532096 | R102: =IF(MAX(C105:C116)-MIN(C105:C116)<5,AVERAGEIF(C105:C116,">0",R105:R116), IF(FORECAST($C102,R$105:R$116,$C$105:$C$116)<0,0, IF(FORECAST($C102,R$105:R$116,$C$105:$C$116)>100,100, FORECAST($C102,R$105:R$116,$C$105:$C$116)))) -> 10.75589149 | S102: =IF(MAX(C105:C116)-MIN(C105:C116)<5,AVERAGEIF(C105:C116,">0",S105:S116), IF(FORECAST($C102,S$105:S$116,$C$105:$C$116)<0,0, IF(FORECAST($C102,S$105:S$116,$C$105:$C$116)>100,100, FORECAST($C102,S$105:S$116,$C$105:$C$116)))) -> 63.50311653 | W102: =IF(MAX(C105:C116)-MIN(C105:C116)<5,AVERAGEIF(C105:C116,">0",W105:W116), IF(FORECAST($C102,W$105:W$116,$C$105:$C$116)<0,0, IF(FORECAST($C102,W$105:W$116,$C$105:$C$116)>100,100, FORECAST($C102,W$105:W$116,$C$105:$C$116)))) -> 5.345103813 | X102: =IF(MAX(C105:C116)-MIN(C105:C116)<5,AVERAGEIF(C105:C116,">0",X105:X116), IF(FORECAST($C102,X$105:X$116,$C$105:$C$116)<0,0, IF(FORECAST($C102,X$105:X$116,$C$105:$C$116)>100,100, FORECAST($C102,X$105:X$116,$C$105:$C$116)))) -> 88.48800405 | AB102: =IF(MAX(C105:C116)-MIN(C105:C116)<5,AVERAGEIF(C105:C116,">0",AB105:AB116), IF(FORECAST($C102,AB$105:AB$116,$C$105:$C$116)<0,0, IF(FORECAST($C102,AB$105:AB$116,$C$105:$C$116)>100,100, FORECAST($C102,AB$105:AB$116,$C$105:$C$116)))) -> 0.3570952219
B104: Survey | C104: Year | D104: Improved | E104: % Improved < = 30min | H104: Surface water | I104: Improved | J104: % Improved < = 30min | M104: Surface water | N104: Improved | O104: % Improved < = 30min | R104: Surface water | S104: Improved | T104: % Improved < = 30min | W104: Surface water | X104: Improved | Y104: % Improved < = 30min | AB104: Surface water
B105: WHS03 | C105: 2003 | D105: =IF(ISERROR(INDIRECT(CONCATENATE($B105,"!C16"))),"",INDIRECT(CONCATENATE($B105,"!C16"))) -> 37.35956634 | E105: =IF(ISERROR(INDIRECT(CONCATENATE($B105,"!C23"))),"",INDIRECT(CONCATENATE($B105,"!C23"))) -> 69.46707021 | H105: =IF(ISERROR(INDIRECT(CONCATENATE($B105,"!C21"))),"",INDIRECT(CONCATENATE($B105,"!C21"))) -> 0.1149265996 | I105: =IF(ISERROR(INDIRECT(CONCATENATE($B105,"!D16"))),"",INDIRECT(CONCATENATE($B105,"!D16"))) -> 50.09793662 | J105: =IF(ISERROR(INDIRECT(CONCATENATE($B105,"!D23"))),"",INDIRECT(CONCATENATE($B105,"!D23"))) -> 73.91093886 | M105: =IF(ISERROR(INDIRECT(CONCATENATE($B105,"!D21"))),"",INDIRECT(CONCATENATE($B105,"!D21"))) -> 0.2086725753 | N105: =IF(ISERROR(INDIRECT(CONCATENATE($B105,"!E16"))),"",INDIRECT(CONCATENATE($B105,"!E16"))) -> 47.93275272 | O105: =IF(ISERROR(INDIRECT(CONCATENATE($B105,"!E23"))),"",INDIRECT(CONCATENATE($B105,"!E23"))) -> 80.30784441 | R105: =IF(ISERROR(INDIRECT(CONCATENATE($B105,"!E21"))),"",INDIRECT(CONCATENATE($B105,"!E21"))) -> 0.6754743261 | S105: =IF(ISERROR(INDIRECT(CONCATENATE($B105,"!F16"))),"",INDIRECT(CONCATENATE($B105,"!F16"))) -> 50.64463132 | T105: =IF(ISERROR(INDIRECT(CONCATENATE($B105,"!F23"))),"",INDIRECT(CONCATENATE($B105,"!F23"))) -> 80.74872331 | W105: =IF(ISERROR(INDIRECT(CONCATENATE($B105,"!F21"))),"",INDIRECT(CONCATENATE($B105,"!F21"))) -> 1.475382845 | X105: =IF(ISERROR(INDIRECT(CONCATENATE($B105,"!G16"))),"",INDIRECT(CONCATENATE($B105,"!G16"))) -> 70.13541088 | Y105: =IF(ISERROR(INDIRECT(CONCATENATE($B105,"!G23"))),"",INDIRECT(CONCATENATE($B105,"!G23"))) -> 90.47162866 | AB105: =IF(ISERROR(INDIRECT(CONCATENATE($B105,"!G221"))),"",INDIRECT(CONCATENATE($B105,"!G21"))) -> 3.55610727
B106: DHS04 | D106: 23.27173269 | E106: 77.59117671 | H106: 21.78896427 | I106: 32.05349561 | J106: 74.44214874 | M106: 9.935942653 | N106: 29.66782124 | O106: 76.20502023 | R106: 7.717457187 | S106: 42.61825117 | T106: 76.5990034 | W106: 6.918777952 | X106: 68.13770002 | Y106: 88.26418313 | AB106: 3.071301217
B107: MICS10 | C107: 2010 | D107: 34.1 | E107: 60.1 | H107: 5.2 | I107: 41.2 | J107: 63.4 | M107: 4.8 | N107: 45.2 | O107: 67.3 | R107: 3.7 | S107: 56.1 | T107: 76.2 | W107: 3.1 | X107: 85 | Y107: 90.1 | AB107: 1.7
B108: DHS15 | C108: 2015 | D108: 37.27663364 | E108: 68.96810461 | H108: 16.58662144 | I108: 41.63256519 | J108: 71.23668293 | M108: 11.73962886 | N108: 51.70039499 | O108: 73.49530581 | R108: 7.859113752 | S108: 65.74173555 | T108: 77.49414263 | W108: 4.295749334 | X108: 87.36451703 | Y108: 91.19711311 | AB108: 0.9733984619
B109: MICS19 | C109: 2019 | D109: 54.17147777 | E109: 81.01110155 | H109: 17.58251065 | I109: 55.46143549 | J109: 86.10457079 | M109: 15.84266772 | N109: 57.37934926 | O109: 85.56890383 | R109: 10.36899176 | S109: 58.77084247 | T109: 84.9496286 | W109: 5.052415809 | X109: 82.98505509 | Y109: 92.99891868 | AB109: 0.8776005697
D111: =IF(ISERROR(INDIRECT(CONCATENATE($B111,"!C16"))),"",INDIRECT(CONCATENATE($B111,"!C16"))) ->  | E111: =IF(ISERROR(INDIRECT(CONCATENATE($B111,"!C23"))),"",INDIRECT(CONCATENATE($B111,"!C23"))) ->  | H111: =IF(ISERROR(INDIRECT(CONCATENATE($B111,"!C21"))),"",INDIRECT(CONCATENATE($B111,"!C21"))) ->  | I111: =IF(ISERROR(INDIRECT(CONCATENATE($B111,"!D16"))),"",INDIRECT(CONCATENATE($B111,"!D16"))) ->  | J111: =IF(ISERROR(INDIRECT(CONCATENATE($B111,"!D23"))),"",INDIRECT(CONCATENATE($B111,"!D23"))) ->  | M111: =IF(ISERROR(INDIRECT(CONCATENATE($B111,"!D21"))),"",INDIRECT(CONCATENATE($B111,"!D21"))) ->  | N111: =IF(ISERROR(INDIRECT(CONCATENATE($B111,"!E16"))),"",INDIRECT(CONCATENATE($B111,"!E16"))) ->  | O111: =IF(ISERROR(INDIRECT(CONCATENATE($B111,"!E23"))),"",INDIRECT(CONCATENATE($B111,"!E23"))) ->  | R111: =IF(ISERROR(INDIRECT(CONCATENATE($B111,"!E21"))),"",INDIRECT(CONCATENATE($B111,"!E21"))) ->  | S111: =IF(ISERROR(INDIRECT(CONCATENATE($B111,"!F16"))),"",INDIRECT(CONCATENATE($B111,"!F16"))) ->  | T111: =IF(ISERROR(INDIRECT(CONCATENATE($B111,"!F23"))),"",INDIRECT(CONCATENATE($B111,"!F23"))) ->  | W111: =IF(ISERROR(INDIRECT(CONCATENATE($B111,"!F21"))),"",INDIRECT(CONCATENATE($B111,"!F21"))) ->  | X111: =IF(ISERROR(INDIRECT(CONCATENATE($B111,"!G16"))),"",INDIRECT(CONCATENATE($B111,"!G16"))) ->  | Y111: =IF(ISERROR(INDIRECT(CONCATENATE($B111,"!G23"))),"",INDIRECT(CONCATENATE($B111,"!G23"))) ->  | AB111: =IF(ISERROR(INDIRECT(CONCATENATE($B111,"!G221"))),"",INDIRECT(CONCATENATE($B111,"!G21"))) -> 
D112: =IF(ISERROR(INDIRECT(CONCATENATE($B112,"!C16"))),"",INDIRECT(CONCATENATE($B112,"!C16"))) ->  | E112: =IF(ISERROR(INDIRECT(CONCATENATE($B112,"!C23"))),"",INDIRECT(CONCATENATE($B112,"!C23"))) ->  | H112: =IF(ISERROR(INDIRECT(CONCATENATE($B112,"!C21"))),"",INDIRECT(CONCATENATE($B112,"!C21"))) ->  | I112: =IF(ISERROR(INDIRECT(CONCATENATE($B112,"!D16"))),"",INDIRECT(CONCATENATE($B112,"!D16"))) ->  | J112: =IF(ISERROR(INDIRECT(CONCATENATE($B112,"!D23"))),"",INDIRECT(CONCATENATE($B112,"!D23"))) ->  | M112: =IF(ISERROR(INDIRECT(CONCATENATE($B112,"!D21"))),"",INDIRECT(CONCATENATE($B112,"!D21"))) ->  | N112: =IF(ISERROR(INDIRECT(CONCATENATE($B112,"!E16"))),"",INDIRECT(CONCATENATE($B112,"!E16"))) ->  | O112: =IF(ISERROR(INDIRECT(CONCATENATE($B112,"!E23"))),"",INDIRECT(CONCATENATE($B112,"!E23"))) ->  | R112: =IF(ISERROR(INDIRECT(CONCATENATE($B112,"!E21"))),"",INDIRECT(CONCATENATE($B112,"!E21"))) ->  | S112: =IF(ISERROR(INDIRECT(CONCATENATE($B112,"!F16"))),"",INDIRECT(CONCATENATE($B112,"!F16"))) ->  | T112: =IF(ISERROR(INDIRECT(CONCATENATE($B112,"!F23"))),"",INDIRECT(CONCATENATE($B112,"!F23"))) ->  | W112: =IF(ISERROR(INDIRECT(CONCATENATE($B112,"!F21"))),"",INDIRECT(CONCATENATE($B112,"!F21"))) ->  | X112: =IF(ISERROR(INDIRECT(CONCATENATE($B112,"!G16"))),"",INDIRECT(CONCATENATE($B112,"!G16"))) ->  | Y112: =IF(ISERROR(INDIRECT(CONCATENATE($B112,"!G23"))),"",INDIRECT(CONCATENATE($B112,"!G23"))) ->  | AB112: =IF(ISERROR(INDIRECT(CONCATENATE($B112,"!G221"))),"",INDIRECT(CONCATENATE($B112,"!G21"))) -> 
B118: =CONCATENATE("National use of drinking water sources, ",C99,"–",C100) -> National use of drinking water sources, 2000–2020 | S118: Data points used for regression
E153: =IF(ISERROR(INDIRECT(CONCATENATE($B153,"!M18"))),"",INDIRECT(CONCATENATE($B153,"!M18"))) ->  | F153: =IF(ISERROR(INDIRECT(CONCATENATE($B153,"!M19"))),"",INDIRECT(CONCATENATE($B153,"!M19"))) ->  | G153: =IF(ISERROR(INDIRECT(CONCATENATE($B153,"!M20"))),"",INDIRECT(CONCATENATE($B153,"!M20"))) ->  | H153: =IF(ISERROR(INDIRECT(CONCATENATE($B153,"!M21"))),"",INDIRECT(CONCATENATE($B153,"!M21"))) ->  | J153: =IF(ISERROR(INDIRECT(CONCATENATE($B153,"!N18"))),"",INDIRECT(CONCATENATE($B153,"!N18"))) ->  | K153: =IF(ISERROR(INDIRECT(CONCATENATE($B153,"!N19"))),"",INDIRECT(CONCATENATE($B153,"!N19"))) ->  | L153: =IF(ISERROR(INDIRECT(CONCATENATE($B153,"!N20"))),"",INDIRECT(CONCATENATE($B153,"!N20"))) ->  | M153: =IF(ISERROR(INDIRECT(CONCATENATE($B153,"!N21"))),"",INDIRECT(CONCATENATE($B153,"!N21"))) ->  | O153: =IF(ISERROR(INDIRECT(CONCATENATE($B153,"!O18"))),"",INDIRECT(CONCATENATE($B153,"!O18"))) ->  | P153: =IF(ISERROR(INDIRECT(CONCATENATE($B153,"!O19"))),"",INDIRECT(CONCATENATE($B153,"!O19"))) ->  | Q153: =IF(ISERROR(INDIRECT(CONCATENATE($B153,"!O20"))),"",INDIRECT(CONCATENATE($B153,"!O20"))) ->  | R153: =IF(ISERROR(INDIRECT(CONCATENATE($B153,"!O21"))),"",INDIRECT(CONCATENATE($B153,"!O21"))) ->  | T153: =IF(ISERROR(INDIRECT(CONCATENATE($B153,"!P18"))),"",INDIRECT(CONCATENATE($B153,"!P18"))) ->  | U153: =IF(ISERROR(INDIRECT(CONCATENATE($B153,"!P19"))),"",INDIRECT(CONCATENATE($B153,"!P19"))) ->  | V153: =IF(ISERROR(INDIRECT(CONCATENATE($B153,"!P20"))),"",INDIRECT(CONCATENATE($B153,"!P20"))) ->  | W153: =IF(ISERROR(INDIRECT(CONCATENATE($B153,"!P21"))),"",INDIRECT(CONCATENATE($B153,"!P21"))) ->  | Y153: =IF(ISERROR(INDIRECT(CONCATENATE($B153,"!Q18"))),"",INDIRECT(CONCATENATE($B153,"!Q18"))) ->  | Z153: =IF(ISERROR(INDIRECT(CONCATENATE($B153,"!Q19"))),"",INDIRECT(CONCATENATE($B153,"!Q19"))) ->  | AA153: =IF(ISERROR(INDIRECT(CONCATENATE($B153,"!Q20"))),"",INDIRECT(CONCATENATE($B153,"!Q20"))) ->  | AB153: =IF(ISERROR(INDIRECT(CONCATENATE($B153,"!Q21"))),"",INDIRECT(CONCATENATE($B153,"!Q1"))) -> 
A197: URBAN | D197: Poorest | I197: Poor | N197: Middle | S197: Rich | X197: Richest
D198: Improved | E198: Basic | F198: Limited | G198: Unimproved | H198: Surface water | I198: Improved | J198: Basic | K198: Limited | L198: Unimproved | M198: Surface water | N198: Improved | O198: Basic | P198: Limited | Q198: Unimproved | R198: Surface water | S198: Improved | T198: Basic | U198: Limited | V198: Unimproved | W198: Surface water | X198: Improved | Y198: Basic | Z198: Limited | AA198: Unimproved | AB198: Surface water
A199: Forecast period: | C199: 2000 | D199: =IF((D201+H201)>100,D201*100/(D201+H201),D201) -> 65.47250694 | E199: =D199*AVERAGEIF(E205:E216,">0")/100 -> 54.37846144 | F199: =D199*(100-AVERAGEIF(E205:E216,">0"))/100 -> 11.0940455 | G199: =100-(E199+F199+H199) -> 29.95283844 | H199: =IF((D201+H201)>100,H201*100/(D201+H201),H201) -> 4.574654614 | I199: =IF((I201+M201)>100,I201*100/(I201+M201),I201) -> 77.26332583 | J199: =I199*AVERAGEIF(J205:J216,">0")/100 -> 69.11437272 | K199: =I199*(100-AVERAGEIF(J205:J216,">0"))/100 -> 8.148953107 | L199: =100-(J199+K199+M199) -> 17.46547416 | M199: =IF((I201+M201)>100,M201*100/(I201+M201),M201) -> 5.271200012 | N199: =IF((N201+R201)>100,N201*100/(N201+R201),N201) -> 73.21438265 | O199: =N199*AVERAGEIF(O205:O216,">0")/100 -> 66.88032147 | P199: =N199*(100-AVERAGEIF(O205:O216,">0"))/100 -> 6.334061179 | Q199: =100-(O199+P199+R199) -> 22.14083628 | R199: =IF((N201+R201)>100,R201*100/(N201+R201),R201) -> 4.644781069 | S199: =IF((S201+W201)>100,S201*100/(S201+W201),S201) -> 73.81495089 | T199: =S199*AVERAGEIF(T205:T216,">0")/100 -> 69.10211119 | U199: =S199*(100-AVERAGEIF(T205:T216,">0"))/100 -> 4.712839703 | V199: =100-(T199+U199+W199) -> 18.42350369 | W199: =IF((S201+W201)>100,W201*100/(S201+W201),W201) -> 7.761545424 | X199: =IF((X201+AB201)>100,X201*100/(X201+AB201),X201) -> 86.99526741 | Y199: =X199*AVERAGEIF(Y205:Y216,">0")/100 -> 85.02710036 | Z199: =X199*(100-AVERAGEIF(Y205:Y216,">0"))/100 -> 1.968167048 | AA199: =100-(Y199+Z199+AB199) -> 8.688056137 | AB199: =IF((X201+AB201)>100,AB201*100/(X201+AB201),AB201) -> 4.316676452
C200: 2020 | D200: =IF((D202+H202)>100,D202*100/(D202+H202),D202) -> 75.33654377 | E200: =D200*AVERAGEIF(E205:E216,">0")/100 -> 62.57107802 | F200: =D200*(100-AVERAGEIF(E205:E216,">0"))/100 -> 12.76546574 | G200: =100-(E200+F200+H200) -> 21.64730025 | H200: =IF((D202+H202)>100,H202*100/(D202+H202),H202) -> 3.016155989 | I200: =IF((I202+M202)>100,I202*100/(I202+M202),I202) -> 87.02068556 | J200: =I200*AVERAGEIF(J205:J216,">0")/100 -> 77.84262497 | K200: =I200*(100-AVERAGEIF(J205:J216,">0"))/100 -> 9.178060592 | L200: =100-(J200+K200+M200) -> 12.97931444 | M200: =IF((I202+M202)>100,M202*100/(I202+M202),M202) -> 0 | N200: =IF((N202+R202)>100,N202*100/(N202+R202),N202) -> 95.77315744 | O200: =N200*AVERAGEIF(O205:O216,">0")/100 -> 87.48744886 | P200: =N200*(100-AVERAGEIF(O205:O216,">0"))/100 -> 8.285708581 | Q200: =100-(O200+P200+R200) -> 4.226842563 | R200: =IF((N202+R202)>100,R202*100/(N202+R202),R202) -> 0 | S200: =IF((S202+W202)>100,S202*100/(S202+W202),S202) -> 100 | T200: =S200*AVERAGEIF(T205:T216,">0")/100 -> 93.61533179 | U200: =S200*(100-AVERAGEIF(T205:T216,">0"))/100 -> 6.38466821 | V200: =100-(T200+U200+W200) -> 0 | W200: =IF((S202+W202)>100,W202*100/(S202+W202),W202) -> 0 | X200: =IF((X202+AB202)>100,X202*100/(X202+AB202),X202) -> 100 | Y200: =X200*AVERAGEIF(Y205:Y216,">0")/100 -> 97.73761596 | Z200: =X200*(100-AVERAGEIF(Y205:Y216,">0"))/100 -> 2.262384043 | AA200: =100-(Y200+Z200+AB200) -> 0 | AB200: =IF((X202+AB202)>100,AB202*100/(X202+AB202),AB202) -> 0
A201: Regression period: | C201: =MinRegYear(C199,C205:C216) -> 2001 | D201: =IF(MAX(C205:C216)-MIN(C205:C216)<5,AVERAGEIF(C205:C216,">0",D205:D216), IF(FORECAST($C201,D$205:D$216,$C$205:$C$216)<0,0, IF(FORECAST($C201,D$205:D$216,$C$205:$C$216)>100,100, FORECAST($C201,D$205:D$216,$C$205:$C$216)))) -> 65.47250694 | H201: =IF(MAX(C205:C216)-MIN(C205:C216)<5,AVERAGEIF(C205:C216,">0",H205:H216), IF(FORECAST($C201,H$205:H$216,$C$205:$C$216)<0,0, IF(FORECAST($C201,H$205:H$216,$C$205:$C$216)>100,100, FORECAST($C201,H$205:H$216,$C$205:$C$216)))) -> 4.574654614 | I201: =IF(MAX(C205:C216)-MIN(C205:C216)<5,AVERAGEIF(C205:C216,">0",I205:I216), IF(FORECAST($C201,I$205:I$216,$C$205:$C$216)<0,0, IF(FORECAST($C201,I$205:I$216,$C$205:$C$216)>100,100, FORECAST($C201,I$205:I$216,$C$205:$C$216)))) -> 77.26332583 | M201: =IF(MAX(C205:C216)-MIN(C205:C216)<5,AVERAGEIF(C205:C216,">0",M205:M216), IF(FORECAST($C201,M$205:M$216,$C$205:$C$216)<0,0, IF(FORECAST($C201,M$205:M$216,$C$205:$C$216)>100,100, FORECAST($C201,M$205:M$216,$C$205:$C$216)))) -> 5.271200012 | N201: =IF(MAX(C205:C216)-MIN(C205:C216)<5,AVERAGEIF(C205:C216,">0",N205:N216), IF(FORECAST($C201,N$205:N$216,$C$205:$C$216)<0,0, IF(FORECAST($C201,N$205:N$216,$C$205:$C$216)>100,100, FORECAST($C201,N$205:N$216,$C$205:$C$216)))) -> 73.21438265 | R201: =IF(MAX(C205:C216)-MIN(C205:C216)<5,AVERAGEIF(C205:C216,">0",R205:R216), IF(FORECAST($C201,R$205:R$216,$C$205:$C$216)<0,0, IF(FORECAST($C201,R$205:R$216,$C$205:$C$216)>100,100, FORECAST($C201,R$205:R$216,$C$205:$C$216)))) -> 4.644781069 | S201: =IF(MAX(C205:C216)-MIN(C205:C216)<5,AVERAGEIF(C205:C216,">0",S205:S216), IF(FORECAST($C201,S$205:S$216,$C$205:$C$216)<0,0, IF(FORECAST($C201,S$205:S$216,$C$205:$C$216)>100,100, FORECAST($C201,S$205:S$216,$C$205:$C$216)))) -> 73.81495089 | W201: =IF(MAX(C205:C216)-MIN(C205:C216)<5,AVERAGEIF(C205:C216,">0",W205:W216), IF(FORECAST($C201,W$205:W$216,$C$205:$C$216)<0,0, IF(FORECAST($C201,W$205:W$216,$C$205:$C$216)>100,100, FORECAST($C201,W$205:W$216,$C$205:$C$216)))) -> 7.761545424 | X201: =IF(MAX(C205:C216)-MIN(C205:C216)<5,AVERAGEIF(C205:C216,">0",X205:X216), IF(FORECAST($C201,X$205:X$216,$C$205:$C$216)<0,0, IF(FORECAST($C201,X$205:X$216,$C$205:$C$216)>100,100, FORECAST($C201,X$205:X$216,$C$205:$C$216)))) -> 86.99526741 | AB201: =IF(MAX(C205:C216)-MIN(C205:C216)<5,AVERAGEIF(C205:C216,">0",AB205:AB216), IF(FORECAST($C201,AB$205:AB$216,$C$205:$C$216)<0,0, IF(FORECAST($C201,AB$205:AB$216,$C$205:$C$216)>100,100, FORECAST($C201,AB$205:AB$216,$C$205:$C$216)))) -> 4.316676452
C202: =MaxRegYear(C200,C205:C216) -> 2020 | D202: =IF(MAX(C205:C216)-MIN(C205:C216)<5,AVERAGEIF(C205:C216,">0",D205:D216), IF(FORECAST($C202,D$205:D$216,$C$205:$C$216)<0,0, IF(FORECAST($C202,D$205:D$216,$C$205:$C$216)>100,100, FORECAST($C202,D$205:D$216,$C$205:$C$216)))) -> 75.33654377 | H202: =IF(MAX(C205:C216)-MIN(C205:C216)<5,AVERAGEIF(C205:C216,">0",H205:H216), IF(FORECAST($C202,H$205:H$216,$C$205:$C$216)<0,0, IF(FORECAST($C202,H$205:H$216,$C$205:$C$216)>100,100, FORECAST($C202,H$205:H$216,$C$205:$C$216)))) -> 3.016155989 | I202: =IF(MAX(C205:C216)-MIN(C205:C216)<5,AVERAGEIF(C205:C216,">0",I205:I216), IF(FORECAST($C202,I$205:I$216,$C$205:$C$216)<0,0, IF(FORECAST($C202,I$205:I$216,$C$205:$C$216)>100,100, FORECAST($C202,I$205:I$216,$C$205:$C$216)))) -> 87.02068556 | M202: =IF(MAX(C205:C216)-MIN(C205:C216)<5,AVERAGEIF(C205:C216,">0",M205:M216), IF(FORECAST($C202,M$205:M$216,$C$205:$C$216)<0,0, IF(FORECAST($C202,M$205:M$216,$C$205:$C$216)>100,100, FORECAST($C202,M$205:M$216,$C$205:$C$216)))) -> 0 | N202: =IF(MAX(C205:C216)-MIN(C205:C216)<5,AVERAGEIF(C205:C216,">0",N205:N216), IF(FORECAST($C202,N$205:N$216,$C$205:$C$216)<0,0, IF(FORECAST($C202,N$205:N$216,$C$205:$C$216)>100,100, FORECAST($C202,N$205:N$216,$C$205:$C$216)))) -> 95.77315744 | R202: =IF(MAX(C205:C216)-MIN(C205:C216)<5,AVERAGEIF(C205:C216,">0",R205:R216), IF(FORECAST($C202,R$205:R$216,$C$205:$C$216)<0,0, IF(FORECAST($C202,R$205:R$216,$C$205:$C$216)>100,100, FORECAST($C202,R$205:R$216,$C$205:$C$216)))) -> 0 | S202: =IF(MAX(C205:C216)-MIN(C205:C216)<5,AVERAGEIF(C205:C216,">0",S205:S216), IF(FORECAST($C202,S$205:S$216,$C$205:$C$216)<0,0, IF(FORECAST($C202,S$205:S$216,$C$205:$C$216)>100,100, FORECAST($C202,S$205:S$216,$C$205:$C$216)))) -> 100 | W202: =IF(MAX(C205:C216)-MIN(C205:C216)<5,AVERAGEIF(C205:C216,">0",W205:W216), IF(FORECAST($C202,W$205:W$216,$C$205:$C$216)<0,0, IF(FORECAST($C202,W$205:W$216,$C$205:$C$216)>100,100, FORECAST($C202,W$205:W$216,$C$205:$C$216)))) -> 0 | X202: =IF(MAX(C205:C216)-MIN(C205:C216)<5,AVERAGEIF(C205:C216,">0",X205:X216), IF(FORECAST($C202,X$205:X$216,$C$205:$C$216)<0,0, IF(FORECAST($C202,X$205:X$216,$C$205:$C$216)>100,100, FORECAST($C202,X$205:X$216,$C$205:$C$216)))) -> 100 | AB202: =IF(MAX(C205:C216)-MIN(C205:C216)<5,AVERAGEIF(C205:C216,">0",AB205:AB216), IF(FORECAST($C202,AB$205:AB$216,$C$205:$C$216)<0,0, IF(FORECAST($C202,AB$205:AB$216,$C$205:$C$216)>100,100, FORECAST($C202,AB$205:AB$216,$C$205:$C$216)))) -> 0
B204: Survey | C204: Year | D204: Improved | E204: % Improved < = 30min | H204: Surface water | I204: Improved | J204: % Improved < = 30min | M204: Surface water | N204: Improved | O204: % Improved < = 30min | R204: Surface water | S204: Improved | T204: % Improved < = 30min | W204: Surface water | X204: Improved | Y204: % Improved < = 30min | AB204: Surface water
B205: WHS03 | C205: 2003 | D205: =IF(ISERROR(INDIRECT(CONCATENATE($B205,"!H16"))),"",INDIRECT(CONCATENATE($B205,"!H16"))) -> 70.91790759 | E205: =IF(ISERROR(INDIRECT(CONCATENATE($B205,"!H23"))),"",INDIRECT(CONCATENATE($B205,"!H23"))) -> 89.07442789 | H205: =IF(ISERROR(INDIRECT(CONCATENATE($B205,"!H21"))),"",INDIRECT(CONCATENATE($B205,"!H21"))) -> 3.383206055 | I205: =IF(ISERROR(INDIRECT(CONCATENATE($B205,"!I16"))),"",INDIRECT(CONCATENATE($B205,"!I16"))) -> 77.75178021 | J205: =IF(ISERROR(INDIRECT(CONCATENATE($B205,"!I23"))),"",INDIRECT(CONCATENATE($B205,"!I23"))) -> 93.68123821 | M205: =IF(ISERROR(INDIRECT(CONCATENATE($B205,"!I21"))),"",INDIRECT(CONCATENATE($B205,"!I21"))) -> 5.287254376 | N205: =IF(ISERROR(INDIRECT(CONCATENATE($B205,"!J16"))),"",INDIRECT(CONCATENATE($B205,"!J16"))) -> 74.49914821 | O205: =IF(ISERROR(INDIRECT(CONCATENATE($B205,"!J23"))),"",INDIRECT(CONCATENATE($B205,"!J23"))) -> 95.45515707 | R205: =IF(ISERROR(INDIRECT(CONCATENATE($B205,"!J21"))),"",INDIRECT(CONCATENATE($B205,"!J21"))) -> 4.567354634 | S205: =IF(ISERROR(INDIRECT(CONCATENATE($B205,"!K16"))),"",INDIRECT(CONCATENATE($B205,"!K16"))) -> 72.29423031 | T205: =IF(ISERROR(INDIRECT(CONCATENATE($B205,"!K23"))),"",INDIRECT(CONCATENATE($B205,"!K23"))) -> 97.35800195 | W205: =IF(ISERROR(INDIRECT(CONCATENATE($B205,"!K21"))),"",INDIRECT(CONCATENATE($B205,"!K21"))) -> 8.278378855 | X205: =IF(ISERROR(INDIRECT(CONCATENATE($B205,"!L16"))),"",INDIRECT(CONCATENATE($B205,"!L16"))) -> 85.61851998 | Y205: =IF(ISERROR(INDIRECT(CONCATENATE($B205,"!L23"))),"",INDIRECT(CONCATENATE($B205,"!L23"))) -> 97.9841177 | AB205: =IF(ISERROR(INDIRECT(CONCATENATE($B205,"!L221"))),"",INDIRECT(CONCATENATE($B205,"!L21"))) -> 4.707171973
B206: DHS04 | D206: 60.59663239 | E206: 82.34673959 | H206: 2.234535424 | I206: 65.06742444 | J206: 86.57237054 | M206: 2.168316949 | N206: 71.32393828 | O206: 90.03175435 | R206: 1.614376107 | S206: 80.8160938 | T206: 88.36279843 | W206: 0.7717962189 | X206: 86.10502051 | Y206: 96.17370517 | AB206: 0
B207: MICS10 | C207: 2010 | D207: 63.7 | E207: 82.1 | H207: 5.8 | I207: 84.3 | J207: 88.6 | M207: 2 | N207: 85.9 | O207: 91.2 | R207: 1.4 | S207: 93.6 | T207: 95.3 | W207: 0.7 | X207: 98.7 | Y207: 98.2 | AB207: 0.1
B208: DHS15 | C208: 2015 | D208: 69.61354791 | E208: 77.75798737 | H208: 3.117812947 | I208: 81.17427818 | J208: 86.6634113 | M208: 0.07507900045 | N208: 89.69627266 | O208: 87.77500882 | R208: 0 | S208: 97.43074507 | T208: 93.51332832 | W208: 0.2368348787 | X208: 99.42410789 | Y208: 97.23065816 | AB208: 0
B209: MICS19 | C209: 2019 | D209: 79.98244508 | E209: 83.99791318 | H209: 2.470470987 | I209: 87.90969064 | J209: 91.7480438 | M209: 1.008609772 | N209: 93.81617898 | O209: 92.28113385 | R209: 0.1389767124 | S209: 95.0855669 | T209: 93.54253024 | W209: 0.1061934491 | X209: 98.08631068 | Y209: 99.09959876 | AB209: 0
B218: =CONCATENATE("Urban use of drinking water sources, ",C199,"–",C200) -> Urban use of drinking water sources, 2000–2020 | S218: Data points used for regression
E253: =IF(ISERROR(INDIRECT(CONCATENATE($B253,"!M18"))),"",INDIRECT(CONCATENATE($B253,"!M18"))) ->  | F253: =IF(ISERROR(INDIRECT(CONCATENATE($B253,"!M19"))),"",INDIRECT(CONCATENATE($B253,"!M19"))) ->  | G253: =IF(ISERROR(INDIRECT(CONCATENATE($B253,"!M20"))),"",INDIRECT(CONCATENATE($B253,"!M20"))) ->  | H253: =IF(ISERROR(INDIRECT(CONCATENATE($B253,"!M21"))),"",INDIRECT(CONCATENATE($B253,"!M21"))) ->  | J253: =IF(ISERROR(INDIRECT(CONCATENATE($B253,"!N18"))),"",INDIRECT(CONCATENATE($B253,"!N18"))) ->  | K253: =IF(ISERROR(INDIRECT(CONCATENATE($B253,"!N19"))),"",INDIRECT(CONCATENATE($B253,"!N19"))) ->  | L253: =IF(ISERROR(INDIRECT(CONCATENATE($B253,"!N20"))),"",INDIRECT(CONCATENATE($B253,"!N20"))) ->  | M253: =IF(ISERROR(INDIRECT(CONCATENATE($B253,"!N21"))),"",INDIRECT(CONCATENATE($B253,"!N21"))) ->  | O253: =IF(ISERROR(INDIRECT(CONCATENATE($B253,"!O18"))),"",INDIRECT(CONCATENATE($B253,"!O18"))) ->  | P253: =IF(ISERROR(INDIRECT(CONCATENATE($B253,"!O19"))),"",INDIRECT(CONCATENATE($B253,"!O19"))) ->  | Q253: =IF(ISERROR(INDIRECT(CONCATENATE($B253,"!O20"))),"",INDIRECT(CONCATENATE($B253,"!O20"))) ->  | R253: =IF(ISERROR(INDIRECT(CONCATENATE($B253,"!O21"))),"",INDIRECT(CONCATENATE($B253,"!O21"))) ->  | T253: =IF(ISERROR(INDIRECT(CONCATENATE($B253,"!P18"))),"",INDIRECT(CONCATENATE($B253,"!P18"))) ->  | U253: =IF(ISERROR(INDIRECT(CONCATENATE($B253,"!P19"))),"",INDIRECT(CONCATENATE($B253,"!P19"))) ->  | V253: =IF(ISERROR(INDIRECT(CONCATENATE($B253,"!P20"))),"",INDIRECT(CONCATENATE($B253,"!P20"))) ->  | W253: =IF(ISERROR(INDIRECT(CONCATENATE($B253,"!P21"))),"",INDIRECT(CONCATENATE($B253,"!P21"))) ->  | Y253: =IF(ISERROR(INDIRECT(CONCATENATE($B253,"!Q18"))),"",INDIRECT(CONCATENATE($B253,"!Q18"))) ->  | Z253: =IF(ISERROR(INDIRECT(CONCATENATE($B253,"!Q19"))),"",INDIRECT(CONCATENATE($B253,"!Q19"))) ->  | AA253: =IF(ISERROR(INDIRECT(CONCATENATE($B253,"!Q20"))),"",INDIRECT(CONCATENATE($B253,"!Q20"))) ->  | AB253: =IF(ISERROR(INDIRECT(CONCATENATE($B253,"!Q21"))),"",INDIRECT(CONCATENATE($B253,"!Q1"))) -> 
E254: =IF(ISERROR(INDIRECT(CONCATENATE($B254,"!M18"))),"",INDIRECT(CONCATENATE($B254,"!M18"))) ->  | F254: =IF(ISERROR(INDIRECT(CONCATENATE($B254,"!M19"))),"",INDIRECT(CONCATENATE($B254,"!M19"))) ->  | G254: =IF(ISERROR(INDIRECT(CONCATENATE($B254,"!M20"))),"",INDIRECT(CONCATENATE($B254,"!M20"))) ->  | H254: =IF(ISERROR(INDIRECT(CONCATENATE($B254,"!M21"))),"",INDIRECT(CONCATENATE($B254,"!M21"))) ->  | J254: =IF(ISERROR(INDIRECT(CONCATENATE($B254,"!N18"))),"",INDIRECT(CONCATENATE($B254,"!N18"))) ->  | K254: =IF(ISERROR(INDIRECT(CONCATENATE($B254,"!N19"))),"",INDIRECT(CONCATENATE($B254,"!N19"))) ->  | L254: =IF(ISERROR(INDIRECT(CONCATENATE($B254,"!N20"))),"",INDIRECT(CONCATENATE($B254,"!N20"))) ->  | M254: =IF(ISERROR(INDIRECT(CONCATENATE($B254,"!N21"))),"",INDIRECT(CONCATENATE($B254,"!N21"))) ->  | O254: =IF(ISERROR(INDIRECT(CONCATENATE($B254,"!O18"))),"",INDIRECT(CONCATENATE($B254,"!O18"))) ->  | P254: =IF(ISERROR(INDIRECT(CONCATENATE($B254,"!O19"))),"",INDIRECT(CONCATENATE($B254,"!O19"))) ->  | Q254: =IF(ISERROR(INDIRECT(CONCATENATE($B254,"!O20"))),"",INDIRECT(CONCATENATE($B254,"!O20"))) ->  | R254: =IF(ISERROR(INDIRECT(CONCATENATE($B254,"!O21"))),"",INDIRECT(CONCATENATE($B254,"!O21"))) ->  | T254: =IF(ISERROR(INDIRECT(CONCATENATE($B254,"!P18"))),"",INDIRECT(CONCATENATE($B254,"!P18"))) ->  | U254: =IF(ISERROR(INDIRECT(CONCATENATE($B254,"!P19"))),"",INDIRECT(CONCATENATE($B254,"!P19"))) ->  | V254: =IF(ISERROR(INDIRECT(CONCATENATE($B254,"!P20"))),"",INDIRECT(CONCATENATE($B254,"!P20"))) ->  | W254: =IF(ISERROR(INDIRECT(CONCATENATE($B254,"!P21"))),"",INDIRECT(CONCATENATE($B254,"!P21"))) ->  | Y254: =IF(ISERROR(INDIRECT(CONCATENATE($B254,"!Q18"))),"",INDIRECT(CONCATENATE($B254,"!Q18"))) ->  | Z254: =IF(ISERROR(INDIRECT(CONCATENATE($B254,"!Q19"))),"",INDIRECT(CONCATENATE($B254,"!Q19"))) ->  | AA254: =IF(ISERROR(INDIRECT(CONCATENATE($B254,"!Q20"))),"",INDIRECT(CONCATENATE($B254,"!Q20"))) ->  | AB254: =IF(ISERROR(INDIRECT(CONCATENATE($B254,"!Q21"))),"",INDIRECT(CONCATENATE($B254,"!Q1"))) -> 
E255: =IF(ISERROR(INDIRECT(CONCATENATE($B255,"!M18"))),"",INDIRECT(CONCATENATE($B255,"!M18"))) ->  | F255: =IF(ISERROR(INDIRECT(CONCATENATE($B255,"!M19"))),"",INDIRECT(CONCATENATE($B255,"!M19"))) ->  | G255: =IF(ISERROR(INDIRECT(CONCATENATE($B255,"!M20"))),"",INDIRECT(CONCATENATE($B255,"!M20"))) ->  | H255: =IF(ISERROR(INDIRECT(CONCATENATE($B255,"!M21"))),"",INDIRECT(CONCATENATE($B255,"!M21"))) ->  | J255: =IF(ISERROR(INDIRECT(CONCATENATE($B255,"!N18"))),"",INDIRECT(CONCATENATE($B255,"!N18"))) ->  | K255: =IF(ISERROR(INDIRECT(CONCATENATE($B255,"!N19"))),"",INDIRECT(CONCATENATE($B255,"!N19"))) ->  | L255: =IF(ISERROR(INDIRECT(CONCATENATE($B255,"!N20"))),"",INDIRECT(CONCATENATE($B255,"!N20"))) ->  | M255: =IF(ISERROR(INDIRECT(CONCATENATE($B255,"!N21"))),"",INDIRECT(CONCATENATE($B255,"!N21"))) ->  | O255: =IF(ISERROR(INDIRECT(CONCATENATE($B255,"!O18"))),"",INDIRECT(CONCATENATE($B255,"!O18"))) ->  | P255: =IF(ISERROR(INDIRECT(CONCATENATE($B255,"!O19"))),"",INDIRECT(CONCATENATE($B255,"!O19"))) ->  | Q255: =IF(ISERROR(INDIRECT(CONCATENATE($B255,"!O20"))),"",INDIRECT(CONCATENATE($B255,"!O20"))) ->  | R255: =IF(ISERROR(INDIRECT(CONCATENATE($B255,"!O21"))),"",INDIRECT(CONCATENATE($B255,"!O21"))) ->  | T255: =IF(ISERROR(INDIRECT(CONCATENATE($B255,"!P18"))),"",INDIRECT(CONCATENATE($B255,"!P18"))) ->  | U255: =IF(ISERROR(INDIRECT(CONCATENATE($B255,"!P19"))),"",INDIRECT(CONCATENATE($B255,"!P19"))) ->  | V255: =IF(ISERROR(INDIRECT(CONCATENATE($B255,"!P20"))),"",INDIRECT(CONCATENATE($B255,"!P20"))) ->  | W255: =IF(ISERROR(INDIRECT(CONCATENATE($B255,"!P21"))),"",INDIRECT(CONCATENATE($B255,"!P21"))) ->  | Y255: =IF(ISERROR(INDIRECT(CONCATENATE($B255,"!Q18"))),"",INDIRECT(CONCATENATE($B255,"!Q18"))) ->  | Z255: =IF(ISERROR(INDIRECT(CONCATENATE($B255,"!Q19"))),"",INDIRECT(CONCATENATE($B255,"!Q19"))) ->  | AA255: =IF(ISERROR(INDIRECT(CONCATENATE($B255,"!Q20"))),"",INDIRECT(CONCATENATE($B255,"!Q20"))) ->  | AB255: =IF(ISERROR(INDIRECT(CONCATENATE($B255,"!Q21"))),"",INDIRECT(CONCATENATE($B255,"!Q1"))) -> 
E256: =IF(ISERROR(INDIRECT(CONCATENATE($B256,"!M18"))),"",INDIRECT(CONCATENATE($B256,"!M18"))) ->  | F256: =IF(ISERROR(INDIRECT(CONCATENATE($B256,"!M19"))),"",INDIRECT(CONCATENATE($B256,"!M19"))) ->  | G256: =IF(ISERROR(INDIRECT(CONCATENATE($B256,"!M20"))),"",INDIRECT(CONCATENATE($B256,"!M20"))) ->  | H256: =IF(ISERROR(INDIRECT(CONCATENATE($B256,"!M21"))),"",INDIRECT(CONCATENATE($B256,"!M21"))) ->  | J256: =IF(ISERROR(INDIRECT(CONCATENATE($B256,"!N18"))),"",INDIRECT(CONCATENATE($B256,"!N18"))) ->  | K256: =IF(ISERROR(INDIRECT(CONCATENATE($B256,"!N19"))),"",INDIRECT(CONCATENATE($B256,"!N19"))) ->  | L256: =IF(ISERROR(INDIRECT(CONCATENATE($B256,"!N20"))),"",INDIRECT(CONCATENATE($B256,"!N20"))) ->  | M256: =IF(ISERROR(INDIRECT(CONCATENATE($B256,"!N21"))),"",INDIRECT(CONCATENATE($B256,"!N21"))) ->  | O256: =IF(ISERROR(INDIRECT(CONCATENATE($B256,"!O18"))),"",INDIRECT(CONCATENATE($B256,"!O18"))) ->  | P256: =IF(ISERROR(INDIRECT(CONCATENATE($B256,"!O19"))),"",INDIRECT(CONCATENATE($B256,"!O19"))) ->  | Q256: =IF(ISERROR(INDIRECT(CONCATENATE($B256,"!O20"))),"",INDIRECT(CONCATENATE($B256,"!O20"))) ->  | R256: =IF(ISERROR(INDIRECT(CONCATENATE($B256,"!O21"))),"",INDIRECT(CONCATENATE($B256,"!O21"))) ->  | T256: =IF(ISERROR(INDIRECT(CONCATENATE($B256,"!P18"))),"",INDIRECT(CONCATENATE($B256,"!P18"))) ->  | U256: =IF(ISERROR(INDIRECT(CONCATENATE($B256,"!P19"))),"",INDIRECT(CONCATENATE($B256,"!P19"))) ->  | V256: =IF(ISERROR(INDIRECT(CONCATENATE($B256,"!P20"))),"",INDIRECT(CONCATENATE($B256,"!P20"))) ->  | W256: =IF(ISERROR(INDIRECT(CONCATENATE($B256,"!P21"))),"",INDIRECT(CONCATENATE($B256,"!P21"))) ->  | Y256: =IF(ISERROR(INDIRECT(CONCATENATE($B256,"!Q18"))),"",INDIRECT(CONCATENATE($B256,"!Q18"))) ->  | Z256: =IF(ISERROR(INDIRECT(CONCATENATE($B256,"!Q19"))),"",INDIRECT(CONCATENATE($B256,"!Q19"))) ->  | AA256: =IF(ISERROR(INDIRECT(CONCATENATE($B256,"!Q20"))),"",INDIRECT(CONCATENATE($B256,"!Q20"))) ->  | AB256: =IF(ISERROR(INDIRECT(CONCATENATE($B256,"!Q21"))),"",INDIRECT(CONCATENATE($B256,"!Q1"))) -> 
E257: =IF(ISERROR(INDIRECT(CONCATENATE($B257,"!M18"))),"",INDIRECT(CONCATENATE($B257,"!M18"))) ->  | F257: =IF(ISERROR(INDIRECT(CONCATENATE($B257,"!M19"))),"",INDIRECT(CONCATENATE($B257,"!M19"))) ->  | G257: =IF(ISERROR(INDIRECT(CONCATENATE($B257,"!M20"))),"",INDIRECT(CONCATENATE($B257,"!M20"))) ->  | H257: =IF(ISERROR(INDIRECT(CONCATENATE($B257,"!M21"))),"",INDIRECT(CONCATENATE($B257,"!M21"))) ->  | J257: =IF(ISERROR(INDIRECT(CONCATENATE($B257,"!N18"))),"",INDIRECT(CONCATENATE($B257,"!N18"))) ->  | K257: =IF(ISERROR(INDIRECT(CONCATENATE($B257,"!N19"))),"",INDIRECT(CONCATENATE($B257,"!N19"))) ->  | L257: =IF(ISERROR(INDIRECT(CONCATENATE($B257,"!N20"))),"",INDIRECT(CONCATENATE($B257,"!N20"))) ->  | M257: =IF(ISERROR(INDIRECT(CONCATENATE($B257,"!N21"))),"",INDIRECT(CONCATENATE($B257,"!N21"))) ->  | O257: =IF(ISERROR(INDIRECT(CONCATENATE($B257,"!O18"))),"",INDIRECT(CONCATENATE($B257,"!O18"))) ->  | P257: =IF(ISERROR(INDIRECT(CONCATENATE($B257,"!O19"))),"",INDIRECT(CONCATENATE($B257,"!O19"))) ->  | Q257: =IF(ISERROR(INDIRECT(CONCATENATE($B257,"!O20"))),"",INDIRECT(CONCATENATE($B257,"!O20"))) ->  | R257: =IF(ISERROR(INDIRECT(CONCATENATE($B257,"!O21"))),"",INDIRECT(CONCATENATE($B257,"!O21"))) ->  | T257: =IF(ISERROR(INDIRECT(CONCATENATE($B257,"!P18"))),"",INDIRECT(CONCATENATE($B257,"!P18"))) ->  | U257: =IF(ISERROR(INDIRECT(CONCATENATE($B257,"!P19"))),"",INDIRECT(CONCATENATE($B257,"!P19"))) ->  | V257: =IF(ISERROR(INDIRECT(CONCATENATE($B257,"!P20"))),"",INDIRECT(CONCATENATE($B257,"!P20"))) ->  | W257: =IF(ISERROR(INDIRECT(CONCATENATE($B257,"!P21"))),"",INDIRECT(CONCATENATE($B257,"!P21"))) ->  | Y257: =IF(ISERROR(INDIRECT(CONCATENATE($B257,"!Q18"))),"",INDIRECT(CONCATENATE($B257,"!Q18"))) ->  | Z257: =IF(ISERROR(INDIRECT(CONCATENATE($B257,"!Q19"))),"",INDIRECT(CONCATENATE($B257,"!Q19"))) ->  | AA257: =IF(ISERROR(INDIRECT(CONCATENATE($B257,"!Q20"))),"",INDIRECT(CONCATENATE($B257,"!Q20"))) ->  | AB257: =IF(ISERROR(INDIRECT(CONCATENATE($B257,"!Q21"))),"",INDIRECT(CONCATENATE($B257,"!Q1"))) -> 
A297: RURAL | D297: Poorest | I297: Poor | N297: Middle | S297: Rich | X297: Richest
D298: Improved | E298: Basic | F298: Limited | G298: Unimproved | H298: Surface water | I298: Improved | J298: Basic | K298: Limited | L298: Unimproved | M298: Surface water | N298: Improved | O298: Basic | P298: Limited | Q298: Unimproved | R298: Surface water | S298: Improved | T298: Basic | U298: Limited | V298: Unimproved | W298: Surface water | X298: Improved | Y298: Basic | Z298: Limited | AA298: Unimproved | AB298: Surface water
A299: Forecast period: | C299: 2000 | D299: =IF((D301+H301)>100,D301*100/(D301+H301),D301) -> 30.58196885 | E299: =D299*AVERAGEIF(E305:E316,">0")/100 -> 21.73719882 | F299: =D299*(100-AVERAGEIF(E305:E316,">0"))/100 -> 8.844770025 | G299: =100-(E299+F299+H299) -> 69.41803115 | H299: =IF((D301+H301)>100,H301*100/(D301+H301),H301) -> 0 | I299: =IF((I301+M301)>100,I301*100/(I301+M301),I301) -> 41.15754256 | J299: =I299*AVERAGEIF(J305:J316,">0")/100 -> 29.84232565 | K299: =I299*(100-AVERAGEIF(J305:J316,">0"))/100 -> 11.3152169 | L299: =100-(J299+K299+M299) -> 58.84245744 | M299: =IF((I301+M301)>100,M301*100/(I301+M301),M301) -> 0 | N299: =IF((N301+R301)>100,N301*100/(N301+R301),N301) -> 43.55913648 | O299: =N299*AVERAGEIF(O305:O316,">0")/100 -> 33.18929909 | P299: =N299*(100-AVERAGEIF(O305:O316,">0"))/100 -> 10.36983739 | Q299: =100-(O299+P299+R299) -> 56.44086352 | R299: =IF((N301+R301)>100,R301*100/(N301+R301),R301) -> 0 | S299: =IF((S301+W301)>100,S301*100/(S301+W301),S301) -> 40.5484393 | T299: =S299*AVERAGEIF(T305:T316,">0")/100 -> 30.0876507 | U299: =S299*(100-AVERAGEIF(T305:T316,">0"))/100 -> 10.46078861 | V299: =100-(T299+U299+W299) -> 59.4515607 | W299: =IF((S301+W301)>100,W301*100/(S301+W301),W301) -> 0 | X299: =IF((X301+AB301)>100,X301*100/(X301+AB301),X301) -> 50.00173363 | Y299: =X299*AVERAGEIF(Y305:Y316,">0")/100 -> 38.51043067 | Z299: =X299*(100-AVERAGEIF(Y305:Y316,">0"))/100 -> 11.49130296 | AA299: =100-(Y299+Z299+AB299) -> 49.34013027 | AB299: =IF((X301+AB301)>100,AB301*100/(X301+AB301),AB301) -> 0.6581361002
C300: 2020 | D300: =IF((D302+H302)>100,D302*100/(D302+H302),D302) -> 46.03355724 | E300: =D300*AVERAGEIF(E305:E316,">0")/100 -> 32.71995309 | F300: =D300*(100-AVERAGEIF(E305:E316,">0"))/100 -> 13.31360415 | G300: =100-(E300+F300+H300) -> 32.57644904 | H300: =IF((D302+H302)>100,H302*100/(D302+H302),H302) -> 21.38999372 | I300: =IF((I302+M302)>100,I302*100/(I302+M302),I302) -> 46.64568318 | J300: =I300*AVERAGEIF(J305:J316,">0")/100 -> 33.82164194 | K300: =I300*(100-AVERAGEIF(J305:J316,">0"))/100 -> 12.82404123 | L300: =100-(J300+K300+M300) -> 36.21117399 | M300: =IF((I302+M302)>100,M302*100/(I302+M302),M302) -> 17.14314283 | N300: =IF((N302+R302)>100,N302*100/(N302+R302),N302) -> 50.70486692 | O300: =N300*AVERAGEIF(O305:O316,">0")/100 -> 38.63389244 | P300: =N300*(100-AVERAGEIF(O305:O316,">0"))/100 -> 12.07097448 | Q300: =100-(O300+P300+R300) -> 35.2097802 | R300: =IF((N302+R302)>100,R302*100/(N302+R302),R302) -> 14.08535288 | S300: =IF((S302+W302)>100,S302*100/(S302+W302),S302) -> 57.45253113 | T300: =S300*AVERAGEIF(T305:T316,">0")/100 -> 42.63078229 | U300: =S300*(100-AVERAGEIF(T305:T316,">0"))/100 -> 14.82174883 | V300: =100-(T300+U300+W300) -> 33.6863357 | W300: =IF((S302+W302)>100,W302*100/(S302+W302),W302) -> 8.861133173 | X300: =IF((X302+AB302)>100,X302*100/(X302+AB302),X302) -> 61.1443811 | Y300: =X300*AVERAGEIF(Y305:Y316,">0")/100 -> 47.09229617 | Z300: =X300*(100-AVERAGEIF(Y305:Y316,">0"))/100 -> 14.05208493 | AA300: =100-(Y300+Z300+AB300) -> 34.08018476 | AB300: =IF((X302+AB302)>100,AB302*100/(X302+AB302),AB302) -> 4.775434141
A301: Regression period: | C301: =MinRegYear(C299,C305:C316) -> 2001 | D301: =IF(MAX(C305:C316)-MIN(C305:C316)<5,AVERAGEIF(C305:C316,">0",D305:D316), IF(FORECAST($C301,D$305:D$316,$C$305:$C$316)<0,0, IF(FORECAST($C301,D$305:D$316,$C$305:$C$316)>100,100, FORECAST($C301,D$305:D$316,$C$305:$C$316)))) -> 30.58196885 | H301: =IF(MAX(C305:C316)-MIN(C305:C316)<5,AVERAGEIF(C305:C316,">0",H305:H316), IF(FORECAST($C301,H$305:H$316,$C$305:$C$316)<0,0, IF(FORECAST($C301,H$305:H$316,$C$305:$C$316)>100,100, FORECAST($C301,H$305:H$316,$C$305:$C$316)))) -> 0 | I301: =IF(MAX(C305:C316)-MIN(C305:C316)<5,AVERAGEIF(C305:C316,">0",I305:I316), IF(FORECAST($C301,I$305:I$316,$C$305:$C$316)<0,0, IF(FORECAST($C301,I$305:I$316,$C$305:$C$316)>100,100, FORECAST($C301,I$305:I$316,$C$305:$C$316)))) -> 41.15754256 | M301: =IF(MAX(C305:C316)-MIN(C305:C316)<5,AVERAGEIF(C305:C316,">0",M305:M316), IF(FORECAST($C301,M$305:M$316,$C$305:$C$316)<0,0, IF(FORECAST($C301,M$305:M$316,$C$305:$C$316)>100,100, FORECAST($C301,M$305:M$316,$C$305:$C$316)))) -> 0 | N301: =IF(MAX(C305:C316)-MIN(C305:C316)<5,AVERAGEIF(C305:C316,">0",N305:N316), IF(FORECAST($C301,N$305:N$316,$C$305:$C$316)<0,0, IF(FORECAST($C301,N$305:N$316,$C$305:$C$316)>100,100, FORECAST($C301,N$305:N$316,$C$305:$C$316)))) -> 43.55913648 | R301: =IF(MAX(C305:C316)-MIN(C305:C316)<5,AVERAGEIF(C305:C316,">0",R305:R316), IF(FORECAST($C301,R$305:R$316,$C$305:$C$316)<0,0, IF(FORECAST($C301,R$305:R$316,$C$305:$C$316)>100,100, FORECAST($C301,R$305:R$316,$C$305:$C$316)))) -> 0 | S301: =IF(MAX(C305:C316)-MIN(C305:C316)<5,AVERAGEIF(C305:C316,">0",S305:S316), IF(FORECAST($C301,S$305:S$316,$C$305:$C$316)<0,0, IF(FORECAST($C301,S$305:S$316,$C$305:$C$316)>100,100, FORECAST($C301,S$305:S$316,$C$305:$C$316)))) -> 40.5484393 | W301: =IF(MAX(C305:C316)-MIN(C305:C316)<5,AVERAGEIF(C305:C316,">0",W305:W316), IF(FORECAST($C301,W$305:W$316,$C$305:$C$316)<0,0, IF(FORECAST($C301,W$305:W$316,$C$305:$C$316)>100,100, FORECAST($C301,W$305:W$316,$C$305:$C$316)))) -> 0 | X301: =IF(MAX(C305:C316)-MIN(C305:C316)<5,AVERAGEIF(C305:C316,">0",X305:X316), IF(FORECAST($C301,X$305:X$316,$C$305:$C$316)<0,0, IF(FORECAST($C301,X$305:X$316,$C$305:$C$316)>100,100, FORECAST($C301,X$305:X$316,$C$305:$C$316)))) -> 50.00173363 | AB301: =IF(MAX(C305:C316)-MIN(C305:C316)<5,AVERAGEIF(C305:C316,">0",AB305:AB316), IF(FORECAST($C301,AB$305:AB$316,$C$305:$C$316)<0,0, IF(FORECAST($C301,AB$305:AB$316,$C$305:$C$316)>100,100, FORECAST($C301,AB$305:AB$316,$C$305:$C$316)))) -> 0.6581361002
C302: =MaxRegYear(C300,C305:C316) -> 2020 | D302: =IF(MAX(C305:C316)-MIN(C305:C316)<5,AVERAGEIF(C305:C316,">0",D305:D316), IF(FORECAST($C302,D$305:D$316,$C$305:$C$316)<0,0, IF(FORECAST($C302,D$305:D$316,$C$305:$C$316)>100,100, FORECAST($C302,D$305:D$316,$C$305:$C$316)))) -> 46.03355724 | H302: =IF(MAX(C305:C316)-MIN(C305:C316)<5,AVERAGEIF(C305:C316,">0",H305:H316), IF(FORECAST($C302,H$305:H$316,$C$305:$C$316)<0,0, IF(FORECAST($C302,H$305:H$316,$C$305:$C$316)>100,100, FORECAST($C302,H$305:H$316,$C$305:$C$316)))) -> 21.38999372 | I302: =IF(MAX(C305:C316)-MIN(C305:C316)<5,AVERAGEIF(C305:C316,">0",I305:I316), IF(FORECAST($C302,I$305:I$316,$C$305:$C$316)<0,0, IF(FORECAST($C302,I$305:I$316,$C$305:$C$316)>100,100, FORECAST($C302,I$305:I$316,$C$305:$C$316)))) -> 46.64568318 | M302: =IF(MAX(C305:C316)-MIN(C305:C316)<5,AVERAGEIF(C305:C316,">0",M305:M316), IF(FORECAST($C302,M$305:M$316,$C$305:$C$316)<0,0, IF(FORECAST($C302,M$305:M$316,$C$305:$C$316)>100,100, FORECAST($C302,M$305:M$316,$C$305:$C$316)))) -> 17.14314283 | N302: =IF(MAX(C305:C316)-MIN(C305:C316)<5,AVERAGEIF(C305:C316,">0",N305:N316), IF(FORECAST($C302,N$305:N$316,$C$305:$C$316)<0,0, IF(FORECAST($C302,N$305:N$316,$C$305:$C$316)>100,100, FORECAST($C302,N$305:N$316,$C$305:$C$316)))) -> 50.70486692 | R302: =IF(MAX(C305:C316)-MIN(C305:C316)<5,AVERAGEIF(C305:C316,">0",R305:R316), IF(FORECAST($C302,R$305:R$316,$C$305:$C$316)<0,0, IF(FORECAST($C302,R$305:R$316,$C$305:$C$316)>100,100, FORECAST($C302,R$305:R$316,$C$305:$C$316)))) -> 14.08535288 | S302: =IF(MAX(C305:C316)-MIN(C305:C316)<5,AVERAGEIF(C305:C316,">0",S305:S316), IF(FORECAST($C302,S$305:S$316,$C$305:$C$316)<0,0, IF(FORECAST($C302,S$305:S$316,$C$305:$C$316)>100,100, FORECAST($C302,S$305:S$316,$C$305:$C$316)))) -> 57.45253113 | W302: =IF(MAX(C305:C316)-MIN(C305:C316)<5,AVERAGEIF(C305:C316,">0",W305:W316), IF(FORECAST($C302,W$305:W$316,$C$305:$C$316)<0,0, IF(FORECAST($C302,W$305:W$316,$C$305:$C$316)>100,100, FORECAST($C302,W$305:W$316,$C$305:$C$316)))) -> 8.861133173 | X302: =IF(MAX(C305:C316)-MIN(C305:C316)<5,AVERAGEIF(C305:C316,">0",X305:X316), IF(FORECAST($C302,X$305:X$316,$C$305:$C$316)<0,0, IF(FORECAST($C302,X$305:X$316,$C$305:$C$316)>100,100, FORECAST($C302,X$305:X$316,$C$305:$C$316)))) -> 61.1443811 | AB302: =IF(MAX(C305:C316)-MIN(C305:C316)<5,AVERAGEIF(C305:C316,">0",AB305:AB316), IF(FORECAST($C302,AB$305:AB$316,$C$305:$C$316)<0,0, IF(FORECAST($C302,AB$305:AB$316,$C$305:$C$316)>100,100, FORECAST($C302,AB$305:AB$316,$C$305:$C$316)))) -> 4.775434141
B304: Survey | C304: Year | D304: Improved | E304: % Improved < = 30min | H304: Surface water | I304: Improved | J304: % Improved < = 30min | M304: Surface water | N304: Improved | O304: % Improved < = 30min | R304: Surface water | S304: Improved | T304: % Improved < = 30min | W304: Surface water | X304: Improved | Y304: % Improved < = 30min | AB304: Surface water
B305: WHS03 | C305: 2003 | D305: =IF(ISERROR(INDIRECT(CONCATENATE($B305,"!M16"))),"",INDIRECT(CONCATENATE($B305,"!M16"))) -> 36.1676473 | E305: =IF(ISERROR(INDIRECT(CONCATENATE($B305,"!M23"))),"",INDIRECT(CONCATENATE($B305,"!M23"))) -> 69.14988131 | H305: =IF(ISERROR(INDIRECT(CONCATENATE($B305,"!M21"))),"",INDIRECT(CONCATENATE($B305,"!M21"))) -> 0.1428457347 | I305: =IF(ISERROR(INDIRECT(CONCATENATE($B305,"!N16"))),"",INDIRECT(CONCATENATE($B305,"!N16"))) -> 48.03885594 | J305: =IF(ISERROR(INDIRECT(CONCATENATE($B305,"!N23"))),"",INDIRECT(CONCATENATE($B305,"!N23"))) -> 72.06107039 | M305: =IF(ISERROR(INDIRECT(CONCATENATE($B305,"!N21"))),"",INDIRECT(CONCATENATE($B305,"!N21"))) -> 0 | N305: =IF(ISERROR(INDIRECT(CONCATENATE($B305,"!O16"))),"",INDIRECT(CONCATENATE($B305,"!O16"))) -> 48.46945854 | O305: =IF(ISERROR(INDIRECT(CONCATENATE($B305,"!O23"))),"",INDIRECT(CONCATENATE($B305,"!O23"))) -> 77.61267027 | R305: =IF(ISERROR(INDIRECT(CONCATENATE($B305,"!O21"))),"",INDIRECT(CONCATENATE($B305,"!O21"))) -> 0.2483545339 | S305: =IF(ISERROR(INDIRECT(CONCATENATE($B305,"!P16"))),"",INDIRECT(CONCATENATE($B305,"!P16"))) -> 41.89195861 | T305: =IF(ISERROR(INDIRECT(CONCATENATE($B305,"!P23"))),"",INDIRECT(CONCATENATE($B305,"!P23"))) -> 77.98361201 | W305: =IF(ISERROR(INDIRECT(CONCATENATE($B305,"!P21"))),"",INDIRECT(CONCATENATE($B305,"!P21"))) -> 0.5936070487 | X305: =IF(ISERROR(INDIRECT(CONCATENATE($B305,"!Q16"))),"",INDIRECT(CONCATENATE($B305,"!Q16"))) -> 51.10199481 | Y305: =IF(ISERROR(INDIRECT(CONCATENATE($B305,"!Q23"))),"",INDIRECT(CONCATENATE($B305,"!Q23"))) -> 74.98748677 | AB305: =IF(ISERROR(INDIRECT(CONCATENATE($B305,"!Q221"))),"",INDIRECT(CONCATENATE($B305,"!Q21"))) -> 0.2622731169
B306: DHS04 | D306: 20.81085613 | E306: 77.09810158 | H306: 23.85466003 | I306: 31.92115496 | J306: 74.83439948 | M306: 11.98613738 | N306: 27.23777215 | O306: 79.15805534 | R306: 9.133242565 | S306: 26.73067375 | T306: 68.41170586 | W306: 6.553086114 | X306: 45.19315433 | Y306: 75.53913517 | AB306: 8.829887687
B307: MICS10 | C307: 2010 | D307: 34.1 | E307: 60.2 | H307: 5.5 | I307: 35.7 | J307: 61.6 | M307: 4.3 | N307: 41.2 | O307: 64.7 | R307: 5 | S307: 47.2 | T307: 65.6 | W307: 2.4 | X307: 53.2 | Y307: 70.9 | AB307: 4
B308: DHS15 | C308: 2015 | D308: 34.68313807 | E308: 68.57680103 | H308: 18.43866989 | I308: 38.11565141 | J308: 68.42979338 | M308: 12.88930977 | N308: 45.11575322 | O308: 73.49845273 | R308: 10.20049042 | S308: 57.79771258 | T308: 74.41732295 | W308: 7.14304911 | X308: 63.18231878 | Y308: 77.89250513 | AB308: 3.877964903
B309: MICS19 | C309: 2019 | D309: 52.34647427 | E309: 80.36761953 | H309: 18.73658225 | I309: 55.19619164 | J309: 85.6124856 | M309: 16.23274114 | N309: 55.62325039 | O309: 85.99910721 | R309: 13.36092579 | S309: 53.56071488 | T309: 84.59609854 | W309: 8.263380611 | X309: 57.74019151 | Y309: 85.77182754 | AB309: 3.810401948
B318: =CONCATENATE("Rural use of drinking water sources, ",C299,"–",C300) -> Rural use of drinking water sources, 2000–2020 | S318: Data points used for regression

Sheet Sanitation
B4: Summary of trends in use of sanitation facilities by wealth quintile (%)
B5: =IF(ISERROR(INDIRECT(CONCATENATE($B105,"!A2"))),"",INDIRECT(CONCATENATE($B105,"!A2"))) -> Chad
B7: =B118 -> National use of sanitation facilities, 2000–2020 | J7: =B218 -> Urban use of sanitation facilities, 2000–2020 | R7: =B318 -> Rural use of sanitation facilities, 2000–2020
B31: =IF(ISERROR(INDIRECT(CONCATENATE($B105,"!A2"))),"",INDIRECT(CONCATENATE($B105,"!A2"))) -> Chad | F31: Poorest | J31: Poor | N31: Middle | R31: Rich | V31: Richest
F32: Basic | G32: Limited | H32: Unimproved | I32: Open defecation | J32: Basic | K32: Limited | L32: Unimproved | M32: Open defecation | N32: Basic | O32: Limited | P32: Unimproved | Q32: Open defecation | R32: Basic | S32: Limited | T32: Unimproved | U32: Open defecation | V32: Basic | W32: Limited | X32: Unimproved | Y32: Open defecation
B33: NATIONAL | D33: Estimate | E33: =C99 -> 2000 | F33: =E99 -> 1.209823495 | G33: =F99 -> 0.8826003431 | H33: 2.841437694 | I33: 95.06613847 | J33: =J99 -> 2.471380982 | K33: =K99 -> 1.476027636 | L33: 7.924304491 | M33: 88.12828689 | N33: =O99 -> 4.794907089 | O33: =P99 -> 2.68602551 | P33: 19.20026184 | Q33: 73.31880556 | R33: =T99 -> 7.572369837 | S33: =U99 -> 4.844591654 | T33: 24.73968197 | U33: 62.84335654 | V33: =Y99 -> 25.21194596 | W33: =Z99 -> 16.35271545 | X33: 36.9631786 | Y33: 21.47215998
E34: =C100 -> 2020 | F34: =E100 -> 1.412860152 | G34: 1.030721308 | H34: 11.58735855 | I34: 85.96905999 | J34: =J100 -> 2.226560566 | K34: 1.329809104 | L34: 13.63532685 | M34: 82.80830348 | N34: =O100 -> 2.884503263 | O34: 1.615849735 | P34: 14.60413649 | Q34: 80.89551051 | R34: =T100 -> 6.655082161 | S34: 4.257736506 | T34: 21.85473834 | U34: 67.23244299 | V34: =Y100 -> 35.83648525 | W34: 23.24389585 | X34: 25.40234652 | Y34: 15.51727239
B36: URBAN | D36: Estimate | E36: =C199 -> 2000 | F36: =E199 -> 12.37278461 | G36: =F199 -> 11.05211502 | H36: 39.26528554 | I36: 37.30981483 | J36: =J199 -> 20.09978552 | K36: =K199 -> 18.0587625 | L36: 43.56439872 | M36: 18.27705327 | N36: =O199 -> 19.83950964 | O36: =P199 -> 19.03335858 | P36: 53.30988666 | Q36: 7.817245117 | R36: =T199 -> 28.22489657 | S36: =U199 -> 19.31506599 | T36: 44.58011435 | U36: 7.879923083 | V36: =Y199 -> 49.61923682 | W36: =Z199 -> 22.14857972 | X36: 25.42984459 | Y36: 2.802338868
E37: =C200 -> 2020 | F37: =E200 -> 7.216906717 | G37: 6.446574932 | H37: 28.28492969 | I37: 58.05158866 | J37: =J200 -> 20.75646441 | K37: 18.64875925 | L37: 39.99319019 | M37: 20.60158616 | N37: =O200 -> 30.49745077 | O37: 29.25822899 | P37: 31.85784922 | Q37: 8.386471019 | R37: =T200 -> 47.43631858 | S37: 32.46196568 | T37: 19.80252288 | U37: 0.2991928568 | V37: =Y200 -> 63.22490512 | W37: 28.22175312 | X37: 8.553341767 | Y37: 0
B39: RURAL | D39: Estimate | E39: =C299 -> 2000 | F39: =E299 -> 1.225449124 | G39: =F299 -> 0.6953388499 | H39: 2.004616751 | I39: 96.07459528 | J39: =J299 -> 1.574113217 | K39: =K299 -> 0.9202763972 | L39: 5.107248607 | M39: 92.39836178 | N39: =O299 -> 2.963899279 | O39: =P299 -> 1.488165338 | P39: 10.43196908 | Q39: 85.1159663 | R39: =T299 -> 4.44997239 | S39: =U299 -> 2.065459348 | T39: 23.73742001 | U39: 69.74714825 | V39: =Y299 -> 6.686545106 | W39: =Z299 -> 2.869724394 | X39: 21.9106989 | Y39: 68.5330316
E40: =C300 -> 2020 | F40: =E300 -> 1.187097172 | G40: 0.6735773572 | H40: 10.1605483 | I40: 87.97877717 | J40: =J300 -> 2.093697468 | K40: 1.224041792 | L40: 12.16111054 | M40: 84.5211502 | N40: =O300 -> 2.166511956 | O40: 1.087799448 | P40: 14.27867535 | Q40: 82.46701325 | R40: =T300 -> 3.360140792 | S40: 1.559612869 | T40: 14.41010865 | U40: 80.67013768 | V40: =Y300 -> 9.152691474 | W40: 3.928142498 | X40: 24.01212459 | Y40: 62.90704144
A97: NATIONAL | D97: Poorest | I97: Poor | N97: Middle | S97: Rich | X97: Richest
D98: Improved | E98: Basic | F98: Limited | G98: Unimproved | H98: Open defecation | I98: Improved | J98: Basic | K98: Limited | L98: Unimproved | M98: Open defecation | N98: Improved | O98: Basic | P98: Limited | Q98: Unimproved | R98: Open defecation | S98: Improved | T98: Basic | U98: Limited | V98: Unimproved | W98: Open defecation | X98: Improved | Y98: Basic | Z98: Limited | AA98: Unimproved | AB98: Open defecation
A99: Forecast period: | C99: 2000 | D99: =IF((D101+H101)>100,D101*100/(D101+H101),D101) -> 2.092423838 | E99: =D99*AVERAGEIF(E105:E116,">0")/100 -> 1.209823495 | F99: =D99*(100-AVERAGEIF(E105:E116,">0"))/100 -> 0.8826003431 | G99: =100-(E99+F99+H99) -> 2.841437694 | H99: =IF((D101+H101)>100,H101*100/(D101+H101),H101) -> 95.06613847 | I99: =IF((I101+M101)>100,I101*100/(I101+M101),I101) -> 3.947408618 | J99: =I99*AVERAGEIF(J105:J116,">0")/100 -> 2.471380982 | K99: =I99*(100-AVERAGEIF(J105:J116,">0"))/100 -> 1.476027636 | L99: =100-(J99+K99+M99) -> 7.924304491 | M99: =IF((I101+M101)>100,M101*100/(I101+M101),M101) -> 88.12828689 | N99: =IF((N101+R101)>100,N101*100/(N101+R101),N101) -> 7.480932599 | O99: =N99*AVERAGEIF(O105:O116,">0")/100 -> 4.794907089 | P99: =N99*(100-AVERAGEIF(O105:O116,">0"))/100 -> 2.68602551 | Q99: =100-(O99+P99+R99) -> 19.20026184 | R99: =IF((N101+R101)>100,R101*100/(N101+R101),R101) -> 73.31880556 | S99: =IF((S101+W101)>100,S101*100/(S101+W101),S101) -> 12.41696149 | T99: =S99*AVERAGEIF(T105:T116,">0")/100 -> 7.572369837 | U99: =S99*(100-AVERAGEIF(T105:T116,">0"))/100 -> 4.844591654 | V99: =100-(T99+U99+W99) -> 24.73968197 | W99: =IF((S101+W101)>100,W101*100/(S101+W101),W101) -> 62.84335654 | X99: =IF((X101+AB101)>100,X101*100/(X101+AB101),X101) -> 41.56466142 | Y99: =X99*AVERAGEIF(Y105:Y116,">0")/100 -> 25.21194596 | Z99: =X99*(100-AVERAGEIF(Y105:Y116,">0"))/100 -> 16.35271545 | AA99: =100-(Y99+Z99+AB99) -> 36.9631786 | AB99: =IF((X101+AB101)>100,AB101*100/(X101+AB101),AB101) -> 21.47215998
C100: 2020 | D100: =IF((D102+H102)>100,D102*100/(D102+H102),D102) -> 2.44358146 | E100: =D100*AVERAGEIF(E105:E116,">0")/100 -> 1.412860152 | F100: =D100*(100-AVERAGEIF(E105:E116,">0"))/100 -> 1.030721308 | G100: =100-(E100+F100+H100) -> 11.58735855 | H100: =IF((D102+H102)>100,H102*100/(D102+H102),H102) -> 85.96905999 | I100: =IF((I102+M102)>100,I102*100/(I102+M102),I102) -> 3.55636967 | J100: =I100*AVERAGEIF(J105:J116,">0")/100 -> 2.226560566 | K100: =I100*(100-AVERAGEIF(J105:J116,">0"))/100 -> 1.329809104 | L100: =100-(J100+K100+M100) -> 13.63532685 | M100: =IF((I102+M102)>100,M102*100/(I102+M102),M102) -> 82.80830348 | N100: =IF((N102+R102)>100,N102*100/(N102+R102),N102) -> 4.500352997 | O100: =N100*AVERAGEIF(O105:O116,">0")/100 -> 2.884503263 | P100: =N100*(100-AVERAGEIF(O105:O116,">0"))/100 -> 1.615849735 | Q100: =100-(O100+P100+R100) -> 14.60413649 | R100: =IF((N102+R102)>100,R102*100/(N102+R102),R102) -> 80.89551051 | S100: =IF((S102+W102)>100,S102*100/(S102+W102),S102) -> 10.91281867 | T100: =S100*AVERAGEIF(T105:T116,">0")/100 -> 6.655082161 | U100: =S100*(100-AVERAGEIF(T105:T116,">0"))/100 -> 4.257736506 | V100: =100-(T100+U100+W100) -> 21.85473834 | W100: =IF((S102+W102)>100,W102*100/(S102+W102),W102) -> 67.23244299 | X100: =IF((X102+AB102)>100,X102*100/(X102+AB102),X102) -> 59.0803811 | Y100: =X100*AVERAGEIF(Y105:Y116,">0")/100 -> 35.83648525 | Z100: =X100*(100-AVERAGEIF(Y105:Y116,">0"))/100 -> 23.24389585 | AA100: =100-(Y100+Z100+AB100) -> 25.40234652 | AB100: =IF((X102+AB102)>100,AB102*100/(X102+AB102),AB102) -> 15.51727239
A101: Regression period: | C101: =MinRegYear(C99,C105:C116) -> 2001 | D101: =IF(MAX(C105:C116)-MIN(C105:C116)<5,AVERAGEIF(C105:C116,">0",D105:D116), IF(FORECAST($C101,D$105:D$116,$C$105:$C$116)<0,0, IF(FORECAST($C101,D$105:D$116,$C$105:$C$116)>100,100, FORECAST($C101,D$105:D$116,$C$105:$C$116)))) -> 2.092423838 | H101: =IF(MAX(C105:C116)-MIN(C105:C116)<5,AVERAGEIF(C105:C116,">0",H105:H116), IF(FORECAST($C101,H$105:H$116,$C$105:$C$116)<0,0, IF(FORECAST($C101,H$105:H$116,$C$105:$C$116)>100,100, FORECAST($C101,H$105:H$116,$C$105:$C$116)))) -> 95.06613847 | I101: =IF(MAX(C105:C116)-MIN(C105:C116)<5,AVERAGEIF(C105:C116,">0",I105:I116), IF(FORECAST($C101,I$105:I$116,$C$105:$C$116)<0,0, IF(FORECAST($C101,I$105:I$116,$C$105:$C$116)>100,100, FORECAST($C101,I$105:I$116,$C$105:$C$116)))) -> 3.947408618 | M101: =IF(MAX(C105:C116)-MIN(C105:C116)<5,AVERAGEIF(C105:C116,">0",M105:M116), IF(FORECAST($C101,M$105:M$116,$C$105:$C$116)<0,0, IF(FORECAST($C101,M$105:M$116,$C$105:$C$116)>100,100, FORECAST($C101,M$105:M$116,$C$105:$C$116)))) -> 88.12828689 | N101: =IF(MAX(C105:C116)-MIN(C105:C116)<5,AVERAGEIF(C105:C116,">0",N105:N116), IF(FORECAST($C101,N$105:N$116,$C$105:$C$116)<0,0, IF(FORECAST($C101,N$105:N$116,$C$105:$C$116)>100,100, FORECAST($C101,N$105:N$116,$C$105:$C$116)))) -> 7.480932599 | R101: =IF(MAX(C105:C116)-MIN(C105:C116)<5,AVERAGEIF(C105:C116,">0",R105:R116), IF(FORECAST($C101,R$105:R$116,$C$105:$C$116)<0,0, IF(FORECAST($C101,R$105:R$116,$C$105:$C$116)>100,100, FORECAST($C101,R$105:R$116,$C$105:$C$116)))) -> 73.31880556 | S101: =IF(MAX(C105:C116)-MIN(C105:C116)<5,AVERAGEIF(C105:C116,">0",S105:S116), IF(FORECAST($C101,S$105:S$116,$C$105:$C$116)<0,0, IF(FORECAST($C101,S$105:S$116,$C$105:$C$116)>100,100, FORECAST($C101,S$105:S$116,$C$105:$C$116)))) -> 12.41696149 | W101: =IF(MAX(C105:C116)-MIN(C105:C116)<5,AVERAGEIF(C105:C116,">0",W105:W116), IF(FORECAST($C101,W$105:W$116,$C$105:$C$116)<0,0, IF(FORECAST($C101,W$105:W$116,$C$105:$C$116)>100,100, FORECAST($C101,W$105:W$116,$C$105:$C$116)))) -> 62.84335654 | X101: =IF(MAX(C105:C116)-MIN(C105:C116)<5,AVERAGEIF(C105:C116,">0",X105:X116), IF(FORECAST($C101,X$105:X$116,$C$105:$C$116)<0,0, IF(FORECAST($C101,X$105:X$116,$C$105:$C$116)>100,100, FORECAST($C101,X$105:X$116,$C$105:$C$116)))) -> 41.56466142 | AB101: =IF(MAX(C105:C116)-MIN(C105:C116)<5,AVERAGEIF(C105:C116,">0",AB105:AB116), IF(FORECAST($C101,AB$105:AB$116,$C$105:$C$116)<0,0, IF(FORECAST($C101,AB$105:AB$116,$C$105:$C$116)>100,100, FORECAST($C101,AB$105:AB$116,$C$105:$C$116)))) -> 21.47215998
C102: =MaxRegYear(C100,C105:C116) -> 2020 | D102: =IF(MAX(C105:C116)-MIN(C105:C116)<5,AVERAGEIF(C105:C116,">0",D105:D116), IF(FORECAST($C102,D$105:D$116,$C$105:$C$116)<0,0, IF(FORECAST($C102,D$105:D$116,$C$105:$C$116)>100,100, FORECAST($C102,D$105:D$116,$C$105:$C$116)))) -> 2.44358146 | H102: =IF(MAX(C105:C116)-MIN(C105:C116)<5,AVERAGEIF(C105:C116,">0",H105:H116), IF(FORECAST($C102,H$105:H$116,$C$105:$C$116)<0,0, IF(FORECAST($C102,H$105:H$116,$C$105:$C$116)>100,100, FORECAST($C102,H$105:H$116,$C$105:$C$116)))) -> 85.96905999 | I102: =IF(MAX(C105:C116)-MIN(C105:C116)<5,AVERAGEIF(C105:C116,">0",I105:I116), IF(FORECAST($C102,I$105:I$116,$C$105:$C$116)<0,0, IF(FORECAST($C102,I$105:I$116,$C$105:$C$116)>100,100, FORECAST($C102,I$105:I$116,$C$105:$C$116)))) -> 3.55636967 | M102: =IF(MAX(C105:C116)-MIN(C105:C116)<5,AVERAGEIF(C105:C116,">0",M105:M116), IF(FORECAST($C102,M$105:M$116,$C$105:$C$116)<0,0, IF(FORECAST($C102,M$105:M$116,$C$105:$C$116)>100,100, FORECAST($C102,M$105:M$116,$C$105:$C$116)))) -> 82.80830348 | N102: =IF(MAX(C105:C116)-MIN(C105:C116)<5,AVERAGEIF(C105:C116,">0",N105:N116), IF(FORECAST($C102,N$105:N$116,$C$105:$C$116)<0,0, IF(FORECAST($C102,N$105:N$116,$C$105:$C$116)>100,100, FORECAST($C102,N$105:N$116,$C$105:$C$116)))) -> 4.500352997 | R102: =IF(MAX(C105:C116)-MIN(C105:C116)<5,AVERAGEIF(C105:C116,">0",R105:R116), IF(FORECAST($C102,R$105:R$116,$C$105:$C$116)<0,0, IF(FORECAST($C102,R$105:R$116,$C$105:$C$116)>100,100, FORECAST($C102,R$105:R$116,$C$105:$C$116)))) -> 80.89551051 | S102: =IF(MAX(C105:C116)-MIN(C105:C116)<5,AVERAGEIF(C105:C116,">0",S105:S116), IF(FORECAST($C102,S$105:S$116,$C$105:$C$116)<0,0, IF(FORECAST($C102,S$105:S$116,$C$105:$C$116)>100,100, FORECAST($C102,S$105:S$116,$C$105:$C$116)))) -> 10.91281867 | W102: =IF(MAX(C105:C116)-MIN(C105:C116)<5,AVERAGEIF(C105:C116,">0",W105:W116), IF(FORECAST($C102,W$105:W$116,$C$105:$C$116)<0,0, IF(FORECAST($C102,W$105:W$116,$C$105:$C$116)>100,100, FORECAST($C102,W$105:W$116,$C$105:$C$116)))) -> 67.23244299 | X102: =IF(MAX(C105:C116)-MIN(C105:C116)<5,AVERAGEIF(C105:C116,">0",X105:X116), IF(FORECAST($C102,X$105:X$116,$C$105:$C$116)<0,0, IF(FORECAST($C102,X$105:X$116,$C$105:$C$116)>100,100, FORECAST($C102,X$105:X$116,$C$105:$C$116)))) -> 59.0803811 | AB102: =IF(MAX(C105:C116)-MIN(C105:C116)<5,AVERAGEIF(C105:C116,">0",AB105:AB116), IF(FORECAST($C102,AB$105:AB$116,$C$105:$C$116)<0,0, IF(FORECAST($C102,AB$105:AB$116,$C$105:$C$116)>100,100, FORECAST($C102,AB$105:AB$116,$C$105:$C$116)))) -> 15.51727239
B104: Survey | C104: Year | D104: Improved | E104: Not shared | H104: Open defecation | I104: Improved | J104: Not shared | M104: Open defecation | N104: Improved | O104: Not shared | R104: Open defecation | S104: Improved | T104: Not shared | W104: Open defecation | X104: Improved | Y104: Not shared | AB104: Open defecation
B105: WHS03 | C105: 2003 | D105: =IF(ISERROR(INDIRECT(CONCATENATE($B105,"!C122"))),"",INDIRECT(CONCATENATE($B105,"!C122"))) -> 3.516475713 | E105: =IF(ISERROR(INDIRECT(CONCATENATE($B105,"!C129"))),"",INDIRECT(CONCATENATE($B105,"!C129"))) -> 33.21251384 | H105: =IF(ISERROR(INDIRECT(CONCATENATE($B105,"!C127"))),"",INDIRECT(CONCATENATE($B105,"!C127"))) -> 91.95811025 | I105: =IF(ISERROR(INDIRECT(CONCATENATE($B105,"!D122"))),"",INDIRECT(CONCATENATE($B105,"!D122"))) -> 7.403497554 | J105: =IF(ISERROR(INDIRECT(CONCATENATE($B105,"!D129"))),"",INDIRECT(CONCATENATE($B105,"!D129"))) -> 41.95955732 | M105: =IF(ISERROR(INDIRECT(CONCATENATE($B105,"!D127"))),"",INDIRECT(CONCATENATE($B105,"!D127"))) -> 84.92357584 | N105: =IF(ISERROR(INDIRECT(CONCATENATE($B105,"!E122"))),"",INDIRECT(CONCATENATE($B105,"!E122"))) -> 12.07921589 | O105: =IF(ISERROR(INDIRECT(CONCATENATE($B105,"!E129"))),"",INDIRECT(CONCATENATE($B105,"!E129"))) -> 40.17225439 | R105: =IF(ISERROR(INDIRECT(CONCATENATE($B105,"!E127"))),"",INDIRECT(CONCATENATE($B105,"!E127"))) -> 69.86859059 | S105: =IF(ISERROR(INDIRECT(CONCATENATE($B105,"!F122"))),"",INDIRECT(CONCATENATE($B105,"!F122"))) -> 16.87343707 | T105: =IF(ISERROR(INDIRECT(CONCATENATE($B105,"!F129"))),"",INDIRECT(CONCATENATE($B105,"!F129"))) -> 44.65958599 | W105: =IF(ISERROR(INDIRECT(CONCATENATE($B105,"!F127"))),"",INDIRECT(CONCATENATE($B105,"!F127"))) -> 53.89639041 | X105: =IF(ISERROR(INDIRECT(CONCATENATE($B105,"!G122"))),"",INDIRECT(CONCATENATE($B105,"!G122"))) -> 33.14939558 | Y105: =IF(ISERROR(INDIRECT(CONCATENATE($B105,"!G129"))),"",INDIRECT(CONCATENATE($B105,"!G129"))) -> 46.69738879 | AB105: =IF(ISERROR(INDIRECT(CONCATENATE($B105,"!G2127"))),"",INDIRECT(CONCATENATE($B105,"!G127"))) -> 24.6997168
B106: DHS04 | C106: 2004 | D106: 0.877435664 | E106: N/A | H106: 97.08339324 | I106: 1.48860887 | J106: N/A | M106: 88.63696719 | N106: 3.454155862 | O106: N/A | R106: 76.90497691 | S106: 7.231036377 | T106: N/A | W106: 75.22913503 | X106: 50.40665666 | Y106: N/A | AB106: 19.92889173
B107: MICS10 | C107: 2010 | D107: 2.481739361 | E107: 75.44787409 | H107: 87.68205903 | I107: 2.381940445 | J107: 85.43436129 | M107: 86.95100721 | N107: 3.845236642 | O107: 87.58262503 | R107: 79.05045815 | S107: 12.3646248 | T107: 69.01169435 | W107: 60.40205569 | X107: 56.67483448 | Y107: 64.86682111 | AB107: 13.8713114
B108: DHS15 | C108: 2015 | D108: 1.065247997 | E108: 54.12981837 | H108: 90.93226688 | I108: 1.764771966 | J108: 49.36154871 | M108: 86.70850599 | N108: 3.975843446 | O108: 57.90992309 | R108: 82.10971054 | S108: 9.920686349 | T108: 51.81896005 | W108: 70.03622206 | X108: 57.39093229 | Y108: 56.07906475 | AB108: 14.68338814
B109: MICS19 | C109: 2019 | D109: 3.371391538 | E109: 68.4867411 | H109: 85.65035717 | I109: 5.751498382 | J109: 73.67525528 | M109: 80.5414184 | N109: 6.83407107 | O109: 70.71537606 | R109: 77.00389306 | S109: 12.05341391 | T109: 78.44608309 | W109: 65.27918881 | X109: 52.6079673 | Y109: 74.98539214 | AB109: 19.76039555
B118: =CONCATENATE("National use of sanitation facilities, ",C99,"–",C100) -> National use of sanitation facilities, 2000–2020 | S118: Data points used for regression
A197: URBAN | D197: Poorest | I197: Poor | N197: Middle | S197: Rich | X197: Richest
D198: Improved | E198: Basic | F198: Limited | G198: Unimproved | H198: Open defecation | I198: Improved | J198: Basic | K198: Limited | L198: Unimproved | M198: Open defecation | N198: Improved | O198: Basic | P198: Limited | Q198: Unimproved | R198: Open defecation | S198: Improved | T198: Basic | U198: Limited | V198: Unimproved | W198: Open defecation | X198: Improved | Y198: Basic | Z198: Limited | AA198: Unimproved | AB198: Open defecation
A199: Forecast period: | C199: 2000 | D199: =IF((D201+H201)>100,D201*100/(D201+H201),D201) -> 23.42489963 | E199: =D199*AVERAGEIF(E205:E216,">0")/100 -> 12.37278461 | F199: =D199*(100-AVERAGEIF(E205:E216,">0"))/100 -> 11.05211502 | G199: =100-(E199+F199+H199) -> 39.26528554 | H199: =IF((D201+H201)>100,H201*100/(D201+H201),H201) -> 37.30981483 | I199: =IF((I201+M201)>100,I201*100/(I201+M201),I201) -> 38.15854801 | J199: =I199*AVERAGEIF(J205:J216,">0")/100 -> 20.09978552 | K199: =I199*(100-AVERAGEIF(J205:J216,">0"))/100 -> 18.0587625 | L199: =100-(J199+K199+M199) -> 43.56439872 | M199: =IF((I201+M201)>100,M201*100/(I201+M201),M201) -> 18.27705327 | N199: =IF((N201+R201)>100,N201*100/(N201+R201),N201) -> 38.87286822 | O199: =N199*AVERAGEIF(O205:O216,">0")/100 -> 19.83950964 | P199: =N199*(100-AVERAGEIF(O205:O216,">0"))/100 -> 19.03335858 | Q199: =100-(O199+P199+R199) -> 53.30988666 | R199: =IF((N201+R201)>100,R201*100/(N201+R201),R201) -> 7.817245117 | S199: =IF((S201+W201)>100,S201*100/(S201+W201),S201) -> 47.53996257 | T199: =S199*AVERAGEIF(T205:T216,">0")/100 -> 28.22489657 | U199: =S199*(100-AVERAGEIF(T205:T216,">0"))/100 -> 19.31506599 | V199: =100-(T199+U199+W199) -> 44.58011435 | W199: =IF((S201+W201)>100,W201*100/(S201+W201),W201) -> 7.879923083 | X199: =IF((X201+AB201)>100,X201*100/(X201+AB201),X201) -> 71.76781655 | Y199: =X199*AVERAGEIF(Y205:Y216,">0")/100 -> 49.61923682 | Z199: =X199*(100-AVERAGEIF(Y205:Y216,">0"))/100 -> 22.14857972 | AA199: =100-(Y199+Z199+AB199) -> 25.42984459 | AB199: =IF((X201+AB201)>100,AB201*100/(X201+AB201),AB201) -> 2.802338868
C200: 2020 | D200: =IF((D202+H202)>100,D202*100/(D202+H202),D202) -> 13.66348165 | E200: =D200*AVERAGEIF(E205:E216,">0")/100 -> 7.216906717 | F200: =D200*(100-AVERAGEIF(E205:E216,">0"))/100 -> 6.446574932 | G200: =100-(E200+F200+H200) -> 28.28492969 | H200: =IF((D202+H202)>100,H202*100/(D202+H202),H202) -> 58.05158866 | I200: =IF((I202+M202)>100,I202*100/(I202+M202),I202) -> 39.40522365 | J200: =I200*AVERAGEIF(J205:J216,">0")/100 -> 20.75646441 | K200: =I200*(100-AVERAGEIF(J205:J216,">0"))/100 -> 18.64875925 | L200: =100-(J200+K200+M200) -> 39.99319019 | M200: =IF((I202+M202)>100,M202*100/(I202+M202),M202) -> 20.60158616 | N200: =IF((N202+R202)>100,N202*100/(N202+R202),N202) -> 59.75567977 | O200: =N200*AVERAGEIF(O205:O216,">0")/100 -> 30.49745077 | P200: =N200*(100-AVERAGEIF(O205:O216,">0"))/100 -> 29.25822899 | Q200: =100-(O200+P200+R200) -> 31.85784922 | R200: =IF((N202+R202)>100,R202*100/(N202+R202),R202) -> 8.386471019 | S200: =IF((S202+W202)>100,S202*100/(S202+W202),S202) -> 79.89828426 | T200: =S200*AVERAGEIF(T205:T216,">0")/100 -> 47.43631858 | U200: =S200*(100-AVERAGEIF(T205:T216,">0"))/100 -> 32.46196568 | V200: =100-(T200+U200+W200) -> 19.80252288 | W200: =IF((S202+W202)>100,W202*100/(S202+W202),W202) -> 0.2991928568 | X200: =IF((X202+AB202)>100,X202*100/(X202+AB202),X202) -> 91.44665823 | Y200: =X200*AVERAGEIF(Y205:Y216,">0")/100 -> 63.22490512 | Z200: =X200*(100-AVERAGEIF(Y205:Y216,">0"))/100 -> 28.22175312 | AA200: =100-(Y200+Z200+AB200) -> 8.553341767 | AB200: =IF((X202+AB202)>100,AB202*100/(X202+AB202),AB202) -> 0
A201: Regression period: | C201: =MinRegYear(C199,C205:C216) -> 2001 | D201: =IF(MAX(C205:C216)-MIN(C205:C216)<5,AVERAGEIF(C205:C216,">0",D205:D216), IF(FORECAST($C201,D$205:D$216,$C$205:$C$216)<0,0, IF(FORECAST($C201,D$205:D$216,$C$205:$C$216)>100,100, FORECAST($C201,D$205:D$216,$C$205:$C$216)))) -> 23.42489963 | H201: =IF(MAX(C205:C216)-MIN(C205:C216)<5,AVERAGEIF(C205:C216,">0",H205:H216), IF(FORECAST($C201,H$205:H$216,$C$205:$C$216)<0,0, IF(FORECAST($C201,H$205:H$216,$C$205:$C$216)>100,100, FORECAST($C201,H$205:H$216,$C$205:$C$216)))) -> 37.30981483 | I201: =IF(MAX(C205:C216)-MIN(C205:C216)<5,AVERAGEIF(C205:C216,">0",I205:I216), IF(FORECAST($C201,I$205:I$216,$C$205:$C$216)<0,0, IF(FORECAST($C201,I$205:I$216,$C$205:$C$216)>100,100, FORECAST($C201,I$205:I$216,$C$205:$C$216)))) -> 38.15854801 | M201: =IF(MAX(C205:C216)-MIN(C205:C216)<5,AVERAGEIF(C205:C216,">0",M205:M216), IF(FORECAST($C201,M$205:M$216,$C$205:$C$216)<0,0, IF(FORECAST($C201,M$205:M$216,$C$205:$C$216)>100,100, FORECAST($C201,M$205:M$216,$C$205:$C$216)))) -> 18.27705327 | N201: =IF(MAX(C205:C216)-MIN(C205:C216)<5,AVERAGEIF(C205:C216,">0",N205:N216), IF(FORECAST($C201,N$205:N$216,$C$205:$C$216)<0,0, IF(FORECAST($C201,N$205:N$216,$C$205:$C$216)>100,100, FORECAST($C201,N$205:N$216,$C$205:$C$216)))) -> 38.87286822 | R201: =IF(MAX(C205:C216)-MIN(C205:C216)<5,AVERAGEIF(C205:C216,">0",R205:R216), IF(FORECAST($C201,R$205:R$216,$C$205:$C$216)<0,0, IF(FORECAST($C201,R$205:R$216,$C$205:$C$216)>100,100, FORECAST($C201,R$205:R$216,$C$205:$C$216)))) -> 7.817245117 | S201: =IF(MAX(C205:C216)-MIN(C205:C216)<5,AVERAGEIF(C205:C216,">0",S205:S216), IF(FORECAST($C201,S$205:S$216,$C$205:$C$216)<0,0, IF(FORECAST($C201,S$205:S$216,$C$205:$C$216)>100,100, FORECAST($C201,S$205:S$216,$C$205:$C$216)))) -> 47.53996257 | W201: =IF(MAX(C205:C216)-MIN(C205:C216)<5,AVERAGEIF(C205:C216,">0",W205:W216), IF(FORECAST($C201,W$205:W$216,$C$205:$C$216)<0,0, IF(FORECAST($C201,W$205:W$216,$C$205:$C$216)>100,100, FORECAST($C201,W$205:W$216,$C$205:$C$216)))) -> 7.879923083 | X201: =IF(MAX(C205:C216)-MIN(C205:C216)<5,AVERAGEIF(C205:C216,">0",X205:X216), IF(FORECAST($C201,X$205:X$216,$C$205:$C$216)<0,0, IF(FORECAST($C201,X$205:X$216,$C$205:$C$216)>100,100, FORECAST($C201,X$205:X$216,$C$205:$C$216)))) -> 71.76781655 | AB201: =IF(MAX(C205:C216)-MIN(C205:C216)<5,AVERAGEIF(C205:C216,">0",AB205:AB216), IF(FORECAST($C201,AB$205:AB$216,$C$205:$C$216)<0,0, IF(FORECAST($C201,AB$205:AB$216,$C$205:$C$216)>100,100, FORECAST($C201,AB$205:AB$216,$C$205:$C$216)))) -> 2.802338868
C202: =MaxRegYear(C200,C205:C216) -> 2020 | D202: =IF(MAX(C205:C216)-MIN(C205:C216)<5,AVERAGEIF(C205:C216,">0",D205:D216), IF(FORECAST($C202,D$205:D$216,$C$205:$C$216)<0,0, IF(FORECAST($C202,D$205:D$216,$C$205:$C$216)>100,100, FORECAST($C202,D$205:D$216,$C$205:$C$216)))) -> 13.66348165 | H202: =IF(MAX(C205:C216)-MIN(C205:C216)<5,AVERAGEIF(C205:C216,">0",H205:H216), IF(FORECAST($C202,H$205:H$216,$C$205:$C$216)<0,0, IF(FORECAST($C202,H$205:H$216,$C$205:$C$216)>100,100, FORECAST($C202,H$205:H$216,$C$205:$C$216)))) -> 58.05158866 | I202: =IF(MAX(C205:C216)-MIN(C205:C216)<5,AVERAGEIF(C205:C216,">0",I205:I216), IF(FORECAST($C202,I$205:I$216,$C$205:$C$216)<0,0, IF(FORECAST($C202,I$205:I$216,$C$205:$C$216)>100,100, FORECAST($C202,I$205:I$216,$C$205:$C$216)))) -> 39.40522365 | M202: =IF(MAX(C205:C216)-MIN(C205:C216)<5,AVERAGEIF(C205:C216,">0",M205:M216), IF(FORECAST($C202,M$205:M$216,$C$205:$C$216)<0,0, IF(FORECAST($C202,M$205:M$216,$C$205:$C$216)>100,100, FORECAST($C202,M$205:M$216,$C$205:$C$216)))) -> 20.60158616 | N202: =IF(MAX(C205:C216)-MIN(C205:C216)<5,AVERAGEIF(C205:C216,">0",N205:N216), IF(FORECAST($C202,N$205:N$216,$C$205:$C$216)<0,0, IF(FORECAST($C202,N$205:N$216,$C$205:$C$216)>100,100, FORECAST($C202,N$205:N$216,$C$205:$C$216)))) -> 59.75567977 | R202: =IF(MAX(C205:C216)-MIN(C205:C216)<5,AVERAGEIF(C205:C216,">0",R205:R216), IF(FORECAST($C202,R$205:R$216,$C$205:$C$216)<0,0, IF(FORECAST($C202,R$205:R$216,$C$205:$C$216)>100,100, FORECAST($C202,R$205:R$216,$C$205:$C$216)))) -> 8.386471019 | S202: =IF(MAX(C205:C216)-MIN(C205:C216)<5,AVERAGEIF(C205:C216,">0",S205:S216), IF(FORECAST($C202,S$205:S$216,$C$205:$C$216)<0,0, IF(FORECAST($C202,S$205:S$216,$C$205:$C$216)>100,100, FORECAST($C202,S$205:S$216,$C$205:$C$216)))) -> 79.89828426 | W202: =IF(MAX(C205:C216)-MIN(C205:C216)<5,AVERAGEIF(C205:C216,">0",W205:W216), IF(FORECAST($C202,W$205:W$216,$C$205:$C$216)<0,0, IF(FORECAST($C202,W$205:W$216,$C$205:$C$216)>100,100, FORECAST($C202,W$205:W$216,$C$205:$C$216)))) -> 0.2991928568 | X202: =IF(MAX(C205:C216)-MIN(C205:C216)<5,AVERAGEIF(C205:C216,">0",X205:X216), IF(FORECAST($C202,X$205:X$216,$C$205:$C$216)<0,0, IF(FORECAST($C202,X$205:X$216,$C$205:$C$216)>100,100, FORECAST($C202,X$205:X$216,$C$205:$C$216)))) -> 91.44665823 | AB202: =IF(MAX(C205:C216)-MIN(C205:C216)<5,AVERAGEIF(C205:C216,">0",AB205:AB216), IF(FORECAST($C202,AB$205:AB$216,$C$205:$C$216)<0,0, IF(FORECAST($C202,AB$205:AB$216,$C$205:$C$216)>100,100, FORECAST($C202,AB$205:AB$216,$C$205:$C$216)))) -> 0
B204: Survey | C204: Year | D204: Improved | E204: Not shared | H204: Open defecation | I204: Improved | J204: Not shared | M204: Open defecation | N204: Improved | O204: Not shared | R204: Open defecation | S204: Improved | T204: Not shared | W204: Open defecation | X204: Improved | Y204: Not shared | AB204: Open defecation
B205: WHS03 | C205: 2003 | D205: =IF(ISERROR(INDIRECT(CONCATENATE($B205,"!H122"))),"",INDIRECT(CONCATENATE($B205,"!H122"))) -> 29.295256 | E205: =IF(ISERROR(INDIRECT(CONCATENATE($B205,"!H129"))),"",INDIRECT(CONCATENATE($B205,"!H129"))) -> 49.52073713 | H205: =IF(ISERROR(INDIRECT(CONCATENATE($B205,"!H127"))),"",INDIRECT(CONCATENATE($B205,"!H127"))) -> 38.01481331 | I205: =IF(ISERROR(INDIRECT(CONCATENATE($B205,"!I122"))),"",INDIRECT(CONCATENATE($B205,"!I122"))) -> 38.16196112 | J205: =IF(ISERROR(INDIRECT(CONCATENATE($B205,"!I129"))),"",INDIRECT(CONCATENATE($B205,"!I129"))) -> 44.50888966 | M205: =IF(ISERROR(INDIRECT(CONCATENATE($B205,"!I127"))),"",INDIRECT(CONCATENATE($B205,"!I127"))) -> 14.68465572 | N205: =IF(ISERROR(INDIRECT(CONCATENATE($B205,"!J122"))),"",INDIRECT(CONCATENATE($B205,"!J122"))) -> 37.01005533 | O205: =IF(ISERROR(INDIRECT(CONCATENATE($B205,"!J129"))),"",INDIRECT(CONCATENATE($B205,"!J129"))) -> 40.39865953 | R205: =IF(ISERROR(INDIRECT(CONCATENATE($B205,"!J127"))),"",INDIRECT(CONCATENATE($B205,"!J127"))) -> 4.439767295 | S205: =IF(ISERROR(INDIRECT(CONCATENATE($B205,"!K122"))),"",INDIRECT(CONCATENATE($B205,"!K122"))) -> 38.15608003 | T205: =IF(ISERROR(INDIRECT(CONCATENATE($B205,"!K129"))),"",INDIRECT(CONCATENATE($B205,"!K129"))) -> 50.64076347 | W205: =IF(ISERROR(INDIRECT(CONCATENATE($B205,"!K127"))),"",INDIRECT(CONCATENATE($B205,"!K127"))) -> 6.91391081 | X205: =IF(ISERROR(INDIRECT(CONCATENATE($B205,"!L122"))),"",INDIRECT(CONCATENATE($B205,"!L122"))) -> 51.684137 | Y205: =IF(ISERROR(INDIRECT(CONCATENATE($B205,"!L129"))),"",INDIRECT(CONCATENATE($B205,"!L129"))) -> 57.45063999 | AB205: =IF(ISERROR(INDIRECT(CONCATENATE($B205,"!L2127"))),"",INDIRECT(CONCATENATE($B205,"!L127"))) -> 4.794842916
B206: DHS04 | C206: 2004 | D206: 16.94994987 | E206: N/A | H206: 41.65967 | I206: 36.75365977 | J206: N/A | M206: 24.38371528 | N206: 44.30924768 | O206: N/A | R206: 10.44811366 | S206: 64.35735135 | T206: N/A | W206: 6.335983681 | X206: 92.77694375 | Y206: N/A | AB206: 0.3513326297
B207: MICS10 | C207: 2010 | D207: 17.26625959 | E207: 61.14327023 | H207: 45.87606866 | I207: 43.85083771 | J207: 54.52564391 | M207: 17.20821408 | N207: 49.45041088 | O207: 53.05491769 | R207: 10.31015864 | S207: 65.76071921 | T207: 63.95120946 | W207: 5.624741212 | X207: 91.25513912 | Y207: 71.68325891 | AB207: 0.7307013296
B208: DHS15 | C208: 2015 | D208: 10.59537782 | E208: 34.83260908 | H208: 57.30826137 | I208: 34.11595078 | J208: 39.34650966 | M208: 18.69694436 | N208: 60.93982673 | O208: 43.79374854 | R208: 7.455164246 | S208: 72.12780393 | T208: 51.96339329 | W208: 1.262163772 | X208: 84.8833072 | Y208: 67.83869936 | AB208: 0.2369547071
B209: MICS19 | C209: 2019 | D209: 19.38474817 | E209: 65.77915945 | H209: 53.90718694 | I209: 40.92859801 | J209: 72.31654946 | M209: 22.03955338 | N209: 53.21318632 | O209: 66.90030268 | R209: 7.811147613 | S209: 75.6390582 | T209: 70.92817436 | W209: 0.9094690775 | X209: 85.88306711 | Y209: 79.58165245 | AB209: 0.6343115834
B218: =CONCATENATE("Urban use of sanitation facilities, ",C199,"–",C200) -> Urban use of sanitation facilities, 2000–2020 | S218: Data points used for regression
A297: RURAL | D297: Poorest | I297: Poor | N297: Middle | S297: Rich | X297: Richest
D298: Improved | E298: Basic | F298: Limited | G298: Unimproved | H298: Open defecation | I298: Improved | J298: Basic | K298: Limited | L298: Unimproved | M298: Open defecation | N298: Improved | O298: Basic | P298: Limited | Q298: Unimproved | R298: Open defecation | S298: Improved | T298: Basic | U298: Limited | V298: Unimproved | W298: Open defecation | X298: Improved | Y298: Basic | Z298: Limited | AA298: Unimproved | AB298: Open defecation
A299: Forecast period: | C299: 2000 | D299: =IF((D301+H301)>100,D301*100/(D301+H301),D301) -> 1.920787974 | E299: =D299*AVERAGEIF(E305:E316,">0")/100 -> 1.225449124 | F299: =D299*(100-AVERAGEIF(E305:E316,">0"))/100 -> 0.6953388499 | G299: =100-(E299+F299+H299) -> 2.004616751 | H299: =IF((D301+H301)>100,H301*100/(D301+H301),H301) -> 96.07459528 | I299: =IF((I301+M301)>100,I301*100/(I301+M301),I301) -> 2.494389614 | J299: =I299*AVERAGEIF(J305:J316,">0")/100 -> 1.574113217 | K299: =I299*(100-AVERAGEIF(J305:J316,">0"))/100 -> 0.9202763972 | L299: =100-(J299+K299+M299) -> 5.107248607 | M299: =IF((I301+M301)>100,M301*100/(I301+M301),M301) -> 92.39836178 | N299: =IF((N301+R301)>100,N301*100/(N301+R301),N301) -> 4.452064618 | O299: =N299*AVERAGEIF(O305:O316,">0")/100 -> 2.963899279 | P299: =N299*(100-AVERAGEIF(O305:O316,">0"))/100 -> 1.488165338 | Q299: =100-(O299+P299+R299) -> 10.43196908 | R299: =IF((N301+R301)>100,R301*100/(N301+R301),R301) -> 85.1159663 | S299: =IF((S301+W301)>100,S301*100/(S301+W301),S301) -> 6.515431738 | T299: =S299*AVERAGEIF(T305:T316,">0")/100 -> 4.44997239 | U299: =S299*(100-AVERAGEIF(T305:T316,">0"))/100 -> 2.065459348 | V299: =100-(T299+U299+W299) -> 23.73742001 | W299: =IF((S301+W301)>100,W301*100/(S301+W301),W301) -> 69.74714825 | X299: =IF((X301+AB301)>100,X301*100/(X301+AB301),X301) -> 9.556269499 | Y299: =X299*AVERAGEIF(Y305:Y316,">0")/100 -> 6.686545106 | Z299: =X299*(100-AVERAGEIF(Y305:Y316,">0"))/100 -> 2.869724394 | AA299: =100-(Y299+Z299+AB299) -> 21.9106989 | AB299: =IF((X301+AB301)>100,AB301*100/(X301+AB301),AB301) -> 68.5330316
C300: 2020 | D300: =IF((D302+H302)>100,D302*100/(D302+H302),D302) -> 1.86067453 | E300: =D300*AVERAGEIF(E305:E316,">0")/100 -> 1.187097172 | F300: =D300*(100-AVERAGEIF(E305:E316,">0"))/100 -> 0.6735773572 | G300: =100-(E300+F300+H300) -> 10.1605483 | H300: =IF((D302+H302)>100,H302*100/(D302+H302),H302) -> 87.97877717 | I300: =IF((I302+M302)>100,I302*100/(I302+M302),I302) -> 3.31773926 | J300: =I300*AVERAGEIF(J305:J316,">0")/100 -> 2.093697468 | K300: =I300*(100-AVERAGEIF(J305:J316,">0"))/100 -> 1.224041792 | L300: =100-(J300+K300+M300) -> 12.16111054 | M300: =IF((I302+M302)>100,M302*100/(I302+M302),M302) -> 84.5211502 | N300: =IF((N302+R302)>100,N302*100/(N302+R302),N302) -> 3.254311404 | O300: =N300*AVERAGEIF(O305:O316,">0")/100 -> 2.166511956 | P300: =N300*(100-AVERAGEIF(O305:O316,">0"))/100 -> 1.087799448 | Q300: =100-(O300+P300+R300) -> 14.27867535 | R300: =IF((N302+R302)>100,R302*100/(N302+R302),R302) -> 82.46701325 | S300: =IF((S302+W302)>100,S302*100/(S302+W302),S302) -> 4.919753661 | T300: =S300*AVERAGEIF(T305:T316,">0")/100 -> 3.360140792 | U300: =S300*(100-AVERAGEIF(T305:T316,">0"))/100 -> 1.559612869 | V300: =100-(T300+U300+W300) -> 14.41010865 | W300: =IF((S302+W302)>100,W302*100/(S302+W302),W302) -> 80.67013768 | X300: =IF((X302+AB302)>100,X302*100/(X302+AB302),X302) -> 13.08083397 | Y300: =X300*AVERAGEIF(Y305:Y316,">0")/100 -> 9.152691474 | Z300: =X300*(100-AVERAGEIF(Y305:Y316,">0"))/100 -> 3.928142498 | AA300: =100-(Y300+Z300+AB300) -> 24.01212459 | AB300: =IF((X302+AB302)>100,AB302*100/(X302+AB302),AB302) -> 62.90704144
A301: Regression period: | C301: =MinRegYear(C299,C305:C316) -> 2001 | D301: =IF(MAX(C305:C316)-MIN(C305:C316)<5,AVERAGEIF(C305:C316,">0",D305:D316), IF(FORECAST($C301,D$305:D$316,$C$305:$C$316)<0,0, IF(FORECAST($C301,D$305:D$316,$C$305:$C$316)>100,100, FORECAST($C301,D$305:D$316,$C$305:$C$316)))) -> 1.920787974 | H301: =IF(MAX(C305:C316)-MIN(C305:C316)<5,AVERAGEIF(C305:C316,">0",H305:H316), IF(FORECAST($C301,H$305:H$316,$C$305:$C$316)<0,0, IF(FORECAST($C301,H$305:H$316,$C$305:$C$316)>100,100, FORECAST($C301,H$305:H$316,$C$305:$C$316)))) -> 96.07459528 | I301: =IF(MAX(C305:C316)-MIN(C305:C316)<5,AVERAGEIF(C305:C316,">0",I305:I316), IF(FORECAST($C301,I$305:I$316,$C$305:$C$316)<0,0, IF(FORECAST($C301,I$305:I$316,$C$305:$C$316)>100,100, FORECAST($C301,I$305:I$316,$C$305:$C$316)))) -> 2.494389614 | M301: =IF(MAX(C305:C316)-MIN(C305:C316)<5,AVERAGEIF(C305:C316,">0",M305:M316), IF(FORECAST($C301,M$305:M$316,$C$305:$C$316)<0,0, IF(FORECAST($C301,M$305:M$316,$C$305:$C$316)>100,100, FORECAST($C301,M$305:M$316,$C$305:$C$316)))) -> 92.39836178 | N301: =IF(MAX(C305:C316)-MIN(C305:C316)<5,AVERAGEIF(C305:C316,">0",N305:N316), IF(FORECAST($C301,N$305:N$316,$C$305:$C$316)<0,0, IF(FORECAST($C301,N$305:N$316,$C$305:$C$316)>100,100, FORECAST($C301,N$305:N$316,$C$305:$C$316)))) -> 4.452064618 | R301: =IF(MAX(C305:C316)-MIN(C305:C316)<5,AVERAGEIF(C305:C316,">0",R305:R316), IF(FORECAST($C301,R$305:R$316,$C$305:$C$316)<0,0, IF(FORECAST($C301,R$305:R$316,$C$305:$C$316)>100,100, FORECAST($C301,R$305:R$316,$C$305:$C$316)))) -> 85.1159663 | S301: =IF(MAX(C305:C316)-MIN(C305:C316)<5,AVERAGEIF(C305:C316,">0",S305:S316), IF(FORECAST($C301,S$305:S$316,$C$305:$C$316)<0,0, IF(FORECAST($C301,S$305:S$316,$C$305:$C$316)>100,100, FORECAST($C301,S$305:S$316,$C$305:$C$316)))) -> 6.515431738 | W301: =IF(MAX(C305:C316)-MIN(C305:C316)<5,AVERAGEIF(C305:C316,">0",W305:W316), IF(FORECAST($C301,W$305:W$316,$C$305:$C$316)<0,0, IF(FORECAST($C301,W$305:W$316,$C$305:$C$316)>100,100, FORECAST($C301,W$305:W$316,$C$305:$C$316)))) -> 69.74714825 | X301: =IF(MAX(C305:C316)-MIN(C305:C316)<5,AVERAGEIF(C305:C316,">0",X305:X316), IF(FORECAST($C301,X$305:X$316,$C$305:$C$316)<0,0, IF(FORECAST($C301,X$305:X$316,$C$305:$C$316)>100,100, FORECAST($C301,X$305:X$316,$C$305:$C$316)))) -> 9.556269499 | AB301: =IF(MAX(C305:C316)-MIN(C305:C316)<5,AVERAGEIF(C305:C316,">0",AB305:AB316), IF(FORECAST($C301,AB$305:AB$316,$C$305:$C$316)<0,0, IF(FORECAST($C301,AB$305:AB$316,$C$305:$C$316)>100,100, FORECAST($C301,AB$305:AB$316,$C$305:$C$316)))) -> 68.5330316
C302: =MaxRegYear(C300,C305:C316) -> 2020 | D302: =IF(MAX(C305:C316)-MIN(C305:C316)<5,AVERAGEIF(C305:C316,">0",D305:D316), IF(FORECAST($C302,D$305:D$316,$C$305:$C$316)<0,0, IF(FORECAST($C302,D$305:D$316,$C$305:$C$316)>100,100, FORECAST($C302,D$305:D$316,$C$305:$C$316)))) -> 1.86067453 | H302: =IF(MAX(C305:C316)-MIN(C305:C316)<5,AVERAGEIF(C305:C316,">0",H305:H316), IF(FORECAST($C302,H$305:H$316,$C$305:$C$316)<0,0, IF(FORECAST($C302,H$305:H$316,$C$305:$C$316)>100,100, FORECAST($C302,H$305:H$316,$C$305:$C$316)))) -> 87.97877717 | I302: =IF(MAX(C305:C316)-MIN(C305:C316)<5,AVERAGEIF(C305:C316,">0",I305:I316), IF(FORECAST($C302,I$305:I$316,$C$305:$C$316)<0,0, IF(FORECAST($C302,I$305:I$316,$C$305:$C$316)>100,100, FORECAST($C302,I$305:I$316,$C$305:$C$316)))) -> 3.31773926 | M302: =IF(MAX(C305:C316)-MIN(C305:C316)<5,AVERAGEIF(C305:C316,">0",M305:M316), IF(FORECAST($C302,M$305:M$316,$C$305:$C$316)<0,0, IF(FORECAST($C302,M$305:M$316,$C$305:$C$316)>100,100, FORECAST($C302,M$305:M$316,$C$305:$C$316)))) -> 84.5211502 | N302: =IF(MAX(C305:C316)-MIN(C305:C316)<5,AVERAGEIF(C305:C316,">0",N305:N316), IF(FORECAST($C302,N$305:N$316,$C$305:$C$316)<0,0, IF(FORECAST($C302,N$305:N$316,$C$305:$C$316)>100,100, FORECAST($C302,N$305:N$316,$C$305:$C$316)))) -> 3.254311404 | R302: =IF(MAX(C305:C316)-MIN(C305:C316)<5,AVERAGEIF(C305:C316,">0",R305:R316), IF(FORECAST($C302,R$305:R$316,$C$305:$C$316)<0,0, IF(FORECAST($C302,R$305:R$316,$C$305:$C$316)>100,100, FORECAST($C302,R$305:R$316,$C$305:$C$316)))) -> 82.46701325 | S302: =IF(MAX(C305:C316)-MIN(C305:C316)<5,AVERAGEIF(C305:C316,">0",S305:S316), IF(FORECAST($C302,S$305:S$316,$C$305:$C$316)<0,0, IF(FORECAST($C302,S$305:S$316,$C$305:$C$316)>100,100, FORECAST($C302,S$305:S$316,$C$305:$C$316)))) -> 4.919753661 | W302: =IF(MAX(C305:C316)-MIN(C305:C316)<5,AVERAGEIF(C305:C316,">0",W305:W316), IF(FORECAST($C302,W$305:W$316,$C$305:$C$316)<0,0, IF(FORECAST($C302,W$305:W$316,$C$305:$C$316)>100,100, FORECAST($C302,W$305:W$316,$C$305:$C$316)))) -> 80.67013768 | X302: =IF(MAX(C305:C316)-MIN(C305:C316)<5,AVERAGEIF(C305:C316,">0",X305:X316), IF(FORECAST($C302,X$305:X$316,$C$305:$C$316)<0,0, IF(FORECAST($C302,X$305:X$316,$C$305:$C$316)>100,100, FORECAST($C302,X$305:X$316,$C$305:$C$316)))) -> 13.08083397 | AB302: =IF(MAX(C305:C316)-MIN(C305:C316)<5,AVERAGEIF(C305:C316,">0",AB305:AB316), IF(FORECAST($C302,AB$305:AB$316,$C$305:$C$316)<0,0, IF(FORECAST($C302,AB$305:AB$316,$C$305:$C$316)>100,100, FORECAST($C302,AB$305:AB$316,$C$305:$C$316)))) -> 62.90704144
B304: Survey | C304: Year | D304: Improved | E304: Not shared | H304: Open defecation | I304: Improved | J304: Not shared | M304: Open defecation | N304: Improved | O304: Not shared | R304: Open defecation | S304: Improved | T304: Not shared | W304: Open defecation | X304: Improved | Y304: Not shared | AB304: Open defecation
B305: WHS03 | C305: 2003 | D305: =IF(ISERROR(INDIRECT(CONCATENATE($B305,"!M122"))),"",INDIRECT(CONCATENATE($B305,"!M122"))) -> 3.586767773 | E305: =IF(ISERROR(INDIRECT(CONCATENATE($B305,"!M129"))),"",INDIRECT(CONCATENATE($B305,"!M129"))) -> 26.21566118 | H305: =IF(ISERROR(INDIRECT(CONCATENATE($B305,"!M127"))),"",INDIRECT(CONCATENATE($B305,"!M127"))) -> 93.25316723 | I305: =IF(ISERROR(INDIRECT(CONCATENATE($B305,"!N122"))),"",INDIRECT(CONCATENATE($B305,"!N122"))) -> 5.032586137 | J305: =IF(ISERROR(INDIRECT(CONCATENATE($B305,"!N129"))),"",INDIRECT(CONCATENATE($B305,"!N129"))) -> 45.15540651 | M305: =IF(ISERROR(INDIRECT(CONCATENATE($B305,"!N127"))),"",INDIRECT(CONCATENATE($B305,"!N127"))) -> 87.72738999 | N305: =IF(ISERROR(INDIRECT(CONCATENATE($B305,"!O122"))),"",INDIRECT(CONCATENATE($B305,"!O122"))) -> 8.942350977 | O305: =IF(ISERROR(INDIRECT(CONCATENATE($B305,"!O129"))),"",INDIRECT(CONCATENATE($B305,"!O129"))) -> 37.23025228 | R305: =IF(ISERROR(INDIRECT(CONCATENATE($B305,"!O127"))),"",INDIRECT(CONCATENATE($B305,"!O127"))) -> 83.15172803 | S305: =IF(ISERROR(INDIRECT(CONCATENATE($B305,"!P122"))),"",INDIRECT(CONCATENATE($B305,"!P122"))) -> 10.02893808 | T305: =IF(ISERROR(INDIRECT(CONCATENATE($B305,"!P129"))),"",INDIRECT(CONCATENATE($B305,"!P129"))) -> 37.0383886 | W305: =IF(ISERROR(INDIRECT(CONCATENATE($B305,"!P127"))),"",INDIRECT(CONCATENATE($B305,"!P127"))) -> 64.18904329 | X305: =IF(ISERROR(INDIRECT(CONCATENATE($B305,"!Q122"))),"",INDIRECT(CONCATENATE($B305,"!Q122"))) -> 15.83516637 | Y305: =IF(ISERROR(INDIRECT(CONCATENATE($B305,"!Q129"))),"",INDIRECT(CONCATENATE($B305,"!Q129"))) -> 42.68299095 | AB305: =IF(ISERROR(INDIRECT(CONCATENATE($B305,"!Q2127"))),"",INDIRECT(CONCATENATE($B305,"!Q127"))) -> 59.65709575
B306: DHS04 | C306: 2004 | D306: 0.4524920633 | E306: N/A | H306: 97.21099566 | I306: 1.093502861 | J306: N/A | M306: 94.66222883 | N306: 0.7597760575 | O306: N/A | R306: 85.41743884 | S306: 3.951916405 | T306: N/A | W306: 74.8652642 | X306: 4.69322223 | Y306: N/A | AB306: 77.92683209
B307: MICS10 | C307: 2010 | D307: 1.929096384 | E307: 88.08983468 | H307: 90.34343262 | I307: 1.812971378 | J307: 93.84941018 | M307: 88.63246389 | N307: 2.008510272 | O307: 92.04463516 | R307: 84.72443035 | S307: 3.669377543 | T307: 92.016429 | W307: 78.82995869 | X307: 10.42680853 | Y307: 83.11319085 | AB307: 61.10755042
B308: DHS15 | C308: 2015 | D308: 0.5750177208 | E308: 68.86595438 | H308: 93.19780257 | I308: 1.446499144 | J308: 48.17889776 | M308: 88.88544831 | N308: 2.462377668 | O308: 58.83990648 | R308: 85.26445914 | S308: 3.985117277 | T308: 67.13692343 | W308: 83.10714847 | X308: 10.64282798 | Y308: 68.6229597 | AB308: 69.67575194
B309: MICS19 | C309: 2019 | D309: 2.915028117 | E309: 72.02571692 | H309: 86.76717656 | I309: 5.079761378 | J309: 65.24088 | M309: 83.01313406 | N309: 5.187484544 | O309: 78.17956915 | R309: 80.60852039 | S309: 7.078588778 | T309: 77.00411579 | W309: 74.18945892 | X309: 14.71647847 | Y309: 85.46183533 | AB309: 60.67710952
B318: =CONCATENATE("Rural use of sanitation facilities, ",C299,"–",C300) -> Rural use of sanitation facilities, 2000–2020 | S318: Data points used for regression

Sheet Hygiene
B4: Access to hygiene facilities by wealth quintile (%)
B5: =IF(ISERROR(INDIRECT(CONCATENATE($E$32,"!A2"))),"",INDIRECT(CONCATENATE($E$32,"!A2"))) -> Chad
B7: =CONCATENATE("National ",IF(ISERROR(INDIRECT(CONCATENATE($E$32,"!A2"))),"",INDIRECT(CONCATENATE($E$32,"!A210")))) -> National Access to hygiene facilities | K7: =CONCATENATE("Urban ",IF(ISERROR(INDIRECT(CONCATENATE($E$32,"!A2"))),"",INDIRECT(CONCATENATE($E$32,"!A210")))) -> Urban Access to hygiene facilities | S7: =CONCATENATE("Rural ",IF(ISERROR(INDIRECT(CONCATENATE($E$32,"!A2"))),"",INDIRECT(CONCATENATE($E$32,"!A210")))) -> Rural Access to hygiene facilities
E32: =INDEX(B88:B100,A88) -> MICS19 | G32: =IF(ISERROR(INDIRECT(CONCATENATE($E$32,"!A2"))),"",INDIRECT(CONCATENATE($E$32,"!A2"))) -> Chad | K32: Poorest | N32: Poor | Q32: Middle | T32: Rich | W32: Richest
K33: Basic | L33: Limited | M33: No facility | N33: Basic | O33: Limited | P33: No facility | Q33: Basic | R33: Limited | S33: No facility | T33: Basic | U33: Limited | V33: No facility | W33: Basic | X33: Limited | Y33: No facility
B34: >>> Select Survey : | G34: NATIONAL | J34: =IF(ISERROR(INDIRECT(CONCATENATE(#REF!,"!A2"))),"",INDIRECT(CONCATENATE(#REF!,"!A210"))) ->  | K34: =IF(ISERROR(INDIRECT(CONCATENATE($E$32,"!C222"))),"",INDIRECT(CONCATENATE($E$32,"!C222"))) -> 22.50196729 | L34: =IF(ISERROR(INDIRECT(CONCATENATE($E$32,"!C223"))),"",INDIRECT(CONCATENATE($E$32,"!C223"))) -> 27.95018747 | M34: =IF(ISERROR(INDIRECT(CONCATENATE($E$32,"!C224"))),"",INDIRECT(CONCATENATE($E$32,"!C224"))) -> 49.54784524 | N34: =IF(ISERROR(INDIRECT(CONCATENATE($E$32,"!D222"))),"",INDIRECT(CONCATENATE($E$32,"!D222"))) -> 26.78226602 | O34: =IF(ISERROR(INDIRECT(CONCATENATE($E$32,"!D223"))),"",INDIRECT(CONCATENATE($E$32,"!D223"))) -> 26.07438118 | P34: =IF(ISERROR(INDIRECT(CONCATENATE($E$32,"!D224"))),"",INDIRECT(CONCATENATE($E$32,"!D224"))) -> 47.1433528 | Q34: =IF(ISERROR(INDIRECT(CONCATENATE($E$32,"!E222"))),"",INDIRECT(CONCATENATE($E$32,"!E222"))) -> 28.83405628 | R34: =IF(ISERROR(INDIRECT(CONCATENATE($E$32,"!E223"))),"",INDIRECT(CONCATENATE($E$32,"!E223"))) -> 24.86245487 | S34: =IF(ISERROR(INDIRECT(CONCATENATE($E$32,"!E224"))),"",INDIRECT(CONCATENATE($E$32,"!E224"))) -> 46.30348886 | T34: =IF(ISERROR(INDIRECT(CONCATENATE($E$32,"!F222"))),"",INDIRECT(CONCATENATE($E$32,"!F222"))) -> 35.53329975 | U34: =IF(ISERROR(INDIRECT(CONCATENATE($E$32,"!F223"))),"",INDIRECT(CONCATENATE($E$32,"!F223"))) -> 21.26418915 | V34: =IF(ISERROR(INDIRECT(CONCATENATE($E$32,"!F224"))),"",INDIRECT(CONCATENATE($E$32,"!F224"))) -> 43.2025111 | W34: =IF(ISERROR(INDIRECT(CONCATENATE($E$32,"!G222"))),"",INDIRECT(CONCATENATE($E$32,"!G222"))) -> 48.06430342 | X34: =IF(ISERROR(INDIRECT(CONCATENATE($E$32,"!G223"))),"",INDIRECT(CONCATENATE($E$32,"!G223"))) -> 17.98325625 | Y34: =IF(ISERROR(INDIRECT(CONCATENATE($E$32,"!G224"))),"",INDIRECT(CONCATENATE($E$32,"!G224"))) -> 33.95244033
G37: URBAN | J37: =IF(ISERROR(INDIRECT(CONCATENATE(#REF!,"!A2"))),"",INDIRECT(CONCATENATE(#REF!,"!A210"))) ->  | K37: =IF(ISERROR(INDIRECT(CONCATENATE($E$32,"!H222"))),"",INDIRECT(CONCATENATE($E$32,"!H222"))) -> 31.88239485 | L37: =IF(ISERROR(INDIRECT(CONCATENATE($E$32,"!H223"))),"",INDIRECT(CONCATENATE($E$32,"!H223"))) -> 22.87523413 | M37: =IF(ISERROR(INDIRECT(CONCATENATE($E$32,"!H224"))),"",INDIRECT(CONCATENATE($E$32,"!H224"))) -> 45.24237102 | N37: =IF(ISERROR(INDIRECT(CONCATENATE($E$32,"!I222"))),"",INDIRECT(CONCATENATE($E$32,"!I222"))) -> 38.65529463 | O37: =IF(ISERROR(INDIRECT(CONCATENATE($E$32,"!I223"))),"",INDIRECT(CONCATENATE($E$32,"!I223"))) -> 25.02047782 | P37: =IF(ISERROR(INDIRECT(CONCATENATE($E$32,"!I224"))),"",INDIRECT(CONCATENATE($E$32,"!I224"))) -> 36.32422754 | Q37: =IF(ISERROR(INDIRECT(CONCATENATE($E$32,"!J222"))),"",INDIRECT(CONCATENATE($E$32,"!J222"))) -> 43.0290769 | R37: =IF(ISERROR(INDIRECT(CONCATENATE($E$32,"!J223"))),"",INDIRECT(CONCATENATE($E$32,"!J223"))) -> 18.18588659 | S37: =IF(ISERROR(INDIRECT(CONCATENATE($E$32,"!J224"))),"",INDIRECT(CONCATENATE($E$32,"!J224"))) -> 38.78503651 | T37: =IF(ISERROR(INDIRECT(CONCATENATE($E$32,"!K222"))),"",INDIRECT(CONCATENATE($E$32,"!K222"))) -> 50.50954752 | U37: =IF(ISERROR(INDIRECT(CONCATENATE($E$32,"!K223"))),"",INDIRECT(CONCATENATE($E$32,"!K223"))) -> 23.42752777 | V37: =IF(ISERROR(INDIRECT(CONCATENATE($E$32,"!K224"))),"",INDIRECT(CONCATENATE($E$32,"!K224"))) -> 26.06292471 | W37: =IF(ISERROR(INDIRECT(CONCATENATE($E$32,"!L222"))),"",INDIRECT(CONCATENATE($E$32,"!L222"))) -> 65.8710941 | X37: =IF(ISERROR(INDIRECT(CONCATENATE($E$32,"!L223"))),"",INDIRECT(CONCATENATE($E$32,"!L223"))) -> 15.8218557 | Y37: =IF(ISERROR(INDIRECT(CONCATENATE($E$32,"!L224"))),"",INDIRECT(CONCATENATE($E$32,"!L224"))) -> 18.30705021
G40: RURAL | J40: =IF(ISERROR(INDIRECT(CONCATENATE(#REF!,"!A2"))),"",INDIRECT(CONCATENATE(#REF!,"!A210"))) ->  | K40: =IF(ISERROR(INDIRECT(CONCATENATE($E$32,"!M222"))),"",INDIRECT(CONCATENATE($E$32,"!M222"))) -> 21.25033955 | L40: =IF(ISERROR(INDIRECT(CONCATENATE($E$32,"!M223"))),"",INDIRECT(CONCATENATE($E$32,"!M223"))) -> 27.38939903 | M40: =IF(ISERROR(INDIRECT(CONCATENATE($E$32,"!M224"))),"",INDIRECT(CONCATENATE($E$32,"!M224"))) -> 51.36026142 | N40: =IF(ISERROR(INDIRECT(CONCATENATE($E$32,"!N222"))),"",INDIRECT(CONCATENATE($E$32,"!N222"))) -> 25.62767892 | O40: =IF(ISERROR(INDIRECT(CONCATENATE($E$32,"!N223"))),"",INDIRECT(CONCATENATE($E$32,"!N223"))) -> 26.94446881 | P40: =IF(ISERROR(INDIRECT(CONCATENATE($E$32,"!N224"))),"",INDIRECT(CONCATENATE($E$32,"!N224"))) -> 47.42785227 | Q40: =IF(ISERROR(INDIRECT(CONCATENATE($E$32,"!O222"))),"",INDIRECT(CONCATENATE($E$32,"!O222"))) -> 27.41846349 | R40: =IF(ISERROR(INDIRECT(CONCATENATE($E$32,"!O223"))),"",INDIRECT(CONCATENATE($E$32,"!O223"))) -> 25.59425905 | S40: =IF(ISERROR(INDIRECT(CONCATENATE($E$32,"!O224"))),"",INDIRECT(CONCATENATE($E$32,"!O224"))) -> 46.98727746 | T40: =IF(ISERROR(INDIRECT(CONCATENATE($E$32,"!P222"))),"",INDIRECT(CONCATENATE($E$32,"!P222"))) -> 32.47740133 | U40: =IF(ISERROR(INDIRECT(CONCATENATE($E$32,"!P223"))),"",INDIRECT(CONCATENATE($E$32,"!P223"))) -> 24.43349294 | V40: =IF(ISERROR(INDIRECT(CONCATENATE($E$32,"!P224"))),"",INDIRECT(CONCATENATE($E$32,"!P224"))) -> 43.08910572 | W40: =IF(ISERROR(INDIRECT(CONCATENATE($E$32,"!Q222"))),"",INDIRECT(CONCATENATE($E$32,"!Q222"))) -> 39.01904655 | X40: =IF(ISERROR(INDIRECT(CONCATENATE($E$32,"!Q223"))),"",INDIRECT(CONCATENATE($E$32,"!Q223"))) -> 16.80273687 | Y40: =IF(ISERROR(INDIRECT(CONCATENATE($E$32,"!Q224"))),"",INDIRECT(CONCATENATE($E$32,"!Q224"))) -> 44.17821658
A88: 5 | B88: WHS03
B89: DHS04
B90: MICS10
B91: DHS15
B92: MICS19
B93: Input
B94: Template

Sheet WHS03
A2: =A1026 -> Chad
A3: =A1034 -> 2003
A4: Use of drinking water sources
A5: by wealth quintile and sub-national region
A6: Notes:
A7: WHO/UNICEF JMP customised wealth index excludes water,
A8: sanitation and hygiene assets.
A9: Survey used for analysis: | B9: =A1025 -> WHS03
A10: =B1028 -> 
A11: =B1027 -> 
A14: Use of drinking water sources | C14: NATIONAL wealth index quintile | H14: URBAN wealth index quintile | M14: RURAL wealth index quintile | BA14: Raw numbers of respondents: | BB14: Use of drinking water sources | BC14: NATIONAL wealth index quintile | BH14: URBAN wealth index quintile | BM14: RURAL wealth index quintile
A15: Weighted percentage (used in graphs) | C15: Poorest | D15: Poor | E15: Middle | F15: Rich | G15: Richest | H15: Poorest | I15: Poor | J15: Middle | K15: Rich | L15: Richest | M15: Poorest | N15: Poor | O15: Middle | P15: Rich | Q15: Richest | BA15: Water data, raw numbers (weighted) | BC15: Poorest | BD15: Poor | BE15: Middle | BF15: Rich | BG15: Richest | BH15: Poorest | BI15: Poor | BJ15: Middle | BK15: Rich | BL15: Richest | BM15: Poorest | BN15: Poor | BO15: Middle | BP15: Rich | BQ15: Richest
A16: Water | B16: Improved | C16: 37.35956634 | D16: 50.09793662 | E16: 47.93275272 | F16: 50.64463132 | G16: 70.13541088 | H16: 70.91790759 | I16: 77.75178021 | J16: 74.49914821 | K16: 72.29423031 | L16: 85.61851998 | M16: 36.1676473 | N16: 48.03885594 | O16: 48.46945854 | P16: 41.89195861 | Q16: 51.10199481 | BA16: Water | BB16: Improved | BC16: N/A | BD16: N/A | BE16: N/A | BF16: N/A | BG16: N/A | BH16: N/A | BI16: N/A | BJ16: N/A | BK16: N/A | BL16: N/A | BM16: N/A | BN16: N/A | BO16: N/A | BP16: N/A | BQ16: N/A
B17: Not Improved | C17: 62.64043366 | D17: 49.90206338 | E17: 52.06724728 | F17: 49.35536868 | G17: 29.86458912 | H17: 29.08209241 | I17: 22.24821979 | J17: 25.50085179 | K17: 27.70576969 | L17: 14.38148002 | M17: 63.8323527 | N17: 51.96114406 | O17: 51.53054146 | P17: 58.10804139 | Q17: 48.89800519 | BB17: Not Improved | BC17: N/A | BD17: N/A | BE17: N/A | BF17: N/A | BG17: N/A | BH17: N/A | BI17: N/A | BJ17: N/A | BK17: N/A | BL17: N/A | BM17: N/A | BN17: N/A | BO17: N/A | BP17: N/A | BQ17: N/A
A18: Water ladder | B18: Basic | C18: =C16*C23/100 -> 25.95259618 | D18: =D16*D23/100 -> 37.0278553 | E18: =E16*E23/100 -> 38.49376048 | F18: 40.89489322 | G18: 63.45264849 | H18: 63.16972045 | I18: 72.83883044 | J18: 71.11327894 | K18: 70.38421815 | L18: 83.8925514 | M18: 25.00988518 | N18: 34.6173138 | O18: 37.61844104 | P18: 32.66886247 | Q18: 38.3201016 | BA18: Water ladder | BB18: Basic | BC18: N/A | BD18: N/A | BE18: N/A | BF18: N/A | BG18: N/A | BH18: N/A | BI18: N/A | BJ18: N/A | BK18: N/A | BL18: N/A | BM18: N/A | BN18: N/A | BO18: N/A | BP18: N/A | BQ18: N/A
B19: Limited | C19: =C16*C22/100 -> 11.40697016 | D19: =D16*D22/100 -> 13.07008131 | E19: =E16*E22/100 -> 9.438992244 | F19: 9.749738102 | G19: 6.68276239 | H19: 7.748187135 | I19: 4.912949776 | J19: 3.385869272 | K19: 1.910012154 | L19: 1.725968587 | M19: 11.15776212 | N19: 13.42154215 | O19: 10.8510175 | P19: 9.223096146 | Q19: 12.78189321 | BB19: Limited | BC19: N/A | BD19: N/A | BE19: N/A | BF19: N/A | BG19: N/A | BH19: N/A | BI19: N/A | BJ19: N/A | BK19: N/A | BL19: N/A | BM19: N/A | BN19: N/A | BO19: N/A | BP19: N/A | BQ19: N/A
B20: Unimproved | C20: =100-C18-C19-C21 -> 62.52550706 | D20: =100-D18-D19-D21 -> 49.69339081 | E20: =100-E18-E19-E21 -> 51.39177295 | F20: 47.87998584 | G20: 26.30848185 | H20: 25.69888636 | I20: 16.96096541 | J20: 20.93349716 | K20: 19.42739084 | L20: 9.674308042 | M20: 63.68950696 | N20: 51.96114406 | O20: 51.28218692 | P20: 57.51443434 | Q20: 48.63573207 | BB20: Unimproved | BC20: N/A | BD20: N/A | BE20: N/A | BF20: N/A | BG20: N/A | BH20: N/A | BI20: N/A | BJ20: N/A | BK20: N/A | BL20: N/A | BM20: N/A | BN20: N/A | BO20: N/A | BP20: N/A | BQ20: N/A
B21: Surface water | C21: 0.1149265996 | D21: 0.2086725753 | E21: 0.6754743261 | F21: 1.475382845 | G21: 3.55610727 | H21: 3.383206055 | I21: 5.287254376 | J21: 4.567354634 | K21: 8.278378855 | L21: 4.707171973 | M21: 0.1428457347 | N21: 0 | O21: 0.2483545339 | P21: 0.5936070487 | Q21: 0.2622731169 | BB21: Surface water | BC21: N/A | BD21: N/A | BE21: N/A | BF21: N/A | BG21: N/A | BH21: N/A | BI21: N/A | BJ21: N/A | BK21: N/A | BL21: N/A | BM21: N/A | BN21: N/A | BO21: N/A | BP21: N/A | BQ21: N/A
A22: Improved water point at more than 30 minutes | B22: Yes | C22: 30.53292979 | D22: 26.08906114 | E22: 19.69215559 | F22: 19.25127669 | G22: 9.528371341 | H22: 10.92557211 | I22: 6.318761786 | J22: 4.544842933 | K22: 2.641998048 | L22: 2.015882297 | M22: 30.85011869 | N22: 27.93892961 | O22: 22.38732973 | P22: 22.01638799 | Q22: 25.01251323 | BA22: Improved water point at more than 30 minutes | BB22: Yes | BC22: N/A | BD22: N/A | BE22: N/A | BF22: N/A | BG22: N/A | BH22: N/A | BI22: N/A | BJ22: N/A | BK22: N/A | BL22: N/A | BM22: N/A | BN22: N/A | BO22: N/A | BP22: N/A | BQ22: N/A
B23: No | C23: 69.46707021 | D23: 73.91093886 | E23: 80.30784441 | F23: 80.74872331 | G23: 90.47162866 | H23: 89.07442789 | I23: 93.68123821 | J23: 95.45515707 | K23: 97.35800195 | L23: 97.9841177 | M23: 69.14988131 | N23: 72.06107039 | O23: 77.61267027 | P23: 77.98361201 | Q23: 74.98748677 | BB23: No | BC23: N/A | BD23: N/A | BE23: N/A | BF23: N/A | BG23: N/A | BH23: N/A | BI23: N/A | BJ23: N/A | BK23: N/A | BL23: N/A | BM23: N/A | BN23: N/A | BO23: N/A | BP23: N/A | BQ23: N/A
A24: Manually calculated ratios | B24: Improved wells
B25: Improved springs
B26: Other
C27: NATIONAL wealth index quintile | H27: URBAN wealth index quintile | M27: RURAL wealth index quintile | BA27: Raw numbers of respondents: | BB27: Use of drinking water sources | BC27: NATIONAL wealth index quintile | BH27: URBAN wealth index quintile | BM27: RURAL wealth index quintile
A28: Percentage based on weighted population | C28: Poorest | D28: Poor | E28: Middle | F28: Rich | G28: Richest | H28: Poorest | I28: Poor | J28: Middle | K28: Rich | L28: Richest | M28: Poorest | N28: Poor | O28: Middle | P28: Rich | Q28: Richest | BA28: Water data, raw numbers (weighted) | BC28: Poorest | BD28: Poor | BE28: Middle | BF28: Rich | BG28: Richest | BH28: Poorest | BI28: Poor | BJ28: Middle | BK28: Rich | BL28: Richest | BM28: Poorest | BN28: Poor | BO28: Middle | BP28: Rich | BQ28: Richest
A29: Piped water | B29: Yes | C29: 7.377558755 | D29: 15.18827156 | E29: 18.35619665 | F29: 26.26030616 | G29: 50.90482706 | H29: 51.02326149 | I29: 63.07665449 | J29: 64.28414103 | K29: 60.16187814 | L29: 73.39783569 | M29: 6.787782831 | N29: 11.32600245 | O29: 15.62671697 | P29: 15.36806458 | Q29: 21.67536211 | BA29: Piped water | BB29: Yes | BC29: N/A | BD29: N/A | BE29: N/A | BF29: N/A | BG29: N/A | BH29: N/A | BI29: N/A | BJ29: N/A | BK29: N/A | BL29: N/A | BM29: N/A | BN29: N/A | BO29: N/A | BP29: N/A | BQ29: N/A
B30: No | C30: 92.62244125 | D30: 84.81172844 | E30: 81.64380335 | F30: 73.73969384 | G30: 49.09517294 | H30: 48.97673851 | I30: 36.92334551 | J30: 35.71585897 | K30: 39.83812186 | L30: 26.60216431 | M30: 93.21221717 | N30: 88.67399755 | O30: 84.37328303 | P30: 84.63193542 | Q30: 78.32463789 | BB30: No | BC30: N/A | BD30: N/A | BE30: N/A | BF30: N/A | BG30: N/A | BH30: N/A | BI30: N/A | BJ30: N/A | BK30: N/A | BL30: N/A | BM30: N/A | BN30: N/A | BO30: N/A | BP30: N/A | BQ30: N/A
A31: Piped water on premises | B31: Yes | C31: 1.00942778 | D31: 1.503428895 | E31: 1.612804441 | F31: 2.740656927 | G31: 7.978423151 | H31: 4.165197924 | I31: 7.237822052 | J31: 6.909278093 | K31: 9.88312124 | L31: 18.42986237 | M31: 1.077764921 | N31: 1.072786296 | O31: 1.853502026 | P31: 1.53964192 | Q31: 1.543966097 | BA31: Piped water on premises | BB31: Yes | BC31: N/A | BD31: N/A | BE31: N/A | BF31: N/A | BG31: N/A | BH31: N/A | BI31: N/A | BJ31: N/A | BK31: N/A | BL31: N/A | BM31: N/A | BN31: N/A | BO31: N/A | BP31: N/A | BQ31: N/A
B32: No | C32: 98.99057222 | D32: 98.4965711 | E32: 98.38719556 | F32: 97.25934307 | G32: 92.02157685 | H32: 95.83480208 | I32: 92.76217795 | J32: 93.09072191 | K32: 90.11687876 | L32: 81.57013763 | M32: 98.92223508 | N32: 98.9272137 | O32: 98.14649797 | P32: 98.46035808 | Q32: 98.4560339 | BB32: No | BC32: N/A | BD32: N/A | BE32: N/A | BF32: N/A | BG32: N/A | BH32: N/A | BI32: N/A | BJ32: N/A | BK32: N/A | BL32: N/A | BM32: N/A | BN32: N/A | BO32: N/A | BP32: N/A | BQ32: N/A
A33: Piped water into dwelling | B33: Yes | C33: N/A | D33: N/A | E33: N/A | F33: N/A | G33: N/A | H33: N/A | I33: N/A | J33: N/A | K33: N/A | L33: N/A | M33: N/A | N33: N/A | O33: N/A | P33: N/A | Q33: N/A | BA33: Piped water into dwelling | BB33: Yes | BC33: N/A | BD33: N/A | BE33: N/A | BF33: N/A | BG33: N/A | BH33: N/A | BI33: N/A | BJ33: N/A | BK33: N/A | BL33: N/A | BM33: N/A | BN33: N/A | BO33: N/A | BP33: N/A | BQ33: N/A
B34: No | C34: N/A | D34: N/A | E34: N/A | F34: N/A | G34: N/A | H34: N/A | I34: N/A | J34: N/A | K34: N/A | L34: N/A | M34: N/A | N34: N/A | O34: N/A | P34: N/A | Q34: N/A | BB34: No | BC34: N/A | BD34: N/A | BE34: N/A | BF34: N/A | BG34: N/A | BH34: N/A | BI34: N/A | BJ34: N/A | BK34: N/A | BL34: N/A | BM34: N/A | BN34: N/A | BO34: N/A | BP34: N/A | BQ34: N/A
A35: Water source on premises | B35: Yes | C35: N/A | D35: N/A | E35: N/A | F35: N/A | G35: N/A | H35: N/A | I35: N/A | J35: N/A | K35: N/A | L35: N/A | M35: N/A | N35: N/A | O35: N/A | P35: N/A | Q35: N/A | BA35: Water source on premises | BB35: Yes | BC35: N/A | BD35: N/A | BE35: N/A | BF35: N/A | BG35: N/A | BH35: N/A | BI35: N/A | BJ35: N/A | BK35: N/A | BL35: N/A | BM35: N/A | BN35: N/A | BO35: N/A | BP35: N/A | BQ35: N/A
B36: No | C36: N/A | D36: N/A | E36: N/A | F36: N/A | G36: N/A | H36: N/A | I36: N/A | J36: N/A | K36: N/A | L36: N/A | M36: N/A | N36: N/A | O36: N/A | P36: N/A | Q36: N/A | BB36: No | BC36: N/A | BD36: N/A | BE36: N/A | BF36: N/A | BG36: N/A | BH36: N/A | BI36: N/A | BJ36: N/A | BK36: N/A | BL36: N/A | BM36: N/A | BN36: N/A | BO36: N/A | BP36: N/A | BQ36: N/A
A37: Improved Water source on premises | B37: Yes | C37: N/A | D37: N/A | E37: N/A | F37: N/A | G37: N/A | H37: N/A | I37: N/A | J37: N/A | K37: N/A | L37: N/A | M37: N/A | N37: N/A | O37: N/A | P37: N/A | Q37: N/A | BA37: Improved water source on premises | BB37: Yes | BC37: N/A | BD37: N/A | BE37: N/A | BF37: N/A | BG37: N/A | BH37: N/A | BI37: N/A | BJ37: N/A | BK37: N/A | BL37: N/A | BM37: N/A | BN37: N/A | BO37: N/A | BP37: N/A | BQ37: N/A
B38: No | C38: N/A | D38: N/A | E38: N/A | F38: N/A | G38: N/A | H38: N/A | I38: N/A | J38: N/A | K38: N/A | L38: N/A | M38: N/A | N38: N/A | O38: N/A | P38: N/A | Q38: N/A | BB38: No | BC38: N/A | BD38: N/A | BE38: N/A | BF38: N/A | BG38: N/A | BH38: N/A | BI38: N/A | BJ38: N/A | BK38: N/A | BL38: N/A | BM38: N/A | BN38: N/A | BO38: N/A | BP38: N/A | BQ38: N/A
A39: Piped water on premises available when needed | B39: Yes | C39: N/A | D39: N/A | E39: N/A | F39: N/A | G39: N/A | H39: N/A | I39: N/A | J39: N/A | K39: N/A | L39: N/A | M39: N/A | N39: N/A | O39: N/A | P39: N/A | Q39: N/A | BA39: Piped water on premises available when needed | BB39: Yes | BC39: N/A | BD39: N/A | BE39: N/A | BF39: N/A | BG39: N/A | BH39: N/A | BI39: N/A | BJ39: N/A | BK39: N/A | BL39: N/A | BM39: N/A | BN39: N/A | BO39: N/A | BP39: N/A | BQ39: N/A
B40: No | C40: N/A | D40: N/A | E40: N/A | F40: N/A | G40: N/A | H40: N/A | I40: N/A | J40: N/A | K40: N/A | L40: N/A | M40: N/A | N40: N/A | O40: N/A | P40: N/A | Q40: N/A | BB40: No | BC40: N/A | BD40: N/A | BE40: N/A | BF40: N/A | BG40: N/A | BH40: N/A | BI40: N/A | BJ40: N/A | BK40: N/A | BL40: N/A | BM40: N/A | BN40: N/A | BO40: N/A | BP40: N/A | BQ40: N/A
A41: Water point at more than 30 minutes | B41: Yes | C41: 40.10900592 | D41: 27.83203508 | E41: 22.06030552 | F41: 22.32018662 | G41: 10.5430185 | H41: 12.66521969 | I41: 5.975841622 | J41: 5.07294964 | K41: 2.937368587 | L41: 3.902440537 | M41: 41.7600183 | N41: 29.28324484 | O41: 25.70997071 | P41: 23.43761038 | Q41: 24.99949195 | BA41: Water point at more than 30 minutes | BB41: Yes | BC41: N/A | BD41: N/A | BE41: N/A | BF41: N/A | BG41: N/A | BH41: N/A | BI41: N/A | BJ41: N/A | BK41: N/A | BL41: N/A | BM41: N/A | BN41: N/A | BO41: N/A | BP41: N/A | BQ41: N/A
B42: No | C42: 59.89099408 | D42: 72.16796492 | E42: 77.93969448 | F42: 77.67981338 | G42: 89.4569815 | H42: 87.33478031 | I42: 94.02415838 | J42: 94.92705036 | K42: 97.06263141 | L42: 96.09755946 | M42: 58.2399817 | N42: 70.71675516 | O42: 74.29002929 | P42: 76.56238962 | Q42: 75.00050805 | BB42: No | BC42: N/A | BD42: N/A | BE42: N/A | BF42: N/A | BG42: N/A | BH42: N/A | BI42: N/A | BJ42: N/A | BK42: N/A | BL42: N/A | BM42: N/A | BN42: N/A | BO42: N/A | BP42: N/A | BQ42: N/A
A43: Water source available when needed | B43: Yes | C43: N/A | D43: N/A | E43: N/A | F43: N/A | G43: N/A | H43: N/A | I43: N/A | J43: N/A | K43: N/A | L43: N/A | M43: N/A | N43: N/A | O43: N/A | P43: N/A | Q43: N/A | BA43: Water source available when needed | BB43: Yes | BC43: N/A | BD43: N/A | BE43: N/A | BF43: N/A | BG43: N/A | BH43: N/A | BI43: N/A | BJ43: N/A | BK43: N/A | BL43: N/A | BM43: N/A | BN43: N/A | BO43: N/A | BP43: N/A | BQ43: N/A
B44: No | C44: N/A | D44: N/A | E44: N/A | F44: N/A | G44: N/A | H44: N/A | I44: N/A | J44: N/A | K44: N/A | L44: N/A | M44: N/A | N44: N/A | O44: N/A | P44: N/A | Q44: N/A | BB44: No | BC44: N/A | BD44: N/A | BE44: N/A | BF44: N/A | BG44: N/A | BH44: N/A | BI44: N/A | BJ44: N/A | BK44: N/A | BL44: N/A | BM44: N/A | BN44: N/A | BO44: N/A | BP44: N/A | BQ44: N/A
A45: Improved water source available when needed | B45: Yes | C45: N/A | D45: N/A | E45: N/A | F45: N/A | G45: N/A | H45: N/A | I45: N/A | J45: N/A | K45: N/A | L45: N/A | M45: N/A | N45: N/A | O45: N/A | P45: N/A | Q45: N/A | BA45: Improved water source available when needed | BB45: Yes | BC45: N/A | BD45: N/A | BE45: N/A | BF45: N/A | BG45: N/A | BH45: N/A | BI45: N/A | BJ45: N/A | BK45: N/A | BL45: N/A | BM45: N/A | BN45: N/A | BO45: N/A | BP45: N/A | BQ45: N/A
B46: No | C46: N/A | D46: N/A | E46: N/A | F46: N/A | G46: N/A | H46: N/A | I46: N/A | J46: N/A | K46: N/A | L46: N/A | M46: N/A | N46: N/A | O46: N/A | P46: N/A | Q46: N/A | BB46: No | BC46: N/A | BD46: N/A | BE46: N/A | BF46: N/A | BG46: N/A | BH46: N/A | BI46: N/A | BJ46: N/A | BK46: N/A | BL46: N/A | BM46: N/A | BN46: N/A | BO46: N/A | BP46: N/A | BQ46: N/A
A47: Microbiological quality at point of collection | B47: Not contaminated (No E. coli in 100 mL) | C47: N/A | D47: N/A | E47: N/A | F47: N/A | G47: N/A | H47: N/A | I47: N/A | J47: N/A | K47: N/A | L47: N/A | M47: N/A | N47: N/A | O47: N/A | P47: N/A | Q47: N/A | BA47: Microbiological quality at point of collection | BB47: Not contaminated (No E. coli in 100 mL) | BC47: N/A | BD47: N/A | BE47: N/A | BF47: N/A | BG47: N/A | BH47: N/A | BI47: N/A | BJ47: N/A | BK47: N/A | BL47: N/A | BM47: N/A | BN47: N/A | BO47: N/A | BP47: N/A | BQ47: N/A
B48: Contaminated (E. coli detected in 100 mL) | C48: N/A | D48: N/A | E48: N/A | F48: N/A | G48: N/A | H48: N/A | I48: N/A | J48: N/A | K48: N/A | L48: N/A | M48: N/A | N48: N/A | O48: N/A | P48: N/A | Q48: N/A | BB48: Contaminated (E. coli detected in 100 mL) | BC48: N/A | BD48: N/A | BE48: N/A | BF48: N/A | BG48: N/A | BH48: N/A | BI48: N/A | BJ48: N/A | BK48: N/A | BL48: N/A | BM48: N/A | BN48: N/A | BO48: N/A | BP48: N/A | BQ48: N/A
B49: Highly contaminated (>100 CFU/100 mL) | C49: N/A | D49: N/A | E49: N/A | F49: N/A | G49: N/A | H49: N/A | I49: N/A | J49: N/A | K49: N/A | L49: N/A | M49: N/A | N49: N/A | O49: N/A | P49: N/A | Q49: N/A | BB49: Highly contaminated (>100 CFU/100 mL) | BC49: N/A | BD49: N/A | BE49: N/A | BF49: N/A | BG49: N/A | BH49: N/A | BI49: N/A | BJ49: N/A | BK49: N/A | BL49: N/A | BM49: N/A | BN49: N/A | BO49: N/A | BP49: N/A | BQ49: N/A
A50: Microbiological quality of improved water sources at point of collection | B50: Not contaminated (No E. coli in 100 mL) | C50: N/A | D50: N/A | E50: N/A | F50: N/A | G50: N/A | H50: N/A | I50: N/A | J50: N/A | K50: N/A | L50: N/A | M50: N/A | N50: N/A | O50: N/A | P50: N/A | Q50: N/A | BA50: Microbiological quality of improved water sources at point of collection | BB50: Not contaminated (No E. coli in 100 mL) | BC50: N/A | BD50: N/A | BE50: N/A | BF50: N/A | BG50: N/A | BH50: N/A | BI50: N/A | BJ50: N/A | BK50: N/A | BL50: N/A | BM50: N/A | BN50: N/A | BO50: N/A | BP50: N/A | BQ50: N/A
B51: Contaminated (E. coli detected in 100 mL) | C51: N/A | D51: N/A | E51: N/A | F51: N/A | G51: N/A | H51: N/A | I51: N/A | J51: N/A | K51: N/A | L51: N/A | M51: N/A | N51: N/A | O51: N/A | P51: N/A | Q51: N/A | BB51: Contaminated (E. coli detected in 100 mL) | BC51: N/A | BD51: N/A | BE51: N/A | BF51: N/A | BG51: N/A | BH51: N/A | BI51: N/A | BJ51: N/A | BK51: N/A | BL51: N/A | BM51: N/A | BN51: N/A | BO51: N/A | BP51: N/A | BQ51: N/A
B52: Highly contaminated (>100 CFU/100 mL) | C52: N/A | D52: N/A | E52: N/A | F52: N/A | G52: N/A | H52: N/A | I52: N/A | J52: N/A | K52: N/A | L52: N/A | M52: N/A | N52: N/A | O52: N/A | P52: N/A | Q52: N/A | BB52: Highly contaminated (>100 CFU/100 mL) | BC52: N/A | BD52: N/A | BE52: N/A | BF52: N/A | BG52: N/A | BH52: N/A | BI52: N/A | BJ52: N/A | BK52: N/A | BL52: N/A | BM52: N/A | BN52: N/A | BO52: N/A | BP52: N/A | BQ52: N/A
A53: Microbiological quality of piped on premises at point of collection | B53: Not contaminated (No E. coli in 100 mL) | C53: N/A | D53: N/A | E53: N/A | F53: N/A | G53: N/A | H53: N/A | I53: N/A | J53: N/A | K53: N/A | L53: N/A | M53: N/A | N53: N/A | O53: N/A | P53: N/A | Q53: N/A | BA53: Microbiological quality of piped on premises at point of collection | BB53: Not contaminated (No E. coli in 100 mL) | BC53: N/A | BD53: N/A | BE53: N/A | BF53: N/A | BG53: N/A | BH53: N/A | BI53: N/A | BJ53: N/A | BK53: N/A | BL53: N/A | BM53: N/A | BN53: N/A | BO53: N/A | BP53: N/A | BQ53: N/A
B54: Contaminated (E. coli detected in 100 mL) | C54: N/A | D54: N/A | E54: N/A | F54: N/A | G54: N/A | H54: N/A | I54: N/A | J54: N/A | K54: N/A | L54: N/A | M54: N/A | N54: N/A | O54: N/A | P54: N/A | Q54: N/A | BB54: Contaminated (E. coli detected in 100 mL) | BC54: N/A | BD54: N/A | BE54: N/A | BF54: N/A | BG54: N/A | BH54: N/A | BI54: N/A | BJ54: N/A | BK54: N/A | BL54: N/A | BM54: N/A | BN54: N/A | BO54: N/A | BP54: N/A | BQ54: N/A
B55: Highly contaminated (>100 CFU/100 mL) | C55: N/A | D55: N/A | E55: N/A | F55: N/A | G55: N/A | H55: N/A | I55: N/A | J55: N/A | K55: N/A | L55: N/A | M55: N/A | N55: N/A | O55: N/A | P55: N/A | Q55: N/A | BB55: Highly contaminated (>100 CFU/100 mL) | BC55: N/A | BD55: N/A | BE55: N/A | BF55: N/A | BG55: N/A | BH55: N/A | BI55: N/A | BJ55: N/A | BK55: N/A | BL55: N/A | BM55: N/A | BN55: N/A | BO55: N/A | BP55: N/A | BQ55: N/A
C56: NATIONAL wealth index quintile | H56: URBAN wealth index quintile | M56: RURAL wealth index quintile | BA56: Raw numbers of respondents: | BB56: Use of drinking water sources | BC56: NATIONAL wealth index quintile | BH56: URBAN wealth index quintile | BM56: RURAL wealth index quintile
A57: Percentage based on weighted population | C57: Poorest | D57: Poor | E57: Middle | F57: Rich | G57: Richest | H57: Poorest | I57: Poor | J57: Middle | K57: Rich | L57: Richest | M57: Poorest | N57: Poor | O57: Middle | P57: Rich | Q57: Richest | BA57: Water data, raw numbers (weighted) | BC57: Poorest | BD57: Poor | BE57: Middle | BF57: Rich | BG57: Richest | BH57: Poorest | BI57: Poor | BJ57: Middle | BK57: Rich | BL57: Richest | BM57: Poorest | BN57: Poor | BO57: Middle | BP57: Rich | BQ57: Richest
A58: main source of drinking water | B58: Piped water through house connection or yard | C58: 1.02010828 | D58: 1.533109433 | E58: 1.803355845 | F58: 3.086637157 | G58: 8.725751126 | H58: 4.190358443 | I58: 7.434949752 | J58: 7.811358601 | K58: 11.43080023 | L58: 19.49533294 | M58: 1.08832041 | N58: 1.090927814 | O58: 1.898591009 | P58: 1.908774364 | Q58: 1.694168158
B59: Public standpipe | C59: 6.43551056 | D59: 13.95500741 | E59: 18.72160905 | F59: 26.48876717 | G59: 46.94726141 | H59: 47.1411169 | I59: 57.35964637 | J59: 64.86576789 | K59: 58.15231971 | L59: 58.14579185 | M59: 5.765941083 | N59: 10.42660475 | O59: 14.10826731 | P59: 17.14381658 | Q59: 22.08984391
B60: Protected tube well or bore hole | C60: 7.443592562 | D60: 12.29569899 | E60: 12.25047308 | F60: 10.3139117 | G60: 7.31251724 | H60: 7.445938135 | I60: 6.388059006 | J60: 5.206338831 | K60: 9.118998161 | L60: 5.921069951 | M60: 7.325672561 | N60: 11.4234412 | O60: 12.2134987 | P60: 12.21294044 | Q60: 10.41390995
B61: Protected dug well or protected spring | C61: 14.16650295 | D61: 12.24968624 | E61: 13.14838394 | F61: 9.920606412 | G61: 9.626467443 | H61: 11.6381235 | I61: 8.686755152 | J61: 6.342347311 | K61: 4.913258508 | L61: 6.522135134 | M61: 13.205247 | N61: 14.08186731 | O61: 12.47750691 | P61: 11.10403937 | Q61: 13.23108693
B62: Unprotected dug well or spring | C62: 62.12983973 | D62: 48.70359659 | E62: 45.66531813 | F62: 41.34025634 | G62: 19.69026761 | H62: 25.42425613 | I62: 15.04680194 | J62: 10.96957683 | K62: 7.559268504 | L62: 5.136442262 | M62: 63.33460364 | N62: 51.14877558 | O62: 50.10261031 | P62: 47.33925913 | Q62: 43.64576707
B63: Rainwater (into tank or cistern ) | C63: 1.226684853 | D63: 3.522735082 | E63: 1.940735648 | F63: 1.561946768 | G63: 0.660092497 | H63: 0.4653805706 | I63: 0 | J63: 0 | K63: 0 | L63: 0 | M63: 1.389555213 | N63: 3.342454116 | O63: 2.715703362 | P63: 2.035814697 | Q63: 1.502376503
B64: Water taken directly from pond-water or stream | C64: 0.1153017975 | D64: 0.2094385145 | E64: 0.7387172147 | F64: 1.621739624 | G64: 3.604833573 | H64: 3.229445757 | I64: 5.083787787 | J64: 4.804610536 | K64: 8.825354885 | L64: 4.295244212 | M64: 0.1435278297 | N64: 0 | O64: 0.2488449982 | P64: 0.7250955524 | Q64: 0.2808692938
B65: Tanker-truck, vendor | C65: 7.462459268 | D65: 7.530727738 | E65: 5.731407092 | F65: 5.666134825 | G65: 3.432809098 | H65: 0.4653805706 | I65: 0 | J65: 0 | K65: 0 | L65: 0.4839836505 | M65: 7.747132265 | N65: 8.485929234 | O65: 6.234977406 | P65: 7.530259868 | Q65: 7.141978188
A108: =A1026 -> Chad
A109: =A1034 -> 2003
A110: Use of sanitation facilities
A111: by wealth quintile and sub-national region
A112: Notes:
A113: WHO/UNICEF JMP customised wealth index excludes water,
A114: sanitation and hygiene assets.
A115: Survey used for analysis: | B115: =A1025 -> WHS03
A116: =B1030 -> 
A117: =B1029 -> 
A120: Use of sanitation facilities | C120: NATIONAL wealth index quintile | H120: URBAN wealth index quintile | M120: RURAL wealth index quintile | BA120: Raw numbers of respondents: | BB120: Use of sanitation facilities | BC120: NATIONAL wealth index quintile | BH120: URBAN wealth index quintile | BM120: RURAL wealth index quintile
A121: Weighted percentage (used in graphs) | C121: Poorest | D121: Poor | E121: Middle | F121: Rich | G121: Richest | H121: Poorest | I121: Poor | J121: Middle | K121: Rich | L121: Richest | M121: Poorest | N121: Poor | O121: Middle | P121: Rich | Q121: Richest | BA121: Sanitation data, raw numbers (weighted) | BC121: Poorest | BD121: Poor | BE121: Middle | BF121: Rich | BG121: Richest | BH121: Poorest | BI121: Poor | BJ121: Middle | BK121: Rich | BL121: Richest | BM121: Poorest | BN121: Poor | BO121: Middle | BP121: Rich | BQ121: Richest
A122: Sanitation | B122: Improved | C122: 3.516475713 | D122: 7.403497554 | E122: 12.07921589 | F122: 16.87343707 | G122: 33.14939558 | H122: 29.295256 | I122: 38.16196112 | J122: 37.01005533 | K122: 38.15608003 | L122: 51.684137 | M122: 3.586767773 | N122: 5.032586137 | O122: 8.942350977 | P122: 10.02893808 | Q122: 15.83516637 | BA122: Sanitation | BB122: Improved | BC122: 8902.028381 | BD122: 18696.34634 | BE122: 30536.73368 | BF122: 42669.28363 | BG122: 83844.25624 | BH122: 14528.24187 | BI122: 19121.94809 | BJ122: 18141.90975 | BK122: 18977.63732 | BL122: 25637.56473 | BM122: 7288.636322 | BN122: 10246.61783 | BO122: 18141.44133 | BP122: 20405.03496 | BQ122: 32159.61607
B123: Not Improved | C123: 96.48352429 | D123: 92.59650245 | E123: 87.92078411 | F123: 83.12656293 | G123: 66.85060442 | H123: 70.704744 | I123: 61.83803888 | J123: 62.98994467 | K123: 61.84391997 | L123: 48.315863 | M123: 96.41323223 | N123: 94.96741386 | O123: 91.05764902 | P123: 89.97106192 | Q123: 84.16483363 | BB123: Not Improved | BC123: 244249.9655 | BD123: 233837.6244 | BE123: 222267.2063 | BF123: 210209.1515 | BG123: 169084.2053 | BH123: 35064.23096 | BI123: 30985.40365 | BJ123: 30876.95712 | BK123: 30759.22586 | BL123: 23966.75531 | BM123: 195920.4027 | BN123: 193358.7959 | BO123: 184729.6088 | BP123: 183056.5359 | BQ123: 170930.2367
A124: Sanitation ladder | B124: Basic | C124: =C122*C129/100 -> 1.167909983 | D124: =D122*D129/100 -> 3.106474799 | E124: =E122*E129/100 -> 4.852493335 | F124: 7.535607139 | G124: 15.47990214 | H124: 14.50722672 | I124: 16.98546517 | J124: 14.95156624 | K124: 19.32253024 | L124: 29.69286748 | M124: 0.9402948866 | N124: 2.272484728 | O124: 3.329259828 | P124: 3.714557058 | Q124: 6.758922629 | BA124: Sanitation ladder | BB124: Basic | BC124: 4120.701492 | BD124: 8353.262177 | BE124: 14629.37434 | BF124: 20106.34264 | BG124: 42530.40385 | BH124: 6764.744705 | BI124: 8483.35527 | BJ124: 8674.659576 | BK124: 9662.925781 | BL124: 16902.47743 | BM124: 2774.887955 | BN124: 5878.174133 | BO124: 7768.425003 | BP124: 9675.455643 | BQ124: 13154.979
B125: Limited | C125: =C122*C128/100 -> 2.34856573 | D125: =D122*D128/100 -> 4.297022754 | E125: =E122*E128/100 -> 7.226722553 | F125: 9.337829935 | G125: 17.66949344 | H125: 14.78802929 | I125: 21.17649596 | J125: 22.05848909 | K125: 18.83354979 | L125: 21.99126952 | M125: 2.646472886 | N125: 2.760101409 | O125: 5.613091149 | P125: 6.314381021 | Q125: 9.076243743 | BB125: Limited | BC125: 4781.326889 | BD125: 8839.536041 | BE125: 14819.07767 | BF125: 20998.41943 | BG125: 37702.23741 | BH125: 7080.253487 | BI125: 10482.91458 | BJ125: 8960.76165 | BK125: 8808.712837 | BL125: 7906.378403 | BM125: 4513.748367 | BN125: 3510.738098 | BO125: 9616.138763 | BP125: 9456.292221 | BQ125: 16804.65904
B126: Unimproved | C126: =100-C124-C125-C127 -> 4.525414034 | D126: =100-D124-D125-D127 -> 7.672926609 | E126: =100-E124-E125-E127 -> 18.05219352 | F126: 29.23017252 | G126: 42.15088762 | H126: 32.68993069 | I126: 47.15338316 | J126: 58.55017738 | K126: 54.93000916 | L126: 43.52102008 | M126: 3.160064993 | N126: 7.240023874 | O126: 7.905920996 | P126: 25.78201863 | Q126: 24.50773788 | BB126: Unimproved | BC126: 11456.17586 | BD126: 20653.61307 | BE126: 46397.02352 | BF126: 74760.0235 | BG126: 107503.6502 | BH126: 16471.47881 | BI126: 23650.17237 | BJ126: 28723.12041 | BK126: 27355.4478 | BL126: 21628.04137 | BM126: 6421.537704 | BN126: 15493.5233 | BO126: 16668.18172 | BP126: 53273.81091 | BQ126: 51085.17178
B127: Open defecation | C127: 91.95811025 | D127: 84.92357584 | E127: 69.86859059 | F127: 53.89639041 | G127: 24.6997168 | H127: 38.01481331 | I127: 14.68465572 | J127: 4.439767295 | K127: 6.91391081 | L127: 4.794842916 | M127: 93.25316723 | N127: 87.72738999 | O127: 83.15172803 | P127: 64.18904329 | Q127: 59.65709575 | BB127: Open defecation | BC127: 232793.7896 | BD127: 213184.0113 | BE127: 175870.1828 | BF127: 135449.128 | BG127: 61580.55502 | BH127: 18592.75215 | BI127: 7335.231277 | BJ127: 2153.836708 | BK127: 3403.778061 | BL127: 2338.713936 | BM127: 189498.865 | BN127: 177865.2726 | BO127: 168061.4271 | BP127: 129782.725 | BQ127: 119845.0649
A128: Shared among Improved Sanitation | B128: Yes | C128: 66.78748616 | D128: 58.04044268 | E128: 59.82774561 | F128: 55.34041401 | G128: 53.30261121 | H128: 50.47926287 | I128: 55.49111034 | J128: 59.60134047 | K128: 49.35923653 | L128: 42.54936001 | M128: 73.78433882 | N128: 54.84459349 | O128: 62.76974772 | P128: 62.9616114 | Q128: 57.31700905 | BA128: Shared among improved sanitation facilities | BB128: Yes | BC128: N/A | BD128: N/A | BE128: N/A | BF128: N/A | BG128: N/A | BH128: N/A | BI128: N/A | BJ128: N/A | BK128: N/A | BL128: N/A | BM128: N/A | BN128: N/A | BO128: N/A | BP128: N/A | BQ128: N/A
B129: No | C129: 33.21251384 | D129: 41.95955732 | E129: 40.17225439 | F129: 44.65958599 | G129: 46.69738879 | H129: 49.52073713 | I129: 44.50888966 | J129: 40.39865953 | K129: 50.64076347 | L129: 57.45063999 | M129: 26.21566118 | N129: 45.15540651 | O129: 37.23025228 | P129: 37.0383886 | Q129: 42.68299095 | BB129: No | BC129: N/A | BD129: N/A | BE129: N/A | BF129: N/A | BG129: N/A | BH129: N/A | BI129: N/A | BJ129: N/A | BK129: N/A | BL129: N/A | BM129: N/A | BN129: N/A | BO129: N/A | BP129: N/A | BQ129: N/A
A130: Manually calculated ratios | B130: Improved latrines
B131: Other
B132: Other
C133: NATIONAL wealth index quintile | H133: URBAN wealth index quintile | M133: RURAL wealth index quintile | BA133: Raw numbers of respondents: | BB133: Use of sanitation facilities | BC133: NATIONAL wealth index quintile | BH133: URBAN wealth index quintile | BM133: RURAL wealth index quintile
A134: Percentage based on weighted population | C134: Poorest | D134: Poor | E134: Middle | F134: Rich | G134: Richest | H134: Poorest | I134: Poor | J134: Middle | K134: Rich | L134: Richest | M134: Poorest | N134: Poor | O134: Middle | P134: Rich | Q134: Richest | BA134: Sanitation data, raw numbers (weighted) | BC134: Poorest | BD134: Poor | BE134: Middle | BF134: Rich | BG134: Richest | BH134: Poorest | BI134: Poor | BJ134: Middle | BK134: Rich | BL134: Richest | BM134: Poorest | BN134: Poor | BO134: Middle | BP134: Rich | BQ134: Richest
A135: Sanitation type | B135: Sewer connection | C135: 0.4918875395 | D135: 0.243382898 | E135: 1.197593639 | F135: 1.393561764 | G135: 3.034332659 | H135: 2.388555642 | I135: 1.947837731 | J135: 2.659432553 | K135: 3.077026342 | L135: 6.976720568 | M135: 0.5392537873 | N135: 0.2987921207 | O135: 0.6719914257 | P135: 0.9846128751 | Q135: 1.260534054 | BA135: Sanitation type | BB135: Sewer connection | BC135: N/A | BD135: N/A | BE135: N/A | BF135: N/A | BG135: N/A | BH135: N/A | BI135: N/A | BJ135: N/A | BK135: N/A | BL135: N/A | BM135: N/A | BN135: N/A | BO135: N/A | BP135: N/A | BQ135: N/A
B136: Septic tank connection | C136: 0.8349162612 | D136: 1.523048762 | E136: 2.731786772 | F136: 0.9198634656 | G136: 1.714485292 | H136: 4.515299274 | I136: 2.333381019 | J136: 1.585901765 | K136: 2.426871104 | L136: 1.665252359 | M136: 0.728686989 | N136: 0.8207135014 | O136: 2.320131635 | P136: 1.922597888 | Q136: 0.7578541652 | BB136: Septic tank connection | BC136: N/A | BD136: N/A | BE136: N/A | BF136: N/A | BG136: N/A | BH136: N/A | BI136: N/A | BJ136: N/A | BK136: N/A | BL136: N/A | BM136: N/A | BN136: N/A | BO136: N/A | BP136: N/A | BQ136: N/A
B137: Improved latrines | C137: 2.189671912 | D137: 5.637065893 | E137: 8.149835477 | F137: 14.56001184 | G137: 28.40057763 | H137: 22.39140109 | I137: 33.88074237 | J137: 32.76472101 | K137: 32.65218259 | L137: 43.04216408 | M137: 2.318826996 | N137: 3.913080515 | O137: 5.950227916 | P137: 7.121727317 | Q137: 13.81677815 | BB137: Improved latrines | BC137: N/A | BD137: N/A | BE137: N/A | BF137: N/A | BG137: N/A | BH137: N/A | BI137: N/A | BJ137: N/A | BK137: N/A | BL137: N/A | BM137: N/A | BN137: N/A | BO137: N/A | BP137: N/A | BQ137: N/A
B138: Unimproved facilities | C138: 4.525414034 | D138: 8.178548418 | E138: 18.35296694 | F138: 29.56362153 | G138: 42.50357971 | H138: 33.21366704 | I138: 47.19900683 | J138: 58.59605137 | K138: 55.00034793 | L138: 43.60112457 | M138: 3.160064993 | N138: 7.60958317 | O138: 8.216146024 | P138: 26.18372142 | Q138: 25.15397548 | BB138: Unimproved facilities | BC138: N/A | BD138: N/A | BE138: N/A | BF138: N/A | BG138: N/A | BH138: N/A | BI138: N/A | BJ138: N/A | BK138: N/A | BL138: N/A | BM138: N/A | BN138: N/A | BO138: N/A | BP138: N/A | BQ138: N/A
B139: Open defecation | C139: 91.95811025 | D139: 84.41795403 | E139: 69.56781717 | F139: 53.5629414 | G139: 24.34702471 | H139: 37.49107695 | I139: 14.63903204 | J139: 4.393893301 | K139: 6.843572037 | L139: 4.714738422 | M139: 93.25316723 | N139: 87.35783069 | O139: 82.841503 | P139: 63.7873405 | Q139: 59.01085814 | BB139: Open defecation | BC139: N/A | BD139: N/A | BE139: N/A | BF139: N/A | BG139: N/A | BH139: N/A | BI139: N/A | BJ139: N/A | BK139: N/A | BL139: N/A | BM139: N/A | BN139: N/A | BO139: N/A | BP139: N/A | BQ139: N/A
A140: Septic tank emptying practices | B140: Not emptied/treated and disposed in situ | C140: N/A | D140: N/A | E140: N/A | F140: N/A | G140: N/A | H140: N/A | I140: N/A | J140: N/A | K140: N/A | L140: N/A | M140: N/A | N140: N/A | O140: N/A | P140: N/A | Q140: N/A | BA140: Septic tank emptying practices | BB140: Not emptied/treated and disposed in situ | BC140: N/A | BD140: N/A | BE140: N/A | BF140: N/A | BG140: N/A | BH140: N/A | BI140: N/A | BJ140: N/A | BK140: N/A | BL140: N/A | BM140: N/A | BN140: N/A | BO140: N/A | BP140: N/A | BQ140: N/A
B141: Emptied and buried on site | C141: N/A | D141: N/A | E141: N/A | F141: N/A | G141: N/A | H141: N/A | I141: N/A | J141: N/A | K141: N/A | L141: N/A | M141: N/A | N141: N/A | O141: N/A | P141: N/A | Q141: N/A | BB141: Emptied and buried on site | BC141: N/A | BD141: N/A | BE141: N/A | BF141: N/A | BG141: N/A | BH141: N/A | BI141: N/A | BJ141: N/A | BK141: N/A | BL141: N/A | BM141: N/A | BN141: N/A | BO141: N/A | BP141: N/A | BQ141: N/A
B142: Emptied and discharged locally | C142: N/A | D142: N/A | E142: N/A | F142: N/A | G142: N/A | H142: N/A | I142: N/A | J142: N/A | K142: N/A | L142: N/A | M142: N/A | N142: N/A | O142: N/A | P142: N/A | Q142: N/A | BB142: Emptied and discharged locally | BC142: N/A | BD142: N/A | BE142: N/A | BF142: N/A | BG142: N/A | BH142: N/A | BI142: N/A | BJ142: N/A | BK142: N/A | BL142: N/A | BM142: N/A | BN142: N/A | BO142: N/A | BP142: N/A | BQ142: N/A
B143: Emptied and removed offsite | C143: N/A | D143: N/A | E143: N/A | F143: N/A | G143: N/A | H143: N/A | I143: N/A | J143: N/A | K143: N/A | L143: N/A | M143: N/A | N143: N/A | O143: N/A | P143: N/A | Q143: N/A | BB143: Emptied and removed offsite | BC143: N/A | BD143: N/A | BE143: N/A | BF143: N/A | BG143: N/A | BH143: N/A | BI143: N/A | BJ143: N/A | BK143: N/A | BL143: N/A | BM143: N/A | BN143: N/A | BO143: N/A | BP143: N/A | BQ143: N/A
A144: Latrine emptying practices | B144: Not emptied/treated and disposed in situ | C144: N/A | D144: N/A | E144: N/A | F144: N/A | G144: N/A | H144: N/A | I144: N/A | J144: N/A | K144: N/A | L144: N/A | M144: N/A | N144: N/A | O144: N/A | P144: N/A | Q144: N/A | BA144: Latrine emptying practices | BB144: Not emptied/treated and disposed in situ | BC144: N/A | BD144: N/A | BE144: N/A | BF144: N/A | BG144: N/A | BH144: N/A | BI144: N/A | BJ144: N/A | BK144: N/A | BL144: N/A | BM144: N/A | BN144: N/A | BO144: N/A | BP144: N/A | BQ144: N/A
B145: Emptied and buried on site | C145: N/A | D145: N/A | E145: N/A | F145: N/A | G145: N/A | H145: N/A | I145: N/A | J145: N/A | K145: N/A | L145: N/A | M145: N/A | N145: N/A | O145: N/A | P145: N/A | Q145: N/A | BB145: Emptied and buried on site | BC145: N/A | BD145: N/A | BE145: N/A | BF145: N/A | BG145: N/A | BH145: N/A | BI145: N/A | BJ145: N/A | BK145: N/A | BL145: N/A | BM145: N/A | BN145: N/A | BO145: N/A | BP145: N/A | BQ145: N/A
B146: Emptied and discharged locally | C146: N/A | D146: N/A | E146: N/A | F146: N/A | G146: N/A | H146: N/A | I146: N/A | J146: N/A | K146: N/A | L146: N/A | M146: N/A | N146: N/A | O146: N/A | P146: N/A | Q146: N/A | BB146: Emptied and discharged locally | BC146: N/A | BD146: N/A | BE146: N/A | BF146: N/A | BG146: N/A | BH146: N/A | BI146: N/A | BJ146: N/A | BK146: N/A | BL146: N/A | BM146: N/A | BN146: N/A | BO146: N/A | BP146: N/A | BQ146: N/A
B147: Emptied and removed offsite | C147: N/A | D147: N/A | E147: N/A | F147: N/A | G147: N/A | H147: N/A | I147: N/A | J147: N/A | K147: N/A | L147: N/A | M147: N/A | N147: N/A | O147: N/A | P147: N/A | Q147: N/A | BB147: Emptied and removed offsite | BC147: N/A | BD147: N/A | BE147: N/A | BF147: N/A | BG147: N/A | BH147: N/A | BI147: N/A | BJ147: N/A | BK147: N/A | BL147: N/A | BM147: N/A | BN147: N/A | BO147: N/A | BP147: N/A | BQ147: N/A
A148: Shared among improved sanitation facilities | B148: Yes | C148: 7.358283159 | D148: 9.671949003 | E148: 14.80332926 | F148: 19.44904136 | G148: 31.94578505 | H148: 31.56352195 | I148: 42.28716631 | J148: 45.10032146 | K148: 32.75849156 | L148: 34.22534435 | M148: 7.264519094 | N148: 7.004459646 | O148: 13.00095625 | P148: 12.17493099 | Q148: 18.74452984 | BA148: Shared among improved sanitation facilities | BB148: Yes | BC148: N/A | BD148: N/A | BE148: N/A | BF148: N/A | BG148: N/A | BH148: N/A | BI148: N/A | BJ148: N/A | BK148: N/A | BL148: N/A | BM148: N/A | BN148: N/A | BO148: N/A | BP148: N/A | BQ148: N/A
B149: No | C149: 3.659174724 | D149: 6.992205431 | E149: 9.939921731 | F149: 15.69533135 | G149: 27.98708564 | H149: 30.96417785 | I149: 33.91813225 | J149: 30.56965693 | K149: 33.60900896 | L149: 46.21145738 | M149: 2.581092062 | N149: 5.767008242 | O149: 7.71118092 | P149: 7.162139202 | Q149: 13.95872901 | BB149: No | BC149: N/A | BD149: N/A | BE149: N/A | BF149: N/A | BG149: N/A | BH149: N/A | BI149: N/A | BJ149: N/A | BK149: N/A | BL149: N/A | BM149: N/A | BN149: N/A | BO149: N/A | BP149: N/A | BQ149: N/A
B150: DK/missing | C150: 88.98254212 | D150: 83.33584557 | E150: 75.25674901 | F150: 64.85562729 | G150: 40.06712932 | H150: 37.47230019 | I150: 23.79470144 | J150: 24.33002161 | K150: 33.63249948 | L150: 19.56319828 | M150: 90.15438884 | N150: 87.22853211 | O150: 79.28786283 | P150: 80.66292981 | Q150: 67.29674115 | BB150: DK/missing | BC150: N/A | BD150: N/A | BE150: N/A | BF150: N/A | BG150: N/A | BH150: N/A | BI150: N/A | BJ150: N/A | BK150: N/A | BL150: N/A | BM150: N/A | BN150: N/A | BO150: N/A | BP150: N/A | BQ150: N/A
A151: Shared among all sanitation facilities | B151: Yes | C151: 36.27596801 | D151: 42.6401155 | E151: 40.11715889 | F151: 45.29263163 | G151: 48.32508898 | H151: 51.6115568 | I151: 44.88020836 | J151: 41.61729226 | K151: 52.70941766 | L151: 59.38703646 | M151: 29.71371403 | N151: 46.4027033 | O151: 37.07670934 | P151: 34.68773122 | Q151: 44.25118009 | BA151: Shared among all sanitation facilities | BB151: Yes | BC151: N/A | BD151: N/A | BE151: N/A | BF151: N/A | BG151: N/A | BH151: N/A | BI151: N/A | BJ151: N/A | BK151: N/A | BL151: N/A | BM151: N/A | BN151: N/A | BO151: N/A | BP151: N/A | BQ151: N/A
B152: No | C152: 63.72403199 | D152: 57.3598845 | E152: 59.88284111 | F152: 54.70736837 | G152: 51.67491102 | H152: 48.3884432 | I152: 55.11979164 | J152: 58.38270774 | K152: 47.29058234 | L152: 40.61296354 | M152: 70.28628597 | N152: 53.5972967 | O152: 62.92329066 | P152: 65.31226878 | Q152: 55.74881991 | BB152: No | BC152: N/A | BD152: N/A | BE152: N/A | BF152: N/A | BG152: N/A | BH152: N/A | BI152: N/A | BJ152: N/A | BK152: N/A | BL152: N/A | BM152: N/A | BN152: N/A | BO152: N/A | BP152: N/A | BQ152: N/A
A153: What type of toilet facilities | B153: Flush to piped sewage system | C153: 0.4930739829 | D153: 0.2459397159 | E153: 1.318926476 | F153: 1.572693285 | G153: 3.308736975 | H153: 2.400208056 | I153: 2.007188241 | J153: 2.972085369 | K153: 3.541690723 | L153: 7.441018596 | M153: 0.540100883 | N153: 0.3018393486 | O153: 0.679817918 | P153: 1.210338554 | Q153: 1.376544045 | BA153: What type of toilet facilities | BB153: Flush to piped sewage system | BC153: 1245.223114 | BD153: 614.6244965 | BE153: 3027.563904 | BF153: 3524.017181 | BG153: 7674.69091 | BH153: 1184.543808 | BI153: 976.009903 | BJ153: 1303.623703 | BK153: 1530.416382 | BL153: 3460.754799 | BM153: 1095.812439 | BN153: 608.3569336 | BO153: 1363.276062 | BP153: 2003.308823 | BQ153: 2560.016754
B154: Flush to septic tank | C154: 0.8369300973 | D154: 1.539048894 | E154: 3.008554642 | F154: 1.038104757 | G154: 1.869531629 | H154: 4.537326868 | I154: 2.404479013 | J154: 1.772346295 | K154: 2.793354986 | L154: 1.776074252 | M154: 0.729831659 | N154: 0.8290835384 | O154: 2.347153546 | P154: 2.363359658 | Q154: 0.8276013133 | BB154: Flush to septic tank | BC154: 2113.607162 | BD154: 3846.215515 | BE154: 6906.06459 | BF154: 2326.136337 | BG154: 4336.421272 | BH154: 2239.248566 | BI154: 1169.195435 | BJ154: 777.3910751 | BK154: 1207.049561 | BL154: 826.0371094 | BM154: 1480.757828 | BN154: 1671.01712 | BO154: 4706.875412 | BP154: 3911.747864 | BQ154: 1539.124908
B155: Pour flush latrine | C155: 0 | D155: 0.8160128422 | E155: 0.4761404646 | F155: 0.5843805587 | G155: 1.668012847 | H155: 0.8576333583 | I155: 0.4791571771 | J155: 0.8019977809 | K155: 2.035190994 | L155: 4.106328621 | M155: 0 | N155: 0.3171541527 | O155: 1.032123907 | P155: 0.3861676181 | Q155: 0.6265670762 | BB155: Pour flush latrine | BC155: 0 | BD155: 2039.286255 | BE155: 1092.968948 | BF155: 1309.452484 | BG155: 3868.993858 | BH155: 423.2567596 | BI155: 232.9936676 | BJ155: 351.7743225 | BK155: 879.4358063 | BL155: 1909.818703 | BM155: 0 | BN155: 639.2239075 | BO155: 2069.774536 | BP155: 639.1707458 | BQ155: 1165.253098
B156: Covered dry latrine (with privacy) | C156: 2.194953448 | D156: 4.880272294 | E156: 8.499386324 | F156: 15.84720752 | G156: 29.300919 | H156: 21.64300272 | I156: 34.43392959 | J156: 35.8146661 | K156: 35.54782563 | L156: 41.80027465 | M156: 2.322469564 | N156: 3.635833868 | O156: 4.987404614 | P156: 8.368238669 | Q156: 14.46180252 | BB156: Covered dry latrine (with privacy) | BC156: 5543.198105 | BD156: 12196.22008 | BE156: 19510.13624 | BF156: 35509.67763 | BG156: 67964.1502 | BH156: 10681.19274 | BI156: 16743.74908 | BJ156: 15709.12065 | BK156: 15360.73557 | BL156: 19440.95412 | BM156: 4712.066055 | BN156: 7328.019867 | BO156: 10001.51532 | BP156: 13850.80753 | BQ156: 26895.22131
B157: Uncovered dry latrine (without privacy) | C157: 3.27601129 | D157: 4.777622375 | E157: 6.647082067 | F157: 14.53517538 | G157: 24.78848057 | H157: 23.4232689 | I157: 33.69439922 | J157: 28.73113347 | K157: 28.63043328 | L157: 27.76873861 | M157: 2.668558312 | N157: 4.576156103 | O157: 4.076829614 | P157: 6.661108351 | Q157: 13.90920419 | BB157: Uncovered dry latrine (without privacy) | BC157: 8273.332443 | BD157: 11939.6891 | BE157: 15258.21651 | BF157: 32569.73769 | BG157: 57497.4463 | BH157: 11559.78461 | BI157: 16384.14706 | BJ157: 12602.12341 | BK157: 12371.62913 | BL157: 12915.00541 | BM157: 5414.246643 | BN157: 9223.23848 | BO157: 8175.489456 | BP157: 11025.22685 | BQ157: 25867.53099
B158: Bucket latrine (where fresh excreta are manually removed) | C158: 0.9346315919 | D158: 1.412865712 | E158: 1.426621689 | F158: 4.056226468 | G158: 8.718555636 | H158: 8.321988914 | I158: 11.00612501 | J158: 19.84486335 | K158: 11.97348673 | L158: 7.300883458 | M158: 0.3393840747 | N158: 1.15305207 | O158: 1.313978878 | P158: 1.099925605 | Q158: 2.299794802 | BB158: Bucket latrine (where fresh excreta are manually removed) | BC158: 2360.345306 | BD158: 3530.872894 | BE158: 3274.775665 | BF158: 9089.001587 | BG158: 20222.88873 | BH158: 4107.044144 | BI158: 5351.808456 | BJ158: 8704.404831 | BK158: 5173.918808 | BL158: 3395.579132 | BM158: 688.5774536 | BN158: 2323.975403 | BO158: 2634.993729 | BP158: 1820.557281 | BQ158: 4277.024948
B159: No facilities (open defecation) | C159: 92.17991521 | D159: 85.30479258 | E159: 76.61600144 | F159: 60.44804074 | G159: 26.5488033 | H159: 37.67397473 | I159: 15.08508256 | J159: 4.910455795 | K159: 7.877025707 | L159: 5.028502422 | M159: 93.39965551 | N159: 88.2487485 | O159: 83.80633433 | P159: 78.41079417 | Q159: 64.44176985 | BB159: No facilities (open defecation) | BC159: 232793.7896 | BD159: 213184.0113 | BE159: 175870.1828 | BF159: 135449.128 | BG159: 61580.55502 | BH159: 18592.75215 | BI159: 7335.231277 | BJ159: 2153.836708 | BK159: 3403.778061 | BL159: 2338.713936 | BM159: 189498.865 | BN159: 177865.2726 | BO159: 168061.4271 | BP159: 129782.725 | BQ159: 119845.0649
B160: Other | C160: 0.08448438113 | D160: 1.02344559 | E160: 2.007286894 | F160: 1.918171298 | G160: 3.796960041 | H160: 1.142596453 | I160: 0.8896391899 | J160: 5.152451845 | K160: 7.600991942 | L160: 4.778179386 | M160: 0 | N160: 0.938132418 | O160: 1.756357189 | P160: 1.500067377 | Q160: 2.056716203 | BB160: Other | BC160: 213.3592682 | BD160: 2557.678528 | BE160: 4607.678635 | BF160: 4298.148071 | BG160: 8807.135452 | BH160: 563.8909302 | BI160: 432.5935364 | BJ160: 2259.981636 | BK160: 3284.499832 | BL160: 2222.29081 | BM160: 0 | BN160: 1890.805038 | BO160: 3522.119156 | BP160: 2482.857544 | BQ160: 3824.961472
BB161: Total | BC161: 252542.855 | BD161: 249908.5982 | BE161: 229547.5872 | BF161: 224075.299 | BG161: 231952.2817 | BH161: 49351.71371 | BI161: 48625.72842 | BJ161: 43862.25634 | BK161: 43211.46315 | BL161: 46509.15401 | BM161: 202890.3254 | BN161: 201549.9094 | BO161: 200535.4707 | BP161: 165516.4016 | BQ161: 185974.1984
A208: =A1026 -> Chad
A209: =A1034 -> 2003
A210: Access to hygiene facilities
A211: by wealth quintile and sub-national region
A212: Notes:
A213: WHO/UNICEF JMP customised wealth index excludes water,
A214: sanitation and hygiene assets.
A215: Survey used for analysis: | B215: =A1025 -> WHS03
A220: Access to handwashing | C220: NATIONAL wealth index quintile | H220: URBAN wealth index quintile | M220: RURAL wealth index quintile | BA220: Raw numbers of respondents: | BB220: Access to handwashing | BC220: NATIONAL wealth index quintile | BH220: URBAN wealth index quintile | BM220: RURAL wealth index quintile
A221: Weighted percentage (used in graphs) | C221: Poorest | D221: Poor | E221: Middle | F221: Rich | G221: Richest | H221: Poorest | I221: Poor | J221: Middle | K221: Rich | L221: Richest | M221: Poorest | N221: Poor | O221: Middle | P221: Rich | Q221: Richest | BA221: Hygiene data, raw numbers (weighted) | BC221: Poorest | BD221: Poor | BE221: Middle | BF221: Rich | BG221: Richest | BH221: Poorest | BI221: Poor | BJ221: Middle | BK221: Rich | BL221: Richest | BM221: Poorest | BN221: Poor | BO221: Middle | BP221: Rich | BQ221: Richest
A222: Hygiene ladder | B222: Basic | C222: N/A | D222: N/A | E222: N/A | F222: N/A | G222: N/A | H222: N/A | I222: N/A | J222: N/A | K222: N/A | L222: N/A | M222: N/A | N222: N/A | O222: N/A | P222: N/A | Q222: N/A | BA222: Hygiene ladder | BB222: Basic | BC222: N/A | BD222: N/A | BE222: N/A | BF222: N/A | BG222: N/A | BH222: N/A | BI222: N/A | BJ222: N/A | BK222: N/A | BL222: N/A | BM222: N/A | BN222: N/A | BO222: N/A | BP222: N/A | BQ222: N/A
B223: Limited | C223: N/A | D223: N/A | E223: N/A | F223: N/A | G223: N/A | H223: N/A | I223: N/A | J223: N/A | K223: N/A | L223: N/A | M223: N/A | N223: N/A | O223: N/A | P223: N/A | Q223: N/A | BB223: Limited | BC223: N/A | BD223: N/A | BE223: N/A | BF223: N/A | BG223: N/A | BH223: N/A | BI223: N/A | BJ223: N/A | BK223: N/A | BL223: N/A | BM223: N/A | BN223: N/A | BO223: N/A | BP223: N/A | BQ223: N/A
B224: No facility | C224: N/A | D224: N/A | E224: N/A | F224: N/A | G224: N/A | H224: N/A | I224: N/A | J224: N/A | K224: N/A | L224: N/A | M224: N/A | N224: N/A | O224: N/A | P224: N/A | Q224: N/A | BB224: No facility | BC224: N/A | BD224: N/A | BE224: N/A | BF224: N/A | BG224: N/A | BH224: N/A | BI224: N/A | BJ224: N/A | BK224: N/A | BL224: N/A | BM224: N/A | BN224: N/A | BO224: N/A | BP224: N/A | BQ224: N/A
BA225: Observed handwashing place | BB225: Fixed | BC225: N/A | BD225: N/A | BE225: N/A | BF225: N/A | BG225: N/A | BH225: N/A | BI225: N/A | BJ225: N/A | BK225: N/A | BL225: N/A | BM225: N/A | BN225: N/A | BO225: N/A | BP225: N/A | BQ225: N/A
BB226: Mobile | BC226: N/A | BD226: N/A | BE226: N/A | BF226: N/A | BG226: N/A | BH226: N/A | BI226: N/A | BJ226: N/A | BK226: N/A | BL226: N/A | BM226: N/A | BN226: N/A | BO226: N/A | BP226: N/A | BQ226: N/A
BA227: Water / Soap | BB227: Water and soap | BC227: N/A | BD227: N/A | BE227: N/A | BF227: N/A | BG227: N/A | BH227: N/A | BI227: N/A | BJ227: N/A | BK227: N/A | BL227: N/A | BM227: N/A | BN227: N/A | BO227: N/A | BP227: N/A | BQ227: N/A
BB228: Water only | BC228: N/A | BD228: N/A | BE228: N/A | BF228: N/A | BG228: N/A | BH228: N/A | BI228: N/A | BJ228: N/A | BK228: N/A | BL228: N/A | BM228: N/A | BN228: N/A | BO228: N/A | BP228: N/A | BQ228: N/A
BB229: Soap only | BC229: N/A | BD229: N/A | BE229: N/A | BF229: N/A | BG229: N/A | BH229: N/A | BI229: N/A | BJ229: N/A | BK229: N/A | BL229: N/A | BM229: N/A | BN229: N/A | BO229: N/A | BP229: N/A | BQ229: N/A
BB230: Neither | BC230: N/A | BD230: N/A | BE230: N/A | BF230: N/A | BG230: N/A | BH230: N/A | BI230: N/A | BJ230: N/A | BK230: N/A | BL230: N/A | BM230: N/A | BN230: N/A | BO230: N/A | BP230: N/A | BQ230: N/A
BA259: Raw numbers of respondents: | BB259: Menstrual health and hygiene | BC259: NATIONAL wealth index quintile | BH259: URBAN wealth index quintile | BM259: RURAL wealth index quintile
BA260: MHH data, raw numbers (weighted) | BC260: Poorest | BD260: Poor | BE260: Middle | BF260: Rich | BG260: Richest | BH260: Poorest | BI260: Poor | BJ260: Middle | BK260: Rich | BL260: Richest | BM260: Poorest | BN260: Poor | BO260: Middle | BP260: Rich | BQ260: Richest
BA261: Private place to wash and change | BB261: Yes | BC261: N/A | BD261: N/A | BE261: N/A | BF261: N/A | BG261: N/A | BH261: N/A | BI261: N/A | BJ261: N/A | BK261: N/A | BL261: N/A | BM261: N/A | BN261: N/A | BO261: N/A | BP261: N/A | BQ261: N/A
BB262: No | BC262: N/A | BD262: N/A | BE262: N/A | BF262: N/A | BG262: N/A | BH262: N/A | BI262: N/A | BJ262: N/A | BK262: N/A | BL262: N/A | BM262: N/A | BN262: N/A | BO262: N/A | BP262: N/A | BQ262: N/A
BB263: DK/not sure/missing | BC263: N/A | BD263: N/A | BE263: N/A | BF263: N/A | BG263: N/A | BH263: N/A | BI263: N/A | BJ263: N/A | BK263: N/A | BL263: N/A | BM263: N/A | BN263: N/A | BO263: N/A | BP263: N/A | BQ263: N/A
BA264: Use of menstrual materials | BB264: Materials reusable | BC264: N/A | BD264: N/A | BE264: N/A | BF264: N/A | BG264: N/A | BH264: N/A | BI264: N/A | BJ264: N/A | BK264: N/A | BL264: N/A | BM264: N/A | BN264: N/A | BO264: N/A | BP264: N/A | BQ264: N/A
BB265: Materials not reusable | BC265: N/A | BD265: N/A | BE265: N/A | BF265: N/A | BG265: N/A | BH265: N/A | BI265: N/A | BJ265: N/A | BK265: N/A | BL265: N/A | BM265: N/A | BN265: N/A | BO265: N/A | BP265: N/A | BQ265: N/A
BB266: No materials used | BC266: N/A | BD266: N/A | BE266: N/A | BF266: N/A | BG266: N/A | BH266: N/A | BI266: N/A | BJ266: N/A | BK266: N/A | BL266: N/A | BM266: N/A | BN266: N/A | BO266: N/A | BP266: N/A | BQ266: N/A
BB267: DK/not sure/missing | BC267: N/A | BD267: N/A | BE267: N/A | BF267: N/A | BG267: N/A | BH267: N/A | BI267: N/A | BJ267: N/A | BK267: N/A | BL267: N/A | BM267: N/A | BN267: N/A | BO267: N/A | BP267: N/A | BQ267: N/A
BA268: Use of menstrual materials with private place to wash and change | BB268: Materials reusable | BC268: N/A | BD268: N/A | BE268: N/A | BF268: N/A | BG268: N/A | BH268: N/A | BI268: N/A | BJ268: N/A | BK268: N/A | BL268: N/A | BM268: N/A | BN268: N/A | BO268: N/A | BP268: N/A | BQ268: N/A
BB269: Materials not reusable | BC269: N/A | BD269: N/A | BE269: N/A | BF269: N/A | BG269: N/A | BH269: N/A | BI269: N/A | BJ269: N/A | BK269: N/A | BL269: N/A | BM269: N/A | BN269: N/A | BO269: N/A | BP269: N/A | BQ269: N/A
BB270: No materials used | BC270: N/A | BD270: N/A | BE270: N/A | BF270: N/A | BG270: N/A | BH270: N/A | BI270: N/A | BJ270: N/A | BK270: N/A | BL270: N/A | BM270: N/A | BN270: N/A | BO270: N/A | BP270: N/A | BQ270: N/A
BA271: Awareness of menstruation before menarche | BB271: Yes | BC271: N/A | BD271: N/A | BE271: N/A | BF271: N/A | BG271: N/A | BH271: N/A | BI271: N/A | BJ271: N/A | BK271: N/A | BL271: N/A | BM271: N/A | BN271: N/A | BO271: N/A | BP271: N/A | BQ271: N/A
BB272: No | BC272: N/A | BD272: N/A | BE272: N/A | BF272: N/A | BG272: N/A | BH272: N/A | BI272: N/A | BJ272: N/A | BK272: N/A | BL272: N/A | BM272: N/A | BN272: N/A | BO272: N/A | BP272: N/A | BQ272: N/A
BB273: DK/not sure/missing | BC273: N/A | BD273: N/A | BE273: N/A | BF273: N/A | BG273: N/A | BH273: N/A | BI273: N/A | BJ273: N/A | BK273: N/A | BL273: N/A | BM273: N/A | BN273: N/A | BO273: N/A | BP273: N/A | BQ273: N/A
BA274: Participation in (all) activities during menstruation | BB274: Yes | BC274: N/A | BD274: N/A | BE274: N/A | BF274: N/A | BG274: N/A | BH274: N/A | BI274: N/A | BJ274: N/A | BK274: N/A | BL274: N/A | BM274: N/A | BN274: N/A | BO274: N/A | BP274: N/A | BQ274: N/A
BB275: No | BC275: N/A | BD275: N/A | BE275: N/A | BF275: N/A | BG275: N/A | BH275: N/A | BI275: N/A | BJ275: N/A | BK275: N/A | BL275: N/A | BM275: N/A | BN275: N/A | BO275: N/A | BP275: N/A | BQ275: N/A
BB276: DK/not sure/missing/no such activity | BC276: N/A | BD276: N/A | BE276: N/A | BF276: N/A | BG276: N/A | BH276: N/A | BI276: N/A | BJ276: N/A | BK276: N/A | BL276: N/A | BM276: N/A | BN276: N/A | BO276: N/A | BP276: N/A | BQ276: N/A
BA277: Participation in specific activities during menstruation | BB277: Did not go to school (amongst those usually attending school) | BC277: N/A | BD277: N/A | BE277: N/A | BF277: N/A | BG277: N/A | BH277: N/A | BI277: N/A | BJ277: N/A | BK277: N/A | BL277: N/A | BM277: N/A | BN277: N/A | BO277: N/A | BP277: N/A | BQ277: N/A
BB278: Did not go to work (amongst those who usually work) | BC278: N/A | BD278: N/A | BE278: N/A | BF278: N/A | BG278: N/A | BH278: N/A | BI278: N/A | BJ278: N/A | BK278: N/A | BL278: N/A | BM278: N/A | BN278: N/A | BO278: N/A | BP278: N/A | BQ278: N/A
BB279: Did not participate in social activities | BC279: N/A | BD279: N/A | BE279: N/A | BF279: N/A | BG279: N/A | BH279: N/A | BI279: N/A | BJ279: N/A | BK279: N/A | BL279: N/A | BM279: N/A | BN279: N/A | BO279: N/A | BP279: N/A | BQ279: N/A
BB280: Did not cook food | BC280: N/A | BD280: N/A | BE280: N/A | BF280: N/A | BG280: N/A | BH280: N/A | BI280: N/A | BJ280: N/A | BK280: N/A | BL280: N/A | BM280: N/A | BN280: N/A | BO280: N/A | BP280: N/A | BQ280: N/A
BB281: Did not eat with others | BC281: N/A | BD281: N/A | BE281: N/A | BF281: N/A | BG281: N/A | BH281: N/A | BI281: N/A | BJ281: N/A | BK281: N/A | BL281: N/A | BM281: N/A | BN281: N/A | BO281: N/A | BP281: N/A | BQ281: N/A
BB282: Did not bathe in regular place | BC282: N/A | BD282: N/A | BE282: N/A | BF282: N/A | BG282: N/A | BH282: N/A | BI282: N/A | BJ282: N/A | BK282: N/A | BL282: N/A | BM282: N/A | BN282: N/A | BO282: N/A | BP282: N/A | BQ282: N/A
BB283: Did not participate in other activities | BC283: N/A | BD283: N/A | BE283: N/A | BF283: N/A | BG283: N/A | BH283: N/A | BI283: N/A | BJ283: N/A | BK283: N/A | BL283: N/A | BM283: N/A | BN283: N/A | BO283: N/A | BP283: N/A | BQ283: N/A
BB284: DK/not sure/missing/no such activity | BC284: N/A | BD284: N/A | BE284: N/A | BF284: N/A | BG284: N/A | BH284: N/A | BI284: N/A | BJ284: N/A | BK284: N/A | BL284: N/A | BM284: N/A | BN284: N/A | BO284: N/A | BP284: N/A | BQ284: N/A
BA339: Raw numbers of respondents: | BB339: Basic water, sanitation and hygiene | BC339: NATIONAL wealth index quintile | BH339: URBAN wealth index quintile | BM339: RURAL wealth index quintile
BA340: WatSan data, raw numbers (weighted) | BC340: Poorest | BD340: Poor | BE340: Middle | BF340: Rich | BG340: Richest | BH340: Poorest | BI340: Poor | BJ340: Middle | BK340: Rich | BL340: Richest | BM340: Poorest | BN340: Poor | BO340: Middle | BP340: Rich | BQ340: Richest
BA341: Use of Basic Water Sanitation and Hygiene | BB341: Yes | BC341: N/A | BD341: N/A | BE341: N/A | BF341: N/A | BG341: N/A | BH341: N/A | BI341: N/A | BJ341: N/A | BK341: N/A | BL341: N/A | BM341: N/A | BN341: N/A | BO341: N/A | BP341: N/A | BQ341: N/A
BB342: No | BC342: N/A | BD342: N/A | BE342: N/A | BF342: N/A | BG342: N/A | BH342: N/A | BI342: N/A | BJ342: N/A | BK342: N/A | BL342: N/A | BM342: N/A | BN342: N/A | BO342: N/A | BP342: N/A | BQ342: N/A
BA343: Use of Basic Water and Sanitation | BB343: Yes | BC343: N/A | BD343: N/A | BE343: N/A | BF343: N/A | BG343: N/A | BH343: N/A | BI343: N/A | BJ343: N/A | BK343: N/A | BL343: N/A | BM343: N/A | BN343: N/A | BO343: N/A | BP343: N/A | BQ343: N/A
BB344: No | BC344: N/A | BD344: N/A | BE344: N/A | BF344: N/A | BG344: N/A | BH344: N/A | BI344: N/A | BJ344: N/A | BK344: N/A | BL344: N/A | BM344: N/A | BN344: N/A | BO344: N/A | BP344: N/A | BQ344: N/A
BA345: Use of Basic Water and Hygiene | BB345: Yes | BC345: N/A | BD345: N/A | BE345: N/A | BF345: N/A | BG345: N/A | BH345: N/A | BI345: N/A | BJ345: N/A | BK345: N/A | BL345: N/A | BM345: N/A | BN345: N/A | BO345: N/A | BP345: N/A | BQ345: N/A
BB346: No | BC346: N/A | BD346: N/A | BE346: N/A | BF346: N/A | BG346: N/A | BH346: N/A | BI346: N/A | BJ346: N/A | BK346: N/A | BL346: N/A | BM346: N/A | BN346: N/A | BO346: N/A | BP346: N/A | BQ346: N/A
BA347: Use of Basic Sanitation and Hygiene | BB347: Yes | BC347: N/A | BD347: N/A | BE347: N/A | BF347: N/A | BG347: N/A | BH347: N/A | BI347: N/A | BJ347: N/A | BK347: N/A | BL347: N/A | BM347: N/A | BN347: N/A | BO347: N/A | BP347: N/A | BQ347: N/A
BB348: No | BC348: N/A | BD348: N/A | BE348: N/A | BF348: N/A | BG348: N/A | BH348: N/A | BI348: N/A | BJ348: N/A | BK348: N/A | BL348: N/A | BM348: N/A | BN348: N/A | BO348: N/A | BP348: N/A | BQ348: N/A
BA349: Use of Basic Water | BB349: Yes | BC349: N/A | BD349: N/A | BE349: N/A | BF349: N/A | BG349: N/A | BH349: N/A | BI349: N/A | BJ349: N/A | BK349: N/A | BL349: N/A | BM349: N/A | BN349: N/A | BO349: N/A | BP349: N/A | BQ349: N/A
BB350: No | BC350: N/A | BD350: N/A | BE350: N/A | BF350: N/A | BG350: N/A | BH350: N/A | BI350: N/A | BJ350: N/A | BK350: N/A | BL350: N/A | BM350: N/A | BN350: N/A | BO350: N/A | BP350: N/A | BQ350: N/A
BA351: Use of Basic Sanitation | BB351: Yes | BC351: N/A | BD351: N/A | BE351: N/A | BF351: N/A | BG351: N/A | BH351: N/A | BI351: N/A | BJ351: N/A | BK351: N/A | BL351: N/A | BM351: N/A | BN351: N/A | BO351: N/A | BP351: N/A | BQ351: N/A
BB352: No | BC352: N/A | BD352: N/A | BE352: N/A | BF352: N/A | BG352: N/A | BH352: N/A | BI352: N/A | BJ352: N/A | BK352: N/A | BL352: N/A | BM352: N/A | BN352: N/A | BO352: N/A | BP352: N/A | BQ352: N/A
BA353: Access to Basic Hygiene | BB353: Yes | BC353: N/A | BD353: N/A | BE353: N/A | BF353: N/A | BG353: N/A | BH353: N/A | BI353: N/A | BJ353: N/A | BK353: N/A | BL353: N/A | BM353: N/A | BN353: N/A | BO353: N/A | BP353: N/A | BQ353: N/A
BB354: No | BC354: N/A | BD354: N/A | BE354: N/A | BF354: N/A | BG354: N/A | BH354: N/A | BI354: N/A | BJ354: N/A | BK354: N/A | BL354: N/A | BM354: N/A | BN354: N/A | BO354: N/A | BP354: N/A | BQ354: N/A
C399: INITIAL (national) Wealth Index | H399: URBAN Wealth Index | M399: RURAL Wealth Index
C400: Component Matrix | H400: Component Matrix | M400: Component Matrix
E401: Component | J401: Component | O401: Component
B402: Note: The INITIAL (national) Wealth Index is based on the first component of the Principal Component Analysis (PCA) which has been obtained at national level. The final national-level (NATIONAL) Wealth Index is based on the URBAN and RURAL specific wealth indexes. Regression procedures are used to establish the relationships between the two sets of scores (urban and rural) and the initial (national) wealth factors. This allows best use of the available information for each area and a better precision of the FINAL (NATIONAL) Wealth Index. For dependency reasons, all WASH variables (contained in the generic MICS and DHS scripts) have been excluded from the sets of asset variables used in the PCAs. The PCA can extracts as many components as there are asset variables in the input. Only the first of the components is used to represent the Wealth Index. The scores represent the weights of the asset variables on the Wealth Index (correlations between the variables and the component). The communalities are the proportion of each variable's variance that can be explained by the component. Proportion of explained variance is the part of the model's total variance that is explained by the component. For more information on the procedure used: The DHS Wealth Index, DHS Comparative Reports No. 6, Shea Oscar Rutstein, Kiersten Johnson, ORC Macro International Inc., 2004. The DHS Wealth Index: Approaches for Rural and Urban Areas, Shea O. Rutstein, ORC Macro International Inc., 2008. MICS Methodological Paper No. 4, Review of options for reporting water, sanitation and hygiene coverage by wealth quintile, UNICEF, 2016. | E402: 1 | J402: 1 | O402: 1
C403: Uses wood fuel | E403: 0.6337885488 | H403: Electricity | J403: 0.6466178897 | M403: Uses wood heating | O403: 0.6487916983
C404: Uses wood heating | E404: 0.5477340289 | H404: Television | J404: 0.640670377 | M404: Uses open fire without chimney | O404: 0.6483805728
C405: Permanent Income question 16 | E405: 0.5278426517 | H405: Refrigerator | J405: 0.558866055 | M405: Has thatch wall | O405: 0.5529771414
C406: Television | E406: 0.5119974178 | H406: Mobile telephone | J406: 0.5560259745 | M406: Uses wood fuel | O406: 0.4559869982
C407: Electricity | E407: 0.5088637982 | H407: Fix telephone | J407: 0.5556506263 | M407: Heats house | O407: 0.4296960435
C408: Clock | E408: 0.4825235319 | H408: Has hard floor | J408: -0.5059947279 | M408: Uses open fire without chimney | O408: 0.4270665826
C409: Uses charcoal fuel | E409: -0.4800799414 | H409: Has hearth floor | J409: 0.5017826394 | M409: Bicycle | O409: 0.411520737
C410: Mobile telephone | E410: 0.4588594503 | H410: Clock | J410: 0.4937701842 | M410: Has mud brick wall | O410: -0.3941130595
C411: Permanent Income question 17 | E411: 0.4463079947 | H411: Has cement, brick, stone or wood wall | J411: -0.4610897761 | M411: Bucket | O411: 0.3861521767
C412: Has hard floor | E412: -0.4449192937 | H412: Permanent Income question 16 | J412: 0.4437474321 | M412: Uses charcoal fuel | O412: -0.3754801801
C413: Bucket | E413: 0.4191430162 | H413: Uses wood fuel | J413: 0.4244559521 | M413: Permanent Income question 16 | O413: 0.367386666
C414: Refrigerator | E414: 0.3977129846 | H414: Bicycle | J414: 0.4073448956 | M414: Uses charcoal heating | O414: -0.2932308009
C415: Heats house | E415: 0.3838566411 | H415: Permanent Income question 17 | J415: 0.4056190991 | M415: Permanent Income question 20 | O415: 0.2662704332
C416: Fix telephone | E416: 0.3729199474 | H416: Car | J416: 0.3731406269 | M416: Uses living or sleeping room as kitchen | O416: 0.257430958
C417: Has thatch wall | E417: 0.3693377601 | H417: Has mud brick wall | J417: 0.339311256 | M417: Permanent Income question 17 | O417: 0.2463039996
C418: Bicycle | E418: 0.3659075805 | H418: Uses wood heating | J418: 0.3194181647 | M418: Permanent Income question 19 | O418: 0.2070970949
C419: Uses open fire without chimney | E419: 0.3644596126 | H419: Uses open fire without chimney | J419: 0.2632922053 | M419: Uses open fire with chimney | O419: -0.1866041327
C420: Has cement, brick, stone or wood wall | E420: -0.3202576031 | H420: Computer | J420: 0.2587059018 | M420: Uses separate room as kitchen | O420: -0.1437194121
C421: Uses open fire without chimney | E421: 0.2699224057 | H421: Uses gaz fuel | J421: -0.2481460753 | M421: Has hard floor | O421: -0.1291851977
C422: Car | E422: 0.2622090094 | H422: Uses open fire without chimney | J422: 0.231903015 | M422: Has hearth floor | O422: -0.1291770738
C423: Uses coal fuel | E423: -0.2548700355 | H423: Bucket | J423: 0.2312123699 | M423: Clock | O423: 0.1281376934
... 203 more rows

Sheet DHS04
A2: =A1026 -> Chad
A3: =A1034 -> 2004
A4: Use of drinking water sources
A5: by wealth quintile and sub-national region
A6: Notes:
A7: WHO/UNICEF JMP customised wealth index excludes water,
A8: sanitation and hygiene assets.
A9: Survey used for analysis: | B9: =A1025 -> DHS04
A10: =B1028 -> 
A11: =B1027 -> 
A14: Use of drinking water sources | C14: NATIONAL wealth index quintile | H14: URBAN wealth index quintile | M14: RURAL wealth index quintile | R14: SUB-REGIONS: | BA14: Raw numbers of respondents: | BB14: Use of drinking water sources | BC14: NATIONAL wealth index quintile | BH14: URBAN wealth index quintile | BM14: RURAL wealth index quintile | BR14: SUB-REGIONS:
A15: Weighted percentage (used in graphs) | C15: Poorest | D15: Poor | E15: Middle | F15: Rich | G15: Richest | H15: Poorest | I15: Poor | J15: Middle | K15: Rich | L15: Richest | M15: Poorest | N15: Poor | O15: Middle | P15: Rich | Q15: Richest | R15: B. E. T. | S15: Bar Azoum | T15: Centre Est | U15: Chari Baguirmi | V15: Logone Occidental | W15: Mayo Kebbi | X15: Moyen Chari | Y15: N'Djaména | Z15: Ouaddai Est | BA15: Water data, raw numbers (weighted) | BC15: Poorest | BD15: Poor | BE15: Middle | BF15: Rich | BG15: Richest | BH15: Poorest | BI15: Poor | BJ15: Middle | BK15: Rich | BL15: Richest | BM15: Poorest | BN15: Poor | BO15: Middle | BP15: Rich | BQ15: Richest | BR15: B. E. T. | BS15: Bar Azoum | BT15: Centre Est | BU15: Chari Baguirmi | BV15: Logone Occidental | BW15: Mayo Kebbi | BX15: Moyen Chari | BY15: N'Djaména | BZ15: Ouaddai Est
A16: Water | B16: Improved | C16: 23.27173269 | D16: 32.05349561 | E16: 29.66782124 | F16: 42.61825117 | G16: 68.13770002 | H16: 60.59663239 | I16: 65.06742444 | J16: 71.32393828 | K16: 80.8160938 | L16: 86.10502051 | M16: 20.81085613 | N16: 31.92115496 | O16: 27.23777215 | P16: 26.73067375 | Q16: 45.19315433 | R16: 55.41184349 | S16: 39.85009368 | T16: 21.13161618 | U16: 61.96214054 | V16: 21.94148795 | W16: 43.84234599 | X16: 25.37009978 | Y16: 86.15691781 | Z16: 19.5430322 | BA16: Water | BB16: Improved | BC16: N/A | BD16: N/A | BE16: N/A | BF16: N/A | BG16: N/A | BH16: N/A | BI16: N/A | BJ16: N/A | BK16: N/A | BL16: N/A | BM16: N/A | BN16: N/A | BO16: N/A | BP16: N/A | BQ16: N/A | BR16: N/A | BS16: N/A | BT16: N/A | BU16: N/A | BV16: N/A | BW16: N/A | BX16: N/A | BY16: N/A | BZ16: N/A
B17: Not Improved | C17: 76.72826731 | D17: 67.94650439 | E17: 70.33217876 | F17: 57.38174883 | G17: 31.86229998 | H17: 39.40336761 | I17: 34.93257556 | J17: 28.67606172 | K17: 19.1839062 | L17: 13.89497949 | M17: 79.18914387 | N17: 68.07884504 | O17: 72.76222785 | P17: 73.26932625 | Q17: 54.80684567 | R17: 44.58815651 | S17: 60.14990632 | T17: 78.86838382 | U17: 38.03785946 | V17: 78.05851205 | W17: 56.15765401 | X17: 74.62990022 | Y17: 13.84308219 | Z17: 80.4569678 | BB17: Not Improved | BC17: N/A | BD17: N/A | BE17: N/A | BF17: N/A | BG17: N/A | BH17: N/A | BI17: N/A | BJ17: N/A | BK17: N/A | BL17: N/A | BM17: N/A | BN17: N/A | BO17: N/A | BP17: N/A | BQ17: N/A | BR17: N/A | BS17: N/A | BT17: N/A | BU17: N/A | BV17: N/A | BW17: N/A | BX17: N/A | BY17: N/A | BZ17: N/A
A18: Water ladder | B18: Basic | C18: =C16*C23/100 -> 18.05681123 | D18: =D16*D23/100 -> 23.86131088 | E18: =E16*E23/100 -> 22.60836918 | F18: 32.64515566 | G18: 60.14118433 | H18: 49.89935107 | I18: 56.33041179 | J18: 64.21419291 | K18: 71.41136206 | L18: 82.81038856 | M18: 16.044775 | N18: 23.88800462 | O18: 21.56089075 | P18: 18.2869099 | Q18: 34.13851794 | R18: 44.41641743 | S18: 35.25059741 | T18: 15.04762392 | U18: 53.12011902 | V18: 12.7457598 | W18: 31.86899528 | X18: 22.05657303 | Y18: 80.80371346 | Z18: 14.86831681 | BA18: Water ladder | BB18: Basic | BC18: N/A | BD18: N/A | BE18: N/A | BF18: N/A | BG18: N/A | BH18: N/A | BI18: N/A | BJ18: N/A | BK18: N/A | BL18: N/A | BM18: N/A | BN18: N/A | BO18: N/A | BP18: N/A | BQ18: N/A | BR18: N/A | BS18: N/A | BT18: N/A | BU18: N/A | BV18: N/A | BW18: N/A | BX18: N/A | BY18: N/A | BZ18: N/A
B19: Limited | C19: =C16*C22/100 -> 5.214921456 | D19: =D16*D22/100 -> 8.192184732 | E19: =E16*E22/100 -> 7.059452061 | F19: 9.973095505 | G19: 7.996515692 | H19: 10.69728131 | I19: 8.737012651 | J19: 7.109745373 | K19: 9.404731733 | L19: 3.294631951 | M19: 4.766081129 | N19: 8.033150338 | O19: 5.676881399 | P19: 8.443763849 | Q19: 11.0546364 | R19: 10.99542606 | S19: 4.599496274 | T19: 6.083992257 | U19: 8.842021524 | V19: 9.195728152 | W19: 11.97335072 | X19: 3.313526749 | Y19: 5.353204351 | Z19: 4.674715393 | BB19: Limited | BC19: N/A | BD19: N/A | BE19: N/A | BF19: N/A | BG19: N/A | BH19: N/A | BI19: N/A | BJ19: N/A | BK19: N/A | BL19: N/A | BM19: N/A | BN19: N/A | BO19: N/A | BP19: N/A | BQ19: N/A | BR19: N/A | BS19: N/A | BT19: N/A | BU19: N/A | BV19: N/A | BW19: N/A | BX19: N/A | BY19: N/A | BZ19: N/A
B20: Unimproved | C20: =100-C18-C19-C21 -> 54.93930304 | D20: =100-D18-D19-D21 -> 58.01056174 | E20: =100-E18-E19-E21 -> 62.61472157 | F20: 50.46297088 | G20: 28.79099876 | H20: 37.16883219 | I20: 32.76425861 | J20: 27.06168561 | K20: 18.41210999 | L20: 13.89497949 | M20: 55.33448385 | N20: 56.09270766 | O20: 63.62898528 | P20: 66.71624014 | Q20: 45.97695798 | R20: 38.59915132 | S20: 48.70087177 | T20: 32.41007731 | U20: 30.73331195 | V20: 74.59937327 | W20: 47.28117054 | X20: 69.80955885 | Y20: 13.84308219 | Z20: 71.59077397 | BB20: Unimproved | BC20: N/A | BD20: N/A | BE20: N/A | BF20: N/A | BG20: N/A | BH20: N/A | BI20: N/A | BJ20: N/A | BK20: N/A | BL20: N/A | BM20: N/A | BN20: N/A | BO20: N/A | BP20: N/A | BQ20: N/A | BR20: N/A | BS20: N/A | BT20: N/A | BU20: N/A | BV20: N/A | BW20: N/A | BX20: N/A | BY20: N/A | BZ20: N/A
B21: Surface water | C21: 21.78896427 | D21: 9.935942653 | E21: 7.717457187 | F21: 6.918777952 | G21: 3.071301217 | H21: 2.234535424 | I21: 2.168316949 | J21: 1.614376107 | K21: 0.7717962189 | L21: 0 | M21: 23.85466003 | N21: 11.98613738 | O21: 9.133242565 | P21: 6.553086114 | Q21: 8.829887687 | R21: 5.989005187 | S21: 11.44903455 | T21: 46.45830651 | U21: 7.304547509 | V21: 3.459138773 | W21: 8.876483471 | X21: 4.820341364 | Y21: 0 | Z21: 8.866193835 | BB21: Surface water | BC21: N/A | BD21: N/A | BE21: N/A | BF21: N/A | BG21: N/A | BH21: N/A | BI21: N/A | BJ21: N/A | BK21: N/A | BL21: N/A | BM21: N/A | BN21: N/A | BO21: N/A | BP21: N/A | BQ21: N/A | BR21: N/A | BS21: N/A | BT21: N/A | BU21: N/A | BV21: N/A | BW21: N/A | BX21: N/A | BY21: N/A | BZ21: N/A
A22: Improved water point at more than 30 minutes | B22: Yes | C22: 22.40882329 | D22: 25.55785126 | E22: 23.79497977 | F22: 23.4009966 | G22: 11.73581687 | H22: 17.65326041 | I22: 13.42762946 | J22: 9.968245648 | K22: 11.63720157 | L22: 3.826294833 | M22: 22.90189842 | N22: 25.16560052 | O22: 20.84194466 | P22: 31.58829414 | Q22: 24.46086483 | R22: 19.84309738 | S22: 11.54199614 | T22: 28.79094625 | U22: 14.27003884 | V22: 41.91023039 | W22: 27.31001374 | X22: 13.06075568 | Y22: 6.21331924 | Z22: 23.92011304 | BA22: Improved water point at more than 30 minutes | BB22: Yes | BC22: N/A | BD22: N/A | BE22: N/A | BF22: N/A | BG22: N/A | BH22: N/A | BI22: N/A | BJ22: N/A | BK22: N/A | BL22: N/A | BM22: N/A | BN22: N/A | BO22: N/A | BP22: N/A | BQ22: N/A | BR22: N/A | BS22: N/A | BT22: N/A | BU22: N/A | BV22: N/A | BW22: N/A | BX22: N/A | BY22: N/A | BZ22: N/A
B23: No | C23: 77.59117671 | D23: 74.44214874 | E23: 76.20502023 | F23: 76.5990034 | G23: 88.26418313 | H23: 82.34673959 | I23: 86.57237054 | J23: 90.03175435 | K23: 88.36279843 | L23: 96.17370517 | M23: 77.09810158 | N23: 74.83439948 | O23: 79.15805534 | P23: 68.41170586 | Q23: 75.53913517 | R23: 80.15690262 | S23: 88.45800386 | T23: 71.20905375 | U23: 85.72996116 | V23: 58.08976961 | W23: 72.68998626 | X23: 86.93924432 | Y23: 93.78668076 | Z23: 76.07988696 | BB23: No | BC23: N/A | BD23: N/A | BE23: N/A | BF23: N/A | BG23: N/A | BH23: N/A | BI23: N/A | BJ23: N/A | BK23: N/A | BL23: N/A | BM23: N/A | BN23: N/A | BO23: N/A | BP23: N/A | BQ23: N/A | BR23: N/A | BS23: N/A | BT23: N/A | BU23: N/A | BV23: N/A | BW23: N/A | BX23: N/A | BY23: N/A | BZ23: N/A
A24: Manually calculated ratios | B24: Improved wells
B25: Improved springs
B26: Other
C27: NATIONAL wealth index quintile | H27: URBAN wealth index quintile | M27: RURAL wealth index quintile | R27: SUB-REGIONS: | BA27: Raw numbers of respondents: | BB27: Use of drinking water sources | BC27: NATIONAL wealth index quintile | BH27: URBAN wealth index quintile | BM27: RURAL wealth index quintile | BR27: SUB-REGIONS:
A28: Percentage based on weighted population | C28: Poorest | D28: Poor | E28: Middle | F28: Rich | G28: Richest | H28: Poorest | I28: Poor | J28: Middle | K28: Rich | L28: Richest | M28: Poorest | N28: Poor | O28: Middle | P28: Rich | Q28: Richest | R28: B. E. T. | S28: Bar Azoum | T28: Centre Est | U28: Chari Baguirmi | V28: Logone Occidental | W28: Mayo Kebbi | X28: Moyen Chari | Y28: N'Djaména | Z28: Ouaddai Est | BA28: Water data, raw numbers (weighted) | BC28: Poorest | BD28: Poor | BE28: Middle | BF28: Rich | BG28: Richest | BH28: Poorest | BI28: Poor | BJ28: Middle | BK28: Rich | BL28: Richest | BM28: Poorest | BN28: Poor | BO28: Middle | BP28: Rich | BQ28: Richest | BR28: B. E. T. | BS28: Bar Azoum | BT28: Centre Est | BU28: Chari Baguirmi | BV28: Logone Occidental | BW28: Mayo Kebbi | BX28: Moyen Chari | BY28: N'Djaména | BZ28: Ouaddai Est
A29: Piped water | B29: Yes | C29: 3.216925635 | D29: 3.550390745 | E29: 6.695547589 | F29: 5.66709248 | G29: 36.76910708 | H29: 35.38757466 | I29: 33.9005576 | J29: 39.7312591 | K29: 43.86809009 | L29: 71.48845865 | M29: 3.277460783 | N29: 2.088205801 | O29: 2.371960909 | P29: 2.316403522 | Q29: 1.811515092 | R29: 5.687855404 | S29: 6.944035401 | T29: 6.195933535 | U29: 14.21917199 | V29: 4.902074912 | W29: 7.165316209 | X29: 7.010084863 | Y29: 51.23558463 | Z29: 10.30414568 | BA29: Piped water | BB29: Yes | BC29: N/A | BD29: N/A | BE29: N/A | BF29: N/A | BG29: N/A | BH29: N/A | BI29: N/A | BJ29: N/A | BK29: N/A | BL29: N/A | BM29: N/A | BN29: N/A | BO29: N/A | BP29: N/A | BQ29: N/A | BR29: N/A | BS29: N/A | BT29: N/A | BU29: N/A | BV29: N/A | BW29: N/A | BX29: N/A | BY29: N/A | BZ29: N/A
B30: No | C30: 96.78307437 | D30: 96.44960925 | E30: 93.30445241 | F30: 94.33290752 | G30: 63.23089292 | H30: 64.61242534 | I30: 66.0994424 | J30: 60.2687409 | K30: 56.13190991 | L30: 28.51154135 | M30: 96.72253922 | N30: 97.9117942 | O30: 97.62803909 | P30: 97.68359648 | Q30: 98.18848491 | R30: 94.3121446 | S30: 93.0559646 | T30: 93.80406646 | U30: 85.78082801 | V30: 95.09792509 | W30: 92.83468379 | X30: 92.98991514 | Y30: 48.76441537 | Z30: 89.69585432 | BB30: No | BC30: N/A | BD30: N/A | BE30: N/A | BF30: N/A | BG30: N/A | BH30: N/A | BI30: N/A | BJ30: N/A | BK30: N/A | BL30: N/A | BM30: N/A | BN30: N/A | BO30: N/A | BP30: N/A | BQ30: N/A | BR30: N/A | BS30: N/A | BT30: N/A | BU30: N/A | BV30: N/A | BW30: N/A | BX30: N/A | BY30: N/A | BZ30: N/A
A31: Piped water on premises | B31: Yes | C31: 0.04121812569 | D31: 0.4005028771 | E31: 1.346135399 | F31: 1.427584529 | G31: 19.46208946 | H31: 11.54258614 | I31: 6.963459406 | J31: 10.58426002 | K31: 19.80476896 | L31: 60.54384548 | M31: 0 | N31: 0 | O31: 0 | P31: 0 | Q31: 0 | R31: 4.574696143 | S31: 1.356077616 | T31: 1.405292994 | U31: 2.305301789 | V31: 1.01978428 | W31: 0.5091496047 | X31: 1.774313485 | Y31: 31.37663084 | Z31: 3.903890821 | BA31: Piped water on premises | BB31: Yes | BC31: N/A | BD31: N/A | BE31: N/A | BF31: N/A | BG31: N/A | BH31: N/A | BI31: N/A | BJ31: N/A | BK31: N/A | BL31: N/A | BM31: N/A | BN31: N/A | BO31: N/A | BP31: N/A | BQ31: N/A | BR31: N/A | BS31: N/A | BT31: N/A | BU31: N/A | BV31: N/A | BW31: N/A | BX31: N/A | BY31: N/A | BZ31: N/A
B32: No | C32: 99.95878187 | D32: 99.59949712 | E32: 98.6538646 | F32: 98.57241547 | G32: 80.53791054 | H32: 88.45741386 | I32: 93.03654059 | J32: 89.41573998 | K32: 80.19523104 | L32: 39.45615452 | M32: 100 | N32: 100 | O32: 100 | P32: 100 | Q32: 100 | R32: 95.42530386 | S32: 98.64392238 | T32: 98.59470701 | U32: 97.69469821 | V32: 98.98021572 | W32: 99.4908504 | X32: 98.22568651 | Y32: 68.62336916 | Z32: 96.09610918 | BB32: No | BC32: N/A | BD32: N/A | BE32: N/A | BF32: N/A | BG32: N/A | BH32: N/A | BI32: N/A | BJ32: N/A | BK32: N/A | BL32: N/A | BM32: N/A | BN32: N/A | BO32: N/A | BP32: N/A | BQ32: N/A | BR32: N/A | BS32: N/A | BT32: N/A | BU32: N/A | BV32: N/A | BW32: N/A | BX32: N/A | BY32: N/A | BZ32: N/A
A33: Piped water into dwelling | B33: Yes | C33: N/A | D33: N/A | E33: N/A | F33: N/A | G33: N/A | H33: N/A | I33: N/A | J33: N/A | K33: N/A | L33: N/A | M33: N/A | N33: N/A | O33: N/A | P33: N/A | Q33: N/A | R33: N/A | S33: N/A | T33: N/A | U33: N/A | V33: N/A | W33: N/A | X33: N/A | Y33: N/A | Z33: N/A | BA33: Piped water into dwelling | BB33: Yes | BC33: N/A | BD33: N/A | BE33: N/A | BF33: N/A | BG33: N/A | BH33: N/A | BI33: N/A | BJ33: N/A | BK33: N/A | BL33: N/A | BM33: N/A | BN33: N/A | BO33: N/A | BP33: N/A | BQ33: N/A | BR33: N/A | BS33: N/A | BT33: N/A | BU33: N/A | BV33: N/A | BW33: N/A | BX33: N/A | BY33: N/A | BZ33: N/A
B34: No | C34: N/A | D34: N/A | E34: N/A | F34: N/A | G34: N/A | H34: N/A | I34: N/A | J34: N/A | K34: N/A | L34: N/A | M34: N/A | N34: N/A | O34: N/A | P34: N/A | Q34: N/A | R34: N/A | S34: N/A | T34: N/A | U34: N/A | V34: N/A | W34: N/A | X34: N/A | Y34: N/A | Z34: N/A | BB34: No | BC34: N/A | BD34: N/A | BE34: N/A | BF34: N/A | BG34: N/A | BH34: N/A | BI34: N/A | BJ34: N/A | BK34: N/A | BL34: N/A | BM34: N/A | BN34: N/A | BO34: N/A | BP34: N/A | BQ34: N/A | BR34: N/A | BS34: N/A | BT34: N/A | BU34: N/A | BV34: N/A | BW34: N/A | BX34: N/A | BY34: N/A | BZ34: N/A
A35: Water source on premises | B35: Yes | C35: 0.1507927286 | D35: 0.4005028771 | E35: 1.428607836 | F35: 1.45422401 | G35: 19.65109269 | H35: 11.93482687 | I35: 7.092929197 | J35: 11.12743695 | K35: 19.89731531 | L35: 60.82381552 | M35: 0.1395542909 | N35: 0 | O35: 0 | P35: 0 | Q35: 0 | R35: 4.753597852 | S35: 1.356077616 | T35: 1.405292994 | U35: 2.430098971 | V35: 1.01978428 | W35: 0.5091496047 | X35: 1.774313485 | Y35: 31.82184788 | Z35: 3.989394795 | BA35: Water source on premises | BB35: Yes | BC35: N/A | BD35: N/A | BE35: N/A | BF35: N/A | BG35: N/A | BH35: N/A | BI35: N/A | BJ35: N/A | BK35: N/A | BL35: N/A | BM35: N/A | BN35: N/A | BO35: N/A | BP35: N/A | BQ35: N/A | BR35: N/A | BS35: N/A | BT35: N/A | BU35: N/A | BV35: N/A | BW35: N/A | BX35: N/A | BY35: N/A | BZ35: N/A
B36: No | C36: 99.84920727 | D36: 99.59949712 | E36: 98.57139216 | F36: 98.54577599 | G36: 80.34890731 | H36: 88.06517313 | I36: 92.9070708 | J36: 88.87256305 | K36: 80.10268469 | L36: 39.17618448 | M36: 99.86044571 | N36: 100 | O36: 100 | P36: 100 | Q36: 100 | R36: 95.24640215 | S36: 98.64392238 | T36: 98.59470701 | U36: 97.56990103 | V36: 98.98021572 | W36: 99.4908504 | X36: 98.22568651 | Y36: 68.17815212 | Z36: 96.0106052 | BB36: No | BC36: N/A | BD36: N/A | BE36: N/A | BF36: N/A | BG36: N/A | BH36: N/A | BI36: N/A | BJ36: N/A | BK36: N/A | BL36: N/A | BM36: N/A | BN36: N/A | BO36: N/A | BP36: N/A | BQ36: N/A | BR36: N/A | BS36: N/A | BT36: N/A | BU36: N/A | BV36: N/A | BW36: N/A | BX36: N/A | BY36: N/A | BZ36: N/A
A37: Improved Water source on premises | B37: Yes | C37: 0.6479651972 | D37: 1.249482683 | E37: 4.668616735 | F37: 3.412209489 | G37: 28.8221182 | H37: 19.35386863 | I37: 10.90089128 | J37: 15.51706474 | K37: 24.62048631 | L37: 70.63910461 | M37: 0.6705840934 | N37: 0 | O37: 0 | P37: 0 | Q37: 0 | R37: 8.578667579 | S37: 3.402947121 | T37: 6.65019174 | U37: 3.797965475 | V37: 4.647744411 | W37: 1.161319252 | X37: 6.993718987 | Y37: 36.90095166 | Z37: 20.41338701 | BA37: Improved water source on premises | BB37: Yes | BC37: N/A | BD37: N/A | BE37: N/A | BF37: N/A | BG37: N/A | BH37: N/A | BI37: N/A | BJ37: N/A | BK37: N/A | BL37: N/A | BM37: N/A | BN37: N/A | BO37: N/A | BP37: N/A | BQ37: N/A | BR37: N/A | BS37: N/A | BT37: N/A | BU37: N/A | BV37: N/A | BW37: N/A | BX37: N/A | BY37: N/A | BZ37: N/A
B38: No | C38: 99.3520348 | D38: 98.75051732 | E38: 95.33138327 | F38: 96.58779051 | G38: 71.1778818 | H38: 80.64613137 | I38: 89.09910872 | J38: 84.48293526 | K38: 75.37951369 | L38: 29.36089539 | M38: 99.32941591 | N38: 100 | O38: 100 | P38: 100 | Q38: 100 | R38: 91.42133242 | S38: 96.59705288 | T38: 93.34980826 | U38: 96.20203452 | V38: 95.35225559 | W38: 98.83868075 | X38: 93.00628101 | Y38: 63.09904834 | Z38: 79.58661299 | BB38: No | BC38: N/A | BD38: N/A | BE38: N/A | BF38: N/A | BG38: N/A | BH38: N/A | BI38: N/A | BJ38: N/A | BK38: N/A | BL38: N/A | BM38: N/A | BN38: N/A | BO38: N/A | BP38: N/A | BQ38: N/A | BR38: N/A | BS38: N/A | BT38: N/A | BU38: N/A | BV38: N/A | BW38: N/A | BX38: N/A | BY38: N/A | BZ38: N/A
A39: Piped water on premises available when needed | B39: Yes | C39: N/A | D39: N/A | E39: N/A | F39: N/A | G39: N/A | H39: N/A | I39: N/A | J39: N/A | K39: N/A | L39: N/A | M39: N/A | N39: N/A | O39: N/A | P39: N/A | Q39: N/A | R39: N/A | S39: N/A | T39: N/A | U39: N/A | V39: N/A | W39: N/A | X39: N/A | Y39: N/A | Z39: N/A | BA39: Piped water on premises available when needed | BB39: Yes | BC39: N/A | BD39: N/A | BE39: N/A | BF39: N/A | BG39: N/A | BH39: N/A | BI39: N/A | BJ39: N/A | BK39: N/A | BL39: N/A | BM39: N/A | BN39: N/A | BO39: N/A | BP39: N/A | BQ39: N/A | BR39: N/A | BS39: N/A | BT39: N/A | BU39: N/A | BV39: N/A | BW39: N/A | BX39: N/A | BY39: N/A | BZ39: N/A
B40: No | C40: N/A | D40: N/A | E40: N/A | F40: N/A | G40: N/A | H40: N/A | I40: N/A | J40: N/A | K40: N/A | L40: N/A | M40: N/A | N40: N/A | O40: N/A | P40: N/A | Q40: N/A | R40: N/A | S40: N/A | T40: N/A | U40: N/A | V40: N/A | W40: N/A | X40: N/A | Y40: N/A | Z40: N/A | BB40: No | BC40: N/A | BD40: N/A | BE40: N/A | BF40: N/A | BG40: N/A | BH40: N/A | BI40: N/A | BJ40: N/A | BK40: N/A | BL40: N/A | BM40: N/A | BN40: N/A | BO40: N/A | BP40: N/A | BQ40: N/A | BR40: N/A | BS40: N/A | BT40: N/A | BU40: N/A | BV40: N/A | BW40: N/A | BX40: N/A | BY40: N/A | BZ40: N/A
A41: Water point at more than 30 minutes | B41: Yes | C41: 32.74122737 | D41: 23.94111563 | E41: 18.30868306 | F41: 26.53305809 | G41: 13.37742918 | H41: 15.02318801 | I41: 10.52035265 | J41: 8.710083264 | K41: 10.65604312 | L41: 3.735546995 | M41: 33.65484927 | N41: 23.82978051 | O41: 23.04917639 | P41: 21.65223735 | Q41: 29.49457695 | R41: 31.20343099 | S41: 22.35877797 | T41: 28.59388744 | U41: 28.39607616 | V41: 28.14118198 | W41: 21.11733446 | X41: 7.119207087 | Y41: 5.964875747 | Z41: 27.09211702 | BA41: Water point at more than 30 minutes | BB41: Yes | BC41: N/A | BD41: N/A | BE41: N/A | BF41: N/A | BG41: N/A | BH41: N/A | BI41: N/A | BJ41: N/A | BK41: N/A | BL41: N/A | BM41: N/A | BN41: N/A | BO41: N/A | BP41: N/A | BQ41: N/A | BR41: N/A | BS41: N/A | BT41: N/A | BU41: N/A | BV41: N/A | BW41: N/A | BX41: N/A | BY41: N/A | BZ41: N/A
B42: No | C42: 67.25877263 | D42: 76.05888437 | E42: 81.69131694 | F42: 73.46694191 | G42: 86.62257082 | H42: 84.97681199 | I42: 89.47964735 | J42: 91.28991674 | K42: 89.34395688 | L42: 96.264453 | M42: 66.34515073 | N42: 76.17021949 | O42: 76.95082361 | P42: 78.34776265 | Q42: 70.50542305 | R42: 68.79656901 | S42: 77.64122203 | T42: 71.40611256 | U42: 71.60392384 | V42: 71.85881802 | W42: 78.88266554 | X42: 92.88079291 | Y42: 94.03512425 | Z42: 72.90788298 | BB42: No | BC42: N/A | BD42: N/A | BE42: N/A | BF42: N/A | BG42: N/A | BH42: N/A | BI42: N/A | BJ42: N/A | BK42: N/A | BL42: N/A | BM42: N/A | BN42: N/A | BO42: N/A | BP42: N/A | BQ42: N/A | BR42: N/A | BS42: N/A | BT42: N/A | BU42: N/A | BV42: N/A | BW42: N/A | BX42: N/A | BY42: N/A | BZ42: N/A
A43: Water source available when needed | B43: Yes | C43: N/A | D43: N/A | E43: N/A | F43: N/A | G43: N/A | H43: N/A | I43: N/A | J43: N/A | K43: N/A | L43: N/A | M43: N/A | N43: N/A | O43: N/A | P43: N/A | Q43: N/A | R43: N/A | S43: N/A | T43: N/A | U43: N/A | V43: N/A | W43: N/A | X43: N/A | Y43: N/A | Z43: N/A | BA43: Water source available when needed | BB43: Yes | BC43: N/A | BD43: N/A | BE43: N/A | BF43: N/A | BG43: N/A | BH43: N/A | BI43: N/A | BJ43: N/A | BK43: N/A | BL43: N/A | BM43: N/A | BN43: N/A | BO43: N/A | BP43: N/A | BQ43: N/A | BR43: N/A | BS43: N/A | BT43: N/A | BU43: N/A | BV43: N/A | BW43: N/A | BX43: N/A | BY43: N/A | BZ43: N/A
B44: No | C44: N/A | D44: N/A | E44: N/A | F44: N/A | G44: N/A | H44: N/A | I44: N/A | J44: N/A | K44: N/A | L44: N/A | M44: N/A | N44: N/A | O44: N/A | P44: N/A | Q44: N/A | R44: N/A | S44: N/A | T44: N/A | U44: N/A | V44: N/A | W44: N/A | X44: N/A | Y44: N/A | Z44: N/A | BB44: No | BC44: N/A | BD44: N/A | BE44: N/A | BF44: N/A | BG44: N/A | BH44: N/A | BI44: N/A | BJ44: N/A | BK44: N/A | BL44: N/A | BM44: N/A | BN44: N/A | BO44: N/A | BP44: N/A | BQ44: N/A | BR44: N/A | BS44: N/A | BT44: N/A | BU44: N/A | BV44: N/A | BW44: N/A | BX44: N/A | BY44: N/A | BZ44: N/A
A45: Improved water source available when needed | B45: Yes | C45: N/A | D45: N/A | E45: N/A | F45: N/A | G45: N/A | H45: N/A | I45: N/A | J45: N/A | K45: N/A | L45: N/A | M45: N/A | N45: N/A | O45: N/A | P45: N/A | Q45: N/A | R45: N/A | S45: N/A | T45: N/A | U45: N/A | V45: N/A | W45: N/A | X45: N/A | Y45: N/A | Z45: N/A | BA45: Improved water source available when needed | BB45: Yes | BC45: N/A | BD45: N/A | BE45: N/A | BF45: N/A | BG45: N/A | BH45: N/A | BI45: N/A | BJ45: N/A | BK45: N/A | BL45: N/A | BM45: N/A | BN45: N/A | BO45: N/A | BP45: N/A | BQ45: N/A | BR45: N/A | BS45: N/A | BT45: N/A | BU45: N/A | BV45: N/A | BW45: N/A | BX45: N/A | BY45: N/A | BZ45: N/A
B46: No | C46: N/A | D46: N/A | E46: N/A | F46: N/A | G46: N/A | H46: N/A | I46: N/A | J46: N/A | K46: N/A | L46: N/A | M46: N/A | N46: N/A | O46: N/A | P46: N/A | Q46: N/A | R46: N/A | S46: N/A | T46: N/A | U46: N/A | V46: N/A | W46: N/A | X46: N/A | Y46: N/A | Z46: N/A | BB46: No | BC46: N/A | BD46: N/A | BE46: N/A | BF46: N/A | BG46: N/A | BH46: N/A | BI46: N/A | BJ46: N/A | BK46: N/A | BL46: N/A | BM46: N/A | BN46: N/A | BO46: N/A | BP46: N/A | BQ46: N/A | BR46: N/A | BS46: N/A | BT46: N/A | BU46: N/A | BV46: N/A | BW46: N/A | BX46: N/A | BY46: N/A | BZ46: N/A
A47: Microbiological quality at point of collection | B47: Not contaminated (No E. coli in 100 mL) | C47: N/A | D47: N/A | E47: N/A | F47: N/A | G47: N/A | H47: N/A | I47: N/A | J47: N/A | K47: N/A | L47: N/A | M47: N/A | N47: N/A | O47: N/A | P47: N/A | Q47: N/A | R47: N/A | S47: N/A | T47: N/A | U47: N/A | V47: N/A | W47: N/A | X47: N/A | Y47: N/A | Z47: N/A | BA47: Microbiological quality at point of collection | BB47: Not contaminated (No E. coli in 100 mL) | BC47: N/A | BD47: N/A | BE47: N/A | BF47: N/A | BG47: N/A | BH47: N/A | BI47: N/A | BJ47: N/A | BK47: N/A | BL47: N/A | BM47: N/A | BN47: N/A | BO47: N/A | BP47: N/A | BQ47: N/A | BR47: N/A | BS47: N/A | BT47: N/A | BU47: N/A | BV47: N/A | BW47: N/A | BX47: N/A | BY47: N/A | BZ47: N/A
B48: Contaminated (E. coli detected in 100 mL) | C48: N/A | D48: N/A | E48: N/A | F48: N/A | G48: N/A | H48: N/A | I48: N/A | J48: N/A | K48: N/A | L48: N/A | M48: N/A | N48: N/A | O48: N/A | P48: N/A | Q48: N/A | R48: N/A | S48: N/A | T48: N/A | U48: N/A | V48: N/A | W48: N/A | X48: N/A | Y48: N/A | Z48: N/A | BB48: Contaminated (E. coli detected in 100 mL) | BC48: N/A | BD48: N/A | BE48: N/A | BF48: N/A | BG48: N/A | BH48: N/A | BI48: N/A | BJ48: N/A | BK48: N/A | BL48: N/A | BM48: N/A | BN48: N/A | BO48: N/A | BP48: N/A | BQ48: N/A | BR48: N/A | BS48: N/A | BT48: N/A | BU48: N/A | BV48: N/A | BW48: N/A | BX48: N/A | BY48: N/A | BZ48: N/A
B49: Highly contaminated (>100 CFU/100 mL) | C49: N/A | D49: N/A | E49: N/A | F49: N/A | G49: N/A | H49: N/A | I49: N/A | J49: N/A | K49: N/A | L49: N/A | M49: N/A | N49: N/A | O49: N/A | P49: N/A | Q49: N/A | R49: N/A | S49: N/A | T49: N/A | U49: N/A | V49: N/A | W49: N/A | X49: N/A | Y49: N/A | Z49: N/A | BB49: Highly contaminated (>100 CFU/100 mL) | BC49: N/A | BD49: N/A | BE49: N/A | BF49: N/A | BG49: N/A | BH49: N/A | BI49: N/A | BJ49: N/A | BK49: N/A | BL49: N/A | BM49: N/A | BN49: N/A | BO49: N/A | BP49: N/A | BQ49: N/A | BR49: N/A | BS49: N/A | BT49: N/A | BU49: N/A | BV49: N/A | BW49: N/A | BX49: N/A | BY49: N/A | BZ49: N/A
A50: Microbiological quality of improved water sources at point of collection | B50: Not contaminated (No E. coli in 100 mL) | C50: N/A | D50: N/A | E50: N/A | F50: N/A | G50: N/A | H50: N/A | I50: N/A | J50: N/A | K50: N/A | L50: N/A | M50: N/A | N50: N/A | O50: N/A | P50: N/A | Q50: N/A | R50: N/A | S50: N/A | T50: N/A | U50: N/A | V50: N/A | W50: N/A | X50: N/A | Y50: N/A | Z50: N/A | BA50: Microbiological quality of improved water sources at point of collection | BB50: Not contaminated (No E. coli in 100 mL) | BC50: N/A | BD50: N/A | BE50: N/A | BF50: N/A | BG50: N/A | BH50: N/A | BI50: N/A | BJ50: N/A | BK50: N/A | BL50: N/A | BM50: N/A | BN50: N/A | BO50: N/A | BP50: N/A | BQ50: N/A | BR50: N/A | BS50: N/A | BT50: N/A | BU50: N/A | BV50: N/A | BW50: N/A | BX50: N/A | BY50: N/A | BZ50: N/A
B51: Contaminated (E. coli detected in 100 mL) | C51: N/A | D51: N/A | E51: N/A | F51: N/A | G51: N/A | H51: N/A | I51: N/A | J51: N/A | K51: N/A | L51: N/A | M51: N/A | N51: N/A | O51: N/A | P51: N/A | Q51: N/A | R51: N/A | S51: N/A | T51: N/A | U51: N/A | V51: N/A | W51: N/A | X51: N/A | Y51: N/A | Z51: N/A | BB51: Contaminated (E. coli detected in 100 mL) | BC51: N/A | BD51: N/A | BE51: N/A | BF51: N/A | BG51: N/A | BH51: N/A | BI51: N/A | BJ51: N/A | BK51: N/A | BL51: N/A | BM51: N/A | BN51: N/A | BO51: N/A | BP51: N/A | BQ51: N/A | BR51: N/A | BS51: N/A | BT51: N/A | BU51: N/A | BV51: N/A | BW51: N/A | BX51: N/A | BY51: N/A | BZ51: N/A
B52: Highly contaminated (>100 CFU/100 mL) | C52: N/A | D52: N/A | E52: N/A | F52: N/A | G52: N/A | H52: N/A | I52: N/A | J52: N/A | K52: N/A | L52: N/A | M52: N/A | N52: N/A | O52: N/A | P52: N/A | Q52: N/A | R52: N/A | S52: N/A | T52: N/A | U52: N/A | V52: N/A | W52: N/A | X52: N/A | Y52: N/A | Z52: N/A | BB52: Highly contaminated (>100 CFU/100 mL) | BC52: N/A | BD52: N/A | BE52: N/A | BF52: N/A | BG52: N/A | BH52: N/A | BI52: N/A | BJ52: N/A | BK52: N/A | BL52: N/A | BM52: N/A | BN52: N/A | BO52: N/A | BP52: N/A | BQ52: N/A | BR52: N/A | BS52: N/A | BT52: N/A | BU52: N/A | BV52: N/A | BW52: N/A | BX52: N/A | BY52: N/A | BZ52: N/A
A53: Microbiological quality of piped on premises at point of collection | B53: Not contaminated (No E. coli in 100 mL) | C53: N/A | D53: N/A | E53: N/A | F53: N/A | G53: N/A | H53: N/A | I53: N/A | J53: N/A | K53: N/A | L53: N/A | M53: N/A | N53: N/A | O53: N/A | P53: N/A | Q53: N/A | R53: N/A | S53: N/A | T53: N/A | U53: N/A | V53: N/A | W53: N/A | X53: N/A | Y53: N/A | Z53: N/A | BA53: Microbiological quality of piped on premises at point of collection | BB53: Not contaminated (No E. coli in 100 mL) | BC53: N/A | BD53: N/A | BE53: N/A | BF53: N/A | BG53: N/A | BH53: N/A | BI53: N/A | BJ53: N/A | BK53: N/A | BL53: N/A | BM53: N/A | BN53: N/A | BO53: N/A | BP53: N/A | BQ53: N/A | BR53: N/A | BS53: N/A | BT53: N/A | BU53: N/A | BV53: N/A | BW53: N/A | BX53: N/A | BY53: N/A | BZ53: N/A
B54: Contaminated (E. coli detected in 100 mL) | C54: N/A | D54: N/A | E54: N/A | F54: N/A | G54: N/A | H54: N/A | I54: N/A | J54: N/A | K54: N/A | L54: N/A | M54: N/A | N54: N/A | O54: N/A | P54: N/A | Q54: N/A | R54: N/A | S54: N/A | T54: N/A | U54: N/A | V54: N/A | W54: N/A | X54: N/A | Y54: N/A | Z54: N/A | BB54: Contaminated (E. coli detected in 100 mL) | BC54: N/A | BD54: N/A | BE54: N/A | BF54: N/A | BG54: N/A | BH54: N/A | BI54: N/A | BJ54: N/A | BK54: N/A | BL54: N/A | BM54: N/A | BN54: N/A | BO54: N/A | BP54: N/A | BQ54: N/A | BR54: N/A | BS54: N/A | BT54: N/A | BU54: N/A | BV54: N/A | BW54: N/A | BX54: N/A | BY54: N/A | BZ54: N/A
B55: Highly contaminated (>100 CFU/100 mL) | C55: N/A | D55: N/A | E55: N/A | F55: N/A | G55: N/A | H55: N/A | I55: N/A | J55: N/A | K55: N/A | L55: N/A | M55: N/A | N55: N/A | O55: N/A | P55: N/A | Q55: N/A | R55: N/A | S55: N/A | T55: N/A | U55: N/A | V55: N/A | W55: N/A | X55: N/A | Y55: N/A | Z55: N/A | BB55: Highly contaminated (>100 CFU/100 mL) | BC55: N/A | BD55: N/A | BE55: N/A | BF55: N/A | BG55: N/A | BH55: N/A | BI55: N/A | BJ55: N/A | BK55: N/A | BL55: N/A | BM55: N/A | BN55: N/A | BO55: N/A | BP55: N/A | BQ55: N/A | BR55: N/A | BS55: N/A | BT55: N/A | BU55: N/A | BV55: N/A | BW55: N/A | BX55: N/A | BY55: N/A | BZ55: N/A
C56: NATIONAL wealth index quintile | H56: URBAN wealth index quintile | M56: RURAL wealth index quintile | R56: SUB-REGIONS: | BA56: Raw numbers of respondents: | BB56: Use of drinking water sources | BC56: NATIONAL wealth index quintile | BH56: URBAN wealth index quintile | BM56: RURAL wealth index quintile | BR56: SUB-REGIONS:
A57: Percentage based on weighted population | C57: Poorest | D57: Poor | E57: Middle | F57: Rich | G57: Richest | H57: Poorest | I57: Poor | J57: Middle | K57: Rich | L57: Richest | M57: Poorest | N57: Poor | O57: Middle | P57: Rich | Q57: Richest | R57: B. E. T. | S57: Bar Azoum | T57: Centre Est | U57: Chari Baguirmi | V57: Logone Occidental | W57: Mayo Kebbi | X57: Moyen Chari | Y57: N'Djaména | Z57: Ouaddai Est | BA57: Water data, raw numbers (weighted) | BC57: Poorest | BD57: Poor | BE57: Middle | BF57: Rich | BG57: Richest | BH57: Poorest | BI57: Poor | BJ57: Middle | BK57: Rich | BL57: Richest | BM57: Poorest | BN57: Poor | BO57: Middle | BP57: Rich | BQ57: Richest | BR57: B. E. T. | BS57: Bar Azoum | BT57: Centre Est | BU57: Chari Baguirmi | BV57: Logone Occidental | BW57: Mayo Kebbi | BX57: Moyen Chari | BY57: N'Djaména | BZ57: Ouaddai Est
A58: Source of drinking water | B58: Piped into residence/yard | C58: 0.04121812569 | D58: 0.4005028771 | E58: 1.346135399 | F58: 1.427584529 | G58: 19.46472152 | H58: 11.54258614 | I58: 6.963459406 | J58: 10.58426002 | K58: 19.81775786 | L58: 60.54384548 | M58: 0 | N58: 0 | O58: 0 | P58: 0 | Q58: 0 | R58: 4.574696143 | S58: 1.356077616 | T58: 1.405292994 | U58: 2.305301789 | V58: 1.01978428 | W58: 0.5091496047 | X58: 1.774313485 | Y58: 31.38662844 | Z58: 3.903890821
B59: Public tap | C59: 3.175707509 | D59: 3.149887868 | E59: 5.34941219 | F59: 4.239507951 | G59: 17.30935824 | H59: 23.84498852 | I59: 26.93709819 | J59: 29.14699908 | K59: 24.07910298 | L59: 10.94461318 | M59: 3.277460783 | N59: 2.088205801 | O59: 2.371960909 | P59: 2.316403522 | Q59: 1.811515092 | R59: 1.11315926 | S59: 5.587957786 | T59: 4.790640541 | U59: 11.9138702 | V59: 3.882290632 | W59: 6.656166605 | X59: 5.235771377 | Y59: 19.86528148 | Z59: 6.400254864
B60: Traditional well in the yard | C60: 0.7674171411 | D60: 10.09422908 | E60: 16.0999248 | F60: 9.422396367 | G60: 12.50751664 | H60: 8.271398845 | I60: 13.62069885 | J60: 11.50589221 | K60: 9.676708348 | L60: 11.35519813 | M60: 0.9138662115 | N60: 6.444325408 | O60: 13.01645681 | P60: 19.3353149 | Q60: 7.255983047 | R60: 4.418093218 | S60: 0.8157168071 | T60: 1.114640411 | U60: 4.499363772 | V60: 23.23875529 | W60: 7.109593435 | X60: 16.04381169 | Y60: 9.421693955 | Z60: 0
B61: Traditional public well | C61: 25.87935763 | D61: 37.91041973 | E61: 42.98724992 | F61: 38.1725838 | G61: 13.28449836 | H61: 20.46121375 | I61: 13.48256325 | J61: 8.179883816 | K61: 6.101578381 | L61: 0.6696744248 | M61: 23.03518118 | N61: 38.13172331 | O61: 42.87040107 | P61: 45.09732799 | Q61: 37.34871083 | R61: 33.88327266 | S61: 22.13704629 | T61: 18.37969365 | U61: 23.06278564 | V61: 47.2350163 | W61: 38.18472406 | X61: 47.5319797 | Y61: 1.017080235 | Z61: 21.54287565
B62: Covered well/borehole in the yard | C62: 0.2384567659 | D62: 0.3866616625 | E62: 1.506211778 | F62: 0.5972747345 | G62: 4.578102097 | H62: 0.9364584027 | I62: 3.042276328 | J62: 2.137191803 | K62: 6.26188001 | L62: 3.694305824 | M62: 0.1800181087 | N62: 0.2865420461 | O62: 0.7466568203 | P62: 1.271703107 | Q62: 2.490126117 | R62: 0.1358315702 | S62: 0.2159110181 | T62: 0 | U62: 4.206767098 | V62: 0.4465832366 | W62: 2.727526119 | X62: 0.6310938944 | Y62: 6.029076447 | Z62: 0
B63: Covered well/borehole, public | C63: 18.81281569 | D63: 27.2870268 | E63: 20.10114384 | F63: 34.5603296 | G63: 13.58218029 | H63: 16.65063352 | I63: 13.33265182 | J63: 9.280447761 | K63: 7.456291391 | L63: 1.224629254 | M63: 16.63270487 | N63: 28.50361822 | O63: 24.03767313 | P63: 22.14398018 | Q63: 40.52409898 | R63: 49.27767259 | S63: 30.66668328 | T63: 13.31007304 | U63: 41.19076386 | V63: 13.1803927 | W63: 32.98274498 | X63: 16.68095286 | Y63: 4.70552863 | Z63: 8.703671556
B64: Protected spring | C64: 0.3939660355 | D64: 0.6257266499 | E64: 0.3540678681 | F64: 0.4366166407 | G64: 1.21002609 | H64: 2.049260911 | I64: 0.6239739714 | J64: 0.9117776169 | K64: 3.060224955 | L64: 1.553739166 | M64: 0.456938988 | N64: 0.6322875866 | O64: 0 | P64: 0.4046220365 | Q64: 0.1556390105 | R64: 0.1314840334 | S64: 1.397208098 | T64: 0.1286651038 | U64: 0.2941281405 | V64: 1.430608225 | W64: 0.2646503415 | X64: 0.06768597587 | Y64: 1.17811107 | Z64: 0.2739882727
B65: Non protected spring | C65: 27.60857979 | D65: 8.504296599 | E65: 1.80146098 | F65: 1.726134642 | G65: 0.6783110163 | H65: 1.045079612 | I65: 1.361250559 | J65: 0.8697436268 | K65: 0.1981466848 | L65: 0 | M65: 31.13280178 | N65: 10.0214604 | O65: 6.154108661 | P65: 1.500367159 | Q65: 1.584367053 | R65: 0.02943815408 | S65: 25.48072797 | T65: 11.65485106 | U65: 1.315205435 | V65: 1.439030816 | W65: 1.181406459 | X65: 5.625283575 | Y65: 0 | Z65: 49.14579934
B66: River/stream | C66: 5.372820522 | D66: 3.153385807 | E66: 3.526100896 | F66: 1.590835203 | G66: 0.9281360545 | H66: 1.343806296 | I66: 1.255574472 | J66: 1.003015651 | K66: 0.549252363 | L66: 0 | M66: 5.766141648 | N66: 3.767105489 | O66: 2.836663106 | P66: 3.971870484 | Q66: 0.901041808 | R66: 0.2428629381 | S66: 2.041075513 | T66: 10.44645488 | U66: 2.658333293 | V66: 0.9185303082 | W66: 4.892899405 | X66: 1.844370709 | Y66: 0 | Z66: 5.627650078
B67: Pond/lake | C67: 16.23136781 | D67: 6.723899868 | E67: 3.992416673 | F67: 5.192735129 | G67: 1.630126291 | H67: 0.7388259996 | I67: 0.5395699025 | J67: 0.2551214784 | K67: 0.01886579263 | L67: 0 | M67: 17.98266297 | N67: 8.135483318 | O67: 6.220943597 | P67: 2.458956799 | Q67: 7.690271033 | R67: 5.727286976 | S67: 9.311539056 | T67: 35.31639656 | U67: 4.189090041 | V67: 2.452320019 | W67: 3.67169288 | X67: 2.898296828 | Y67: 0 | Z67: 3.215382892
B68: Rainwater | C68: 0.5316939606 | D68: 0.06196576968 | E68: 0.5031573679 | F68: 0 | G68: 0.07315501835 | H68: 0.02506285058 | I68: 0.3507274961 | J68: 0 | K68: 0 | L68: 0 | M68: 0.2637333723 | N68: 0.4105013068 | O68: 0.08148129178 | P68: 0.5939649005 | Q68: 0 | R68: 0 | S68: 0 | T68: 0.2518070631 | U68: 0.8532380122 | V68: 0.502198415 | W68: 0 | X68: 0 | Y68: 0.01232347502 | Z68: 0
B69: Water merchant from covered well | C69: 0.07787459951 | D69: 0.1417239846 | E69: 0.5076927966 | F69: 1.356937714 | G69: 11.92937175 | H69: 5.547642045 | I69: 13.81723723 | J69: 19.263262 | K69: 20.19383959 | L69: 8.143887618 | M69: 0 | N69: 0 | O69: 0 | P69: 0 | Q69: 0.2117751354 | R69: 0.1789998916 | S69: 0.6262558855 | T69: 1.245137442 | U69: 1.198071438 | V69: 1.479630468 | W69: 0.7021083419 | X69: 0.9802821834 | Y69: 23.00742061 | Z69: 0.2612266848
B70: Water merchant from tradit. well | C70: 0 | D70: 0.07808140374 | E70: 0.1834139395 | F70: 0.2108633107 | G70: 0.3190803595 | H70: 1.865325564 | I70: 0.9963760975 | J70: 0.7378657708 | K70: 0.09846742053 | L70: 0.1126577461 | M70: 0 | N70: 0 | O70: 0 | P70: 0 | Q70: 0 | R70: 0.1988887684 | S70: 0.3638006829 | T70: 0.6294230571 | U70: 0.2716226891 | V70: 0 | W70: 0 | X70: 0.06481448 | Y70: 0.1654674868 | Z70: 0
B71: Water merchant from pond/lake | C71: 0.8687244219 | D71: 0.3506050132 | E71: 0.3818581342 | F71: 0.1262698025 | G71: 0.1668665237 | H71: 0.5676346044 | I71: 0.2768717888 | J71: 0.3998886647 | K71: 0.282694278 | L71: 0.1264337045 | M71: 0.3584900821 | N71: 1.091675685 | O71: 0.5027066398 | P71: 0 | Q71: 0.02647189192 | R71: 0.08831379566 | S71: 0 | T71: 0.7976158302 | U71: 1.472976551 | V71: 0.0126082606 | W71: 1.074484182 | X71: 0.08782717661 | Y71: 0 | Z71: 0
B72: Water merchant from unknown source | C72: 0 | D72: 0 | E72: 0.1426731759 | F72: 0.159163647 | G72: 1.485868902 | H72: 1.211605445 | I72: 1.072123891 | J72: 3.925861372 | K72: 1.944436034 | L72: 0.4965220117 | M72: 0 | N72: 0 | O72: 0 | P72: 0 | Q72: 0 | R72: 0 | S72: 0 | T72: 0 | U72: 0 | V72: 0.5166150402 | W72: 0 | X72: 0.02221296734 | Y72: 1.850472604 | Z72: 0.9252598365
B73: Other | C73: 0 | D73: 1.13158689 | E73: 1.217080235 | F73: 0.7807669308 | G73: 0.852680846 | H73: 3.898477499 | I73: 2.327546737 | J73: 1.798789129 | K73: 0.2607539035 | L73: 1.134493473 | M73: 0 | N73: 0.4870714324 | O73: 1.160947965 | P73: 0.9054889121 | Q73: 0 | R73: 0 | S73: 0 | T73: 0.5293083622 | U73: 0.5684820296 | V73: 2.245636005 | W73: 0.04285358975 | X73: 0.5113030966 | Y73: 1.360915563 | Z73: 0
A108: =A1026 -> Chad
A109: =A1034 -> 2004
A110: Use of sanitation facilities
A111: by wealth quintile and sub-national region
A112: Notes:
A113: WHO/UNICEF JMP customised wealth index excludes water,
A114: sanitation and hygiene assets.
A115: Survey used for analysis: | B115: =A1025 -> DHS04
A116: =B1030 -> Ratio of Improved latrines based on: | B116: MICS10
A117: =B1029 -> Ratio of Shared improved based on: | B117: MICS10
A120: Use of sanitation facilities | C120: NATIONAL wealth index quintile | H120: URBAN wealth index quintile | M120: RURAL wealth index quintile | R120: SUB-REGIONS: | BB120: Use of sanitation facilities | BC120: NATIONAL wealth index quintile | BH120: URBAN wealth index quintile | BM120: RURAL wealth index quintile | BR120: SUB-REGIONS:
A121: Weighted percentage (used in graphs) | C121: Poorest | D121: Poor | E121: Middle | F121: Rich | G121: Richest | H121: Poorest | I121: Poor | J121: Middle | K121: Rich | L121: Richest | M121: Poorest | N121: Poor | O121: Middle | P121: Rich | Q121: Richest | R121: B. E. T. | S121: Bar Azoum | T121: Centre Est | U121: Chari Baguirmi | V121: Logone Occidental | W121: Mayo Kebbi | X121: Moyen Chari | Y121: N'Djaména | Z121: Ouaddai Est | BC121: Poorest | BD121: Poor | BE121: Middle | BF121: Rich | BG121: Richest | BH121: Poorest | BI121: Poor | BJ121: Middle | BK121: Rich | BL121: Richest | BM121: Poorest | BN121: Poor | BO121: Middle | BP121: Rich | BQ121: Richest | BR121: B. E. T. | BS121: Bar Azoum | BT121: Centre Est | BU121: Chari Baguirmi | BV121: Logone Occidental | BW121: Mayo Kebbi | BX121: Moyen Chari | BY121: N'Djaména | BZ121: Ouaddai Est
A122: Sanitation | B122: Improved | C122: =C153+C154+(C155+C156)*MICS10!C130/100 -> 0.877435664 | D122: =D153+D154+(D155+D156)*MICS10!D130/100 -> 1.48860887 | E122: =E153+E154+(E155+E156)*MICS10!E130/100 -> 3.454155862 | F122: =F153+F154+(F155+F156)*MICS10!F130/100 -> 7.231036377 | G122: =G153+G154+(G155+G156)*MICS10!G130/100 -> 50.40665666 | H122: =H153+H154+(H155+H156)*MICS10!H130/100 -> 16.94994987 | I122: =I153+I154+(I155+I156)*MICS10!I130/100 -> 36.75365977 | J122: =J153+J154+(J155+J156)*MICS10!J130/100 -> 44.30924768 | K122: =K153+K154+(K155+K156)*MICS10!K130/100 -> 64.35735135 | L122: =L153+L154+(L155+L156)*MICS10!L130/100 -> 92.77694375 | M122: =M153+M154+(M155+M156)*MICS10!M130/100 -> 0.4524920633 | N122: =N153+N154+(N155+N156)*MICS10!N130/100 -> 1.093502861 | O122: =O153+O154+(O155+O156)*MICS10!O130/100 -> 0.7597760575 | P122: =P153+P154+(P155+P156)*MICS10!P130/100 -> 3.951916405 | Q122: =Q153+Q154+(Q155+Q156)*MICS10!Q130/100 -> 4.69322223 | R122: =R153+R154+(R155+R156)*MICS10!R130/100 -> 7.793634207 | S122: =S153+S154+(S155+S156)*MICS10!S130/100 -> 1.69405956 | T122: =T153+T154+(T155+T156)*MICS10!T130/100 -> 3.173697407 | U122: =U153+U154+(U155+U156)*MICS10!U130/100 -> 6.784321977 | V122: =V153+V154+(V155+V156)*MICS10!V130/100 -> 12.4150941 | W122: =W153+W154+(W155+W156)*MICS10!W130/100 -> 5.658825412 | X122: =X153+X154+(X155+X156)*MICS10!X130/100 -> 3.503532126 | Y122: =Y153+Y154+(Y155+Y156)*MICS10!Y130/100 -> 34.18405062 | Z122: =Z153+Z154+(Z155+Z156)*MICS10!Z130/100 -> 3.426105587 | BB122: Improved | BC122: N/A | BD122: N/A | BE122: N/A | BF122: N/A | BG122: N/A | BH122: N/A | BI122: N/A | BJ122: N/A | BK122: N/A | BL122: N/A | BM122: N/A | BN122: N/A | BO122: N/A | BP122: N/A | BQ122: N/A | BR122: N/A | BS122: N/A | BT122: N/A | BU122: N/A | BV122: N/A | BW122: N/A | BX122: N/A | BY122: N/A | BZ122: N/A
B123: Not Improved | C123: =100-C122 -> 99.12256434 | D123: =100-D122 -> 98.51139113 | E123: 96.54584414 | F123: 92.76896362 | G123: 49.59334334 | H123: 83.05005013 | I123: 63.24634023 | J123: 55.69075232 | K123: 35.64264865 | L123: 7.223056252 | M123: 99.54750794 | N123: 98.90649714 | O123: 99.24022394 | P123: 96.04808359 | Q123: 95.30677777 | R123: 92.20636579 | S123: 98.30594044 | T123: 96.82630259 | U123: 93.21567802 | V123: 87.5849059 | W123: 94.34117459 | X123: 96.49646787 | Y123: 65.81594938 | Z123: 96.57389441 | BB123: Not Improved | BC123: N/A | BD123: N/A | BE123: N/A | BF123: N/A | BG123: N/A | BH123: N/A | BI123: N/A | BJ123: N/A | BK123: N/A | BL123: N/A | BM123: N/A | BN123: N/A | BO123: N/A | BP123: N/A | BQ123: N/A | BR123: N/A | BS123: N/A | BT123: N/A | BU123: N/A | BV123: N/A | BW123: N/A | BX123: N/A | BY123: N/A | BZ123: N/A
A124: Sanitation ladder | B124: Basic | C124: =C122*MICS10!C129/100 -> 0.662006555 | D124: =D122*MICS10!D129/100 -> 1.27178348 | E124: =E122*MICS10!E129/100 -> 3.025240376 | F124: =F122*MICS10!F129/100 -> 4.990260723 | G124: =G122*MICS10!G129/100 -> 32.69719581 | H124: =H122*MICS10!H129/100 -> 10.36375365 | I124: =I122*MICS10!I129/100 -> 20.04016965 | J124: =J122*MICS10!J129/100 -> 23.50823489 | K124: =K122*MICS10!K129/100 -> 41.15730456 | L124: =L122*MICS10!L129/100 -> 66.5055368 | M124: =M122*MICS10!M129/100 -> 0.3985995105 | N124: =N122*MICS10!N129/100 -> 1.026245985 | O124: =O122*MICS10!O129/100 -> 0.6993331002 | P124: =P122*MICS10!P129/100 -> 3.636412353 | Q124: =Q122*MICS10!Q129/100 -> 3.900686749 | R124: =R122*MICS10!R129/100 -> 5.626023611 | S124: =S122*MICS10!S129/100 -> 1.411709257 | T124: =T122*MICS10!T129/100 -> 2.737231134 | U124: =U122*MICS10!U129/100 -> 5.436003906 | V124: =V122*MICS10!V129/100 -> 9.452937576 | W124: =W122*MICS10!W129/100 -> 4.046149783 | X124: =X122*MICS10!X129/100 -> 3.492685984 | Y124: =Y122*MICS10!Y129/100 -> 29.79433403 | Z124: =Z122*MICS10!Z129/100 -> 2.810074064 | BB124: Basic | BC124: N/A | BD124: N/A | BE124: N/A | BF124: N/A | BG124: N/A | BH124: N/A | BI124: N/A | BJ124: N/A | BK124: N/A | BL124: N/A | BM124: N/A | BN124: N/A | BO124: N/A | BP124: N/A | BQ124: N/A | BR124: N/A | BS124: N/A | BT124: N/A | BU124: N/A | BV124: N/A | BW124: N/A | BX124: N/A | BY124: N/A | BZ124: N/A
B125: Limited | C125: =C122*MICS10!C128/100 -> 0.215429109 | D125: =D122*MICS10!D128/100 -> 0.2168253897 | E125: =E122*MICS10!E128/100 -> 0.4289154855 | F125: =F122*MICS10!F128/100 -> 2.240775654 | G125: =G122*MICS10!G128/100 -> 17.70946086 | H125: =H122*MICS10!H128/100 -> 6.586196215 | I125: =I122*MICS10!I128/100 -> 16.71349012 | J125: =J122*MICS10!J128/100 -> 20.8010128 | K125: =K122*MICS10!K128/100 -> 23.20004679 | L125: =L122*MICS10!L128/100 -> 26.27140695 | M125: =M122*MICS10!M128/100 -> 0.05389255281 | N125: =N122*MICS10!N128/100 -> 0.06725687566 | O125: =O122*MICS10!O128/100 -> 0.06044295735 | P125: =P122*MICS10!P128/100 -> 0.3155040521 | Q125: =Q122*MICS10!Q128/100 -> 0.792535481 | R125: =R122*MICS10!R128/100 -> 2.167610596 | S125: =S122*MICS10!S128/100 -> 0.2823503026 | T125: =T122*MICS10!T128/100 -> 0.4364662729 | U125: =U122*MICS10!U128/100 -> 1.348318071 | V125: =V122*MICS10!V128/100 -> 2.962156524 | W125: =W122*MICS10!W128/100 -> 1.612675629 | X125: =X122*MICS10!X128/100 -> 0.01084614242 | Y125: =Y122*MICS10!Y128/100 -> 4.389716588 | Z125: =Z122*MICS10!Z128/100 -> 0.6160315236 | BB125: Limited | BC125: N/A | BD125: N/A | BE125: N/A | BF125: N/A | BG125: N/A | BH125: N/A | BI125: N/A | BJ125: N/A | BK125: N/A | BL125: N/A | BM125: N/A | BN125: N/A | BO125: N/A | BP125: N/A | BQ125: N/A | BR125: N/A | BS125: N/A | BT125: N/A | BU125: N/A | BV125: N/A | BW125: N/A | BX125: N/A | BY125: N/A | BZ125: N/A
B126: Unimproved | C126: =100-C124-C125-C127 -> 2.039171101 | D126: =100-D124-D125-D127 -> 9.87442394 | E126: 19.64086722 | F126: 17.53982859 | G126: 29.66445161 | H126: 41.39038013 | I126: 38.86262494 | J126: 45.24263866 | K126: 29.30666497 | L126: 6.871723622 | M126: 2.336512279 | N126: 4.244268309 | O126: 13.8227851 | P126: 21.1828194 | Q126: 17.37994568 | R126: 4.563102933 | S126: 5.843546991 | T126: 10.75747879 | U126: 16.95837678 | V126: 15.859193 | W126: 23.1452397 | X126: 26.29471501 | Y126: 64.279123 | Z126: 12.36128694 | BB126: Unimproved | BC126: N/A | BD126: N/A | BE126: N/A | BF126: N/A | BG126: N/A | BH126: N/A | BI126: N/A | BJ126: N/A | BK126: N/A | BL126: N/A | BM126: N/A | BN126: N/A | BO126: N/A | BP126: N/A | BQ126: N/A | BR126: N/A | BS126: N/A | BT126: N/A | BU126: N/A | BV126: N/A | BW126: N/A | BX126: N/A | BY126: N/A | BZ126: N/A
B127: Open defecation | C127: =C139 -> 97.08339324 | D127: =D139 -> 88.63696719 | E127: 76.90497691 | F127: 75.22913503 | G127: 19.92889173 | H127: 41.65967 | I127: 24.38371528 | J127: 10.44811366 | K127: 6.335983681 | L127: 0.3513326297 | M127: 97.21099566 | N127: 94.66222883 | O127: 85.41743884 | P127: 74.8652642 | Q127: 77.92683209 | R127: 87.64326286 | S127: 92.46239345 | T127: 86.06882381 | U127: 76.25730124 | V127: 71.7257129 | W127: 71.19593488 | X127: 70.20175286 | Y127: 1.536826379 | Z127: 84.21260747 | BB127: Open defecation | BC127: N/A | BD127: N/A | BE127: N/A | BF127: N/A | BG127: N/A | BH127: N/A | BI127: N/A | BJ127: N/A | BK127: N/A | BL127: N/A | BM127: N/A | BN127: N/A | BO127: N/A | BP127: N/A | BQ127: N/A | BR127: N/A | BS127: N/A | BT127: N/A | BU127: N/A | BV127: N/A | BW127: N/A | BX127: N/A | BY127: N/A | BZ127: N/A
A128: Shared among Improved Sanitation | B128: Yes | C128: N/A | D128: N/A | E128: N/A | F128: N/A | G128: N/A | H128: N/A | I128: N/A | J128: N/A | K128: N/A | L128: N/A | M128: N/A | N128: N/A | O128: N/A | P128: N/A | Q128: N/A | R128: N/A | S128: N/A | T128: N/A | U128: N/A | V128: N/A | W128: N/A | X128: N/A | Y128: N/A | Z128: N/A | BB128: Yes | BC128: N/A | BD128: N/A | BE128: N/A | BF128: N/A | BG128: N/A | BH128: N/A | BI128: N/A | BJ128: N/A | BK128: N/A | BL128: N/A | BM128: N/A | BN128: N/A | BO128: N/A | BP128: N/A | BQ128: N/A | BR128: N/A | BS128: N/A | BT128: N/A | BU128: N/A | BV128: N/A | BW128: N/A | BX128: N/A | BY128: N/A | BZ128: N/A
B129: No | C129: N/A | D129: N/A | E129: N/A | F129: N/A | G129: N/A | H129: N/A | I129: N/A | J129: N/A | K129: N/A | L129: N/A | M129: N/A | N129: N/A | O129: N/A | P129: N/A | Q129: N/A | R129: N/A | S129: N/A | T129: N/A | U129: N/A | V129: N/A | W129: N/A | X129: N/A | Y129: N/A | Z129: N/A | BB129: No | BC129: N/A | BD129: N/A | BE129: N/A | BF129: N/A | BG129: N/A | BH129: N/A | BI129: N/A | BJ129: N/A | BK129: N/A | BL129: N/A | BM129: N/A | BN129: N/A | BO129: N/A | BP129: N/A | BQ129: N/A | BR129: N/A | BS129: N/A | BT129: N/A | BU129: N/A | BV129: N/A | BW129: N/A | BX129: N/A | BY129: N/A | BZ129: N/A
A130: Manually calculated ratios | B130: Improved latrines
B131: Other
B132: Other
C133: NATIONAL wealth index quintile | H133: URBAN wealth index quintile | M133: RURAL wealth index quintile | R133: SUB-REGIONS: | BB133: Use of sanitation facilities | BC133: NATIONAL wealth index quintile | BH133: URBAN wealth index quintile | BM133: RURAL wealth index quintile | BR133: SUB-REGIONS:
A134: Percentage based on weighted population | C134: Poorest | D134: Poor | E134: Middle | F134: Rich | G134: Richest | H134: Poorest | I134: Poor | J134: Middle | K134: Rich | L134: Richest | M134: Poorest | N134: Poor | O134: Middle | P134: Rich | Q134: Richest | R134: B. E. T. | S134: Bar Azoum | T134: Centre Est | U134: Chari Baguirmi | V134: Logone Occidental | W134: Mayo Kebbi | X134: Moyen Chari | Y134: N'Djaména | Z134: Ouaddai Est | BC134: Poorest | BD134: Poor | BE134: Middle | BF134: Rich | BG134: Richest | BH134: Poorest | BI134: Poor | BJ134: Middle | BK134: Rich | BL134: Richest | BM134: Poorest | BN134: Poor | BO134: Middle | BP134: Rich | BQ134: Richest | BR134: B. E. T. | BS134: Bar Azoum | BT134: Centre Est | BU134: Chari Baguirmi | BV134: Logone Occidental | BW134: Mayo Kebbi | BX134: Moyen Chari | BY134: N'Djaména | BZ134: Ouaddai Est
A135: Sanitation type | B135: Sewer connection | C135: N/A | D135: N/A | E135: N/A | F135: N/A | G135: N/A | H135: N/A | I135: N/A | J135: N/A | K135: N/A | L135: N/A | M135: N/A | N135: N/A | O135: N/A | P135: N/A | Q135: N/A | R135: N/A | S135: N/A | T135: N/A | U135: N/A | V135: N/A | W135: N/A | X135: N/A | Y135: N/A | Z135: N/A | BB135: Sewer connection | BC135: N/A | BD135: N/A | BE135: N/A | BF135: N/A | BG135: N/A | BH135: N/A | BI135: N/A | BJ135: N/A | BK135: N/A | BL135: N/A | BM135: N/A | BN135: N/A | BO135: N/A | BP135: N/A | BQ135: N/A | BR135: N/A | BS135: N/A | BT135: N/A | BU135: N/A | BV135: N/A | BW135: N/A | BX135: N/A | BY135: N/A | BZ135: N/A
B136: Septic tank connection | C136: N/A | D136: N/A | E136: N/A | F136: N/A | G136: N/A | H136: N/A | I136: N/A | J136: N/A | K136: N/A | L136: N/A | M136: N/A | N136: N/A | O136: N/A | P136: N/A | Q136: N/A | R136: N/A | S136: N/A | T136: N/A | U136: N/A | V136: N/A | W136: N/A | X136: N/A | Y136: N/A | Z136: N/A | BB136: Septic tank connection | BC136: N/A | BD136: N/A | BE136: N/A | BF136: N/A | BG136: N/A | BH136: N/A | BI136: N/A | BJ136: N/A | BK136: N/A | BL136: N/A | BM136: N/A | BN136: N/A | BO136: N/A | BP136: N/A | BQ136: N/A | BR136: N/A | BS136: N/A | BT136: N/A | BU136: N/A | BV136: N/A | BW136: N/A | BX136: N/A | BY136: N/A | BZ136: N/A
B137: Improved latrines | C137: N/A | D137: N/A | E137: N/A | F137: N/A | G137: N/A | H137: N/A | I137: N/A | J137: N/A | K137: N/A | L137: N/A | M137: N/A | N137: N/A | O137: N/A | P137: N/A | Q137: N/A | R137: N/A | S137: N/A | T137: N/A | U137: N/A | V137: N/A | W137: N/A | X137: N/A | Y137: N/A | Z137: N/A | BB137: Improved latrines | BC137: N/A | BD137: N/A | BE137: N/A | BF137: N/A | BG137: N/A | BH137: N/A | BI137: N/A | BJ137: N/A | BK137: N/A | BL137: N/A | BM137: N/A | BN137: N/A | BO137: N/A | BP137: N/A | BQ137: N/A | BR137: N/A | BS137: N/A | BT137: N/A | BU137: N/A | BV137: N/A | BW137: N/A | BX137: N/A | BY137: N/A | BZ137: N/A
B138: Unimproved facilities | C138: 2.916606765 | D138: 11.36303281 | E138: 23.09502309 | F138: 24.77086497 | G138: 80.07110827 | H138: 58.34033 | I138: 75.61628472 | J138: 89.55188634 | K138: 93.66401632 | L138: 99.64866737 | M138: 2.789004343 | N138: 5.33777117 | O138: 14.58256116 | P138: 25.1347358 | Q138: 22.07316791 | R138: 12.35673714 | S138: 7.537606551 | T138: 13.93117619 | U138: 23.74269876 | V138: 28.2742871 | W138: 28.80406512 | X138: 29.79824714 | Y138: 98.46317362 | Z138: 15.78739253 | BB138: Unimproved facilities | BC138: N/A | BD138: N/A | BE138: N/A | BF138: N/A | BG138: N/A | BH138: N/A | BI138: N/A | BJ138: N/A | BK138: N/A | BL138: N/A | BM138: N/A | BN138: N/A | BO138: N/A | BP138: N/A | BQ138: N/A | BR138: N/A | BS138: N/A | BT138: N/A | BU138: N/A | BV138: N/A | BW138: N/A | BX138: N/A | BY138: N/A | BZ138: N/A
B139: Open defecation | C139: 97.08339324 | D139: 88.63696719 | E139: 76.90497691 | F139: 75.22913503 | G139: 19.92889173 | H139: 41.65967 | I139: 24.38371528 | J139: 10.44811366 | K139: 6.335983681 | L139: 0.3513326297 | M139: 97.21099566 | N139: 94.66222883 | O139: 85.41743884 | P139: 74.8652642 | Q139: 77.92683209 | R139: 87.64326286 | S139: 92.46239345 | T139: 86.06882381 | U139: 76.25730124 | V139: 71.7257129 | W139: 71.19593488 | X139: 70.20175286 | Y139: 1.536826379 | Z139: 84.21260747 | BB139: Open defecation | BC139: N/A | BD139: N/A | BE139: N/A | BF139: N/A | BG139: N/A | BH139: N/A | BI139: N/A | BJ139: N/A | BK139: N/A | BL139: N/A | BM139: N/A | BN139: N/A | BO139: N/A | BP139: N/A | BQ139: N/A | BR139: N/A | BS139: N/A | BT139: N/A | BU139: N/A | BV139: N/A | BW139: N/A | BX139: N/A | BY139: N/A | BZ139: N/A
A140: Septic tank emptying practices | B140: Not emptied/treated and disposed in situ | C140: N/A | D140: N/A | E140: N/A | F140: N/A | G140: N/A | H140: N/A | I140: N/A | J140: N/A | K140: N/A | L140: N/A | M140: N/A | N140: N/A | O140: N/A | P140: N/A | Q140: N/A | R140: N/A | S140: N/A | T140: N/A | U140: N/A | V140: N/A | W140: N/A | X140: N/A | Y140: N/A | Z140: N/A | BB140: Not emptied/treated and disposed in situ | BC140: N/A | BD140: N/A | BE140: N/A | BF140: N/A | BG140: N/A | BH140: N/A | BI140: N/A | BJ140: N/A | BK140: N/A | BL140: N/A | BM140: N/A | BN140: N/A | BO140: N/A | BP140: N/A | BQ140: N/A | BR140: N/A | BS140: N/A | BT140: N/A | BU140: N/A | BV140: N/A | BW140: N/A | BX140: N/A | BY140: N/A | BZ140: N/A
B141: Emptied and buried on site | C141: N/A | D141: N/A | E141: N/A | F141: N/A | G141: N/A | H141: N/A | I141: N/A | J141: N/A | K141: N/A | L141: N/A | M141: N/A | N141: N/A | O141: N/A | P141: N/A | Q141: N/A | R141: N/A | S141: N/A | T141: N/A | U141: N/A | V141: N/A | W141: N/A | X141: N/A | Y141: N/A | Z141: N/A | BB141: Emptied and buried on site | BC141: N/A | BD141: N/A | BE141: N/A | BF141: N/A | BG141: N/A | BH141: N/A | BI141: N/A | BJ141: N/A | BK141: N/A | BL141: N/A | BM141: N/A | BN141: N/A | BO141: N/A | BP141: N/A | BQ141: N/A | BR141: N/A | BS141: N/A | BT141: N/A | BU141: N/A | BV141: N/A | BW141: N/A | BX141: N/A | BY141: N/A | BZ141: N/A
B142: Emptied and discharged locally | C142: N/A | D142: N/A | E142: N/A | F142: N/A | G142: N/A | H142: N/A | I142: N/A | J142: N/A | K142: N/A | L142: N/A | M142: N/A | N142: N/A | O142: N/A | P142: N/A | Q142: N/A | R142: N/A | S142: N/A | T142: N/A | U142: N/A | V142: N/A | W142: N/A | X142: N/A | Y142: N/A | Z142: N/A | BB142: Emptied and discharged locally | BC142: N/A | BD142: N/A | BE142: N/A | BF142: N/A | BG142: N/A | BH142: N/A | BI142: N/A | BJ142: N/A | BK142: N/A | BL142: N/A | BM142: N/A | BN142: N/A | BO142: N/A | BP142: N/A | BQ142: N/A | BR142: N/A | BS142: N/A | BT142: N/A | BU142: N/A | BV142: N/A | BW142: N/A | BX142: N/A | BY142: N/A | BZ142: N/A
B143: Emptied and removed offsite | C143: N/A | D143: N/A | E143: N/A | F143: N/A | G143: N/A | H143: N/A | I143: N/A | J143: N/A | K143: N/A | L143: N/A | M143: N/A | N143: N/A | O143: N/A | P143: N/A | Q143: N/A | R143: N/A | S143: N/A | T143: N/A | U143: N/A | V143: N/A | W143: N/A | X143: N/A | Y143: N/A | Z143: N/A | BB143: Emptied and removed offsite | BC143: N/A | BD143: N/A | BE143: N/A | BF143: N/A | BG143: N/A | BH143: N/A | BI143: N/A | BJ143: N/A | BK143: N/A | BL143: N/A | BM143: N/A | BN143: N/A | BO143: N/A | BP143: N/A | BQ143: N/A | BR143: N/A | BS143: N/A | BT143: N/A | BU143: N/A | BV143: N/A | BW143: N/A | BX143: N/A | BY143: N/A | BZ143: N/A
A144: Latrine emptying practices | B144: Not emptied/treated and disposed in situ | C144: N/A | D144: N/A | E144: N/A | F144: N/A | G144: N/A | H144: N/A | I144: N/A | J144: N/A | K144: N/A | L144: N/A | M144: N/A | N144: N/A | O144: N/A | P144: N/A | Q144: N/A | R144: N/A | S144: N/A | T144: N/A | U144: N/A | V144: N/A | W144: N/A | X144: N/A | Y144: N/A | Z144: N/A | BB144: Not emptied/treated and disposed in situ | BC144: N/A | BD144: N/A | BE144: N/A | BF144: N/A | BG144: N/A | BH144: N/A | BI144: N/A | BJ144: N/A | BK144: N/A | BL144: N/A | BM144: N/A | BN144: N/A | BO144: N/A | BP144: N/A | BQ144: N/A | BR144: N/A | BS144: N/A | BT144: N/A | BU144: N/A | BV144: N/A | BW144: N/A | BX144: N/A | BY144: N/A | BZ144: N/A
B145: Emptied and buried on site | C145: N/A | D145: N/A | E145: N/A | F145: N/A | G145: N/A | H145: N/A | I145: N/A | J145: N/A | K145: N/A | L145: N/A | M145: N/A | N145: N/A | O145: N/A | P145: N/A | Q145: N/A | R145: N/A | S145: N/A | T145: N/A | U145: N/A | V145: N/A | W145: N/A | X145: N/A | Y145: N/A | Z145: N/A | BB145: Emptied and buried on site | BC145: N/A | BD145: N/A | BE145: N/A | BF145: N/A | BG145: N/A | BH145: N/A | BI145: N/A | BJ145: N/A | BK145: N/A | BL145: N/A | BM145: N/A | BN145: N/A | BO145: N/A | BP145: N/A | BQ145: N/A | BR145: N/A | BS145: N/A | BT145: N/A | BU145: N/A | BV145: N/A | BW145: N/A | BX145: N/A | BY145: N/A | BZ145: N/A
B146: Emptied and discharged locally | C146: N/A | D146: N/A | E146: N/A | F146: N/A | G146: N/A | H146: N/A | I146: N/A | J146: N/A | K146: N/A | L146: N/A | M146: N/A | N146: N/A | O146: N/A | P146: N/A | Q146: N/A | R146: N/A | S146: N/A | T146: N/A | U146: N/A | V146: N/A | W146: N/A | X146: N/A | Y146: N/A | Z146: N/A | BB146: Emptied and discharged locally | BC146: N/A | BD146: N/A | BE146: N/A | BF146: N/A | BG146: N/A | BH146: N/A | BI146: N/A | BJ146: N/A | BK146: N/A | BL146: N/A | BM146: N/A | BN146: N/A | BO146: N/A | BP146: N/A | BQ146: N/A | BR146: N/A | BS146: N/A | BT146: N/A | BU146: N/A | BV146: N/A | BW146: N/A | BX146: N/A | BY146: N/A | BZ146: N/A
B147: Emptied and removed offsite | C147: N/A | D147: N/A | E147: N/A | F147: N/A | G147: N/A | H147: N/A | I147: N/A | J147: N/A | K147: N/A | L147: N/A | M147: N/A | N147: N/A | O147: N/A | P147: N/A | Q147: N/A | R147: N/A | S147: N/A | T147: N/A | U147: N/A | V147: N/A | W147: N/A | X147: N/A | Y147: N/A | Z147: N/A | BB147: Emptied and removed offsite | BC147: N/A | BD147: N/A | BE147: N/A | BF147: N/A | BG147: N/A | BH147: N/A | BI147: N/A | BJ147: N/A | BK147: N/A | BL147: N/A | BM147: N/A | BN147: N/A | BO147: N/A | BP147: N/A | BQ147: N/A | BR147: N/A | BS147: N/A | BT147: N/A | BU147: N/A | BV147: N/A | BW147: N/A | BX147: N/A | BY147: N/A | BZ147: N/A
A148: Shared among improved sanitation facilities | B148: Yes | C148: N/A | D148: N/A | E148: N/A | F148: N/A | G148: N/A | H148: N/A | I148: N/A | J148: N/A | K148: N/A | L148: N/A | M148: N/A | N148: N/A | O148: N/A | P148: N/A | Q148: N/A | R148: N/A | S148: N/A | T148: N/A | U148: N/A | V148: N/A | W148: N/A | X148: N/A | Y148: N/A | Z148: N/A | BB148: Yes | BC148: N/A | BD148: N/A | BE148: N/A | BF148: N/A | BG148: N/A | BH148: N/A | BI148: N/A | BJ148: N/A | BK148: N/A | BL148: N/A | BM148: N/A | BN148: N/A | BO148: N/A | BP148: N/A | BQ148: N/A | BR148: N/A | BS148: N/A | BT148: N/A | BU148: N/A | BV148: N/A | BW148: N/A | BX148: N/A | BY148: N/A | BZ148: N/A
B149: No | C149: N/A | D149: N/A | E149: N/A | F149: N/A | G149: N/A | H149: N/A | I149: N/A | J149: N/A | K149: N/A | L149: N/A | M149: N/A | N149: N/A | O149: N/A | P149: N/A | Q149: N/A | R149: N/A | S149: N/A | T149: N/A | U149: N/A | V149: N/A | W149: N/A | X149: N/A | Y149: N/A | Z149: N/A | BB149: No | BC149: N/A | BD149: N/A | BE149: N/A | BF149: N/A | BG149: N/A | BH149: N/A | BI149: N/A | BJ149: N/A | BK149: N/A | BL149: N/A | BM149: N/A | BN149: N/A | BO149: N/A | BP149: N/A | BQ149: N/A | BR149: N/A | BS149: N/A | BT149: N/A | BU149: N/A | BV149: N/A | BW149: N/A | BX149: N/A | BY149: N/A | BZ149: N/A
B150: DK/missing | C150: N/A | D150: N/A | E150: N/A | F150: N/A | G150: N/A | H150: N/A | I150: N/A | J150: N/A | K150: N/A | L150: N/A | M150: N/A | N150: N/A | O150: N/A | P150: N/A | Q150: N/A | R150: N/A | S150: N/A | T150: N/A | U150: N/A | V150: N/A | W150: N/A | X150: N/A | Y150: N/A | Z150: N/A | BB150: DK/missing | BC150: N/A | BD150: N/A | BE150: N/A | BF150: N/A | BG150: N/A | BH150: N/A | BI150: N/A | BJ150: N/A | BK150: N/A | BL150: N/A | BM150: N/A | BN150: N/A | BO150: N/A | BP150: N/A | BQ150: N/A | BR150: N/A | BS150: N/A | BT150: N/A | BU150: N/A | BV150: N/A | BW150: N/A | BX150: N/A | BY150: N/A | BZ150: N/A
A151: Shared among all sanitation facilities | B151: Yes | C151: N/A | D151: N/A | E151: N/A | F151: N/A | G151: N/A | H151: N/A | I151: N/A | J151: N/A | K151: N/A | L151: N/A | M151: N/A | N151: N/A | O151: N/A | P151: N/A | Q151: N/A | R151: N/A | S151: N/A | T151: N/A | U151: N/A | V151: N/A | W151: N/A | X151: N/A | Y151: N/A | Z151: N/A | BB151: Yes | BC151: N/A | BD151: N/A | BE151: N/A | BF151: N/A | BG151: N/A | BH151: N/A | BI151: N/A | BJ151: N/A | BK151: N/A | BL151: N/A | BM151: N/A | BN151: N/A | BO151: N/A | BP151: N/A | BQ151: N/A | BR151: N/A | BS151: N/A | BT151: N/A | BU151: N/A | BV151: N/A | BW151: N/A | BX151: N/A | BY151: N/A | BZ151: N/A
B152: No | C152: N/A | D152: N/A | E152: N/A | F152: N/A | G152: N/A | H152: N/A | I152: N/A | J152: N/A | K152: N/A | L152: N/A | M152: N/A | N152: N/A | O152: N/A | P152: N/A | Q152: N/A | R152: N/A | S152: N/A | T152: N/A | U152: N/A | V152: N/A | W152: N/A | X152: N/A | Y152: N/A | Z152: N/A | BB152: No | BC152: N/A | BD152: N/A | BE152: N/A | BF152: N/A | BG152: N/A | BH152: N/A | BI152: N/A | BJ152: N/A | BK152: N/A | BL152: N/A | BM152: N/A | BN152: N/A | BO152: N/A | BP152: N/A | BQ152: N/A | BR152: N/A | BS152: N/A | BT152: N/A | BU152: N/A | BV152: N/A | BW152: N/A | BX152: N/A | BY152: N/A | BZ152: N/A
A153: Type of toilet facility | B153: Private flush toilet | C153: 0 | D153: 0 | E153: 0 | F153: 0 | G153: 1.014125984 | H153: 0 | I153: 0 | J153: 0.1339872977 | K153: 0.05209498501 | L153: 4.707300943 | M153: 0 | N153: 0 | O153: 0 | P153: 0 | Q153: 0 | R153: 0 | S153: 0 | T153: 0 | U153: 0 | V153: 0.0294495406 | W153: 0 | X153: 0.04408148997 | Y153: 2.226059371 | Z153: 0.02382366129 | BB153: Yes | BC153: N/A | BD153: N/A | BE153: N/A | BF153: N/A | BG153: N/A | BH153: N/A | BI153: N/A | BJ153: N/A | BK153: N/A | BL153: N/A | BM153: N/A | BN153: N/A | BO153: N/A | BP153: N/A | BQ153: N/A | BR153: N/A | BS153: N/A | BT153: N/A | BU153: N/A | BV153: N/A | BW153: N/A | BX153: N/A | BY153: N/A | BZ153: N/A
B154: Shared flush toilet | C154: 0.6597332589 | D154: 0.06157410451 | E154: 0.9108483329 | F154: 1.887600571 | G154: 4.510838193 | H154: 5.21895089 | I154: 6.618757114 | J154: 5.982354524 | K154: 3.953655668 | L154: 8.413465279 | M154: 0.3287115258 | N154: 0.4905495991 | O154: 0 | P154: 0.8904413759 | Q154: 0.5011937093 | R154: 4.511567063 | S154: 0 | T154: 0 | U154: 0.7033049054 | V154: 0.1136131431 | W154: 0.6694613365 | X154: 0.05722943786 | Y154: 9.941767976 | Z154: 0.3600345596 | BB154: No | BC154: N/A | BD154: N/A | BE154: N/A | BF154: N/A | BG154: N/A | BH154: N/A | BI154: N/A | BJ154: N/A | BK154: N/A | BL154: N/A | BM154: N/A | BN154: N/A | BO154: N/A | BP154: N/A | BQ154: N/A | BR154: N/A | BS154: N/A | BT154: N/A | BU154: N/A | BV154: N/A | BW154: N/A | BX154: N/A | BY154: N/A | BZ154: N/A
B155: Traditional pip toilet | C155: 1.959074909 | D155: 11.26569131 | E155: 21.96884457 | F155: 21.81758333 | G155: 61.33682287 | H155: 51.46315268 | I155: 65.95877386 | J155: 75.35311809 | K155: 72.72898243 | L155: 53.4652314 | M155: 2.170601625 | N155: 4.760615512 | O155: 14.58256116 | P155: 24.05114046 | Q155: 19.82925151 | R155: 6.548787839 | S155: 7.39960618 | T155: 13.34059728 | U155: 21.98032764 | V155: 26.27860685 | W155: 27.91631662 | X155: 28.68368259 | Y155: 63.12106263 | Z155: 14.27674068
B156: Ventilated improved latrine | C156: 0 | D156: 0.01499748486 | E156: 0.215330183 | F156: 0.7800881831 | G156: 12.77339882 | H156: 1.497441482 | I156: 2.78687963 | J156: 8.08242643 | K156: 16.9251278 | L156: 33.0622726 | M156: 0 | N156: 0 | O156: 0 | P156: 0 | Q156: 1.118779292 | R156: 1.077787518 | S156: 0.1380003709 | T156: 0.221529359 | U156: 1.059066208 | V156: 1.502795883 | W156: 0.09540037291 | X156: 0.72160937 | Y156: 23.17294497 | Z156: 0.9135334115
B157: No facility/bush/field | C157: 97.19353446 | D157: 88.63696719 | E157: 76.90497691 | F157: 75.34325833 | G157: 19.93625737 | H157: 41.65967 | I157: 24.38371528 | J157: 10.44811366 | K157: 6.340139117 | L157: 0.3517297782 | M157: 97.26183229 | N157: 94.74883489 | O157: 85.41743884 | P157: 74.8652642 | Q157: 78.07748196 | R157: 87.86185758 | S157: 92.46239345 | T157: 86.06882381 | U157: 76.25730124 | V157: 71.7257129 | W157: 71.19593488 | X157: 70.20175286 | Y157: 1.538165046 | Z157: 84.42586769
B158: OTHER | C158: 0.1876573677 | D158: 0.02076991208 | E158: 0 | F158: 0.1714695849 | G158: 0.4285567549 | H158: 0.1607849475 | I158: 0.2518741122 | J158: 0 | K158: 0 | L158: 0 | M158: 0.2388545595 | N158: 0 | O158: 0 | P158: 0.1931539621 | Q158: 0.4732935268 | R158: 0 | S158: 0 | T158: 0.3690495517 | U158: 0 | V158: 0.3498216858 | W158: 0.1228867837 | X158: 0.2916442479 | Y158: 0 | Z158: 0
A160: Chad DHS04 Weighted population | C160: COMPOSITE wealth index quintile | H160: URBAN wealth index quintile | M160: RURAL wealth index quintile | R160: REGIONS
C161: Poorest | D161: Poor | E161: Middle | F161: Rich | G161: Richest | H161: Poorest | I161: Poor | J161: Middle | K161: Rich | L161: Richest | M161: Poorest | N161: Poor | O161: Middle | P161: Rich | Q161: Richest | R161: B. E. T. | S161: Bar Azoum | T161: Centre Est | U161: Chari Baguirmi | V161: Logone Occidental | W161: Mayo Kebbi | X161: Moyen Chari | Y161: N'Djaména | Z161: Ouaddai Est
A162: Type of toilet facility | B162: Private flush toilet | C162: 0 | D162: 0 | E162: 0 | F162: 0 | G162: 59.147564 | H162: 0 | I162: 0 | J162: 1.60948 | K162: 0.626682 | L162: 56.911402 | M162: 0 | N162: 0 | O162: 0 | P162: 0 | Q162: 0 | R162: 0 | S162: 0 | T162: 0 | U162: 0 | V162: 1.901946 | W162: 0 | X162: 1.530366 | Y162: 55.08857 | Z162: 0.626682
B163: Shared flush toilet | C163: 38.737791 | D163: 3.580954 | E163: 52.742071 | F163: 111.459082 | G163: 263.088704 | H163: 63.540476 | I163: 80.537373 | J163: 71.86114 | K163: 47.560909 | L163: 101.719034 | M163: 15.16399 | N163: 22.7825 | O163: 0 | P163: 43.220225 | Q163: 23.222955 | R163: 162.031664 | S163: 0 | T163: 0 | U163: 23.083501 | V163: 7.337502 | W163: 19.66822 | X163: 1.98682 | Y163: 246.030177 | Z163: 9.470718
B164: Traditional pip toilet | C164: 115.031694 | D164: 655.176761 | E164: 1272.091432 | F164: 1288.285163 | G164: 3577.389511 | H164: 626.561408 | I164: 802.589713 | J164: 905.155478 | K164: 874.900802 | L164: 646.396165 | M164: 100.133335 | N164: 221.096344 | O164: 644.953475 | P164: 1167.393756 | Q164: 918.794085 | R164: 235.197876 | S164: 102.304428 | T164: 398.311353 | U164: 721.426669 | V164: 1697.156905 | W164: 820.158278 | X164: 995.804194 | Y164: 1562.064841 | Z164: 375.550017
B165: Ventilated improved latrine | C165: 0 | D165: 0.872206 | E165: 12.468552 | F165: 46.062665 | G165: 744.991684 | H165: 18.231278 | I165: 33.910893 | J165: 97.087589 | K165: 203.602572 | L165: 399.723814 | M165: 0 | N165: 0 | O165: 0 | P165: 0 | Q165: 51.838961 | R165: 38.708436 | S165: 1.907946 | T165: 6.614221 | U165: 34.76011 | V165: 97.055389 | W165: 2.802784 | X165: 25.051931 | Y165: 573.463771 | Z165: 24.030519
B166: No facility/bush/field | C166: 5706.947124 | D166: 5154.843984 | E166: 4453.131884 | F166: 4448.870453 | G166: 1162.755987 | H166: 507.204478 | I166: 296.702287 | J166: 125.504658 | K166: 76.269358 | L166: 4.252423 | M166: 4486.84435 | N166: 4400.401784 | O166: 3777.818822 | P166: 3633.808638 | Q166: 3617.742634 | R166: 3155.533939 | S166: 1278.353475 | T166: 2569.764227 | U166: 2502.876741 | V166: 4632.277108 | W166: 2091.677643 | X166: 2437.176597 | Y166: 38.065163 | Z166: 2220.824539
B167: OTHER | C167: 11.018744 | D167: 1.207912 | E167: 0 | F167: 10.12494 | G167: 24.995009 | H167: 1.957549 | I167: 3.064817 | J167: 0 | K167: 0 | L167: 0 | M167: 11.018744 | N167: 0 | O167: 0 | P167: 9.375303 | Q167: 21.930192 | R167: 0 | S167: 0 | T167: 11.018744 | U167: 0 | V167: 22.592609 | W167: 3.610312 | X167: 10.12494 | Y167: 0 | Z167: 0
B168: Total | C168: 5871.735353 | D168: 5815.681817 | E168: 5790.433939 | F168: 5904.802303 | G168: 5832.368459 | H168: 1217.495189 | I168: 1216.805083 | J168: 1201.218345 | K168: 1202.960323 | L168: 1209.002838 | M168: 4613.160419 | N168: 4644.280628 | O168: 4422.772297 | P168: 4853.797922 | Q168: 4633.528827 | R168: 3591.471915 | S168: 1382.565849 | T168: 2985.708545 | U168: 3282.147021 | V168: 6458.321459 | W168: 2937.917237 | X168: 3471.674848 | Y168: 2474.712522 | Z168: 2630.502475
A208: =A1026 -> Chad
A209: =A1034 -> 2004
A210: Access to hygiene facilities
A211: by wealth quintile and sub-national region
A212: Notes:
A213: WHO/UNICEF JMP customised wealth index excludes water,
A214: sanitation and hygiene assets.
A215: Survey used for analysis: | B215: =A1025 -> DHS04
A220: Access to handwashing | C220: NATIONAL wealth index quintile | H220: URBAN wealth index quintile | M220: RURAL wealth index quintile | R220: SUB-REGIONS: | BA220: Raw numbers of respondents: | BB220: Access to handwashing | BC220: NATIONAL wealth index quintile | BH220: URBAN wealth index quintile | BM220: RURAL wealth index quintile | BR220: SUB-REGIONS:
A221: Weighted percentage (used in graphs) | C221: Poorest | D221: Poor | E221: Middle | F221: Rich | G221: Richest | H221: Poorest | I221: Poor | J221: Middle | K221: Rich | L221: Richest | M221: Poorest | N221: Poor | O221: Middle | P221: Rich | Q221: Richest | R221: B. E. T. | S221: Bar Azoum | T221: Centre Est | U221: Chari Baguirmi | V221: Logone Occidental | W221: Mayo Kebbi | X221: Moyen Chari | Y221: N'Djaména | Z221: Ouaddai Est | BA221: Hygiene data, raw numbers (weighted) | BC221: Poorest | BD221: Poor | BE221: Middle | BF221: Rich | BG221: Richest | BH221: Poorest | BI221: Poor | BJ221: Middle | BK221: Rich | BL221: Richest | BM221: Poorest | BN221: Poor | BO221: Middle | BP221: Rich | BQ221: Richest | BR221: B. E. T. | BS221: Bar Azoum | BT221: Centre Est | BU221: Chari Baguirmi | BV221: Logone Occidental | BW221: Mayo Kebbi | BX221: Moyen Chari | BY221: N'Djaména | BZ221: Ouaddai Est
A222: Hygiene ladder | B222: Basic | C222: N/A | D222: N/A | E222: N/A | F222: N/A | G222: N/A | H222: N/A | I222: N/A | J222: N/A | K222: N/A | L222: N/A | M222: N/A | N222: N/A | O222: N/A | P222: N/A | Q222: N/A | R222: N/A | S222: N/A | T222: N/A | U222: N/A | V222: N/A | W222: N/A | X222: N/A | Y222: N/A | Z222: N/A | BA222: Hygiene ladder | BB222: Basic | BC222: N/A | BD222: N/A | BE222: N/A | BF222: N/A | BG222: N/A | BH222: N/A | BI222: N/A | BJ222: N/A | BK222: N/A | BL222: N/A | BM222: N/A | BN222: N/A | BO222: N/A | BP222: N/A | BQ222: N/A | BR222: N/A | BS222: N/A | BT222: N/A | BU222: N/A | BV222: N/A | BW222: N/A | BX222: N/A | BY222: N/A | BZ222: N/A
B223: Limited | C223: N/A | D223: N/A | E223: N/A | F223: N/A | G223: N/A | H223: N/A | I223: N/A | J223: N/A | K223: N/A | L223: N/A | M223: N/A | N223: N/A | O223: N/A | P223: N/A | Q223: N/A | R223: N/A | S223: N/A | T223: N/A | U223: N/A | V223: N/A | W223: N/A | X223: N/A | Y223: N/A | Z223: N/A | BB223: Limited | BC223: N/A | BD223: N/A | BE223: N/A | BF223: N/A | BG223: N/A | BH223: N/A | BI223: N/A | BJ223: N/A | BK223: N/A | BL223: N/A | BM223: N/A | BN223: N/A | BO223: N/A | BP223: N/A | BQ223: N/A | BR223: N/A | BS223: N/A | BT223: N/A | BU223: N/A | BV223: N/A | BW223: N/A | BX223: N/A | BY223: N/A | BZ223: N/A
B224: No facility | C224: N/A | D224: N/A | E224: N/A | F224: N/A | G224: N/A | H224: N/A | I224: N/A | J224: N/A | K224: N/A | L224: N/A | M224: N/A | N224: N/A | O224: N/A | P224: N/A | Q224: N/A | R224: N/A | S224: N/A | T224: N/A | U224: N/A | V224: N/A | W224: N/A | X224: N/A | Y224: N/A | Z224: N/A | BB224: No facility | BC224: N/A | BD224: N/A | BE224: N/A | BF224: N/A | BG224: N/A | BH224: N/A | BI224: N/A | BJ224: N/A | BK224: N/A | BL224: N/A | BM224: N/A | BN224: N/A | BO224: N/A | BP224: N/A | BQ224: N/A | BR224: N/A | BS224: N/A | BT224: N/A | BU224: N/A | BV224: N/A | BW224: N/A | BX224: N/A | BY224: N/A | BZ224: N/A
BA225: Observed handwashing place | BB225: Fixed | BC225: N/A | BD225: N/A | BE225: N/A | BF225: N/A | BG225: N/A | BH225: N/A | BI225: N/A | BJ225: N/A | BK225: N/A | BL225: N/A | BM225: N/A | BN225: N/A | BO225: N/A | BP225: N/A | BQ225: N/A | BR225: N/A | BS225: N/A | BT225: N/A | BU225: N/A | BV225: N/A | BW225: N/A | BX225: N/A | BY225: N/A | BZ225: N/A
BB226: Mobile | BC226: N/A | BD226: N/A | BE226: N/A | BF226: N/A | BG226: N/A | BH226: N/A | BI226: N/A | BJ226: N/A | BK226: N/A | BL226: N/A | BM226: N/A | BN226: N/A | BO226: N/A | BP226: N/A | BQ226: N/A | BR226: N/A | BS226: N/A | BT226: N/A | BU226: N/A | BV226: N/A | BW226: N/A | BX226: N/A | BY226: N/A | BZ226: N/A
BA227: Water / Soap | BB227: Water and soap | BC227: N/A | BD227: N/A | BE227: N/A | BF227: N/A | BG227: N/A | BH227: N/A | BI227: N/A | BJ227: N/A | BK227: N/A | BL227: N/A | BM227: N/A | BN227: N/A | BO227: N/A | BP227: N/A | BQ227: N/A | BR227: N/A | BS227: N/A | BT227: N/A | BU227: N/A | BV227: N/A | BW227: N/A | BX227: N/A | BY227: N/A | BZ227: N/A
BB228: Water only | BC228: N/A | BD228: N/A | BE228: N/A | BF228: N/A | BG228: N/A | BH228: N/A | BI228: N/A | BJ228: N/A | BK228: N/A | BL228: N/A | BM228: N/A | BN228: N/A | BO228: N/A | BP228: N/A | BQ228: N/A | BR228: N/A | BS228: N/A | BT228: N/A | BU228: N/A | BV228: N/A | BW228: N/A | BX228: N/A | BY228: N/A | BZ228: N/A
BB229: Soap only | BC229: N/A | BD229: N/A | BE229: N/A | BF229: N/A | BG229: N/A | BH229: N/A | BI229: N/A | BJ229: N/A | BK229: N/A | BL229: N/A | BM229: N/A | BN229: N/A | BO229: N/A | BP229: N/A | BQ229: N/A | BR229: N/A | BS229: N/A | BT229: N/A | BU229: N/A | BV229: N/A | BW229: N/A | BX229: N/A | BY229: N/A | BZ229: N/A
BB230: Neither | BC230: N/A | BD230: N/A | BE230: N/A | BF230: N/A | BG230: N/A | BH230: N/A | BI230: N/A | BJ230: N/A | BK230: N/A | BL230: N/A | BM230: N/A | BN230: N/A | BO230: N/A | BP230: N/A | BQ230: N/A | BR230: N/A | BS230: N/A | BT230: N/A | BU230: N/A | BV230: N/A | BW230: N/A | BX230: N/A | BY230: N/A | BZ230: N/A
BA259: Raw numbers of respondents: | BB259: Menstrual health and hygiene | BC259: NATIONAL wealth index quintile | BH259: URBAN wealth index quintile | BM259: RURAL wealth index quintile | BR259: SUB-REGIONS:
BA260: MHH data, raw numbers (weighted) | BC260: Poorest | BD260: Poor | BE260: Middle | BF260: Rich | BG260: Richest | BH260: Poorest | BI260: Poor | BJ260: Middle | BK260: Rich | BL260: Richest | BM260: Poorest | BN260: Poor | BO260: Middle | BP260: Rich | BQ260: Richest | BR260: B. E. T. | BS260: Bar Azoum | BT260: Centre Est | BU260: Chari Baguirmi | BV260: Logone Occidental | BW260: Mayo Kebbi | BX260: Moyen Chari | BY260: N'Djaména | BZ260: Ouaddai Est
BA261: Private place to wash and change | BB261: Yes | BC261: N/A | BD261: N/A | BE261: N/A | BF261: N/A | BG261: N/A | BH261: N/A | BI261: N/A | BJ261: N/A | BK261: N/A | BL261: N/A | BM261: N/A | BN261: N/A | BO261: N/A | BP261: N/A | BQ261: N/A | BR261: N/A | BS261: N/A | BT261: N/A | BU261: N/A | BV261: N/A | BW261: N/A | BX261: N/A | BY261: N/A | BZ261: N/A
BB262: No | BC262: N/A | BD262: N/A | BE262: N/A | BF262: N/A | BG262: N/A | BH262: N/A | BI262: N/A | BJ262: N/A | BK262: N/A | BL262: N/A | BM262: N/A | BN262: N/A | BO262: N/A | BP262: N/A | BQ262: N/A | BR262: N/A | BS262: N/A | BT262: N/A | BU262: N/A | BV262: N/A | BW262: N/A | BX262: N/A | BY262: N/A | BZ262: N/A
BB263: DK/not sure/missing | BC263: N/A | BD263: N/A | BE263: N/A | BF263: N/A | BG263: N/A | BH263: N/A | BI263: N/A | BJ263: N/A | BK263: N/A | BL263: N/A | BM263: N/A | BN263: N/A | BO263: N/A | BP263: N/A | BQ263: N/A | BR263: N/A | BS263: N/A | BT263: N/A | BU263: N/A | BV263: N/A | BW263: N/A | BX263: N/A | BY263: N/A | BZ263: N/A
BA264: Use of menstrual materials | BB264: Materials reusable | BC264: N/A | BD264: N/A | BE264: N/A | BF264: N/A | BG264: N/A | BH264: N/A | BI264: N/A | BJ264: N/A | BK264: N/A | BL264: N/A | BM264: N/A | BN264: N/A | BO264: N/A | BP264: N/A | BQ264: N/A | BR264: N/A | BS264: N/A | BT264: N/A | BU264: N/A | BV264: N/A | BW264: N/A | BX264: N/A | BY264: N/A | BZ264: N/A
BB265: Materials not reusable | BC265: N/A | BD265: N/A | BE265: N/A | BF265: N/A | BG265: N/A | BH265: N/A | BI265: N/A | BJ265: N/A | BK265: N/A | BL265: N/A | BM265: N/A | BN265: N/A | BO265: N/A | BP265: N/A | BQ265: N/A | BR265: N/A | BS265: N/A | BT265: N/A | BU265: N/A | BV265: N/A | BW265: N/A | BX265: N/A | BY265: N/A | BZ265: N/A
BB266: No materials used | BC266: N/A | BD266: N/A | BE266: N/A | BF266: N/A | BG266: N/A | BH266: N/A | BI266: N/A | BJ266: N/A | BK266: N/A | BL266: N/A | BM266: N/A | BN266: N/A | BO266: N/A | BP266: N/A | BQ266: N/A | BR266: N/A | BS266: N/A | BT266: N/A | BU266: N/A | BV266: N/A | BW266: N/A | BX266: N/A | BY266: N/A | BZ266: N/A
BB267: DK/not sure/missing | BC267: N/A | BD267: N/A | BE267: N/A | BF267: N/A | BG267: N/A | BH267: N/A | BI267: N/A | BJ267: N/A | BK267: N/A | BL267: N/A | BM267: N/A | BN267: N/A | BO267: N/A | BP267: N/A | BQ267: N/A | BR267: N/A | BS267: N/A | BT267: N/A | BU267: N/A | BV267: N/A | BW267: N/A | BX267: N/A | BY267: N/A | BZ267: N/A
BA268: Use of menstrual materials with private place to wash and change | BB268: Materials reusable | BC268: N/A | BD268: N/A | BE268: N/A | BF268: N/A | BG268: N/A | BH268: N/A | BI268: N/A | BJ268: N/A | BK268: N/A | BL268: N/A | BM268: N/A | BN268: N/A | BO268: N/A | BP268: N/A | BQ268: N/A | BR268: N/A | BS268: N/A | BT268: N/A | BU268: N/A | BV268: N/A | BW268: N/A | BX268: N/A | BY268: N/A | BZ268: N/A
BB269: Materials not reusable | BC269: N/A | BD269: N/A | BE269: N/A | BF269: N/A | BG269: N/A | BH269: N/A | BI269: N/A | BJ269: N/A | BK269: N/A | BL269: N/A | BM269: N/A | BN269: N/A | BO269: N/A | BP269: N/A | BQ269: N/A | BR269: N/A | BS269: N/A | BT269: N/A | BU269: N/A | BV269: N/A | BW269: N/A | BX269: N/A | BY269: N/A | BZ269: N/A
BB270: No materials used | BC270: N/A | BD270: N/A | BE270: N/A | BF270: N/A | BG270: N/A | BH270: N/A | BI270: N/A | BJ270: N/A | BK270: N/A | BL270: N/A | BM270: N/A | BN270: N/A | BO270: N/A | BP270: N/A | BQ270: N/A | BR270: N/A | BS270: N/A | BT270: N/A | BU270: N/A | BV270: N/A | BW270: N/A | BX270: N/A | BY270: N/A | BZ270: N/A
BA271: Awareness of menstruation before menarche | BB271: Yes | BC271: N/A | BD271: N/A | BE271: N/A | BF271: N/A | BG271: N/A | BH271: N/A | BI271: N/A | BJ271: N/A | BK271: N/A | BL271: N/A | BM271: N/A | BN271: N/A | BO271: N/A | BP271: N/A | BQ271: N/A | BR271: N/A | BS271: N/A | BT271: N/A | BU271: N/A | BV271: N/A | BW271: N/A | BX271: N/A | BY271: N/A | BZ271: N/A
BB272: No | BC272: N/A | BD272: N/A | BE272: N/A | BF272: N/A | BG272: N/A | BH272: N/A | BI272: N/A | BJ272: N/A | BK272: N/A | BL272: N/A | BM272: N/A | BN272: N/A | BO272: N/A | BP272: N/A | BQ272: N/A | BR272: N/A | BS272: N/A | BT272: N/A | BU272: N/A | BV272: N/A | BW272: N/A | BX272: N/A | BY272: N/A | BZ272: N/A
BB273: DK/not sure/missing | BC273: N/A | BD273: N/A | BE273: N/A | BF273: N/A | BG273: N/A | BH273: N/A | BI273: N/A | BJ273: N/A | BK273: N/A | BL273: N/A | BM273: N/A | BN273: N/A | BO273: N/A | BP273: N/A | BQ273: N/A | BR273: N/A | BS273: N/A | BT273: N/A | BU273: N/A | BV273: N/A | BW273: N/A | BX273: N/A | BY273: N/A | BZ273: N/A
BA274: Participation in (all) activities during menstruation | BB274: Yes | BC274: N/A | BD274: N/A | BE274: N/A | BF274: N/A | BG274: N/A | BH274: N/A | BI274: N/A | BJ274: N/A | BK274: N/A | BL274: N/A | BM274: N/A | BN274: N/A | BO274: N/A | BP274: N/A | BQ274: N/A | BR274: N/A | BS274: N/A | BT274: N/A | BU274: N/A | BV274: N/A | BW274: N/A | BX274: N/A | BY274: N/A | BZ274: N/A
BB275: No | BC275: N/A | BD275: N/A | BE275: N/A | BF275: N/A | BG275: N/A | BH275: N/A | BI275: N/A | BJ275: N/A | BK275: N/A | BL275: N/A | BM275: N/A | BN275: N/A | BO275: N/A | BP275: N/A | BQ275: N/A | BR275: N/A | BS275: N/A | BT275: N/A | BU275: N/A | BV275: N/A | BW275: N/A | BX275: N/A | BY275: N/A | BZ275: N/A
BB276: DK/not sure/missing/no such activity | BC276: N/A | BD276: N/A | BE276: N/A | BF276: N/A | BG276: N/A | BH276: N/A | BI276: N/A | BJ276: N/A | BK276: N/A | BL276: N/A | BM276: N/A | BN276: N/A | BO276: N/A | BP276: N/A | BQ276: N/A | BR276: N/A | BS276: N/A | BT276: N/A | BU276: N/A | BV276: N/A | BW276: N/A | BX276: N/A | BY276: N/A | BZ276: N/A
BA277: Participation in specific activities during menstruation | BB277: Did not go to school (amongst those usually attending school) | BC277: N/A | BD277: N/A | BE277: N/A | BF277: N/A | BG277: N/A | BH277: N/A | BI277: N/A | BJ277: N/A | BK277: N/A | BL277: N/A | BM277: N/A | BN277: N/A | BO277: N/A | BP277: N/A | BQ277: N/A | BR277: N/A | BS277: N/A | BT277: N/A | BU277: N/A | BV277: N/A | BW277: N/A | BX277: N/A | BY277: N/A | BZ277: N/A
BB278: Did not go to work (amongst those who usually work) | BC278: N/A | BD278: N/A | BE278: N/A | BF278: N/A | BG278: N/A | BH278: N/A | BI278: N/A | BJ278: N/A | BK278: N/A | BL278: N/A | BM278: N/A | BN278: N/A | BO278: N/A | BP278: N/A | BQ278: N/A | BR278: N/A | BS278: N/A | BT278: N/A | BU278: N/A | BV278: N/A | BW278: N/A | BX278: N/A | BY278: N/A | BZ278: N/A
BB279: Did not participate in social activities | BC279: N/A | BD279: N/A | BE279: N/A | BF279: N/A | BG279: N/A | BH279: N/A | BI279: N/A | BJ279: N/A | BK279: N/A | BL279: N/A | BM279: N/A | BN279: N/A | BO279: N/A | BP279: N/A | BQ279: N/A | BR279: N/A | BS279: N/A | BT279: N/A | BU279: N/A | BV279: N/A | BW279: N/A | BX279: N/A | BY279: N/A | BZ279: N/A
BB280: Did not cook food | BC280: N/A | BD280: N/A | BE280: N/A | BF280: N/A | BG280: N/A | BH280: N/A | BI280: N/A | BJ280: N/A | BK280: N/A | BL280: N/A | BM280: N/A | BN280: N/A | BO280: N/A | BP280: N/A | BQ280: N/A | BR280: N/A | BS280: N/A | BT280: N/A | BU280: N/A | BV280: N/A | BW280: N/A | BX280: N/A | BY280: N/A | BZ280: N/A
BB281: Did not eat with others | BC281: N/A | BD281: N/A | BE281: N/A | BF281: N/A | BG281: N/A | BH281: N/A | BI281: N/A | BJ281: N/A | BK281: N/A | BL281: N/A | BM281: N/A | BN281: N/A | BO281: N/A | BP281: N/A | BQ281: N/A | BR281: N/A | BS281: N/A | BT281: N/A | BU281: N/A | BV281: N/A | BW281: N/A | BX281: N/A | BY281: N/A | BZ281: N/A
BB282: Did not bathe in regular place | BC282: N/A | BD282: N/A | BE282: N/A | BF282: N/A | BG282: N/A | BH282: N/A | BI282: N/A | BJ282: N/A | BK282: N/A | BL282: N/A | BM282: N/A | BN282: N/A | BO282: N/A | BP282: N/A | BQ282: N/A | BR282: N/A | BS282: N/A | BT282: N/A | BU282: N/A | BV282: N/A | BW282: N/A | BX282: N/A | BY282: N/A | BZ282: N/A
BB283: Did not participate in other activities | BC283: N/A | BD283: N/A | BE283: N/A | BF283: N/A | BG283: N/A | BH283: N/A | BI283: N/A | BJ283: N/A | BK283: N/A | BL283: N/A | BM283: N/A | BN283: N/A | BO283: N/A | BP283: N/A | BQ283: N/A | BR283: N/A | BS283: N/A | BT283: N/A | BU283: N/A | BV283: N/A | BW283: N/A | BX283: N/A | BY283: N/A | BZ283: N/A
BB284: DK/not sure/missing/no such activity | BC284: N/A | BD284: N/A | BE284: N/A | BF284: N/A | BG284: N/A | BH284: N/A | BI284: N/A | BJ284: N/A | BK284: N/A | BL284: N/A | BM284: N/A | BN284: N/A | BO284: N/A | BP284: N/A | BQ284: N/A | BR284: N/A | BS284: N/A | BT284: N/A | BU284: N/A | BV284: N/A | BW284: N/A | BX284: N/A | BY284: N/A | BZ284: N/A
BA339: Raw numbers of respondents: | BB339: Basic water, sanitation and hygiene | BC339: NATIONAL wealth index quintile | BH339: URBAN wealth index quintile | BM339: RURAL wealth index quintile | BR339: SUB-REGIONS:
BA340: WatSan data, raw numbers (weighted) | BC340: Poorest | BD340: Poor | BE340: Middle | BF340: Rich | BG340: Richest | BH340: Poorest | BI340: Poor | BJ340: Middle | BK340: Rich | BL340: Richest | BM340: Poorest | BN340: Poor | BO340: Middle | BP340: Rich | BQ340: Richest | BR340: B. E. T. | BS340: Bar Azoum | BT340: Centre Est | BU340: Chari Baguirmi | BV340: Logone Occidental | BW340: Mayo Kebbi | BX340: Moyen Chari | BY340: N'Djaména | BZ340: Ouaddai Est
BA341: Use of Basic Water Sanitation and Hygiene | BB341: Yes | BC341: N/A | BD341: N/A | BE341: N/A | BF341: N/A | BG341: N/A | BH341: N/A | BI341: N/A | BJ341: N/A | BK341: N/A | BL341: N/A | BM341: N/A | BN341: N/A | BO341: N/A | BP341: N/A | BQ341: N/A | BR341: N/A | BS341: N/A | BT341: N/A | BU341: N/A | BV341: N/A | BW341: N/A | BX341: N/A | BY341: N/A | BZ341: N/A
BB342: No | BC342: N/A | BD342: N/A | BE342: N/A | BF342: N/A | BG342: N/A | BH342: N/A | BI342: N/A | BJ342: N/A | BK342: N/A | BL342: N/A | BM342: N/A | BN342: N/A | BO342: N/A | BP342: N/A | BQ342: N/A | BR342: N/A | BS342: N/A | BT342: N/A | BU342: N/A | BV342: N/A | BW342: N/A | BX342: N/A | BY342: N/A | BZ342: N/A
BA343: Use of Basic Water and Sanitation | BB343: Yes | BC343: N/A | BD343: N/A | BE343: N/A | BF343: N/A | BG343: N/A | BH343: N/A | BI343: N/A | BJ343: N/A | BK343: N/A | BL343: N/A | BM343: N/A | BN343: N/A | BO343: N/A | BP343: N/A | BQ343: N/A | BR343: N/A | BS343: N/A | BT343: N/A | BU343: N/A | BV343: N/A | BW343: N/A | BX343: N/A | BY343: N/A | BZ343: N/A
BB344: No | BC344: N/A | BD344: N/A | BE344: N/A | BF344: N/A | BG344: N/A | BH344: N/A | BI344: N/A | BJ344: N/A | BK344: N/A | BL344: N/A | BM344: N/A | BN344: N/A | BO344: N/A | BP344: N/A | BQ344: N/A | BR344: N/A | BS344: N/A | BT344: N/A | BU344: N/A | BV344: N/A | BW344: N/A | BX344: N/A | BY344: N/A | BZ344: N/A
BA345: Use of Basic Water and Hygiene | BB345: Yes | BC345: N/A | BD345: N/A | BE345: N/A | BF345: N/A | BG345: N/A | BH345: N/A | BI345: N/A | BJ345: N/A | BK345: N/A | BL345: N/A | BM345: N/A | BN345: N/A | BO345: N/A | BP345: N/A | BQ345: N/A | BR345: N/A | BS345: N/A | BT345: N/A | BU345: N/A | BV345: N/A | BW345: N/A | BX345: N/A | BY345: N/A | BZ345: N/A
BB346: No | BC346: N/A | BD346: N/A | BE346: N/A | BF346: N/A | BG346: N/A | BH346: N/A | BI346: N/A | BJ346: N/A | BK346: N/A | BL346: N/A | BM346: N/A | BN346: N/A | BO346: N/A | BP346: N/A | BQ346: N/A | BR346: N/A | BS346: N/A | BT346: N/A | BU346: N/A | BV346: N/A | BW346: N/A | BX346: N/A | BY346: N/A | BZ346: N/A
BA347: Use of Basic Sanitation and Hygiene | BB347: Yes | BC347: N/A | BD347: N/A | BE347: N/A | BF347: N/A | BG347: N/A | BH347: N/A | BI347: N/A | BJ347: N/A | BK347: N/A | BL347: N/A | BM347: N/A | BN347: N/A | BO347: N/A | BP347: N/A | BQ347: N/A | BR347: N/A | BS347: N/A | BT347: N/A | BU347: N/A | BV347: N/A | BW347: N/A | BX347: N/A | BY347: N/A | BZ347: N/A
BB348: No | BC348: N/A | BD348: N/A | BE348: N/A | BF348: N/A | BG348: N/A | BH348: N/A | BI348: N/A | BJ348: N/A | BK348: N/A | BL348: N/A | BM348: N/A | BN348: N/A | BO348: N/A | BP348: N/A | BQ348: N/A | BR348: N/A | BS348: N/A | BT348: N/A | BU348: N/A | BV348: N/A | BW348: N/A | BX348: N/A | BY348: N/A | BZ348: N/A
BA349: Use of Basic Water | BB349: Yes | BC349: N/A | BD349: N/A | BE349: N/A | BF349: N/A | BG349: N/A | BH349: N/A | BI349: N/A | BJ349: N/A | BK349: N/A | BL349: N/A | BM349: N/A | BN349: N/A | BO349: N/A | BP349: N/A | BQ349: N/A | BR349: N/A | BS349: N/A | BT349: N/A | BU349: N/A | BV349: N/A | BW349: N/A | BX349: N/A | BY349: N/A | BZ349: N/A
BB350: No | BC350: N/A | BD350: N/A | BE350: N/A | BF350: N/A | BG350: N/A | BH350: N/A | BI350: N/A | BJ350: N/A | BK350: N/A | BL350: N/A | BM350: N/A | BN350: N/A | BO350: N/A | BP350: N/A | BQ350: N/A | BR350: N/A | BS350: N/A | BT350: N/A | BU350: N/A | BV350: N/A | BW350: N/A | BX350: N/A | BY350: N/A | BZ350: N/A
BA351: Use of Basic Sanitation | BB351: Yes | BC351: N/A | BD351: N/A | BE351: N/A | BF351: N/A | BG351: N/A | BH351: N/A | BI351: N/A | BJ351: N/A | BK351: N/A | BL351: N/A | BM351: N/A | BN351: N/A | BO351: N/A | BP351: N/A | BQ351: N/A | BR351: N/A | BS351: N/A | BT351: N/A | BU351: N/A | BV351: N/A | BW351: N/A | BX351: N/A | BY351: N/A | BZ351: N/A
BB352: No | BC352: N/A | BD352: N/A | BE352: N/A | BF352: N/A | BG352: N/A | BH352: N/A | BI352: N/A | BJ352: N/A | BK352: N/A | BL352: N/A | BM352: N/A | BN352: N/A | BO352: N/A | BP352: N/A | BQ352: N/A | BR352: N/A | BS352: N/A | BT352: N/A | BU352: N/A | BV352: N/A | BW352: N/A | BX352: N/A | BY352: N/A | BZ352: N/A
BA353: Access to Basic Hygiene | BB353: Yes | BC353: N/A | BD353: N/A | BE353: N/A | BF353: N/A | BG353: N/A | BH353: N/A | BI353: N/A | BJ353: N/A | BK353: N/A | BL353: N/A | BM353: N/A | BN353: N/A | BO353: N/A | BP353: N/A | BQ353: N/A | BR353: N/A | BS353: N/A | BT353: N/A | BU353: N/A | BV353: N/A | BW353: N/A | BX353: N/A | BY353: N/A | BZ353: N/A
BB354: No | BC354: N/A | BD354: N/A | BE354: N/A | BF354: N/A | BG354: N/A | BH354: N/A | BI354: N/A | BJ354: N/A | BK354: N/A | BL354: N/A | BM354: N/A | BN354: N/A | BO354: N/A | BP354: N/A | BQ354: N/A | BR354: N/A | BS354: N/A | BT354: N/A | BU354: N/A | BV354: N/A | BW354: N/A | BX354: N/A | BY354: N/A | BZ354: N/A
C399: INITIAL (national) Wealth Index | H399: URBAN Wealth Index | M399: RURAL Wealth Index
C400: Component Matrix | H400: Component Matrix | M400: Component Matrix
E401: Component | J401: Component | O401: Component
B402: Note: The INITIAL (national) Wealth Index is based on the first component of the Principal Component Analysis (PCA) which has been obtained at national level. The final national-level (NATIONAL) Wealth Index is based on the URBAN and RURAL specific wealth indexes. Regression procedures are used to establish the relationships between the two sets of scores (urban and rural) and the initial (national) wealth factors. This allows best use of the available information for each area and a better precision of the FINAL (NATIONAL) Wealth Index. For dependency reasons, all WASH variables (contained in the generic MICS and DHS scripts) have been excluded from the sets of asset variables used in the PCAs. The PCA can extracts as many components as there are asset variables in the input. Only the first of the components is used to represent the Wealth Index. The scores represent the weights of the asset variables on the Wealth Index (correlations between the variables and the component). The communalities are the proportion of each variable's variance that can be explained by the component. Proportion of explained variance is the part of the model's total variance that is explained by the component. For more information on the procedure used: The DHS Wealth Index, DHS Comparative Reports No. 6, Shea Oscar Rutstein, Kiersten Johnson, ORC Macro International Inc., 2004. The DHS Wealth Index: Approaches for Rural and Urban Areas, Shea O. Rutstein, ORC Macro International Inc., 2008. MICS Methodological Paper No. 4, Review of options for reporting water, sanitation and hygiene coverage by wealth quintile, UNICEF, 2016. | E402: 1 | J402: 1 | O402: 1
C403: Has electricity | E403: 0.7805596636 | H403: Has electricity | J403: 0.7842210633 | M403: Has jute wall | O403: -0.7166974442
C404: Has earth/sand floor | E404: -0.764576892 | H404: Household light: electricity | J404: 0.7791560317 | M404: Household light: hurricane lamp | O404: 0.6601714449
C405: Has cement floor | E405: 0.7509979661 | H405: Has earth/sand floor | J405: -0.7436248831 | M405: Has jute roof | O405: -0.6564103952
C406: Household light: electricity | E406: 0.7496059496 | H406: Has cement floor | J406: 0.7329798445 | M406: Has stone with lime wall | O406: 0.646834546
C407: Has television | E407: 0.740849655 | H407: Has television | J407: 0.724753058 | M407: Household light: firewood | O407: -0.5933458787
C408: Has corrugated iron roof | E408: 0.6560066983 | H408: Has car/truck | J408: 0.637953197 | M408: Has calamine roof | O408: 0.5276013782
C409: Has car/truck | E409: 0.6303834411 | H409: Has refrigerator | J409: 0.6281763424 | M409: Has bicycle | O409: 0.4296131198
... 157 more rows

Sheet MICS10
A2: =A1026 -> Chad
A3: =A1034 -> 2010
A4: Use of drinking water sources
A5: by wealth quintile and sub-national region
A6: Notes:
A7: WHO/UNICEF JMP customised wealth index excludes water,
A8: sanitation and hygiene assets.
A9: Survey used for analysis: | B9: =A1025 -> MICS10
A10: =B1028 -> 
A11: =B1027 -> 
A14: Use of drinking water sources | C14: NATIONAL wealth index quintile | H14: URBAN wealth index quintile | M14: RURAL wealth index quintile | R14: SUB-REGIONS: | BA14: Raw numbers of respondents: | BB14: Use of drinking water sources | BC14: NATIONAL wealth index quintile | BH14: URBAN wealth index quintile | BM14: RURAL wealth index quintile | BR14: SUB-REGIONS:
A15: Weighted percentage (used in graphs) | C15: Poorest | D15: Poor | E15: Middle | F15: Rich | G15: Richest | H15: Poorest | I15: Poor | J15: Middle | K15: Rich | L15: Richest | M15: Poorest | N15: Poor | O15: Middle | P15: Rich | Q15: Richest | R15: Barh El Gazal | S15: BET | T15: Bhata | U15: Chari Baguirmi | V15: Guéra | W15: Hadjer Lamis | X15: Kanem | Y15: Lac | Z15: Logone Occidental | AA15: Logone Oriental | AB15: Mandoul | AC15: Mayo Kebbi Est | AD15: Mayo Kebbi Ouest | AE15: Moyen Chari | AF15: Ndjaména | AG15: Ouaddai | AH15: Salamat | AI15: Sila | AJ15: Tandjilé | AK15: Wad Fira | BA15: Water data, raw numbers (weighted) | BC15: Poorest | BD15: Poor | BE15: Middle | BF15: Rich | BG15: Richest | BH15: Poorest | BI15: Poor | BJ15: Middle | BK15: Rich | BL15: Richest | BM15: Poorest | BN15: Poor | BO15: Middle | BP15: Rich | BQ15: Richest | BR15: Barh El Gazal | BS15: BET | BT15: Bhata | BU15: Chari Baguirmi | BV15: Guéra | BW15: Hadjer Lamis | BX15: Kanem | BY15: Lac | BZ15: Logone Occidental | CA15: Logone Oriental | CB15: Mandoul | CC15: Mayo Kebbi Est | CD15: Mayo Kebbi Ouest | CE15: Moyen Chari | CF15: Ndjaména | CG15: Ouaddai | CH15: Salamat | CI15: Sila | CJ15: Tandjilé | CK15: Wad Fira
A16: Water | B16: Improved | C16: 34.1 | D16: 41.2 | E16: 45.2 | F16: 56.1 | G16: 85 | H16: 63.7 | I16: 84.3 | J16: 85.9 | K16: 93.6 | L16: 98.7 | M16: 34.1 | N16: 35.7 | O16: 41.2 | P16: 47.2 | Q16: 53.2 | R16: 89.1 | S16: 19.4 | T16: 61.1 | U16: 80.7 | V16: 42 | W16: 84.1 | X16: 63.5 | Y16: 68 | Z16: 43 | AA16: 28.4 | AB16: 30.1 | AC16: 52.9 | AD16: 35.7 | AE16: 30.3 | AF16: 99.3 | AG16: 41.2 | AH16: 18.9 | AI16: 44.7 | AJ16: 34.5 | AK16: 17.4 | BA16: Water | BB16: Improved | BC16: N/A | BD16: N/A | BE16: N/A | BF16: N/A | BG16: N/A | BH16: N/A | BI16: N/A | BJ16: N/A | BK16: N/A | BL16: N/A | BM16: N/A | BN16: N/A | BO16: N/A | BP16: N/A | BQ16: N/A | BR16: N/A | BS16: N/A | BT16: N/A | BU16: N/A | BV16: N/A | BW16: N/A | BX16: N/A | BY16: N/A | BZ16: N/A | CA16: N/A | CB16: N/A | CC16: N/A | CD16: N/A | CE16: N/A | CF16: N/A | CG16: N/A | CH16: N/A | CI16: N/A | CJ16: N/A | CK16: N/A
B17: Not Improved | C17: 65.9 | D17: 58.8 | E17: 54.8 | F17: 43.9 | G17: 15 | H17: 36.3 | I17: 15.7 | J17: 14.1 | K17: 6.4 | L17: 1.3 | M17: 65.9 | N17: 64.3 | O17: 58.8 | P17: 52.8 | Q17: 46.8 | R17: 10.9 | S17: 80.6 | T17: 38.9 | U17: 19.3 | V17: 58 | W17: 15.9 | X17: 36.5 | Y17: 32 | Z17: 57 | AA17: 71.6 | AB17: 69.9 | AC17: 47.1 | AD17: 64.3 | AE17: 69.7 | AF17: 0.7 | AG17: 58.8 | AH17: 81.1 | AI17: 55.3 | AJ17: 65.5 | AK17: 82.6 | BB17: Not Improved | BC17: N/A | BD17: N/A | BE17: N/A | BF17: N/A | BG17: N/A | BH17: N/A | BI17: N/A | BJ17: N/A | BK17: N/A | BL17: N/A | BM17: N/A | BN17: N/A | BO17: N/A | BP17: N/A | BQ17: N/A | BR17: N/A | BS17: N/A | BT17: N/A | BU17: N/A | BV17: N/A | BW17: N/A | BX17: N/A | BY17: N/A | BZ17: N/A | CA17: N/A | CB17: N/A | CC17: N/A | CD17: N/A | CE17: N/A | CF17: N/A | CG17: N/A | CH17: N/A | CI17: N/A | CJ17: N/A | CK17: N/A
A18: Water ladder | B18: Basic | C18: 20.3 | D18: 26 | E18: 30 | F18: 41.4 | G18: 75.2 | H18: 49.3 | I18: 71.8 | J18: 75.9 | K18: 88.3 | L18: 96.9 | M18: 20.5 | N18: 22 | O18: 26.5 | P18: 30.6 | Q18: 37.6 | R18: 75.8 | S18: 14.7 | T18: 37 | U18: 56.8 | V18: 28.2 | W18: 60 | X18: 54.9 | Y18: 45.6 | Z18: 27.7 | AA18: 17.6 | AB18: 15 | AC18: 31.8 | AD18: 25.1 | AE18: 22.8 | AF18: 95.6 | AG18: 28.9 | AH18: 13.3 | AI18: 27.9 | AJ18: 25.9 | AK18: 9.4 | BA18: Water ladder | BB18: Basic | BC18: N/A | BD18: N/A | BE18: N/A | BF18: N/A | BG18: N/A | BH18: N/A | BI18: N/A | BJ18: N/A | BK18: N/A | BL18: N/A | BM18: N/A | BN18: N/A | BO18: N/A | BP18: N/A | BQ18: N/A | BR18: N/A | BS18: N/A | BT18: N/A | BU18: N/A | BV18: N/A | BW18: N/A | BX18: N/A | BY18: N/A | BZ18: N/A | CA18: N/A | CB18: N/A | CC18: N/A | CD18: N/A | CE18: N/A | CF18: N/A | CG18: N/A | CH18: N/A | CI18: N/A | CJ18: N/A | CK18: N/A
B19: Limited | C19: 13.5 | D19: 15 | E19: 14.5 | F19: 12.9 | G19: 8.3 | H19: 10.8 | I19: 9.2 | J19: 7.4 | K19: 4.3 | L19: 1.8 | M19: 13.5 | N19: 13.7 | O19: 14.5 | P19: 16.1 | Q19: 15.4 | R19: 13 | S19: 3.7 | T19: 23.5 | U19: 23.8 | V19: 13.5 | W19: 23.7 | X19: 7.6 | Y19: 22.3 | Z19: 14.5 | AA19: 9.9 | AB19: 13.9 | AC19: 20.8 | AD19: 10.5 | AE19: 4.6 | AF19: 3.5 | AG19: 11.2 | AH19: 4.8 | AI19: 15.2 | AJ19: 8.1 | AK19: 7.3 | BB19: Limited | BC19: N/A | BD19: N/A | BE19: N/A | BF19: N/A | BG19: N/A | BH19: N/A | BI19: N/A | BJ19: N/A | BK19: N/A | BL19: N/A | BM19: N/A | BN19: N/A | BO19: N/A | BP19: N/A | BQ19: N/A | BR19: N/A | BS19: N/A | BT19: N/A | BU19: N/A | BV19: N/A | BW19: N/A | BX19: N/A | BY19: N/A | BZ19: N/A | CA19: N/A | CB19: N/A | CC19: N/A | CD19: N/A | CE19: N/A | CF19: N/A | CG19: N/A | CH19: N/A | CI19: N/A | CJ19: N/A | CK19: N/A
B20: Unimproved | C20: 61 | D20: 54.2 | E20: 51.7 | F20: 42.6 | G20: 14.8 | H20: 34.2 | I20: 17 | J20: 15.3 | K20: 6.7 | L20: 1.2 | M20: 60.5 | N20: 60 | O20: 54 | P20: 51 | Q20: 43 | R20: 11.2 | S20: 81.6 | T20: 38.3 | U20: 10.5 | V20: 58.1 | W20: 16.3 | X20: 36.6 | Y20: 25.3 | Z20: 55.3 | AA20: 68.5 | AB20: 71.1 | AC20: 46 | AD20: 48 | AE20: 72.3 | AF20: 0.8 | AG20: 57.9 | AH20: 57 | AI20: 31.6 | AJ20: 63.7 | AK20: 81.9 | BB20: Unimproved | BC20: N/A | BD20: N/A | BE20: N/A | BF20: N/A | BG20: N/A | BH20: N/A | BI20: N/A | BJ20: N/A | BK20: N/A | BL20: N/A | BM20: N/A | BN20: N/A | BO20: N/A | BP20: N/A | BQ20: N/A | BR20: N/A | BS20: N/A | BT20: N/A | BU20: N/A | BV20: N/A | BW20: N/A | BX20: N/A | BY20: N/A | BZ20: N/A | CA20: N/A | CB20: N/A | CC20: N/A | CD20: N/A | CE20: N/A | CF20: N/A | CG20: N/A | CH20: N/A | CI20: N/A | CJ20: N/A | CK20: N/A
B21: Surface water | C21: 5.2 | D21: 4.8 | E21: 3.7 | F21: 3.1 | G21: 1.7 | H21: 5.8 | I21: 2 | J21: 1.4 | K21: 0.7 | L21: 0.1 | M21: 5.5 | N21: 4.3 | O21: 5 | P21: 2.4 | Q21: 4 | R21: 0 | S21: 0 | T21: 1.2 | U21: 8.9 | V21: 0.1 | W21: 0 | X21: 1 | Y21: 6.8 | Z21: 2.5 | AA21: 4 | AB21: 0 | AC21: 1.4 | AD21: 16.4 | AE21: 0.4 | AF21: 0 | AG21: 2 | AH21: 24.9 | AI21: 25.3 | AJ21: 2.3 | AK21: 1.4 | BB21: Surface water | BC21: N/A | BD21: N/A | BE21: N/A | BF21: N/A | BG21: N/A | BH21: N/A | BI21: N/A | BJ21: N/A | BK21: N/A | BL21: N/A | BM21: N/A | BN21: N/A | BO21: N/A | BP21: N/A | BQ21: N/A | BR21: N/A | BS21: N/A | BT21: N/A | BU21: N/A | BV21: N/A | BW21: N/A | BX21: N/A | BY21: N/A | BZ21: N/A | CA21: N/A | CB21: N/A | CC21: N/A | CD21: N/A | CE21: N/A | CF21: N/A | CG21: N/A | CH21: N/A | CI21: N/A | CJ21: N/A | CK21: N/A
A22: Improved water point at more than 30 minutes | B22: Yes | C22: 39.9 | D22: 36.6 | E22: 32.7 | F22: 23.8 | G22: 9.9 | H22: 17.9 | I22: 11.4 | J22: 8.8 | K22: 4.7 | L22: 1.8 | M22: 39.8 | N22: 38.4 | O22: 35.3 | P22: 34.4 | Q22: 29.1 | R22: 14.7 | S22: 20.1 | T22: 38.8 | U22: 29.5 | V22: 32.5 | W22: 28.3 | X22: 12.1 | Y22: 32.8 | Z22: 34.3 | AA22: 36.1 | AB22: 48 | AC22: 39.5 | AD22: 29.4 | AE22: 16.8 | AF22: 3.6 | AG22: 27.8 | AH22: 26.3 | AI22: 35.3 | AJ22: 23.7 | AK22: 43.6 | BA22: Improved water point at more than 30 minutes | BB22: Yes | BC22: N/A | BD22: N/A | BE22: N/A | BF22: N/A | BG22: N/A | BH22: N/A | BI22: N/A | BJ22: N/A | BK22: N/A | BL22: N/A | BM22: N/A | BN22: N/A | BO22: N/A | BP22: N/A | BQ22: N/A | BR22: N/A | BS22: N/A | BT22: N/A | BU22: N/A | BV22: N/A | BW22: N/A | BX22: N/A | BY22: N/A | BZ22: N/A | CA22: N/A | CB22: N/A | CC22: N/A | CD22: N/A | CE22: N/A | CF22: N/A | CG22: N/A | CH22: N/A | CI22: N/A | CJ22: N/A | CK22: N/A
B23: No | C23: 60.1 | D23: 63.4 | E23: 67.3 | F23: 76.2 | G23: 90.1 | H23: 82.1 | I23: 88.6 | J23: 91.2 | K23: 95.3 | L23: 98.2 | M23: 60.2 | N23: 61.6 | O23: 64.7 | P23: 65.6 | Q23: 70.9 | R23: 85.3 | S23: 79.9 | T23: 61.2 | U23: 70.5 | V23: 67.5 | W23: 71.7 | X23: 87.9 | Y23: 67.2 | Z23: 65.7 | AA23: 63.9 | AB23: 52 | AC23: 60.5 | AD23: 70.6 | AE23: 83.2 | AF23: 96.4 | AG23: 72.2 | AH23: 73.7 | AI23: 64.7 | AJ23: 76.3 | AK23: 56.4 | BB23: No | BC23: N/A | BD23: N/A | BE23: N/A | BF23: N/A | BG23: N/A | BH23: N/A | BI23: N/A | BJ23: N/A | BK23: N/A | BL23: N/A | BM23: N/A | BN23: N/A | BO23: N/A | BP23: N/A | BQ23: N/A | BR23: N/A | BS23: N/A | BT23: N/A | BU23: N/A | BV23: N/A | BW23: N/A | BX23: N/A | BY23: N/A | BZ23: N/A | CA23: N/A | CB23: N/A | CC23: N/A | CD23: N/A | CE23: N/A | CF23: N/A | CG23: N/A | CH23: N/A | CI23: N/A | CJ23: N/A | CK23: N/A
A24: Manually calculated ratios | B24: Improved wells
B25: Improved springs
B26: Other
C27: NATIONAL wealth index quintile | H27: URBAN wealth index quintile | M27: RURAL wealth index quintile | R27: SUB-REGIONS: | BA27: Raw numbers of respondents: | BB27: Use of drinking water sources | BC27: NATIONAL wealth index quintile | BH27: URBAN wealth index quintile | BM27: RURAL wealth index quintile | BR27: SUB-REGIONS:
A28: Percentage based on weighted population | C28: Poorest | D28: Poor | E28: Middle | F28: Rich | G28: Richest | H28: Poorest | I28: Poor | J28: Middle | K28: Rich | L28: Richest | M28: Poorest | N28: Poor | O28: Middle | P28: Rich | Q28: Richest | R28: Barh El Gazal | S28: BET | T28: Bhata | U28: Chari Baguirmi | V28: Guéra | W28: Hadjer Lamis | X28: Kanem | Y28: Lac | Z28: Logone Occidental | AA28: Logone Oriental | AB28: Mandoul | AC28: Mayo Kebbi Est | AD28: Mayo Kebbi Ouest | AE28: Moyen Chari | AF28: Ndjaména | AG28: Ouaddai | AH28: Salamat | AI28: Sila | AJ28: Tandjilé | AK28: Wad Fira | BA28: Water data, raw numbers (weighted) | BC28: Poorest | BD28: Poor | BE28: Middle | BF28: Rich | BG28: Richest | BH28: Poorest | BI28: Poor | BJ28: Middle | BK28: Rich | BL28: Richest | BM28: Poorest | BN28: Poor | BO28: Middle | BP28: Rich | BQ28: Richest | BR28: Barh El Gazal | BS28: BET | BT28: Bhata | BU28: Chari Baguirmi | BV28: Guéra | BW28: Hadjer Lamis | BX28: Kanem | BY28: Lac | BZ28: Logone Occidental | CA28: Logone Oriental | CB28: Mandoul | CC28: Mayo Kebbi Est | CD28: Mayo Kebbi Ouest | CE28: Moyen Chari | CF28: Ndjaména | CG28: Ouaddai | CH28: Salamat | CI28: Sila | CJ28: Tandjilé | CK28: Wad Fira
A29: Piped water | B29: Yes | C29: 7.7 | D29: 10.2 | E29: 12.4 | F29: 24.9 | G29: 61 | H29: 39.9 | I29: 62.3 | J29: 57.7 | K29: 71.1 | L29: 86.4 | M29: 6.7 | N29: 6.2 | O29: 10.6 | P29: 13.4 | Q29: 17.9 | R29: 37.1 | S29: 15.2 | T29: 19.4 | U29: 44.8 | V29: 10.1 | W29: 36 | X29: 19 | Y29: 14.7 | Z29: 15.2 | AA29: 8.6 | AB29: 9.6 | AC29: 14.2 | AD29: 8.2 | AE29: 12.8 | AF29: 72.7 | AG29: 22.5 | AH29: 7 | AI29: 20.9 | AJ29: 14 | AK29: 5.2 | BA29: Piped water | BB29: Yes | BC29: N/A | BD29: N/A | BE29: N/A | BF29: N/A | BG29: N/A | BH29: N/A | BI29: N/A | BJ29: N/A | BK29: N/A | BL29: N/A | BM29: N/A | BN29: N/A | BO29: N/A | BP29: N/A | BQ29: N/A | BR29: N/A | BS29: N/A | BT29: N/A | BU29: N/A | BV29: N/A | BW29: N/A | BX29: N/A | BY29: N/A | BZ29: N/A | CA29: N/A | CB29: N/A | CC29: N/A | CD29: N/A | CE29: N/A | CF29: N/A | CG29: N/A | CH29: N/A | CI29: N/A | CJ29: N/A | CK29: N/A
B30: No | C30: 92.3 | D30: 89.8 | E30: 87.6 | F30: 75.1 | G30: 39 | H30: 60.1 | I30: 37.7 | J30: 42.3 | K30: 28.9 | L30: 13.6 | M30: 93.3 | N30: 93.8 | O30: 89.4 | P30: 86.6 | Q30: 82.1 | R30: 62.9 | S30: 84.8 | T30: 80.6 | U30: 55.2 | V30: 89.9 | W30: 64 | X30: 81 | Y30: 85.3 | Z30: 84.8 | AA30: 91.4 | AB30: 90.4 | AC30: 85.8 | AD30: 91.8 | AE30: 87.2 | AF30: 27.3 | AG30: 77.5 | AH30: 93 | AI30: 79.1 | AJ30: 86 | AK30: 94.8 | BB30: No | BC30: N/A | BD30: N/A | BE30: N/A | BF30: N/A | BG30: N/A | BH30: N/A | BI30: N/A | BJ30: N/A | BK30: N/A | BL30: N/A | BM30: N/A | BN30: N/A | BO30: N/A | BP30: N/A | BQ30: N/A | BR30: N/A | BS30: N/A | BT30: N/A | BU30: N/A | BV30: N/A | BW30: N/A | BX30: N/A | BY30: N/A | BZ30: N/A | CA30: N/A | CB30: N/A | CC30: N/A | CD30: N/A | CE30: N/A | CF30: N/A | CG30: N/A | CH30: N/A | CI30: N/A | CJ30: N/A | CK30: N/A
A31: Piped water on premises | B31: Yes | C31: 0.2 | D31: 0.5 | E31: 1.2 | F31: 4.6 | G31: 30.5 | H31: 6 | I31: 14.5 | J31: 13 | K31: 33.1 | L31: 74.7 | M31: 0 | N31: 0.2 | O31: 0.5 | P31: 2.6 | Q31: 1.9 | R31: 17.1 | S31: 7.9 | T31: 3.7 | U31: 1.1 | V31: 2 | W31: 5.9 | X31: 13.4 | Y31: 2.3 | Z31: 3.2 | AA31: 0.6 | AB31: 1 | AC31: 2.1 | AD31: 0.1 | AE31: 3.7 | AF31: 38.4 | AG31: 5.5 | AH31: 2.2 | AI31: 6.6 | AJ31: 2.3 | AK31: 1.4 | BA31: Piped water on premises | BB31: Yes | BC31: N/A | BD31: N/A | BE31: N/A | BF31: N/A | BG31: N/A | BH31: N/A | BI31: N/A | BJ31: N/A | BK31: N/A | BL31: N/A | BM31: N/A | BN31: N/A | BO31: N/A | BP31: N/A | BQ31: N/A | BR31: N/A | BS31: N/A | BT31: N/A | BU31: N/A | BV31: N/A | BW31: N/A | BX31: N/A | BY31: N/A | BZ31: N/A | CA31: N/A | CB31: N/A | CC31: N/A | CD31: N/A | CE31: N/A | CF31: N/A | CG31: N/A | CH31: N/A | CI31: N/A | CJ31: N/A | CK31: N/A
B32: No | C32: 99.8 | D32: 99.5 | E32: 98.8 | F32: 95.4 | G32: 69.5 | H32: 94 | I32: 85.5 | J32: 87 | K32: 66.9 | L32: 25.3 | M32: 100 | N32: 99.8 | O32: 99.5 | P32: 97.4 | Q32: 98.1 | R32: 82.9 | S32: 92.1 | T32: 96.3 | U32: 98.9 | V32: 98 | W32: 94.1 | X32: 86.6 | Y32: 97.7 | Z32: 96.8 | AA32: 99.4 | AB32: 99 | AC32: 97.9 | AD32: 99.9 | AE32: 96.3 | AF32: 61.6 | AG32: 94.5 | AH32: 97.8 | AI32: 93.4 | AJ32: 97.7 | AK32: 98.6 | BB32: No | BC32: N/A | BD32: N/A | BE32: N/A | BF32: N/A | BG32: N/A | BH32: N/A | BI32: N/A | BJ32: N/A | BK32: N/A | BL32: N/A | BM32: N/A | BN32: N/A | BO32: N/A | BP32: N/A | BQ32: N/A | BR32: N/A | BS32: N/A | BT32: N/A | BU32: N/A | BV32: N/A | BW32: N/A | BX32: N/A | BY32: N/A | BZ32: N/A | CA32: N/A | CB32: N/A | CC32: N/A | CD32: N/A | CE32: N/A | CF32: N/A | CG32: N/A | CH32: N/A | CI32: N/A | CJ32: N/A | CK32: N/A
A33: Piped water into dwelling | B33: Yes | C33: N/A | D33: N/A | E33: N/A | F33: N/A | G33: N/A | H33: N/A | I33: N/A | J33: N/A | K33: N/A | L33: N/A | M33: N/A | N33: N/A | O33: N/A | P33: N/A | Q33: N/A | R33: N/A | S33: N/A | T33: N/A | U33: N/A | V33: N/A | W33: N/A | X33: N/A | Y33: N/A | Z33: N/A | AA33: N/A | AB33: N/A | AC33: N/A | AD33: N/A | AE33: N/A | AF33: N/A | AG33: N/A | AH33: N/A | AI33: N/A | AJ33: N/A | AK33: N/A | BA33: Piped water into dwelling | BB33: Yes | BC33: N/A | BD33: N/A | BE33: N/A | BF33: N/A | BG33: N/A | BH33: N/A | BI33: N/A | BJ33: N/A | BK33: N/A | BL33: N/A | BM33: N/A | BN33: N/A | BO33: N/A | BP33: N/A | BQ33: N/A | BR33: N/A | BS33: N/A | BT33: N/A | BU33: N/A | BV33: N/A | BW33: N/A | BX33: N/A | BY33: N/A | BZ33: N/A | CA33: N/A | CB33: N/A | CC33: N/A | CD33: N/A | CE33: N/A | CF33: N/A | CG33: N/A | CH33: N/A | CI33: N/A | CJ33: N/A | CK33: N/A
B34: No | C34: N/A | D34: N/A | E34: N/A | F34: N/A | G34: N/A | H34: N/A | I34: N/A | J34: N/A | K34: N/A | L34: N/A | M34: N/A | N34: N/A | O34: N/A | P34: N/A | Q34: N/A | R34: N/A | S34: N/A | T34: N/A | U34: N/A | V34: N/A | W34: N/A | X34: N/A | Y34: N/A | Z34: N/A | AA34: N/A | AB34: N/A | AC34: N/A | AD34: N/A | AE34: N/A | AF34: N/A | AG34: N/A | AH34: N/A | AI34: N/A | AJ34: N/A | AK34: N/A | BB34: No | BC34: N/A | BD34: N/A | BE34: N/A | BF34: N/A | BG34: N/A | BH34: N/A | BI34: N/A | BJ34: N/A | BK34: N/A | BL34: N/A | BM34: N/A | BN34: N/A | BO34: N/A | BP34: N/A | BQ34: N/A | BR34: N/A | BS34: N/A | BT34: N/A | BU34: N/A | BV34: N/A | BW34: N/A | BX34: N/A | BY34: N/A | BZ34: N/A | CA34: N/A | CB34: N/A | CC34: N/A | CD34: N/A | CE34: N/A | CF34: N/A | CG34: N/A | CH34: N/A | CI34: N/A | CJ34: N/A | CK34: N/A
A35: Water source on premises | B35: Yes | C35: 5.5 | D35: 6.5 | E35: 9.5 | F35: 19.6 | G35: 55.7 | H35: 24.5 | I35: 41.3 | J35: 42.6 | K35: 64.6 | L35: 90.5 | M35: 4 | N35: 6.2 | O35: 7.3 | P35: 10.9 | Q35: 17.4 | R35: 20.3 | S35: 28.3 | T35: 10.9 | U35: 14 | V35: 9.5 | W35: 9 | X35: 17.8 | Y35: 6.7 | Z35: 13.5 | AA35: 19.2 | AB35: 11 | AC35: 9.6 | AD35: 4 | AE35: 23.6 | AF35: 62.9 | AG35: 15.4 | AH35: 7.5 | AI35: 7.4 | AJ35: 33.1 | AK35: 5.8 | BA35: Water source on premises | BB35: Yes | BC35: N/A | BD35: N/A | BE35: N/A | BF35: N/A | BG35: N/A | BH35: N/A | BI35: N/A | BJ35: N/A | BK35: N/A | BL35: N/A | BM35: N/A | BN35: N/A | BO35: N/A | BP35: N/A | BQ35: N/A | BR35: N/A | BS35: N/A | BT35: N/A | BU35: N/A | BV35: N/A | BW35: N/A | BX35: N/A | BY35: N/A | BZ35: N/A | CA35: N/A | CB35: N/A | CC35: N/A | CD35: N/A | CE35: N/A | CF35: N/A | CG35: N/A | CH35: N/A | CI35: N/A | CJ35: N/A | CK35: N/A
B36: No | C36: 94.5 | D36: 93.5 | E36: 90.5 | F36: 80.4 | G36: 44.3 | H36: 75.5 | I36: 58.7 | J36: 57.4 | K36: 35.4 | L36: 9.5 | M36: 96 | N36: 93.8 | O36: 92.7 | P36: 89.1 | Q36: 82.6 | R36: 79.7 | S36: 71.7 | T36: 89.1 | U36: 86 | V36: 90.5 | W36: 91 | X36: 82.2 | Y36: 93.3 | Z36: 86.5 | AA36: 80.8 | AB36: 89 | AC36: 90.4 | AD36: 96 | AE36: 76.4 | AF36: 37.1 | AG36: 84.6 | AH36: 92.5 | AI36: 92.6 | AJ36: 66.9 | AK36: 94.2 | BB36: No | BC36: N/A | BD36: N/A | BE36: N/A | BF36: N/A | BG36: N/A | BH36: N/A | BI36: N/A | BJ36: N/A | BK36: N/A | BL36: N/A | BM36: N/A | BN36: N/A | BO36: N/A | BP36: N/A | BQ36: N/A | BR36: N/A | BS36: N/A | BT36: N/A | BU36: N/A | BV36: N/A | BW36: N/A | BX36: N/A | BY36: N/A | BZ36: N/A | CA36: N/A | CB36: N/A | CC36: N/A | CD36: N/A | CE36: N/A | CF36: N/A | CG36: N/A | CH36: N/A | CI36: N/A | CJ36: N/A | CK36: N/A
A37: Improved Water source on premises | B37: Yes | C37: 0.9 | D37: 1.7 | E37: 3.2 | F37: 10.5 | G37: 49.4 | H37: 15.7 | I37: 34.4 | J37: 36.1 | K37: 60.3 | L37: 89.7 | M37: 0.4 | N37: 0.7 | O37: 1.7 | P37: 4 | Q37: 6.8 | R37: 20.2 | S37: 9.7 | T37: 7.4 | U37: 7.3 | V37: 6.2 | W37: 8.9 | X37: 13.8 | Y37: 6.6 | Z37: 7.1 | AA37: 2.7 | AB37: 3.7 | AC37: 3.8 | AD37: 2.3 | AE37: 9.7 | AF37: 62.3 | AG37: 11.8 | AH37: 5.3 | AI37: 7.1 | AJ37: 5.8 | AK37: 3.3 | BA37: Improved water source on premises | BB37: Yes | BC37: N/A | BD37: N/A | BE37: N/A | BF37: N/A | BG37: N/A | BH37: N/A | BI37: N/A | BJ37: N/A | BK37: N/A | BL37: N/A | BM37: N/A | BN37: N/A | BO37: N/A | BP37: N/A | BQ37: N/A | BR37: N/A | BS37: N/A | BT37: N/A | BU37: N/A | BV37: N/A | BW37: N/A | BX37: N/A | BY37: N/A | BZ37: N/A | CA37: N/A | CB37: N/A | CC37: N/A | CD37: N/A | CE37: N/A | CF37: N/A | CG37: N/A | CH37: N/A | CI37: N/A | CJ37: N/A | CK37: N/A
B38: No | C38: 99.1 | D38: 98.3 | E38: 96.8 | F38: 89.5 | G38: 50.6 | H38: 84.3 | I38: 65.6 | J38: 63.9 | K38: 39.7 | L38: 10.3 | M38: 99.6 | N38: 99.3 | O38: 98.3 | P38: 96 | Q38: 93.2 | R38: 79.8 | S38: 90.3 | T38: 92.6 | U38: 92.7 | V38: 93.8 | W38: 91.1 | X38: 86.2 | Y38: 93.4 | Z38: 92.9 | AA38: 97.3 | AB38: 96.3 | AC38: 96.2 | AD38: 97.7 | AE38: 90.3 | AF38: 37.7 | AG38: 88.2 | AH38: 94.7 | AI38: 92.9 | AJ38: 94.2 | AK38: 96.7 | BB38: No | BC38: N/A | BD38: N/A | BE38: N/A | BF38: N/A | BG38: N/A | BH38: N/A | BI38: N/A | BJ38: N/A | BK38: N/A | BL38: N/A | BM38: N/A | BN38: N/A | BO38: N/A | BP38: N/A | BQ38: N/A | BR38: N/A | BS38: N/A | BT38: N/A | BU38: N/A | BV38: N/A | BW38: N/A | BX38: N/A | BY38: N/A | BZ38: N/A | CA38: N/A | CB38: N/A | CC38: N/A | CD38: N/A | CE38: N/A | CF38: N/A | CG38: N/A | CH38: N/A | CI38: N/A | CJ38: N/A | CK38: N/A
A39: Piped water on premises available when needed | B39: Yes | C39: N/A | D39: N/A | E39: N/A | F39: N/A | G39: N/A | H39: N/A | I39: N/A | J39: N/A | K39: N/A | L39: N/A | M39: N/A | N39: N/A | O39: N/A | P39: N/A | Q39: N/A | R39: N/A | S39: N/A | T39: N/A | U39: N/A | V39: N/A | W39: N/A | X39: N/A | Y39: N/A | Z39: N/A | AA39: N/A | AB39: N/A | AC39: N/A | AD39: N/A | AE39: N/A | AF39: N/A | AG39: N/A | AH39: N/A | AI39: N/A | AJ39: N/A | AK39: N/A | BA39: Piped water on premises available when needed | BB39: Yes | BC39: N/A | BD39: N/A | BE39: N/A | BF39: N/A | BG39: N/A | BH39: N/A | BI39: N/A | BJ39: N/A | BK39: N/A | BL39: N/A | BM39: N/A | BN39: N/A | BO39: N/A | BP39: N/A | BQ39: N/A | BR39: N/A | BS39: N/A | BT39: N/A | BU39: N/A | BV39: N/A | BW39: N/A | BX39: N/A | BY39: N/A | BZ39: N/A | CA39: N/A | CB39: N/A | CC39: N/A | CD39: N/A | CE39: N/A | CF39: N/A | CG39: N/A | CH39: N/A | CI39: N/A | CJ39: N/A | CK39: N/A
B40: No | C40: N/A | D40: N/A | E40: N/A | F40: N/A | G40: N/A | H40: N/A | I40: N/A | J40: N/A | K40: N/A | L40: N/A | M40: N/A | N40: N/A | O40: N/A | P40: N/A | Q40: N/A | R40: N/A | S40: N/A | T40: N/A | U40: N/A | V40: N/A | W40: N/A | X40: N/A | Y40: N/A | Z40: N/A | AA40: N/A | AB40: N/A | AC40: N/A | AD40: N/A | AE40: N/A | AF40: N/A | AG40: N/A | AH40: N/A | AI40: N/A | AJ40: N/A | AK40: N/A | BB40: No | BC40: N/A | BD40: N/A | BE40: N/A | BF40: N/A | BG40: N/A | BH40: N/A | BI40: N/A | BJ40: N/A | BK40: N/A | BL40: N/A | BM40: N/A | BN40: N/A | BO40: N/A | BP40: N/A | BQ40: N/A | BR40: N/A | BS40: N/A | BT40: N/A | BU40: N/A | BV40: N/A | BW40: N/A | BX40: N/A | BY40: N/A | BZ40: N/A | CA40: N/A | CB40: N/A | CC40: N/A | CD40: N/A | CE40: N/A | CF40: N/A | CG40: N/A | CH40: N/A | CI40: N/A | CJ40: N/A | CK40: N/A
A41: Water point at more than 30 minutes | B41: Yes | C41: 39.1 | D41: 38.7 | E41: 34.3 | F41: 25.9 | G41: 11.8 | H41: 21.5 | I41: 11.4 | J41: 10.8 | K41: 6 | L41: 2.1 | M41: 42.1 | N41: 34.9 | O41: 38.6 | P41: 34.9 | Q41: 28 | R41: 20 | S41: 21.7 | T41: 41 | U41: 26.8 | V41: 38.1 | W41: 33 | X41: 27.9 | Y41: 47.2 | Z41: 29.2 | AA41: 22.1 | AB41: 26.2 | AC41: 32 | AD41: 35.4 | AE41: 15.1 | AF41: 3.5 | AG41: 50.8 | AH41: 40.5 | AI41: 53.2 | AJ41: 19.5 | AK41: 56.8 | BA41: Water point at more than 30 minutes | BB41: Yes | BC41: N/A | BD41: N/A | BE41: N/A | BF41: N/A | BG41: N/A | BH41: N/A | BI41: N/A | BJ41: N/A | BK41: N/A | BL41: N/A | BM41: N/A | BN41: N/A | BO41: N/A | BP41: N/A | BQ41: N/A | BR41: N/A | BS41: N/A | BT41: N/A | BU41: N/A | BV41: N/A | BW41: N/A | BX41: N/A | BY41: N/A | BZ41: N/A | CA41: N/A | CB41: N/A | CC41: N/A | CD41: N/A | CE41: N/A | CF41: N/A | CG41: N/A | CH41: N/A | CI41: N/A | CJ41: N/A | CK41: N/A
B42: No | C42: 60.9 | D42: 61.3 | E42: 65.7 | F42: 74.1 | G42: 88.2 | H42: 78.5 | I42: 88.6 | J42: 89.2 | K42: 94 | L42: 97.9 | M42: 57.9 | N42: 65.1 | O42: 61.4 | P42: 65.1 | Q42: 72 | R42: 80 | S42: 78.3 | T42: 59 | U42: 73.2 | V42: 61.9 | W42: 67 | X42: 72.1 | Y42: 52.8 | Z42: 70.8 | AA42: 77.9 | AB42: 73.8 | AC42: 68 | AD42: 64.6 | AE42: 84.9 | AF42: 96.5 | AG42: 49.2 | AH42: 59.5 | AI42: 46.8 | AJ42: 80.5 | AK42: 43.2 | BB42: No | BC42: N/A | BD42: N/A | BE42: N/A | BF42: N/A | BG42: N/A | BH42: N/A | BI42: N/A | BJ42: N/A | BK42: N/A | BL42: N/A | BM42: N/A | BN42: N/A | BO42: N/A | BP42: N/A | BQ42: N/A | BR42: N/A | BS42: N/A | BT42: N/A | BU42: N/A | BV42: N/A | BW42: N/A | BX42: N/A | BY42: N/A | BZ42: N/A | CA42: N/A | CB42: N/A | CC42: N/A | CD42: N/A | CE42: N/A | CF42: N/A | CG42: N/A | CH42: N/A | CI42: N/A | CJ42: N/A | CK42: N/A
A43: Water source available when needed | B43: Yes | C43: N/A | D43: N/A | E43: N/A | F43: N/A | G43: N/A | H43: N/A | I43: N/A | J43: N/A | K43: N/A | L43: N/A | M43: N/A | N43: N/A | O43: N/A | P43: N/A | Q43: N/A | R43: N/A | S43: N/A | T43: N/A | U43: N/A | V43: N/A | W43: N/A | X43: N/A | Y43: N/A | Z43: N/A | AA43: N/A | AB43: N/A | AC43: N/A | AD43: N/A | AE43: N/A | AF43: N/A | AG43: N/A | AH43: N/A | AI43: N/A | AJ43: N/A | AK43: N/A | BA43: Water source available when needed | BB43: Yes | BC43: N/A | BD43: N/A | BE43: N/A | BF43: N/A | BG43: N/A | BH43: N/A | BI43: N/A | BJ43: N/A | BK43: N/A | BL43: N/A | BM43: N/A | BN43: N/A | BO43: N/A | BP43: N/A | BQ43: N/A | BR43: N/A | BS43: N/A | BT43: N/A | BU43: N/A | BV43: N/A | BW43: N/A | BX43: N/A | BY43: N/A | BZ43: N/A | CA43: N/A | CB43: N/A | CC43: N/A | CD43: N/A | CE43: N/A | CF43: N/A | CG43: N/A | CH43: N/A | CI43: N/A | CJ43: N/A | CK43: N/A
B44: No | C44: N/A | D44: N/A | E44: N/A | F44: N/A | G44: N/A | H44: N/A | I44: N/A | J44: N/A | K44: N/A | L44: N/A | M44: N/A | N44: N/A | O44: N/A | P44: N/A | Q44: N/A | R44: N/A | S44: N/A | T44: N/A | U44: N/A | V44: N/A | W44: N/A | X44: N/A | Y44: N/A | Z44: N/A | AA44: N/A | AB44: N/A | AC44: N/A | AD44: N/A | AE44: N/A | AF44: N/A | AG44: N/A | AH44: N/A | AI44: N/A | AJ44: N/A | AK44: N/A | BB44: No | BC44: N/A | BD44: N/A | BE44: N/A | BF44: N/A | BG44: N/A | BH44: N/A | BI44: N/A | BJ44: N/A | BK44: N/A | BL44: N/A | BM44: N/A | BN44: N/A | BO44: N/A | BP44: N/A | BQ44: N/A | BR44: N/A | BS44: N/A | BT44: N/A | BU44: N/A | BV44: N/A | BW44: N/A | BX44: N/A | BY44: N/A | BZ44: N/A | CA44: N/A | CB44: N/A | CC44: N/A | CD44: N/A | CE44: N/A | CF44: N/A | CG44: N/A | CH44: N/A | CI44: N/A | CJ44: N/A | CK44: N/A
A45: Improved water source available when needed | B45: Yes | C45: N/A | D45: N/A | E45: N/A | F45: N/A | G45: N/A | H45: N/A | I45: N/A | J45: N/A | K45: N/A | L45: N/A | M45: N/A | N45: N/A | O45: N/A | P45: N/A | Q45: N/A | R45: N/A | S45: N/A | T45: N/A | U45: N/A | V45: N/A | W45: N/A | X45: N/A | Y45: N/A | Z45: N/A | AA45: N/A | AB45: N/A | AC45: N/A | AD45: N/A | AE45: N/A | AF45: N/A | AG45: N/A | AH45: N/A | AI45: N/A | AJ45: N/A | AK45: N/A | BA45: Improved water source available when needed | BB45: Yes | BC45: N/A | BD45: N/A | BE45: N/A | BF45: N/A | BG45: N/A | BH45: N/A | BI45: N/A | BJ45: N/A | BK45: N/A | BL45: N/A | BM45: N/A | BN45: N/A | BO45: N/A | BP45: N/A | BQ45: N/A | BR45: N/A | BS45: N/A | BT45: N/A | BU45: N/A | BV45: N/A | BW45: N/A | BX45: N/A | BY45: N/A | BZ45: N/A | CA45: N/A | CB45: N/A | CC45: N/A | CD45: N/A | CE45: N/A | CF45: N/A | CG45: N/A | CH45: N/A | CI45: N/A | CJ45: N/A | CK45: N/A
B46: No | C46: N/A | D46: N/A | E46: N/A | F46: N/A | G46: N/A | H46: N/A | I46: N/A | J46: N/A | K46: N/A | L46: N/A | M46: N/A | N46: N/A | O46: N/A | P46: N/A | Q46: N/A | R46: N/A | S46: N/A | T46: N/A | U46: N/A | V46: N/A | W46: N/A | X46: N/A | Y46: N/A | Z46: N/A | AA46: N/A | AB46: N/A | AC46: N/A | AD46: N/A | AE46: N/A | AF46: N/A | AG46: N/A | AH46: N/A | AI46: N/A | AJ46: N/A | AK46: N/A | BB46: No | BC46: N/A | BD46: N/A | BE46: N/A | BF46: N/A | BG46: N/A | BH46: N/A | BI46: N/A | BJ46: N/A | BK46: N/A | BL46: N/A | BM46: N/A | BN46: N/A | BO46: N/A | BP46: N/A | BQ46: N/A | BR46: N/A | BS46: N/A | BT46: N/A | BU46: N/A | BV46: N/A | BW46: N/A | BX46: N/A | BY46: N/A | BZ46: N/A | CA46: N/A | CB46: N/A | CC46: N/A | CD46: N/A | CE46: N/A | CF46: N/A | CG46: N/A | CH46: N/A | CI46: N/A | CJ46: N/A | CK46: N/A
A47: Microbiological quality at point of collection | B47: Not contaminated (No E. coli in 100 mL) | C47: N/A | D47: N/A | E47: N/A | F47: N/A | G47: N/A | H47: N/A | I47: N/A | J47: N/A | K47: N/A | L47: N/A | M47: N/A | N47: N/A | O47: N/A | P47: N/A | Q47: N/A | R47: N/A | S47: N/A | T47: N/A | U47: N/A | V47: N/A | W47: N/A | X47: N/A | Y47: N/A | Z47: N/A | AA47: N/A | AB47: N/A | AC47: N/A | AD47: N/A | AE47: N/A | AF47: N/A | AG47: N/A | AH47: N/A | AI47: N/A | AJ47: N/A | AK47: N/A | BA47: Microbiological quality at point of collection | BB47: Not contaminated (No E. coli in 100 mL) | BC47: N/A | BD47: N/A | BE47: N/A | BF47: N/A | BG47: N/A | BH47: N/A | BI47: N/A | BJ47: N/A | BK47: N/A | BL47: N/A | BM47: N/A | BN47: N/A | BO47: N/A | BP47: N/A | BQ47: N/A | BR47: N/A | BS47: N/A | BT47: N/A | BU47: N/A | BV47: N/A | BW47: N/A | BX47: N/A | BY47: N/A | BZ47: N/A | CA47: N/A | CB47: N/A | CC47: N/A | CD47: N/A | CE47: N/A | CF47: N/A | CG47: N/A | CH47: N/A | CI47: N/A | CJ47: N/A | CK47: N/A
B48: Contaminated (E. coli detected in 100 mL) | C48: N/A | D48: N/A | E48: N/A | F48: N/A | G48: N/A | H48: N/A | I48: N/A | J48: N/A | K48: N/A | L48: N/A | M48: N/A | N48: N/A | O48: N/A | P48: N/A | Q48: N/A | R48: N/A | S48: N/A | T48: N/A | U48: N/A | V48: N/A | W48: N/A | X48: N/A | Y48: N/A | Z48: N/A | AA48: N/A | AB48: N/A | AC48: N/A | AD48: N/A | AE48: N/A | AF48: N/A | AG48: N/A | AH48: N/A | AI48: N/A | AJ48: N/A | AK48: N/A | BB48: Contaminated (E. coli detected in 100 mL) | BC48: N/A | BD48: N/A | BE48: N/A | BF48: N/A | BG48: N/A | BH48: N/A | BI48: N/A | BJ48: N/A | BK48: N/A | BL48: N/A | BM48: N/A | BN48: N/A | BO48: N/A | BP48: N/A | BQ48: N/A | BR48: N/A | BS48: N/A | BT48: N/A | BU48: N/A | BV48: N/A | BW48: N/A | BX48: N/A | BY48: N/A | BZ48: N/A | CA48: N/A | CB48: N/A | CC48: N/A | CD48: N/A | CE48: N/A | CF48: N/A | CG48: N/A | CH48: N/A | CI48: N/A | CJ48: N/A | CK48: N/A
B49: Highly contaminated (>100 CFU/100 mL) | C49: N/A | D49: N/A | E49: N/A | F49: N/A | G49: N/A | H49: N/A | I49: N/A | J49: N/A | K49: N/A | L49: N/A | M49: N/A | N49: N/A | O49: N/A | P49: N/A | Q49: N/A | R49: N/A | S49: N/A | T49: N/A | U49: N/A | V49: N/A | W49: N/A | X49: N/A | Y49: N/A | Z49: N/A | AA49: N/A | AB49: N/A | AC49: N/A | AD49: N/A | AE49: N/A | AF49: N/A | AG49: N/A | AH49: N/A | AI49: N/A | AJ49: N/A | AK49: N/A | BB49: Highly contaminated (>100 CFU/100 mL) | BC49: N/A | BD49: N/A | BE49: N/A | BF49: N/A | BG49: N/A | BH49: N/A | BI49: N/A | BJ49: N/A | BK49: N/A | BL49: N/A | BM49: N/A | BN49: N/A | BO49: N/A | BP49: N/A | BQ49: N/A | BR49: N/A | BS49: N/A | BT49: N/A | BU49: N/A | BV49: N/A | BW49: N/A | BX49: N/A | BY49: N/A | BZ49: N/A | CA49: N/A | CB49: N/A | CC49: N/A | CD49: N/A | CE49: N/A | CF49: N/A | CG49: N/A | CH49: N/A | CI49: N/A | CJ49: N/A | CK49: N/A
A50: Microbiological quality of improved water sources at point of collection | B50: Not contaminated (No E. coli in 100 mL) | C50: N/A | D50: N/A | E50: N/A | F50: N/A | G50: N/A | H50: N/A | I50: N/A | J50: N/A | K50: N/A | L50: N/A | M50: N/A | N50: N/A | O50: N/A | P50: N/A | Q50: N/A | R50: N/A | S50: N/A | T50: N/A | U50: N/A | V50: N/A | W50: N/A | X50: N/A | Y50: N/A | Z50: N/A | AA50: N/A | AB50: N/A | AC50: N/A | AD50: N/A | AE50: N/A | AF50: N/A | AG50: N/A | AH50: N/A | AI50: N/A | AJ50: N/A | AK50: N/A | BA50: Microbiological quality of improved water sources at point of collection | BB50: Not contaminated (No E. coli in 100 mL) | BC50: N/A | BD50: N/A | BE50: N/A | BF50: N/A | BG50: N/A | BH50: N/A | BI50: N/A | BJ50: N/A | BK50: N/A | BL50: N/A | BM50: N/A | BN50: N/A | BO50: N/A | BP50: N/A | BQ50: N/A | BR50: N/A | BS50: N/A | BT50: N/A | BU50: N/A | BV50: N/A | BW50: N/A | BX50: N/A | BY50: N/A | BZ50: N/A | CA50: N/A | CB50: N/A | CC50: N/A | CD50: N/A | CE50: N/A | CF50: N/A | CG50: N/A | CH50: N/A | CI50: N/A | CJ50: N/A | CK50: N/A
B51: Contaminated (E. coli detected in 100 mL) | C51: N/A | D51: N/A | E51: N/A | F51: N/A | G51: N/A | H51: N/A | I51: N/A | J51: N/A | K51: N/A | L51: N/A | M51: N/A | N51: N/A | O51: N/A | P51: N/A | Q51: N/A | R51: N/A | S51: N/A | T51: N/A | U51: N/A | V51: N/A | W51: N/A | X51: N/A | Y51: N/A | Z51: N/A | AA51: N/A | AB51: N/A | AC51: N/A | AD51: N/A | AE51: N/A | AF51: N/A | AG51: N/A | AH51: N/A | AI51: N/A | AJ51: N/A | AK51: N/A | BB51: Contaminated (E. coli detected in 100 mL) | BC51: N/A | BD51: N/A | BE51: N/A | BF51: N/A | BG51: N/A | BH51: N/A | BI51: N/A | BJ51: N/A | BK51: N/A | BL51: N/A | BM51: N/A | BN51: N/A | BO51: N/A | BP51: N/A | BQ51: N/A | BR51: N/A | BS51: N/A | BT51: N/A | BU51: N/A | BV51: N/A | BW51: N/A | BX51: N/A | BY51: N/A | BZ51: N/A | CA51: N/A | CB51: N/A | CC51: N/A | CD51: N/A | CE51: N/A | CF51: N/A | CG51: N/A | CH51: N/A | CI51: N/A | CJ51: N/A | CK51: N/A
B52: Highly contaminated (>100 CFU/100 mL) | C52: N/A | D52: N/A | E52: N/A | F52: N/A | G52: N/A | H52: N/A | I52: N/A | J52: N/A | K52: N/A | L52: N/A | M52: N/A | N52: N/A | O52: N/A | P52: N/A | Q52: N/A | R52: N/A | S52: N/A | T52: N/A | U52: N/A | V52: N/A | W52: N/A | X52: N/A | Y52: N/A | Z52: N/A | AA52: N/A | AB52: N/A | AC52: N/A | AD52: N/A | AE52: N/A | AF52: N/A | AG52: N/A | AH52: N/A | AI52: N/A | AJ52: N/A | AK52: N/A | BB52: Highly contaminated (>100 CFU/100 mL) | BC52: N/A | BD52: N/A | BE52: N/A | BF52: N/A | BG52: N/A | BH52: N/A | BI52: N/A | BJ52: N/A | BK52: N/A | BL52: N/A | BM52: N/A | BN52: N/A | BO52: N/A | BP52: N/A | BQ52: N/A | BR52: N/A | BS52: N/A | BT52: N/A | BU52: N/A | BV52: N/A | BW52: N/A | BX52: N/A | BY52: N/A | BZ52: N/A | CA52: N/A | CB52: N/A | CC52: N/A | CD52: N/A | CE52: N/A | CF52: N/A | CG52: N/A | CH52: N/A | CI52: N/A | CJ52: N/A | CK52: N/A
A53: Microbiological quality of piped on premises at point of collection | B53: Not contaminated (No E. coli in 100 mL) | C53: N/A | D53: N/A | E53: N/A | F53: N/A | G53: N/A | H53: N/A | I53: N/A | J53: N/A | K53: N/A | L53: N/A | M53: N/A | N53: N/A | O53: N/A | P53: N/A | Q53: N/A | R53: N/A | S53: N/A | T53: N/A | U53: N/A | V53: N/A | W53: N/A | X53: N/A | Y53: N/A | Z53: N/A | AA53: N/A | AB53: N/A | AC53: N/A | AD53: N/A | AE53: N/A | AF53: N/A | AG53: N/A | AH53: N/A | AI53: N/A | AJ53: N/A | AK53: N/A | BA53: Microbiological quality of piped on premises at point of collection | BB53: Not contaminated (No E. coli in 100 mL) | BC53: N/A | BD53: N/A | BE53: N/A | BF53: N/A | BG53: N/A | BH53: N/A | BI53: N/A | BJ53: N/A | BK53: N/A | BL53: N/A | BM53: N/A | BN53: N/A | BO53: N/A | BP53: N/A | BQ53: N/A | BR53: N/A | BS53: N/A | BT53: N/A | BU53: N/A | BV53: N/A | BW53: N/A | BX53: N/A | BY53: N/A | BZ53: N/A | CA53: N/A | CB53: N/A | CC53: N/A | CD53: N/A | CE53: N/A | CF53: N/A | CG53: N/A | CH53: N/A | CI53: N/A | CJ53: N/A | CK53: N/A
B54: Contaminated (E. coli detected in 100 mL) | C54: N/A | D54: N/A | E54: N/A | F54: N/A | G54: N/A | H54: N/A | I54: N/A | J54: N/A | K54: N/A | L54: N/A | M54: N/A | N54: N/A | O54: N/A | P54: N/A | Q54: N/A | R54: N/A | S54: N/A | T54: N/A | U54: N/A | V54: N/A | W54: N/A | X54: N/A | Y54: N/A | Z54: N/A | AA54: N/A | AB54: N/A | AC54: N/A | AD54: N/A | AE54: N/A | AF54: N/A | AG54: N/A | AH54: N/A | AI54: N/A | AJ54: N/A | AK54: N/A | BB54: Contaminated (E. coli detected in 100 mL) | BC54: N/A | BD54: N/A | BE54: N/A | BF54: N/A | BG54: N/A | BH54: N/A | BI54: N/A | BJ54: N/A | BK54: N/A | BL54: N/A | BM54: N/A | BN54: N/A | BO54: N/A | BP54: N/A | BQ54: N/A | BR54: N/A | BS54: N/A | BT54: N/A | BU54: N/A | BV54: N/A | BW54: N/A | BX54: N/A | BY54: N/A | BZ54: N/A | CA54: N/A | CB54: N/A | CC54: N/A | CD54: N/A | CE54: N/A | CF54: N/A | CG54: N/A | CH54: N/A | CI54: N/A | CJ54: N/A | CK54: N/A
B55: Highly contaminated (>100 CFU/100 mL) | C55: N/A | D55: N/A | E55: N/A | F55: N/A | G55: N/A | H55: N/A | I55: N/A | J55: N/A | K55: N/A | L55: N/A | M55: N/A | N55: N/A | O55: N/A | P55: N/A | Q55: N/A | R55: N/A | S55: N/A | T55: N/A | U55: N/A | V55: N/A | W55: N/A | X55: N/A | Y55: N/A | Z55: N/A | AA55: N/A | AB55: N/A | AC55: N/A | AD55: N/A | AE55: N/A | AF55: N/A | AG55: N/A | AH55: N/A | AI55: N/A | AJ55: N/A | AK55: N/A | BB55: Highly contaminated (>100 CFU/100 mL) | BC55: N/A | BD55: N/A | BE55: N/A | BF55: N/A | BG55: N/A | BH55: N/A | BI55: N/A | BJ55: N/A | BK55: N/A | BL55: N/A | BM55: N/A | BN55: N/A | BO55: N/A | BP55: N/A | BQ55: N/A | BR55: N/A | BS55: N/A | BT55: N/A | BU55: N/A | BV55: N/A | BW55: N/A | BX55: N/A | BY55: N/A | BZ55: N/A | CA55: N/A | CB55: N/A | CC55: N/A | CD55: N/A | CE55: N/A | CF55: N/A | CG55: N/A | CH55: N/A | CI55: N/A | CJ55: N/A | CK55: N/A
C56: NATIONAL wealth index quintile | H56: URBAN wealth index quintile | M56: RURAL wealth index quintile | R56: SUB-REGIONS: | BA56: Raw numbers of respondents: | BB56: Use of drinking water sources | BC56: NATIONAL wealth index quintile | BH56: URBAN wealth index quintile | BM56: RURAL wealth index quintile | BR56: SUB-REGIONS:
A57: Percentage based on weighted population | C57: Poorest | D57: Poor | E57: Middle | F57: Rich | G57: Richest | H57: Poorest | I57: Poor | J57: Middle | K57: Rich | L57: Richest | M57: Poorest | N57: Poor | O57: Middle | P57: Rich | Q57: Richest | R57: Barh El Gazal | S57: BET | T57: Bhata | U57: Chari Baguirmi | V57: Guéra | W57: Hadjer Lamis | X57: Kanem | Y57: Lac | Z57: Logone Occidental | AA57: Logone Oriental | AB57: Mandoul | AC57: Mayo Kebbi Est | AD57: Mayo Kebbi Ouest | AE57: Moyen Chari | AF57: Ndjaména | AG57: Ouaddai | AH57: Salamat | AI57: Sila | AJ57: Tandjilé | AK57: Wad Fira | BA57: Water data, raw numbers (weighted) | BC57: Poorest | BD57: Poor | BE57: Middle | BF57: Rich | BG57: Richest | BH57: Poorest | BI57: Poor | BJ57: Middle | BK57: Rich | BL57: Richest | BM57: Poorest | BN57: Poor | BO57: Middle | BP57: Rich | BQ57: Richest | BR57: Barh El Gazal | BS57: BET | BT57: Bhata | BU57: Chari Baguirmi | BV57: Guéra | BW57: Hadjer Lamis | BX57: Kanem | BY57: Lac | BZ57: Logone Occidental | CA57: Logone Oriental | CB57: Mandoul | CC57: Mayo Kebbi Est | CD57: Mayo Kebbi Ouest | CE57: Moyen Chari | CF57: Ndjaména | CG57: Ouaddai | CH57: Salamat | CI57: Sila | CJ57: Tandjilé | CK57: Wad Fira
A58: Source principale d'eau potable | B58: Robinet dans le logement | C58: 0.1065854296 | D58: 0.298126561 | E58: 0.6117524965 | F58: 2.914458778 | G58: 22.49624787 | H58: 3.886343682 | I58: 10.37106624 | J58: 9.654773909 | K58: 22.69382151 | L58: 56.40806555 | M58: 0.03343310262 | N58: 0.03266909576 | O58: 0.3060877812 | P58: 1.34312945 | Q58: 1.348913619 | R58: 10.145674 | S58: 2.437808364 | T58: 2.028963723 | U58: 0.6358968478 | V58: 1.073564688 | W58: 4.833467627 | X58: 8.073048888 | Y58: 1.332222084 | Z58: 1.890344233 | AA58: 0.5176941129 | AB58: 0.1160354461 | AC58: 1.065014038 | AD58: 0.06499713807 | AE58: 2.278286824 | AF58: 28.54405351 | AG58: 5.279755598 | AH58: 1.546659119 | AI58: 5.127451482 | AJ58: 2.173139856 | AK58: 0.9671156644
B59: Robinet dans quartier, cour ou parcelle | C59: 0.07939768821 | D59: 0.1692348496 | E59: 0.6309564033 | F59: 1.690731751 | G59: 7.941847352 | H59: 2.116122094 | I59: 4.118797278 | J59: 3.361069678 | K59: 10.35742748 | L59: 18.12100824 | M59: 0 | N59: 0.1221084119 | O59: 0.1990885524 | P59: 1.260624391 | Q59: 0.5206978424 | R59: 6.997479442 | S59: 5.429668638 | T59: 1.708428203 | U59: 0.4427993391 | V59: 0.9500938876 | W59: 1.042517593 | X59: 5.326309158 | Y59: 0.9784824731 | Z59: 1.271286725 | AA59: 0.08187766276 | AB59: 0.9138088205 | AC59: 1.004050228 | AD59: 0.07994285493 | AE59: 1.429322338 | AF59: 9.754054073 | AG59: 0.1860170504 | AH59: 0.5709612856 | AI59: 1.462214968 | AJ59: 0.1195577898 | AK59: 0.4566080584
B60: Robinet du voisin | C60: 0.5255480024 | D60: 0.3048701181 | E60: 1.050464453 | F60: 3.823287894 | G60: 9.324764035 | H60: 9.090447948 | I60: 17.26173732 | J60: 15.63764182 | K60: 12.85742736 | L60: 4.693360844 | M60: 0.06772184324 | N60: 0.03215803125 | O60: 0.2366588667 | P60: 0.8982491547 | Q60: 0.2157057533 | R60: 3.208574993 | S60: 1.227831467 | T60: 1.578370053 | U60: 0.4310872489 | V60: 0.4618720052 | W60: 2.536197996 | X60: 2.81502297 | Y60: 0.1751311235 | Z60: 1.385839669 | AA60: 1.259940716 | AB60: 1.355800298 | AC60: 0.8600966668 | AD60: 0.1096669858 | AE60: 3.978743488 | AF60: 15.48617843 | AG60: 1.652598169 | AH60: 1.019552714 | AI60: 2.733556671 | AJ60: 0.6794122397 | AK60: 0.8047898639
B61: Robinet public / borne fontaine | C61: 6.973982228 | D61: 9.399719486 | E61: 10.12667852 | F61: 16.46646157 | G61: 21.21613459 | H61: 24.78948496 | I61: 30.5178195 | J61: 29.0953839 | K61: 25.15004647 | L61: 7.039540747 | M61: 6.582848901 | N61: 6.020450721 | O61: 9.85920095 | P61: 9.910785435 | Q61: 15.8174645 | R61: 16.75435386 | S61: 6.151759245 | T61: 14.12146262 | U61: 43.24854402 | V61: 7.568415923 | W61: 27.62822415 | X61: 2.803867346 | Y61: 12.19897627 | Z61: 10.69877617 | AA61: 6.779247031 | AB61: 7.193536195 | AC61: 11.30744562 | AD61: 7.909597143 | AE61: 5.134008291 | AF61: 18.90829297 | AG61: 15.42186807 | AH61: 3.850965986 | AI61: 11.54056722 | AJ61: 11.05790947 | AK61: 2.938760218
B62: Puits à pompe, forage | C62: 18.60123095 | D62: 21.90598985 | E62: 23.8354788 | F62: 23.01909647 | G62: 18.8027875 | H62: 14.15566109 | I62: 16.30548849 | J62: 21.33042219 | K62: 17.05502805 | L62: 10.63599405 | M62: 19.54154647 | N62: 20.96016832 | O62: 22.39685673 | P62: 25.06252644 | Q62: 26.32058635 | R62: 46.65770846 | S62: 0.1881862471 | T62: 21.61335544 | U62: 31.0788275 | V62: 11.65225373 | W62: 41.15174327 | X62: 35.64038204 | Y62: 52.86580105 | Z62: 15.64051187 | AA62: 16.5815034 | AB62: 15.51359178 | AC62: 30.81431922 | AD62: 18.35913169 | AE62: 6.871229623 | AF62: 23.05438007 | AG62: 12.76643198 | AH62: 8.33187582 | AI62: 20.70709737 | AJ62: 11.34392952 | AK62: 3.518452513
B63: Puits protégé | C63: 7.327290825 | D63: 8.726828502 | E63: 8.530498908 | F63: 7.821301884 | G63: 4.459778358 | H63: 9.03486482 | I63: 4.442412556 | J63: 5.20065888 | K63: 4.179234269 | L63: 1.489658067 | M63: 7.226334109 | N63: 8.194701422 | O63: 7.874177818 | P63: 8.501431813 | Q63: 8.876079425 | R63: 5.381116111 | S63: 3.920001671 | T63: 18.48976556 | U63: 4.811918591 | V63: 19.71349219 | W63: 6.918721445 | X63: 8.829762544 | Y63: 0.4671071505 | Z63: 11.61148833 | AA63: 3.192157596 | AB63: 4.618744416 | AC63: 7.893544538 | AD63: 8.788675053 | AE63: 10.48978284 | AF63: 1.704109456 | AG63: 5.093639608 | AH63: 3.522352031 | AI63: 3.115369401 | AJ63: 9.090686603 | AK63: 8.372209609
B64: Puits non protégé | C64: 58.00548828 | D64: 51.58982359 | E64: 48.31932852 | F64: 37.87559285 | G64: 12.12133134 | H64: 28.90880299 | I64: 12.35591466 | J64: 11.17949516 | K64: 4.819471985 | L64: 0.8972572869 | M64: 57.35651634 | N64: 58.35856566 | O64: 50.76730616 | P64: 47.4555479 | Q64: 39.66824812 | R64: 10.78800485 | S64: 78.40570994 | T64: 30.91861585 | U64: 8.512219343 | V64: 57.2687598 | W64: 15.85073051 | X64: 32.95147057 | Y64: 24.79209729 | Z64: 52.46999698 | AA64: 66.77855411 | AB64: 68.61507034 | AC64: 44.62430843 | AD64: 42.30113699 | AE64: 68.5687054 | AF64: 0.1130549507 | AG64: 45.28835469 | AH64: 54.42278755 | AI64: 29.41515301 | AJ64: 62.48382217 | AK64: 77.50836393
B65: Source protégée | C65: 0.4276048724 | D65: 0.1797812706 | E65: 0.2733220673 | F65: 0.04408388609 | G65: 0.09777017326 | H65: 0 | I65: 0.008547587026 | J65: 0.2737343052 | K65: 0.08442581813 | L65: 0.06013430829 | M65: 0.5648893664 | N65: 0.1561358183 | O65: 0.2512709675 | P65: 0.1814907326 | Q65: 0.05498034651 | R65: 0 | S65: 0 | T65: 0.8968633897 | U65: 0 | V65: 0.02950485513 | W65: 0 | X65: 0.008136096537 | Y65: 0 | Z65: 0.4731950452 | AA65: 0 | AB65: 0.4107784256 | AC65: 0 | AD65: 0.3299861704 | AE65: 0.148656807 | AF65: 0.06611150366 | AG65: 0.7842373351 | AH65: 0.05049743475 | AI65: 0.03752707773 | AJ65: 0 | AK65: 0.280452404
